Workbook

Sheet NOMBRE
A1: DATOS DEL ESTABLECIMIENTO | C1: CÓDIGOS
A2: NOMBRE DE COMUNA | B2: CALLE LARGA | C2: 0 | D2: 5 | E2: 3 | F2: 0 | G2: 2 | I2: =IF(OR(NOMBRE!C2="",NOMBRE!D2="",NOMBRE!E2="",NOMBRE!F2="",NOMBRE!G2=""),"Falta Cód. Com.","") ->  | AG2: =IF(I2>"",1,0) -> 0
A3: NOMBRE ESTABLECIMIENTO/ESTRATEGIA | B3: DR. JOSE JOAQUIN AGUIRRE CAMPOS | C3: 1 | D3: 0 | E3: 8 | F3: 3 | G3: 0 | H3: 8 | I3: =IF(OR(NOMBRE!C3="",NOMBRE!D3="",NOMBRE!E3="",NOMBRE!F3="",NOMBRE!G3="",NOMBRE!H3=""),"Falta Cód. Est.","") ->  | AG3: =IF(I3>"",1,0) -> 0
A4: TIPO DE ESTABLECIMIENTO/ESTRATEGIA | B4: Consultorio General Rural (CGR) - CESFAM con SAPU/SAR/SUR | I4: =IF(OR(NOMBRE!B4=""),"Falta Tipo. Est.","") ->  | AG4: =IF(I4>"",1,0) -> 0
A5: DEPENDENCIA | B5: MUNICIPAL | I5: =IF(OR(NOMBRE!B5=""),"Falta Dependencia. Est.","") ->  | AG5: =IF(I5>"",1,0) -> 0
A6: MES: | B6: DICIEMBRE | C6: 1 | D6: 2 | I6: =IF(OR(NOMBRE!C6="",NOMBRE!D6=""),"Falta Cód. Mes.","") ->  | AG6: =IF(I6>"",1,0) -> 0
A7: AÑO: | B7: 2022 | AG7: =SUM(AG2:AG6) -> 0
A9: Versión 1.1: Febrero 2022 | G9: Para habilitar el contenido de las celdas "Tipo de Establecimiento", "Dependencia" y "Mes", presione el boton "Verificar Habilitacion de Macros". Para poder tener un 100% de funcionalidad debe hablitar la opcion Macros en esta planilla.
A11: Director Servicio de Salud o Director Establecimiento | B11: A.S. Patricia Natalia Rios Rojas | AA11: ENERO | AB11: Establecimiento de Mayor Complejidad (EMAYC) | AC11: SERVICIO DE SALUD
A12: Jefe de Estadísticas | B12: Carmen G. Ibaceta Cesped | AA12: FEBRERO | AB12: Establecimiento de Mediana Complejidad (EMEDC) | AC12: MUNICIPAL
AA13: MARZO | AB13: Establecimiento de Menor Complejidad (EMENC) | AC13: OTRA INSTITUCION (Delegado)
AA14: ABRIL | AB14: Centros de Diagnóstico Terapeutico (CDT)
A15: MINSAL - DEIS | AA15: MAYO | AB15: Centro de Referencia de Salud (CRS)
AA16: JUNIO | AB16: Consultorio General Urbano (CGU)
B17: SERIE A | G17: ESTADO MACROS: | AA17: JULIO | AB17: Consultorio General Urbano (CGU) - CESFAM
I18: HABILITADO | AA18: AGOSTO | AB18: Consultorio General Urbano(CGU) con SAPU/SUR/SAR
AA19: SEPTIEMBRE | AB19: Consultorio General Urbano (CGU) - CESFAM con SAPU/SAR
AA20: OCTUBRE | AB20: Consultorio General Rural (CGR)
AA21: NOVIEMBRE | AB21: Consultorio General Rural (CGR) - CESFAM
AA22: DICIEMBRE | AB22: Consultorio General Rural (CGR) con SAPU/SAR/SUR
AB23: Consultorio General Rural (CGR) - CESFAM con SAPU/SAR/SUR
AB24: Posta de Salud Rural (PSR)
AB25: Centro Comunitario de Salud Familiar (CECOF)
AB26: Consultorio de Salud Mental (COSAM)
AB27: Programa de Reparación y Atención Integral de Salud (PRAIS)
AB28: Centro de Atención Funcionarios (CAF)
AB29: Unidad de Salud de Funcionarios (USF)
AB30: ClÍnica Dental Móvil (CDM)
AB31: Dirección Servicio de Salud (DSS)
AB32: Servicio de Atención Primaria de Urgencia (SAPU)
AB33: SAPU Alta Resolución (SAR)
AB34: Servicio de Urgencia Rural (SUR)
AB35: Servicio de Alta Resolución SAR
AB36: Laboratorio Clínico o Dental
AB37: Servicio de Atención Primaria de Urgencia Dental (SAPUDENT)
AB38: Centro de Rehabilitación (CR)
AB39: Hospital de Campaña
AB40: Centro Oncologico
AB41: SAMU

Sheet A01
A1: SERVICIO DE SALUD
A2: =CONCATENATE("COMUNA: ",NOMBRE!B2," - ","( ",NOMBRE!C2,NOMBRE!D2,NOMBRE!E2,NOMBRE!F2,NOMBRE!G2," )") -> COMUNA: CALLE LARGA - ( 05302 )
A3: =CONCATENATE("ESTABLECIMIENTO/ESTRATEGIA: ",NOMBRE!B3," - ","( ",NOMBRE!C3,NOMBRE!D3,NOMBRE!E3,NOMBRE!F3,NOMBRE!G3,NOMBRE!H3," )") -> ESTABLECIMIENTO/ESTRATEGIA: DR. JOSE JOAQUIN AGUIRRE CAMPOS - ( 108308 )
A4: =CONCATENATE("MES: ",NOMBRE!B6," - ","( ",NOMBRE!C6,NOMBRE!D6," )") -> MES: DICIEMBRE - ( 12 )
A5: =CONCATENATE("AÑO: ",NOMBRE!B7) -> AÑO: 2022
A6: REM-A01. CONTROLES DE SALUD
A9: SECCIÓN A: CONTROLES DE SALUD SEXUAL Y REPRODUCTIVA
A10: TIPO DE CONTROL | B10: PROFESIONAL | C10: TOTAL | D10: POR EDAD | U10: SEXO | W10: Beneficiarios | X10: Control con pareja familiar u otro | Y10: Control de diada con presencia del padre | Z10: TIPOS DE LACTANCIA
D11: Menores de un mes | E11: 5 - 9 | F11: 10 - 14 | G11: 15 a 19 | H11: 20 - 24 | I11: 25 - 29 | J11: 30 - 34 | K11: 35 - 39 | L11: 40 - 44 | M11: 45 - 49 | N11: 50 - 54 | O11: 55 - 59 | P11: 60 - 64 | Q11: 65 - 69 | R11: 70 - 74 | S11: 75 - 79 | T11: 80 y mas | U11: HOMBRES | V11: MUJERES | Z11: Lactancia Materna Exclusiva | AA11: Lactancia Materna / Formula Láctea | AB11: Formula Láctea
A12: PRE- CONCEPCIONAL | B12: MÉDICO | C12: =SUM(F12:O12) -> 0 | F12: 0 | G12: 0 | H12: 0 | I12: 0 | J12: 0 | K12: 0 | L12: 0 | M12: 0 | N12: 0 | O12: 0 | V12: 0 | W12: 0 | CL12: 0 | CM12: 0 | CN12: 0 | CQ12: 0
B13: MATRONA /ÓN | C13: =SUM(F13:O13) -> 4 | F13: 0 | G13: 0 | H13: 1 | I13: 1 | J13: 1 | K13: 1 | L13: 0 | M13: 0 | N13: 0 | O13: 0 | V13: 4 | W13: 4 | CL13: 0 | CM13: 0 | CN13: 0 | CQ13: 0
A14: PRENATAL | B14: MÉDICO | C14: =SUM(F14:O14) -> 14 | F14: 0 | G14: 1 | H14: 4 | I14: 5 | J14: 2 | K14: 2 | L14: 0 | M14: 0 | N14: 0 | O14: 0 | V14: 14 | W14: 13 | X14: 3 | CL14: 0 | CM14: 0 | CN14: 0 | CQ14: 0 | CR14: 0
B15: MATRONA /ÓN | C15: 94 | F15: 0 | G15: 4 | H15: 21 | I15: 28 | J15: 26 | K15: 11 | L15: 3 | M15: 1 | N15: 0 | O15: 0 | V15: 94 | W15: 91 | X15: 66 | CL15: 0 | CM15: 0 | CN15: 0 | CQ15: 0 | CR15: 0
A16: POST PARTO | B16: MÉDICO | C16: 0 | F16: 0 | G16: 0 | H16: 0 | I16: 0 | J16: 0 | K16: 0 | L16: 0 | M16: 0 | N16: 0 | O16: 0 | V16: 0 | W16: 0 | CL16: 0 | CM16: 0 | CN16: 0 | CQ16: 0
B17: MATRONA /ÓN | C17: 0 | F17: 0 | G17: 0 | H17: 0 | I17: 0 | J17: 0 | K17: 0 | L17: 0 | M17: 0 | N17: 0 | O17: 0 | V17: 0 | W17: 0 | CL17: 0 | CM17: 0 | CN17: 0 | CQ17: 0
A18: POST ABORTO | B18: MÉDICO | C18: =SUM(F18:O18) -> 0 | F18: 0 | G18: 0 | H18: 0 | I18: 0 | J18: 0 | K18: 0 | L18: 0 | M18: 0 | N18: 0 | O18: 0 | V18: 0 | W18: 0 | CL18: 0 | CM18: 0 | CN18: 0 | CQ18: 0
B19: MATRONA /ÓN | C19: 0 | F19: 0 | G19: 0 | H19: 0 | I19: 0 | J19: 0 | K19: 0 | L19: 0 | M19: 0 | N19: 0 | O19: 0 | V19: 0 | W19: 0 | CL19: 0 | CM19: 0 | CN19: 0 | CQ19: 0
A20: PUÉRPERA CON RECIÉN NACIDO HASTA 10 DÍAS DE VIDA | B20: MÉDICO | C20: 0 | F20: 0 | G20: 0 | H20: 0 | I20: 0 | J20: 0 | K20: 0 | L20: 0 | M20: 0 | N20: 0 | O20: 0 | V20: 0 | W20: 0 | CF20: =IF(AND(C20<>0,'A05'!C50=""),"* No olvide registrar ingresos a control de salud de los respectivos RN, en REM A05-sección E. ","") ->  | CL20: 0 | CM20: 0 | CN20: 0 | CO20: 0 | CQ20: 0 | CS20: 0 | CT20: 0
B21: MATRONA /ÓN | C21: 10 | F21: 0 | G21: 0 | H21: 3 | I21: 2 | J21: 4 | K21: 1 | L21: 0 | M21: 0 | N21: 0 | O21: 0 | V21: 10 | W21: 10 | Y21: 10 | Z21: 10 | AA21: 0 | AB21: 0 | CF21: =IF(AND(C21<>0,'A05'!C84=""),"* No olvide registrar ingresos a control de salud de los respectivos RN, en REM A05-sección E. ","") ->  | CL21: 0 | CM21: 0 | CN21: 0 | CO21: 0 | CQ21: 0 | CS21: 0 | CT21: 0
A22: PUÉRPERA CON RECIÉN NACIDO ENTRE 11 y 28 DÍAS | B22: MÉDICO | C22: 0 | F22: 0 | G22: 0 | H22: 0 | I22: 0 | J22: 0 | K22: 0 | L22: 0 | M22: 0 | N22: 0 | O22: 0 | V22: 0 | W22: 0 | CF22: =IF(AND(C22<>0,'A05'!C50=""),"* No olvide registrar ingresos a control de salud de los respectivos RN, en REM A05-sección E. ","") ->  | CL22: 0 | CM22: 0 | CN22: 0 | CO22: 0 | CQ22: 0 | CS22: 0 | CT22: 0
B23: MATRONA /ÓN | C23: 1 | F23: 0 | G23: 0 | H23: 0 | I23: 0 | J23: 1 | K23: 0 | L23: 0 | M23: 0 | N23: 0 | O23: 0 | V23: 1 | W23: 1 | Y23: 1 | Z23: 0 | AA23: 1 | AB23: 0 | CF23: =IF(AND(C23<>0,'A05'!C84=""),"* No olvide registrar ingresos a control de salud de los respectivos RN, en REM A05-sección E. ","") ->  | CL23: 0 | CM23: 0 | CN23: 0 | CO23: 0 | CQ23: 0 | CS23: 0 | CT23: 0
A24: RECIÉN NACIDO HASTA 10 DÍAS DE VIDA | B24: MÉDICO | C24: =SUM(D24) -> 0 | V24: 0 | W24: 0 | CF24: =IF(AND(C24<>0,'A05'!C84=""),"* No olvide registrar ingresos a control de salud de los respectivos RN, en REM A05-sección E. ","") ->  | CL24: 0 | CM24: 0 | CN24: 0 | CO24: 0 | CQ24: 0 | CR24: 0 | CS24: 0 | CT24: 0
B25: MATRONA /ÓN | C25: =SUM(D25) -> 0 | V25: 0 | W25: 0 | CL25: 0 | CM25: 0 | CN25: 0 | CO25: 0 | CQ25: 0
A26: RECIÉN NACIDO ENTRE 11 y 28 DÍAS | B26: MÉDICO | C26: =SUM(D26) -> 0 | V26: 0 | W26: 0 | CL26: 0 | CM26: 0 | CN26: 0 | CO26: 0 | CQ26: 0
B27: MATRONA /ÓN | C27: =SUM(D27) -> 0 | V27: 0 | W27: 0 | CL27: 0 | CM27: 0 | CN27: 0 | CO27: 0 | CQ27: 0
A28: GINECOLÓGICO | B28: MÉDICO | C28: =SUM(F28:T28) -> 0 | F28: 0 | G28: 0 | H28: 0 | I28: 0 | J28: 0 | K28: 0 | L28: 0 | M28: 0 | N28: 0 | O28: 0 | P28: 0 | Q28: 0 | R28: 0 | S28: 0 | T28: 0 | V28: 0 | W28: 0 | CL28: 0 | CM28: 0 | CN28: 0 | CQ28: 0
B29: MATRONA /ÓN | C29: =SUM(F29:T29) -> 29 | F29: 0 | G29: 0 | H29: 0 | I29: 0 | J29: 4 | K29: 2 | L29: 6 | M29: 1 | N29: 5 | O29: 7 | P29: 2 | Q29: 1 | R29: 1 | S29: 0 | T29: 0 | V29: 29 | W29: 29 | CL29: 0 | CM29: 0 | CN29: 0 | CQ29: 0
A30: CLIMATERIO | B30: MÉDICO | C30: =SUM(M30:P30) -> 14 | M30: 4 | N30: 7 | O30: 2 | P30: 1 | V30: 14 | W30: 14 | CL30: 0 | CM30: 0 | CN30: 0 | CQ30: 0
B31: MATRONA /ÓN | C31: =SUM(M31:P31) -> 2 | M31: 2 | N31: 0 | O31: 0 | P31: 0 | V31: 2 | W31: 2 | CL31: 0 | CM31: 0 | CN31: 0 | CQ31: 0
A32: REGULACIÓN DE FECUNDIDAD | B32: MÉDICO | C32: =SUM(F32:T32) -> 0 | F32: 0 | G32: 0 | H32: 0 | I32: 0 | J32: 0 | K32: 0 | L32: 0 | M32: 0 | N32: 0 | O32: 0 | P32: 0 | Q32: 0 | R32: 0 | S32: 0 | T32: 0 | V32: 0 | W32: 0 | CL32: 0 | CM32: 0 | CN32: 0 | CQ32: 0
B33: MATRONA /ÓN | C33: =SUM(F33:T33) -> 119 | F33: 1 | G33: 19 | H33: 19 | I33: 22 | J33: 20 | K33: 16 | L33: 5 | M33: 12 | N33: 3 | O33: 0 | P33: 2 | Q33: 0 | R33: 0 | S33: 0 | T33: 0 | V33: 119 | W33: 119 | CL33: 0 | CM33: 0 | CN33: 0 | CQ33: 0
A34: SECCIÓN B: CONTROLES DE SALUD SEGÚN CICLO VITAL
A35: TIPO DE CONTROL | B35: PROFESIONAL | C35: TOTAL | F35: POR EDAD | AI35: Beneficiarios | AJ35: CONTROL CON PRESENCIA DEL PADRE | AL35: Niños, Niñas, Adolescentes y Jóvenes Población SENAME
C36: Ambos Sexos | D36: Hombres | E36: Mujeres | F36: Menor de 1 mes | G36: 1 mes | H36: 2 meses | I36: 3 meses | J36: 4 meses | K36: 5 meses | L36: 6 meses | M36: 7 - 11 meses | N36: 12 a 17 meses | O36: 18 - 23 meses | P36: 24 - 47 meses | Q36: 48 - 59 meses | R36: 60 - 71 meses | S36: 6 - 9 | T36: 10 - 14 | U36: 15 - 19 | V36: 20 - 24 | W36: 25 - 29 | X36: 30 - 34 | Y36: 35 - 39 | Z36: 40 - 44 | AA36: 45 - 49 | AB36: 50 - 54 | AC36: 55 - 59 | AD36: 60 - 64 | AE36: 65 - 69 | AF36: 70 - 74 | AG36: 75 - 79 | AH36: 80 y mas | AJ36: menor 1 año | AK36: 1 año a 3 años 11 meses 29 días
A37: DE SALUD | B37: MÉDICO | C37: =SUM(F37:AH37) -> 19 | D37: 10 | E37: 9 | F37: 0 | G37: 10 | H37: 0 | I37: 7 | J37: 0 | K37: 0 | L37: 1 | M37: 0 | N37: 0 | O37: 0 | P37: 1 | Q37: 0 | R37: 0 | S37: 0 | T37: 0 | U37: 0 | V37: 0 | W37: 0 | X37: 0 | Y37: 0 | Z37: 0 | AA37: 0 | AB37: 0 | AC37: 0 | AD37: 0 | AE37: 0 | AF37: 0 | AG37: 0 | AH37: 0 | AI37: 18 | AJ37: 3 | AK37: 0 | AL37: 0 | CH37: 0 | CI37: =IF(AJ37>SUM(F37:M37),1,IF(AK37>SUM(N37:P37),1,0)) -> 0 | CJ37: 0
B38: ENFERMERA /O | C38: =SUM(F38:AH38) -> 77 | D38: 35 | E38: 42 | F38: 0 | G38: 1 | H38: 6 | I38: 0 | J38: 8 | K38: 0 | L38: 8 | M38: 1 | N38: 11 | O38: 2 | P38: 16 | Q38: 8 | R38: 4 | S38: 11 | T38: 1 | U38: 0 | V38: 0 | W38: 0 | X38: 0 | Y38: 0 | Z38: 0 | AA38: 0 | AB38: 0 | AC38: 0 | AD38: 0 | AE38: 0 | AF38: 0 | AG38: 0 | AH38: 0 | AI38: 77 | AJ38: 9 | AK38: 15 | AL38: 1 | CH38: 0 | CI38: =IF(AJ38>SUM(F38:M38),1,IF(AK38>SUM(N38:P38),1,0)) -> 0 | CJ38: 0
B39: MATRONA /ÓN | C39: =SUM(F39+T39+U39+V39+W39+X39+Y39+Z39+AA39+AB39+AC39+AD39+AE39+AF39+AG39+AH39) -> 10 | D39: 4 | E39: 6 | F39: 7 | T39: 2 | U39: 1 | V39: 0 | W39: 0 | X39: 0 | Y39: 0 | Z39: 0 | AA39: 0 | AB39: 0 | AC39: 0 | AD39: 0 | AE39: 0 | AF39: 0 | AG39: 0 | AH39: 0 | AI39: 8 | AJ39: 8 | AL39: 0 | CH39: 0 | CI39: =IF(AJ39>SUM(F39:M39),1,IF(AK39>SUM(N39:P39),1,0)) -> 1 | CJ39: 0
B40: TÉCNICO PARAMÉDICO | C40: =SUM(N40:S40) -> 0 | AL40: 0 | CH40: 0 | CI40: =IF(AJ40>SUM(F40:M40),1,IF(AK40>SUM(N40:P40),1,0)) -> 0 | CJ40: 0
A41: SECCIÓN C: CONTROLES SEGÚN PROBLEMA DE SALUD
A42: TIPO DE CONTROL | B42: PROFESIONAL | C42: TOTAL | F42: POR EDAD | AN42: Beneficiarios
F43: 0 - 4 | H43: 5 - 9 | J43: 10 - 14 | L43: 15 a 19 | N43: 20 - 24 | P43: 25 - 29 | R43: 30 - 34 | T43: 35 - 39 | V43: 40 - 44 | X43: 45 - 49 | Z43: 50 - 54 | AB43: 55 - 59 | AD43: 60 - 64 | AF43: 65 - 69 | AH43: 70 - 74 | AJ43: 75 - 79 | AL43: 80 y mas
C44: Ambos Sexos | D44: Hombres | E44: Mujeres | F44: Hombres | G44: Mujeres | H44: Hombres | I44: Mujeres | J44: Hombres | K44: Mujeres | L44: Hombres | M44: Mujeres | N44: Hombres | O44: Mujeres | P44: Hombres | Q44: Mujeres | R44: Hombres | S44: Mujeres | T44: Hombres | U44: Mujeres | V44: Hombres | W44: Mujeres | X44: Hombres | Y44: Mujeres | Z44: Hombres | AA44: Mujeres | AB44: Hombres | AC44: Mujeres | AD44: Hombres | AE44: Mujeres | AF44: Hombres | AG44: Mujeres | AH44: Hombres | AI44: Mujeres | AJ44: Hombres | AK44: Mujeres | AL44: Hombres | AM44: Mujeres
A45: DE SALUD CARDIOVASCULAR | B45: MÉDICO | C45: =SUM(D45:E45) -> 111 | D45: =SUM(L45+N45+P45+R45+T45+V45+X45+Z45+AB45+AD45+AF45+AH45+AJ45+AL45) -> 35 | E45: =SUM(M45+O45+Q45+S45+U45+W45+Y45+AA45+AC45+AE45+AG45+AI45+AK45+AM45) -> 76 | L45: 0 | M45: 0 | N45: 0 | O45: 0 | P45: 0 | Q45: 0 | R45: 0 | S45: 2 | T45: 0 | U45: 1 | V45: 0 | W45: 2 | X45: 0 | Y45: 6 | Z45: 1 | AA45: 3 | AB45: 6 | AC45: 14 | AD45: 6 | AE45: 13 | AF45: 6 | AG45: 18 | AH45: 7 | AI45: 8 | AJ45: 4 | AK45: 3 | AL45: 5 | AM45: 6 | AN45: 111 | CI45: 0
B46: ENFERMERA /O | C46: 19 | D46: =SUM(L46+N46+P46+R46+T46+V46+X46+Z46+AB46+AD46+AF46+AH46+AJ46+AL46) -> 9 | E46: 10 | L46: 0 | M46: 0 | N46: 0 | O46: 0 | P46: 0 | Q46: 0 | R46: 0 | S46: 0 | T46: 0 | U46: 0 | V46: 1 | W46: 0 | X46: 0 | Y46: 2 | Z46: 1 | AA46: 2 | AB46: 0 | AC46: 1 | AD46: 1 | AE46: 1 | AF46: 2 | AG46: 1 | AH46: 1 | AI46: 1 | AJ46: 1 | AK46: 1 | AL46: 2 | AM46: 1 | AN46: 19 | CI46: 0
B47: NUTRICIONISTA | C47: 40 | D47: 16 | E47: 24 | L47: 0 | M47: 0 | N47: 0 | O47: 0 | P47: 0 | Q47: 0 | R47: 0 | S47: 0 | T47: 0 | U47: 1 | V47: 1 | W47: 0 | X47: 0 | Y47: 0 | Z47: 0 | AA47: 3 | AB47: 0 | AC47: 1 | AD47: 3 | AE47: 3 | AF47: 2 | AG47: 2 | AH47: 3 | AI47: 2 | AJ47: 4 | AK47: 4 | AL47: 3 | AM47: 8 | AN47: 39 | CI47: 0
B48: TÉCNICO PARAMÉDICO | C48: 0 | D48: 0 | E48: 0
A49: DE TUBERCULOSIS | B49: MÉDICO | CI49: 0
B50: ENFERMERA /O
A51: SEGUIMIENTO AUTOVALENTE CON RIESGO | B51: MÉDICO | C51: 0 | D51: =SUM(AF51+AH51+AJ51+AL51) -> 0 | E51: =SUM(AG51+AI51+AK51+AM51) -> 0
B52: ENFERMERA /O | C52: 0 | D52: 0 | E52: 0
A53: SEGUIMIENTO RIESGO DEPENDENCIA | B53: MÉDICO | C53: 0 | D53: 0 | E53: 0
B54: ENFERMERA /O | C54: 0 | D54: 0 | E54: 0
A55: DE INFECCIÓN TRANSMISIÓN SEXUAL | B55: MÉDICO | C55: 0 | D55: =SUM(F55+H55+J55+L55+N55+P55+R55+T55+V55+X55+Z55+AB55+AD55+AF55+AH55+AJ55+AL55) -> 0 | E55: =SUM(G55+I55+K55+M55+O55+Q55+S55+U55+W55+Y55+AA55+AC55+AE55+AG55+AI55+AK55+AM55) -> 0
B56: ENFERMERA /O | C56: 0 | D56: 0 | E56: 0
B57: MATRONA /ÓN | C57: 0 | D57: 0 | E57: 0
A58: OTROS PROBLEMAS DE SALUD | B58: MÉDICO | C58: 58 | D58: 12 | E58: 46 | F58: 0 | G58: 0 | H58: 0 | I58: 0 | J58: 0 | K58: 0 | L58: 0 | M58: 0 | N58: 0 | O58: 0 | P58: 1 | Q58: 0 | R58: 0 | S58: 1 | T58: 1 | U58: 1 | V58: 0 | W58: 1 | X58: 0 | Y58: 2 | Z58: 0 | AA58: 1 | AB58: 0 | AC58: 14 | AD58: 0 | AE58: 7 | AF58: 1 | AG58: 8 | AH58: 4 | AI58: 7 | AJ58: 2 | AK58: 2 | AL58: 3 | AM58: 2 | AN58: 58 | CI58: 0
B59: ENFERMERA /O | C59: 0 | D59: 0 | E59: 0
B60: MATRONA /ÓN | C60: 0 | D60: 0 | E60: 0
B61: NUTRICIONISTA | C61: 0 | D61: 0 | E61: 0
B62: TÉCNICO PARAMÉDICO | C62: 0 | D62: 0 | E62: 0
A63: NIÑOS CON NECESIDADES ESPECIALES | B63: MÉDICO | C63: 0 | D63: =SUM(F63+H63+J63+L63+N63) -> 0 | E63: =SUM(G63+I63+K63+M63+O63) -> 0 | CI63: 0
B64: ENFERMERA /O | C64: 10 | D64: 5 | E64: 5 | F64: 5 | G64: 4 | H64: 0 | I64: 1 | AN64: 10 | CI64: 0
B65: MATRONA /ÓN | C65: 0 | D65: 0 | E65: 0
B66: NUTRICIONISTA | C66: 0 | D66: 0 | E66: 0
B67: TÉCNICO PARAMÉDICO | C67: 0 | D67: 0 | E67: 0
A68: SECCIÓN D: CONTROL DE SALUD INTEGRAL DE ADOLESCENTES (incluidos en sección B)
A69: LUGAR DEL CONTROL, SEGÚN EDAD | C69: 10 A 14 AÑOS | F69: 15 A 19 AÑOS
C70: Ambos Sexos | D70: Hombres | E70: Mujeres | F70: Ambos Sexos | G70: Hombres | H70: Mujeres
A71: EN ESPACIO AMIGABLE | C71: =SUM(D71:E71) -> 2 | D71: 1 | E71: 1 | F71: =SUM(G71:H71) -> 1 | G71: 0 | H71: 1
A72: EN OTROS ESPACIOS DEL ESTABLECIMIENTO DE SALUD | C72: =SUM(D72:E72) -> 0 | D72: 0 | E72: 0 | F72: =SUM(G72:H72) -> 0 | G72: 0 | H72: 0
A73: EN ESTABLECIMIENTOS EDUCACIONALES | C73: =SUM(D73:E73) -> 0 | D73: 0 | E73: 0 | F73: =SUM(G73:H73) -> 0 | G73: 0 | H73: 0
A74: EN OTROS LUGARES FUERA DEL ESTABLECIMIENTO DE SALUD | C74: =SUM(D74:E74) -> 0 | D74: 0 | E74: 0 | F74: =SUM(G74:H74) -> 0 | G74: 0 | H74: 0
A75: TOTAL | C75: =SUM(C71:C74) -> 2 | D75: 1 | E75: 1 | F75: 1 | G75: 0 | H75: 1
A76: SECCIÓN E: CONTROLES DE SALUD EN ESTABLECIMIENTO EDUCACIONAL (Los controles individuales deben estar incluídos en la Sección B)
A77: TIPO DE CONTROLES | B77: CURSO | C77: TOTAL* | D77: TOTAL NIÑOS Y NIÑAS | E77: SEXO
E78: Hombres | F78: Mujeres
A79: CONTROLES INDIVIDUALES | B79: KÍNDER | C79: =SUM(E79:F79) -> 0
B80: PRIMERO BÁSICO | C80: =SUM(E80:F80) -> 0
B81: SEGUNDO BÁSICO | C81: =SUM(E81:F81) -> 0
B82: TERCERO BÁSICO | C82: =SUM(E82:F82) -> 0
B83: CUARTO BÁSICO | C83: =SUM(E83:F83) -> 0
A84: CONTROLES GRUPALES * | B84: KÍNDER | D84: =SUM(E84:F84) -> 0
B85: PRIMERO BÁSICO | D85: =SUM(E85:F85) -> 0
B86: SEGUNDO BÁSICO | D86: =SUM(E86:F86) -> 0
B87: TERCERO BÁSICO | D87: =SUM(E87:F87) -> 0
B88: CUARTO BÁSICO | D88: =SUM(E88:F88) -> 0
A89: En Total* se registra el número de controles grupales
A90: SECCIÓN F: CONTROLES INTEGRALES DE PERSONAS CON CONDICIONES CRÓNICAS (incluidos en Secciones B y C)
A91: TIPO DE CONTROL | B91: TOTAL | E91: POR EDAD | AG91: Beneficiarios | AH91: Migrantes | AI91: Pueblos Originarios
E92: 15 - 19 | G92: 20 - 24 | I92: 25 - 29 | K92: 30 - 34 | M92: 35 - 39 | O92: 40 - 44 | Q92: 45 - 49 | S92: 50 - 54 | U92: 55 - 59 | W92: 60 - 64 | Y92: 65 - 69 | AA92: 70 - 74 | AC92: 75 - 79 | AE92: 80 y mas
B93: Ambos Sexos | C93: Hombres | D93: Mujeres | E93: Hombres | F93: Mujeres | G93: Hombres | H93: Mujeres | I93: Hombres | J93: Mujeres | K93: Hombres | L93: Mujeres | M93: Hombres | N93: Mujeres | O93: Hombres | P93: Mujeres | Q93: Hombres | R93: Mujeres | S93: Hombres | T93: Mujeres | U93: Hombres | V93: Mujeres | W93: Hombres | X93: Mujeres | Y93: Hombres | Z93: Mujeres | AA93: Hombres | AB93: Mujeres | AC93: Hombres | AD93: Mujeres | AE93: Hombres | AF93: Mujeres
A94: CONTROL INTEGRAL CON RIESGO LEVE (G1) | B94: =SUM(C94:D94) -> 3 | C94: =SUM(E94+G94+I94+K94+M94+O94+Q94+S94+U94+W94+Y94+AA94+AC94+AE94) -> 1 | D94: =SUM(F94+H94+J94+L94+N94+P94+R94+T94+V94+X94+Z94+AB94+AD94+AF94) -> 2 | E94: 0 | F94: 0 | G94: 0 | H94: 0 | I94: 0 | J94: 0 | K94: 0 | L94: 0 | M94: 1 | N94: 0 | O94: 0 | P94: 0 | Q94: 0 | R94: 0 | S94: 0 | T94: 0 | U94: 0 | V94: 1 | W94: 0 | X94: 0 | Y94: 0 | Z94: 0 | AA94: 0 | AB94: 0 | AC94: 0 | AD94: 0 | AE94: 0 | AF94: 1 | AG94: 3 | AH94: 1 | AI94: 0 | CH94: 0 | CI94: 0 | CJ94: 0
A95: CONTROL INTEGRAL CON RIESGO MODERADO (G2) | B95: =SUM(C95:D95) -> 41 | C95: =SUM(E95+G95+I95+K95+M95+O95+Q95+S95+U95+W95+Y95+AA95+AC95+AE95) -> 17 | D95: 24 | E95: 0 | F95: 0 | G95: 0 | H95: 0 | I95: 0 | J95: 0 | K95: 0 | L95: 1 | M95: 0 | N95: 1 | O95: 0 | P95: 1 | Q95: 0 | R95: 4 | S95: 1 | T95: 2 | U95: 1 | V95: 5 | W95: 6 | X95: 4 | Y95: 1 | Z95: 0 | AA95: 5 | AB95: 1 | AC95: 2 | AD95: 3 | AE95: 1 | AF95: 2 | AG95: 40 | AH95: 0 | AI95: 2 | CH95: 0 | CI95: 0 | CJ95: 0
A96: CONTROL INTEGRAL CON RIESGO ALTO (G3) | B96: 88 | C96: 22 | D96: 66 | E96: 0 | F96: 0 | G96: 0 | H96: 0 | I96: 0 | J96: 0 | K96: 0 | L96: 0 | M96: 0 | N96: 2 | O96: 0 | P96: 0 | Q96: 0 | R96: 2 | S96: 1 | T96: 8 | U96: 2 | V96: 6 | W96: 2 | X96: 12 | Y96: 5 | Z96: 9 | AA96: 2 | AB96: 9 | AC96: 5 | AD96: 4 | AE96: 5 | AF96: 14 | AG96: 88 | AH96: 0 | AI96: 0
A97: SEGUIMIENTO A DISTANCIA CON RIESGO LEVE (G1) | B97: 1 | C97: =SUM(E97+G97+I97+K97+M97+O97+Q97+S97+U97+W97+Y97+AA97+AC97+AE97) -> 0 | D97: 1 | E97: 0 | F97: 0 | G97: 0 | H97: 0 | I97: 0 | J97: 0 | K97: 0 | L97: 0 | M97: 0 | N97: 0 | O97: 0 | P97: 0 | Q97: 0 | R97: 0 | S97: 0 | T97: 0 | U97: 0 | V97: 0 | W97: 0 | X97: 0 | Y97: 0 | Z97: 0 | AA97: 0 | AB97: 1 | AC97: 0 | AD97: 0 | AE97: 0 | AF97: 0 | AG97: 1 | AH97: 0 | AI97: 0 | CH97: 0 | CI97: 0 | CJ97: 1
A98: SEGUIMIENTO A DISTANCIA CON RIESGO MODEADO (G2) | B98: 17 | C98: 6 | D98: 11 | E98: 0 | F98: 0 | G98: 0 | H98: 0 | I98: 0 | J98: 0 | K98: 0 | L98: 0 | M98: 0 | N98: 0 | O98: 0 | P98: 1 | Q98: 1 | R98: 1 | S98: 1 | T98: 3 | U98: 1 | V98: 2 | W98: 0 | X98: 1 | Y98: 0 | Z98: 1 | AA98: 0 | AB98: 1 | AC98: 0 | AD98: 0 | AE98: 3 | AF98: 1 | AG98: 17 | AH98: 0 | AI98: 1 | CH98: 0 | CI98: 0 | CJ98: 0
A99: SEGUIMIENTO A DISTANCIA CON RIESGO ALTO (G3) | B99: 39 | C99: 10 | D99: 29 | E99: 0 | F99: 0 | G99: 0 | H99: 0 | I99: 0 | J99: 1 | K99: 0 | L99: 0 | M99: 0 | N99: 1 | O99: 0 | P99: 1 | Q99: 0 | R99: 0 | S99: 0 | T99: 2 | U99: 1 | V99: 1 | W99: 0 | X99: 3 | Y99: 0 | Z99: 6 | AA99: 4 | AB99: 4 | AC99: 3 | AD99: 3 | AE99: 2 | AF99: 7 | AG99: 38 | AH99: 0 | AI99: 0
A193: =SUM(C12:C33,W12:W33,U32:V33,Y20:AB23,X14:X15,C37:C40,D37:E40,AI37:AI40,C45:E67,C71:C75,F71:F75,C79:C83,D84:D88,B94:B99) -> 1766 | B193: =SUM(CG1:CU88) -> 1

Sheet A02
A1: SERVICIO DE SALUD
A2: =CONCATENATE("COMUNA: ",NOMBRE!B2," - ","( ",NOMBRE!C2,NOMBRE!D2,NOMBRE!E2,NOMBRE!F2,NOMBRE!G2," )") -> COMUNA: CALLE LARGA - ( 05302 )
A3: =CONCATENATE("ESTABLECIMIENTO/ESTRATEGIA: ",NOMBRE!B3," - ","( ",NOMBRE!C3,NOMBRE!D3,NOMBRE!E3,NOMBRE!F3,NOMBRE!G3,NOMBRE!H3," )") -> ESTABLECIMIENTO/ESTRATEGIA: DR. JOSE JOAQUIN AGUIRRE CAMPOS - ( 108308 )
A4: =CONCATENATE("MES: ",NOMBRE!B6," - ","( ",NOMBRE!C6,NOMBRE!D6," )") -> MES: DICIEMBRE - ( 12 )
A5: =CONCATENATE("AÑO: ",NOMBRE!B7) -> AÑO: 2022
A6: REM-A02. EXAMEN DE MEDICINA PREVENTIVA EN MAYORES DE 15 AÑOS
A8: SECCIÓN A: EMP REALIZADO POR PROFESIONAL
A9: PROFESIONAL | B9: TOTAL
B10: Ambos Sexos | C10: Hombres | D10: Mujeres
A11: TOTAL | B11: =SUM(B12:B17) -> 288 | C11: =SUM(C12:C17) -> 79 | D11: =SUM(D12:D17) -> 209
A12: MÉDICO | B12: =SUM(C12:D12) -> 0
A13: ENFERMERA /O | B13: 83 | C13: 22 | D13: 61
A14: MATRONA /ÓN | B14: 0
A15: NUTRICIONISTA | B15: 173 | C15: 47 | D15: 126
A16: OTRO PROFESIONAL | B16: 32 | C16: 10 | D16: 22
A17: TÉCNICO PARAMÉDICO | B17: 0
A18: SECCIÓN B: EMP SEGÚN RESULTADO DEL ESTADO NUTRICIONAL
A19: ESTADO NUTRICIONAL | B19: TOTAL | E19: 15 a 19 | G19: 20 a 24 | I19: 25 a 29 | K19: 30 a 34 | M19: 35 a 39 | O19: 40 a 44 | Q19: 45 a 49 | S19: 50 a 54 | U19: 55 a 59 | W19: 60 a 64 | Y19: 65 a 69 | AA19: 70 a 74 | AC19: 75 a 79 | AE19: 80 y más
B20: Ambos Sexos | C20: Hombres | D20: Mujeres | E20: Hombres | F20: Mujeres | G20: Hombres | H20: Mujeres | I20: Hombres | J20: Mujeres | K20: Hombres | L20: Mujeres | M20: Hombres | N20: Mujeres | O20: Hombres | P20: Mujeres | Q20: Hombres | R20: Mujeres | S20: Hombres | T20: Mujeres | U20: Hombres | V20: Mujeres | W20: Hombres | X20: Mujeres | Y20: Hombres | Z20: Mujeres | AA20: Hombres | AB20: Mujeres | AC20: Hombres | AD20: Mujeres | AE20: Hombres | AF20: Mujeres
A21: TOTAL | B21: =SUM(B22:B25) -> 288 | C21: 79 | D21: 209 | E21: 0 | F21: 0 | G21: 8 | H21: 17 | I21: 6 | J21: 22 | K21: 10 | L21: 32 | M21: 9 | N21: 33 | O21: 8 | P21: 23 | Q21: 2 | R21: 17 | S21: 6 | T21: 19 | U21: 8 | V21: 18 | W21: 5 | X21: 7 | Y21: 9 | Z21: 4 | AA21: 2 | AB21: 5 | AC21: 0 | AD21: 5 | AE21: 6 | AF21: 7 | CI21: 0
A22: NORMAL | B22: =SUM(C22:D22) -> 53 | C22: =SUM(E22+G22+I22+K22+M22+O22+Q22+S22+U22+W22+Y22+AA22+AC22+AE22) -> 16 | D22: 37 | G22: 1 | H22: 7 | I22: 2 | J22: 3 | L22: 1 | M22: 2 | N22: 4 | R22: 2 | S22: 3 | T22: 1 | U22: 2 | V22: 6 | X22: 2 | Y22: 2 | Z22: 1 | AA22: 1 | AB22: 4 | AD22: 3 | AE22: 3 | AF22: 3
A23: BAJO PESO | B23: =SUM(C23:D23) -> 4 | C23: 3 | D23: 1 | G23: 1 | Y23: 1 | AD23: 1 | AE23: 1
A24: SOBREPESO | B24: =SUM(C24:D24) -> 111 | C24: 36 | D24: 75 | G24: 5 | H24: 6 | I24: 2 | J24: 6 | K24: 6 | L24: 13 | M24: 5 | N24: 12 | O24: 3 | P24: 7 | Q24: 2 | R24: 10 | S24: 1 | T24: 6 | U24: 3 | V24: 8 | W24: 1 | X24: 4 | Y24: 5 | Z24: 1 | AA24: 1 | AE24: 2 | AF24: 2
A25: OBESOS | B25: =SUM(C25:D25) -> 120 | C25: 24 | D25: 96 | G25: 1 | H25: 4 | I25: 2 | J25: 13 | K25: 4 | L25: 18 | M25: 2 | N25: 17 | O25: 5 | P25: 16 | R25: 5 | S25: 2 | T25: 12 | U25: 3 | V25: 4 | W25: 4 | X25: 1 | Y25: 1 | Z25: 2 | AB25: 1 | AD25: 1 | AF25: 2
A26: SECCIÓN C: RESULTADOS DE EMP SEGÚN ESTADO DE SALUD
A27: ESTADO DE SALUD | B27: TOTAL | E27: 15 a 19 | G27: 20 a 24 | I27: 25 a 29 | K27: 30 a 34 | M27: 35 a 39 | O27: 40 a 44 | Q27: 45 a 49 | S27: 50 a 54 | U27: 55 a 59 | W27: 60 a 64 | Y27: 65 a 69 | AA27: 70 a 74 | AC27: 75 a 79 | AE27: 80 y más
B28: Ambos Sexos | C28: Hombres | D28: Mujeres | E28: Hombres | F28: Mujeres | G28: Hombres | H28: Mujeres | I28: Hombres | J28: Mujeres | K28: Hombres | L28: Mujeres | M28: Hombres | N28: Mujeres | O28: Hombres | P28: Mujeres | Q28: Hombres | R28: Mujeres | S28: Hombres | T28: Mujeres | U28: Hombres | V28: Mujeres | W28: Hombres | X28: Mujeres | Y28: Hombres | Z28: Mujeres | AA28: Hombres | AB28: Mujeres | AC28: Hombres | AD28: Mujeres | AE28: Hombres | AF28: Mujeres
A29: TABAQUISMO | B29: =SUM(C29:D29) -> 70 | C29: =SUM(E29+G29+I29+K29+M29+O29+Q29+S29+U29+W29+Y29+AA29+AC29+AE29) -> 20 | D29: =SUM(F29+H29+J29+L29+N29+P29+R29+T29+V29+X29+Z29+AB29+AD29+AF29) -> 50 | E29: 0 | F29: 0 | G29: 1 | H29: 4 | I29: 2 | J29: 5 | K29: 3 | L29: 5 | M29: 1 | N29: 8 | O29: 4 | P29: 7 | Q29: 1 | R29: 8 | S29: 0 | T29: 5 | U29: 3 | V29: 5 | W29: 1 | X29: 2 | Y29: 3 | Z29: 1 | AA29: 0 | AB29: 0 | AC29: 0 | AD29: 0 | AE29: 1 | AF29: 0 | CG29: 0
A30: PRESIÓN ARTERIAL ELEVADA (= >140/90 mmHg) | B30: =SUM(C30:D30) -> 31 | C30: =SUM(E30+G30+I30+K30+M30+O30+Q30+S30+U30+W30+Y30+AA30+AC30+AE30) -> 9 | D30: =SUM(F30+H30+J30+L30+N30+P30+R30+T30+V30+X30+Z30+AB30+AD30+AF30) -> 22 | E30: 0 | F30: 0 | G30: 1 | H30: 1 | I30: 1 | J30: 2 | K30: 0 | L30: 1 | M30: 0 | N30: 5 | O30: 1 | P30: 2 | Q30: 0 | R30: 4 | S30: 1 | T30: 2 | U30: 2 | V30: 3 | W30: 2 | X30: 0 | Y30: 0 | Z30: 0 | AA30: 0 | AB30: 1 | AC30: 0 | AD30: 0 | AE30: 1 | AF30: 1 | CG30: 0
A31: SECCIÓN D: RESULTADOS DE EMP SEGÚN ESTADO DE SALUD (EXÁMENES DE LABORATORIO)
A32: ESTADO DE SALUD | B32: TOTAL | E32: 15 a 19 años | G32: 20 a 24 años | I32: 25 a 29 | K32: 30 a 34 | M32: 35 a 39 | O32: 40 a 44 | Q32: 45 a 49 | S32: 50 a 54 | U32: 55 a 59 | W32: 60 a 64 | Y32: 65 a 69 | AA32: 70 a 74 | AC32: 75 a 79 | AE32: 80 y más
B33: Ambos Sexos | C33: Hombres | D33: Mujeres | E33: Hombres | F33: Mujeres | G33: Hombres | H33: Mujeres | I33: Hombres | J33: Mujeres | K33: Hombres | L33: Mujeres | M33: Hombres | N33: Mujeres | O33: Hombres | P33: Mujeres | Q33: Hombres | R33: Mujeres | S33: Hombres | T33: Mujeres | U33: Hombres | V33: Mujeres | W33: Hombres | X33: Mujeres | Y33: Hombres | Z33: Mujeres | AA33: Hombres | AB33: Mujeres | AC33: Hombres | AD33: Mujeres | AE33: Hombres | AF33: Mujeres
A34: GLICEMIA ALTERADA (= > a 100 mg/dl) | B34: =SUM(C34:D34) -> 109 | C34: =SUM(E34+G34+I34+K34+M34+O34+Q34+S34+U34+W34+Y34+AA34+AC34+AE34) -> 30 | D34: =SUM(F34+H34+J34+L34+N34+P34+R34+T34+V34+X34+Z34+AB34+AD34+AF34) -> 79 | E34: 0 | F34: 0 | G34: 2 | H34: 6 | I34: 0 | J34: 3 | K34: 3 | L34: 11 | M34: 4 | N34: 13 | O34: 4 | P34: 10 | Q34: 0 | R34: 4 | S34: 4 | T34: 10 | U34: 4 | V34: 7 | W34: 1 | X34: 5 | Y34: 7 | Z34: 1 | AA34: 0 | AB34: 3 | AC34: 0 | AD34: 1 | AE34: 1 | AF34: 5
A35: COLESTEROL ELEVADO (= > 200 mg/dl) | B35: =SUM(C35:D35) -> 69 | C35: =SUM(E35+G35+I35+K35+M35+O35+Q35+S35+U35+W35+Y35+AA35+AC35+AE35) -> 14 | D35: =SUM(F35+H35+J35+L35+N35+P35+R35+T35+V35+X35+Z35+AB35+AD35+AF35) -> 55 | E35: 0 | F35: 0 | G35: 2 | H35: 1 | I35: 1 | J35: 5 | K35: 3 | L35: 5 | M35: 1 | N35: 5 | O35: 1 | P35: 5 | Q35: 0 | R35: 7 | S35: 1 | T35: 9 | U35: 2 | V35: 8 | W35: 1 | X35: 3 | Y35: 2 | Z35: 1 | AA35: 0 | AB35: 1 | AC35: 0 | AD35: 3 | AE35: 0 | AF35: 2
A195: =SUM(B12:B17,B21:B25,B29:B30,B34:B35) -> 1143 | B195: =SUM(CG7:CM52) -> 0

Sheet A03
A1: SERVICIO DE SALUD
A2: =CONCATENATE("COMUNA: ",NOMBRE!B2," - ","( ",NOMBRE!C2,NOMBRE!D2,NOMBRE!E2,NOMBRE!F2,NOMBRE!G2," )") -> COMUNA: CALLE LARGA - ( 05302 )
A3: =CONCATENATE("ESTABLECIMIENTO/ESTRATEGIA: ",NOMBRE!B3," - ","( ",NOMBRE!C3,NOMBRE!D3,NOMBRE!E3,NOMBRE!F3,NOMBRE!G3,NOMBRE!H3," )") -> ESTABLECIMIENTO/ESTRATEGIA: DR. JOSE JOAQUIN AGUIRRE CAMPOS - ( 108308 )
A4: =CONCATENATE("MES: ",NOMBRE!B6," - ","( ",NOMBRE!C6,NOMBRE!D6," )") -> MES: DICIEMBRE - ( 12 )
A5: =CONCATENATE("AÑO: ",NOMBRE!B7) -> AÑO: 2022
A6: REM-A03. APLICACIÓN Y RESULTADOS DE ESCALAS DE EVALUACIÓN
A7: SECCIÓN A: APLICACIÓN DE INSTRUMENTO Y RESULTADO EN EL NIÑO (A)
A8: SECCIÓN A.1: APLICACIÓN Y RESULTADOS DE PAUTA BREVE
A9: EVALUACIONES POR EDAD DEL NIÑO | C9: TOTAL | F9: GRUPO DE EDAD
F10: Menor de 1 mes | H10: 1 mes | J10: 2 meses | L10: 3 meses | N10: 4 meses | P10: 5 meses | R10: 6 meses | T10: 7 - 11 meses | V10: 12 - 17 meses | X10: 18 - 24 meses
C11: Ambos Sexos | D11: Hombres | E11: Mujeres | F11: Hombres | G11: Mujeres | H11: Hombres | I11: Mujeres | J11: Hombres | K11: Mujeres | L11: Hombres | M11: Mujeres | N11: Hombres | O11: Mujeres | P11: Hombres | Q11: Mujeres | R11: Hombres | S11: Mujeres | T11: Hombres | U11: Mujeres | V11: Hombres | W11: Mujeres | X11: Hombres | Y11: Mujeres
A12: APLICACIÓN PAUTA BREVE | C12: =SUM(D12+E12) -> 21 | D12: =SUM(F12+H12+J12+L12+N12+P12+R12+T12+V12+X12) -> 6 | E12: =SUM(G12+I12+K12+M12+O12+Q12+S12+U12+W12+Y12) -> 15 | F12: 0 | G12: 0 | H12: 0 | I12: 0 | J12: 0 | K12: 0 | L12: 0 | M12: 0 | N12: 3 | O12: 5 | P12: 0 | Q12: 0 | R12: 0 | S12: 0 | T12: 0 | U12: 0 | V12: 2 | W12: 8 | X12: 1 | Y12: 2
A13: RESULTADOS | B13: NORMAL | C13: =SUM(D13+E13) -> 19 | D13: =SUM(F13+H13+J13+L13+N13+P13+R13+T13+V13+X13) -> 6 | E13: =SUM(G13+I13+K13+M13+O13+Q13+S13+U13+W13+Y13) -> 13 | F13: 0 | G13: 0 | H13: 0 | I13: 0 | J13: 0 | K13: 0 | L13: 0 | M13: 0 | N13: 3 | O13: 5 | P13: 0 | Q13: 0 | R13: 0 | S13: 0 | T13: 0 | U13: 0 | V13: 2 | W13: 7 | X13: 1 | Y13: 1 | DF13: 0 | DG13: 0 | DH13: 0 | DI13: 0 | DJ13: 0 | DK13: 0 | DL13: 0 | DM13: 0 | DN13: 0 | DO13: 0 | DP13: 0 | DQ13: 0 | DR13: 0 | DS13: 0 | DT13: 0 | DU13: 0 | DV13: 0 | DW13: 0 | DX13: 0 | DY13: 0
B14: ALTERADO | C14: =SUM(D14+E14) -> 2 | D14: =SUM(F14+H14+J14+L14+N14+P14+R14+T14+V14+X14) -> 0 | E14: =SUM(G14+I14+K14+M14+O14+Q14+S14+U14+W14+Y14) -> 2 | F14: 0 | G14: 0 | H14: 0 | I14: 0 | J14: 0 | K14: 0 | L14: 0 | M14: 0 | N14: 0 | O14: 0 | P14: 0 | Q14: 0 | R14: 0 | S14: 0 | T14: 0 | U14: 0 | V14: 0 | W14: 1 | X14: 0 | Y14: 1
A15: SECCIÓN A.2: RESULTADOS DE LA APLICACIÓN DE ESCALA DE EVALUACIÓN DEL DESARROLLO PSICOMOTOR
A16: ACTIVIDAD | B16: RESULTADO | C16: TOTAL | F16: POR EDAD | R16: MIGRANTES
F17: Menor 7 meses | H17: 7 - 11 meses | J17: 12 - 17 meses | L17: 18 - 23 meses | N17: 24 - 47 meses | P17: 48 - 59 meses
C18: Ambos Sexos | D18: Hombres | E18: Mujeres | F18: Hombres | G18: Mujeres | H18: Hombres | I18: Mujeres | J18: Hombres | K18: Mujeres | L18: Hombres | M18: Mujeres | N18: Hombres | O18: Mujeres | P18: Hombres | Q18: Mujeres
A19: APLICACIÓN TEST DE DESARROLLO PSICOMOTOR | C19: =SUM(D19+E19) -> 39 | D19: =SUM(F19+H19+J19+L19+N19+P19) -> 16 | E19: =SUM(G19+I19+K19+M19+O19+Q19) -> 23 | F19: 0 | G19: 0 | H19: 8 | I19: 6 | J19: 0 | K19: 1 | L19: 5 | M19: 8 | N19: 3 | O19: 8 | P19: 0 | Q19: 0 | R19: 0 | CG19: 0 | CH19: 0 | CI19: 0 | CJ19: 0 | CK19: 0 | CL19: 0 | CM19: 0 | CN19: 0
A20: PRIMERA EVALUACIÓN | B20: NORMAL | C20: =SUM(D20+E20) -> 34 | D20: =SUM(F20+H20+J20+L20+N20+P20) -> 14 | E20: 20 | F20: 0 | G20: 0 | H20: 7 | I20: 6 | J20: 0 | K20: 1 | L20: 4 | M20: 7 | N20: 3 | O20: 6 | P20: 0 | Q20: 0 | R20: 0
B21: NORMAL CON REZAGO | C21: =SUM(D21+E21) -> 0 | D21: 0 | E21: 0 | F21: 0 | G21: 0 | H21: 0 | I21: 0 | J21: 0 | K21: 0 | L21: 0 | M21: 0 | N21: 0 | O21: 0 | P21: 0 | Q21: 0 | R21: 0
B22: RIESGO | C22: 0 | D22: 0 | E22: 0 | F22: 0 | G22: 0 | H22: 0 | I22: 0 | J22: 0 | K22: 0 | L22: 0 | M22: 0 | N22: 0 | O22: 0 | P22: 0 | Q22: 0 | R22: 0
B23: RETRASO | C23: 1 | D23: 0 | E23: 1 | F23: 0 | G23: 0 | H23: 0 | I23: 0 | J23: 0 | K23: 0 | L23: 0 | M23: 0 | N23: 0 | O23: 1 | P23: 0 | Q23: 0 | R23: 0
A24: REEVALUACIÓN | B24: NORMAL (desde normal con rezago) | C24: 2 | D24: 1 | E24: 1 | F24: 0 | G24: 0 | H24: 1 | I24: 0 | J24: 0 | K24: 0 | L24: 0 | M24: 0 | N24: 0 | O24: 1 | P24: 0 | Q24: 0 | R24: 0
B25: NORMAL (desde riesgo) | C25: 2 | D25: 1 | E25: 1 | F25: 0 | G25: 0 | H25: 0 | I25: 0 | J25: 0 | K25: 0 | L25: 1 | M25: 1 | N25: 0 | O25: 0 | P25: 0 | Q25: 0 | R25: 0
B26: NORMAL (desde retraso) | C26: 0 | D26: 0 | E26: 0 | F26: 0 | G26: 0 | H26: 0 | I26: 0 | J26: 0 | K26: 0 | L26: 0 | M26: 0 | N26: 0 | O26: 0 | P26: 0 | Q26: 0 | R26: 0
B27: NORMAL CON REZAGO (desde riesgo) | C27: 0 | D27: 0 | E27: 0 | F27: 0 | G27: 0 | H27: 0 | I27: 0 | J27: 0 | K27: 0 | L27: 0 | M27: 0 | N27: 0 | O27: 0 | P27: 0 | Q27: 0 | R27: 0
B28: NORMAL CON REZAGO (desde retraso) | C28: 0 | D28: 0 | E28: 0 | F28: 0 | G28: 0 | H28: 0 | I28: 0 | J28: 0 | K28: 0 | L28: 0 | M28: 0 | N28: 0 | O28: 0 | P28: 0 | Q28: 0 | R28: 0
B29: RIESGO (desde retraso) | C29: =SUM(D29:E29) -> 0 | D29: 0 | E29: 0 | F29: 0 | G29: 0 | H29: 0 | I29: 0 | J29: 0 | K29: 0 | L29: 0 | M29: 0 | N29: 0 | O29: 0 | P29: 0 | Q29: 0 | R29: 0
B30: NORMAL CON REZAGO (desde normal con rezago) | C30: =SUM(D30:E30) -> 0 | D30: 0 | E30: 0 | F30: 0 | G30: 0 | H30: 0 | I30: 0 | J30: 0 | K30: 0 | L30: 0 | M30: 0 | N30: 0 | O30: 0 | P30: 0 | Q30: 0 | R30: 0
B31: RIESGO (desde riesgo) | C31: =SUM(D31+E31) -> 0 | D31: 0 | E31: 0 | F31: 0 | G31: 0 | H31: 0 | I31: 0 | J31: 0 | K31: 0 | L31: 0 | M31: 0 | N31: 0 | O31: 0 | P31: 0 | Q31: 0 | R31: 0
B32: RIESGO (desde normal con rezago) | C32: =SUM(D32+E32) -> 0 | D32: 0 | E32: 0 | F32: 0 | G32: 0 | H32: 0 | I32: 0 | J32: 0 | K32: 0 | L32: 0 | M32: 0 | N32: 0 | O32: 0 | P32: 0 | Q32: 0 | R32: 0
B33: RETRASO (desde retraso) | C33: 0 | D33: 0 | E33: 0 | F33: 0 | G33: 0 | H33: 0 | I33: 0 | J33: 0 | K33: 0 | L33: 0 | M33: 0 | N33: 0 | O33: 0 | P33: 0 | Q33: 0 | R33: 0
B34: RETRASO (desde riesgo) | C34: 0 | D34: 0 | E34: 0 | F34: 0 | G34: 0 | H34: 0 | I34: 0 | J34: 0 | K34: 0 | L34: 0 | M34: 0 | N34: 0 | O34: 0 | P34: 0 | Q34: 0 | R34: 0
B35: RETRASO (desde normal con rezago) | C35: 0 | D35: 0 | E35: 0 | F35: 0 | G35: 0 | H35: 0 | I35: 0 | J35: 0 | K35: 0 | L35: 0 | M35: 0 | N35: 0 | O35: 0 | P35: 0 | Q35: 0 | R35: 0
A36: DERIVADOS A ESPECIALIDAD | B36: RIESGO | C36: 0 | D36: =SUM(F36+H36+J36+L36+N36+P36) -> 0 | E36: 0 | F36: 0 | G36: 0 | H36: 0 | I36: 0 | J36: 0 | K36: 0 | L36: 0 | M36: 0 | N36: 0 | O36: 0 | P36: 0 | Q36: 0 | R36: 0
B37: RETRASO | C37: 0 | D37: 0 | E37: 0 | F37: 0 | G37: 0 | H37: 0 | I37: 0 | J37: 0 | K37: 0 | L37: 0 | M37: 0 | N37: 0 | O37: 0 | P37: 0 | Q37: 0 | R37: 0
A38: TRASLADO DE ESTABLECIMIENTO | B38: NORMAL CON REZAGO | C38: 0 | D38: 0 | E38: 0 | F38: 0 | G38: 0 | H38: 0 | I38: 0 | J38: 0 | K38: 0 | L38: 0 | M38: 0 | N38: 0 | O38: 0 | P38: 0 | Q38: 0 | R38: 0
B39: RIESGO | C39: 0 | D39: 0 | E39: 0 | F39: 0 | G39: 0 | H39: 0 | I39: 0 | J39: 0 | K39: 0 | L39: 0 | M39: 0 | N39: 0 | O39: 0 | P39: 0 | Q39: 0 | R39: 0
B40: RETRASO | C40: 0 | D40: 0 | E40: 0 | F40: 0 | G40: 0 | H40: 0 | I40: 0 | J40: 0 | K40: 0 | L40: 0 | M40: 0 | N40: 0 | O40: 0 | P40: 0 | Q40: 0 | R40: 0
A41: SECCIÓN A.3: NIÑOS Y NIÑAS CON REZAGO, DÉFICIT U OTRA VULNERABILIDAD DERIVADOS A ALGUNA MODALIDAD DE ESTIMULACIÓN EN LA PRIMERA EVALUACIÓN
A42: NIÑO / A | C42: TOTAL | F42: POR EDAD
F43: Menor 7 meses | H43: 7 - 11 meses | J43: 12 - 17 meses | L43: 18 - 23 meses | N43: 24 - 47 meses | P43: 48 - 59 meses
C44: Ambos Sexos | D44: Hombres | E44: Mujeres | F44: Hombres | G44: Mujeres | H44: Hombres | I44: Mujeres | J44: Hombres | K44: Mujeres | L44: Hombres | M44: Mujeres | N44: Hombres | O44: Mujeres | P44: Hombres | Q44: Mujeres
A45: NORMAL CON REZAGO | C45: =SUM(D45+E45) -> 0 | D45: =SUM(F45+H45+J45+L45+N45+P45) -> 0 | E45: 0 | R45: =CA45 ->  | CA45: =IF(C45<>'A05'!C89,"* Niños derivados deben ser iguales al ingreso de niños(as) Normal con Rezago a salas de estimulación REM A05 sección F. ","") -> 
A46: RIESGO | C46: =SUM(D46+E46) -> 0 | D46: 0 | E46: 0 | R46: =CA46 ->  | CA46: =IF(C46<>'A05'!C90,"* Niños derivados deben ser iguales al ingreso de niños(as) con Riesgo a salas de estimulación REM A05 sección F. ","") -> 
A47: RETRASO | C47: =SUM(D47+E47) -> 1 | D47: 0 | E47: 1 | O47: 1 | R47: =CA47 ->  | CA47: =IF(C47<>'A05'!C91,"* Niños derivados deben ser iguales al ingreso de niños(as) con Retraso a salas de estimulación REM A05 sección F. ","") -> 
A48: OTRA VULNERABILIDAD | C48: =SUM(D48:E48) -> 0 | D48: 0 | E48: 0 | R48: =CA48 ->  | CA48: =IF(C48<>'A05'!C92,"* Niños derivados deben ser iguales al ingreso de niños(as) con Otras Vulnerabilidad a salas de estimulación REM A05 sección F. ","") -> 
A49: SECCIÓN A.4: RESULTADOS DE LA APLICACIÓN DE PROTOCOLO NEUROSENSORIAL
A50: RESULTADOS | C50: TOTAL | F50: POR EDAD
F51: 1 mes | H51: 2 meses
C52: Ambos Sexos | D52: Hombres | E52: Mujeres | F52: Hombres | G52: Mujeres | H52: Hombres | I52: Mujeres
A53: APLICACIÓN DE PROTOCOLO NEUROSENSORIAL (1-2 MESES) | C53: =SUM(D53+E53) -> 10 | D53: =SUM(F53+H53) -> 4 | E53: 6 | F53: =SUM(F54:F56) -> 4 | G53: =SUM(G54:G56) -> 6 | H53: =SUM(H54:H56) -> 0 | I53: =SUM(I54:I56) -> 0
A54: NORMAL | C54: =SUM(D54+E54) -> 10 | D54: 4 | E54: 6 | F54: 4 | G54: 6 | H54: 0 | I54: 0
A55: ANORMAL | C55: =SUM(D55+E55) -> 0 | D55: =SUM(F55+H55) -> 0 | E55: =SUM(G55+I55) -> 0 | F55: 0 | G55: 0 | H55: 0 | I55: 0
A56: MUY ANORMAL | C56: =SUM(D56+E56) -> 0 | D56: 0 | E56: 0 | F56: 0 | G56: 0 | H56: 0 | I56: 0
A57: SECCIÓN A.5: LACTANCIA MATERNA EN MENORES CONTROLADOS
A58: TIPO DE ALIMENTACIÓN | C58: TOTAL | F58: SEGÚN CONTROL PROGRAMÁTICO | P58: Pueblos Originarios | Q58: Migrantes
F59: Del 1° mes | H59: Del 3° mes | J59: Del 6° mes | L59: Del 12° mes | N59: Del 24° mes | CG59: 0 | CH59: 0 | CI59: 0 | CJ59: 0 | CK59: 0
C60: Ambos Sexos | D60: Hombres | E60: Mujeres | F60: Hombres | G60: Mujeres | H60: Hombres | I60: Mujeres | J60: Hombres | K60: Mujeres | L60: Hombres | M60: Mujeres | N60: Hombres | O60: Mujeres
A61: MENORES CONTROLADOS | C61: =SUM(D61+E61) -> 32 | D61: =SUM(F61+H61+J61+L61+N61) -> 12 | E61: =SUM(G61+I61+K61+M61+O61) -> 20 | F61: 4 | G61: 7 | H61: 1 | I61: 1 | J61: 2 | K61: 6 | L61: 2 | M61: 5 | N61: 3 | O61: 1 | P61: 0 | Q61: 0 | CG61: 0 | CH61: 0 | CI61: 0 | CJ61: 0 | CK61: 0 | CL61: 0 | CM61: 0
A62: LACTANCIA MATERNA EXCLUSIVA | C62: 14 | D62: =SUM(F62+H62+J62) -> 2 | E62: 12 | F62: 2 | G62: 5 | H62: 0 | I62: 1 | J62: 0 | K62: 6 | P62: 0 | Q62: 0 | CA62: =IF(CG62=1," * El Número de menores pertenecientes a Pueblos Originarios NO puede ser mayor al Número Total de Menores. ","") ->  | CB62: =IF(CH62=1," * El Número de menores pertenecientes a Población Migrante NO puede ser mayor al Número Total de Menores. ","") ->  | CG62: =IF(P62>$C62,1,0) -> 0 | CH62: =IF(Q62>$C62,1,0) -> 0
A63: LACTANCIA MATERNA / FORMULA LÁCTEA | C63: 5 | D63: 3 | E63: 2 | F63: 2 | G63: 2 | H63: 1 | I63: 0 | J63: 0 | K63: 0 | P63: 0 | Q63: 0 | CA63: =IF(CG63=1," * El Número de menores pertenecientes a Pueblos Originarios NO puede ser mayor al Número Total de Menores. ","") ->  | CB63: =IF(CH63=1," * El Número de menores pertenecientes a Población Migrante NO puede ser mayor al Número Total de Menores. ","") ->  | CG63: =IF(P63>$C63,1,0) -> 0 | CH63: 0
A64: FORMULA LÁCTEA | C64: 2 | D64: 2 | E64: 0 | F64: 0 | G64: 0 | H64: 0 | I64: 0 | J64: 2 | K64: 0 | P64: 0 | Q64: 0 | CG64: 0 | CH64: 0
A65: LACTANCIA MATERNA MAS SÓLIDOS | C65: 0 | D65: =SUM(J65+L65+N65) -> 0 | E65: =SUM(K65+M65+O65) -> 0 | P65: 0 | Q65: 0 | CG65: 0 | CH65: 0
A66: LACTANCIA MATERNA/FORMULA LÁCTEA MAS SÓLIDOS | C66: 0 | D66: =SUM(J66+L66+N66) -> 0 | E66: =SUM(K66+M66+O66) -> 0 | P66: 0 | Q66: 0 | CG66: 0 | CH66: 0
A67: FORMULA LÁCTEA MAS SÓLIDOS | C67: 0 | D67: 0 | E67: =SUM(K67+M67+O67) -> 0 | P67: 0 | Q67: 0 | CG67: 0 | CH67: 0
A68: SECCION B: EVALUACIÓN, APLICACIÓN Y RESULTADOS DE ESCALAS EN LA MUJER
A69: SECCIÓN B.1: EVALUACIÓN DEL ESTADO NUTRICIONAL A MUJERES CONTROLADAS AL OCTAVO MES POST PARTO
A70: ESTADO NUTRICIONAL | C70: TOTAL
A72: TOTAL | C72: =SUM(C73:C76) -> 0
A73: OBESA
A74: SOBREPESO
A75: NORMAL
A76: BAJO PESO
A77: SECCIÓN B.2: APLICACIÓN DE ESCALA SEGÚN EVALUACIÓN DE RIESGO PSICOSOCIAL ABREVIADA A GESTANTES
A78: TIPO | C78: TOTAL DE APLICACIONES | D78: RIESGO | E78: DERIVADAS A EQUIPO DE CABECERA | F78: VIOLENCIA INTRAFAMILIAR | CG78: 0
A79: EVALUACIÓN AL INGRESO | C79: 10 | D79: 4 | E79: 4 | F79: 0 | G79: =CA79&CB79&CC79 ->  | CA79: =IF(CG79=1,"* Las Aplicaciones de EPSA con resultado de Riesgo NO DEBE ser MAYOR que el Total de las aplicaciones. ","") ->  | CB79: =IF(CH79=1,"* Las Aplicaciones de EPSA con resultado de Riesgo NO DEBE ser MENOR que las Derivaciones a equipo de cabecera. ","") ->  | CC79: =IF(CI79=1,"* Las Aplicaciones de EPSA asociadas a Violencia Intrafamiliar NO DEBEN ser MAYOR al Total de las aplicaciones. ","") ->  | CG79: =IF(C79<D79,1,0) -> 0 | CH79: =IF(D79<E79,1,0) -> 0 | CI79: =IF(F79>C79,1,0) -> 0
A80: EVALUACIÓN AL TERCER TRIMESTRE | C80: 0 | D80: 0 | E80: 0 | F80: 0 | G80: =CA80&CB80&CC80 ->  | CA80: =IF(CG80=1,"* Las Aplicaciones de EPSA con resultado de Riesgo NO DEBE ser MAYOR que el Total de las aplicaciones. ","") ->  | CB80: =IF(CH80=1,"* Las Aplicaciones de EPSA con resultado de Riesgo NO DEBE ser MENOR que las Derivaciones a equipo de cabecera. ","") ->  | CC80: =IF(CI80=1,"* Las Aplicaciones de EPSA asociadas a Violencia Intrafamiliar NO DEBEN ser MAYOR al Total de las aplicaciones. ","") ->  | CG80: =IF(C80<D80,1,0) -> 0 | CH80: =IF(D80<E80,1,0) -> 0 | CI80: =IF(F80>C80,1,0) -> 0
A81: SECCIÓN B.3: APLICACIÓN DE ESCALA DE EDIMBURGO A GESTANTES Y MUJERES POST PARTO | CG81: 0
A82: CONCEPTO | C82: TOTAL DE APLICACIONES | D82: RESULTADOS 10 O MÁS PTOS. O RESULTADO DISTINTO DE 0 EN PREG 10 . (PUERPERAS) | E82: RESULTADOS 13 O MÁS PTOS O RESULTADO DISTINTO DE 0 EN PREG 10. (GESTANTES) | F82: TOTAL DE CASOS ALTERADOS DERIVADOS A SALUD MENTAL | CG82: 0
A83: EVALUACIÓN A GESTANTES | B83: PRIMERA EVALUACIÓN (2º control prenatal) | C83: 10 | E83: 2 | F83: 2 | CG83: 0
B84: REEVALUACIÓN (con puntaje elevado en la primera evaluación) | CG84: 0
A85: EVALUACIÓN A MUJERES POST PARTO O SÍNTOMAS DE DEPRESIÓN | B85: A los 2 meses | C85: 7 | D85: 1 | CG85: 0
B86: A los 6 meses | C86: 9 | D86: 3 | CG86: 0
A87: SECCIÓN C: RESULTADOS DE LA EVALUACIÓN DEL ESTADO NUTRICIONAL DEL ADOLESCENTE CON CONTROL SALUD INTEGRAL
A88: ESTADO NUTRICIONAL | C88: TOTAL | F88: 10 A 14 | H88: 15 A 19
C89: Ambos Sexos | D89: Hombres | E89: Mujeres | F89: Hombres | G89: Mujeres | H89: Hombres | I89: Mujeres
A90: TOTAL | C90: =SUM(C91:C95) -> 3 | D90: =SUM(D91:D95) -> 1 | E90: 2 | F90: =SUM(F91:F95) -> 1 | G90: 1 | H90: 0 | I90: 1
A91: NORMAL | C91: =SUM(D91+E91) -> 3 | D91: =SUM(F91+H91) -> 1 | E91: =SUM(G91+I91) -> 2 | F91: 1 | G91: 1 | H91: 0 | I91: 1
A92: BAJO PESO | C92: =SUM(D92+E92) -> 0 | D92: 0 | E92: 0 | F92: 0 | G92: 0 | H92: 0 | I92: 0
A93: SOBREPESO | C93: =SUM(D93+E93) -> 0 | D93: 0 | E93: 0 | F93: 0 | G93: 0 | H93: 0 | I93: 0
A94: OBESOS | C94: =SUM(D94+E94) -> 0 | D94: 0 | E94: 0 | F94: 0 | G94: 0 | H94: 0 | I94: 0
A95: OBESOS SEVEROS | C95: =SUM(D95+E95) -> 0 | D95: 0 | E95: 0 | F95: 0 | G95: 0 | H95: 0 | I95: 0
A96: SECCIÓN D: OTRAS EVALUACIONES, APLICACIONES Y RESULTADOS DE ESCALAS EN TODAS LAS EDADES
A97: SECCIÓN D.1: APLICACIÓN DE TAMIZAJE PARA EVALUAR EL NIVEL DE RIESGO DE CONSUMO DE ALCOHOL, TABACO Y OTRAS DROGAS
A98: COMPONENTE | C98: TOTAL | F98: POR EDAD
F99: 10-14 años | H99: 15-19 años | J99: 20-24 años | L99: 25-44 años | N99: 45-64 años | P99: 65-69 años | R99: 70-79 años | T99: 80 y más
C100: Ambos Sexos | D100: Hombres | E100: Mujeres | F100: Hombres | G100: Mujeres | H100: Hombres | I100: Mujeres | J100: Hombres | K100: Mujeres | L100: Hombres | M100: Mujeres | N100: Hombres | O100: Mujeres | P100: Hombres | Q100: Mujeres | R100: Hombres | S100: Mujeres | T100: Hombres | U100: Mujeres
A101: Nº DE AUDIT (EMP/EMPAM) | C101: =SUM(D101+E101) -> 285 | D101: =+H101+J101+L101+N101+P101+R101+T101 -> 78 | E101: =+I101+K101+M101+O101+Q101+S101+U101 -> 207 | J101: 8 | K101: 17 | L101: 33 | M101: 109 | N101: 20 | O101: 61 | P101: 9 | Q101: 3 | R101: 2 | S101: 10 | T101: 6 | U101: 7
A102: Nº DE AUDIT APLICADO | C102: =SUM(D102+E102) -> 2 | D102: =SUM(J102+L102+N102+P102+R102+T102) -> 2 | E102: =SUM(K102+M102+O102+Q102+S102+U102) -> 0 | J102: 2
A103: Nº DE ASSIST (EMP/EMPAM) | C103: 0 | D103: 0 | E103: 0
A104: N° DE ASSIST APLICADO | C104: 0 | D104: 0 | E104: 0
A105: N° DE CRAFFT EN CONTROL DE SALUD INTEGRAL DEL ADOLESCENTE | C105: 2 | D105: =+F105+H105 -> 0 | E105: =+G105+I105 -> 2 | F105: 0 | G105: 1 | H105: 0 | I105: 1
A106: N° DE CRAFFT APLICADO | C106: 1 | D106: =+F106+H106 -> 1 | E106: =+G106+I106 -> 0 | F106: 1 | G106: 0 | H106: 0 | I106: 0
A107: RESULTADOS DE EVALUACIÓN | B107: BAJO RIESGO | C107: 281 | D107: =SUM(F107+H107+J107+L107+N107+P107+R107+T107) -> 76 | E107: =SUM(G107+I107+K107+M107+O107+Q107+S107+U107) -> 205 | F107: 0 | G107: 1 | H107: 0 | I107: 1 | J107: 8 | K107: 16 | L107: 31 | M107: 106 | N107: 20 | O107: 61 | P107: 9 | Q107: 3 | R107: 2 | S107: 10 | T107: 6 | U107: 7
B108: CONSUMO RIESGOSO / INTERMEDIO | C108: 3 | D108: =SUM(F108+H108+J108+L108+N108+P108+R108+T108) -> 1 | E108: 2 | F108: 0 | G108: 0 | H108: 0 | I108: 0 | J108: 1 | K108: 1 | M108: 1
B109: POSIBLE CONSUMO PERJUDICIAL O DEPENDENCIA | C109: 6 | D109: 4 | E109: 2 | F109: 1 | G109: 0 | H109: 0 | I109: 0 | J109: 1 | L109: 2 | M109: 2
A110: SECCIÓN D.2: RESULTADOS DE LA APLICACIÓN DE INSTRUMENTO DE VALORACIÓN DE DESEMPEÑO EN COMUNIDAD (IVADEC-CIF)
A111: ACTIVIDAD | B111: RESULTADO | C111: TOTAL | F111: POR EDAD
F112: 6 -11 meses | H112: 12 - 23 meses | J112: 2 - 4 años | L112: 5 - 9 años | N112: 10 a 14 años | P112: 15 a 19 años | R112: 20 a 24 años | T112: 25 a 64 años | V112: 65 a 69 años | X112: 70 a 79 años | Z112: 80 y más años
C113: Ambos Sexos | D113: Hombres | E113: Mujeres | F113: Hombres | G113: Mujeres | H113: Hombres | I113: Mujeres | J113: Hombres | K113: Mujeres | L113: Hombres | M113: Mujeres | N113: Hombres | O113: Mujeres | P113: Hombres | Q113: Mujeres | R113: Hombres | S113: Mujeres | T113: Hombres | U113: Mujeres | V113: Hombres | W113: Mujeres | X113: Hombres | Y113: Mujeres | Z113: Hombres | AA113: Mujeres
A114: ORIGEN FÍSICO | B114: SIN DISCAPACIDAD | C114: =SUM(D114+E114) -> 0 | D114: =SUM(F114+H114+J114+L114+N114+P114+R114+T114+V114+X114+Z114) -> 0 | E114: =SUM(G114+I114+K114+M114+O114+Q114+S114+U114+W114+Y114+AA114) -> 0
B115: DISCAPACIDAD LEVE | C115: 0 | D115: =SUM(F115+H115+J115+L115+N115+P115+R115+T115+V115+X115+Z115) -> 0 | E115: 0
B116: DISCAPACIDAD MODERADA | C116: 0 | D116: 0 | E116: 0
B117: DISCAPACIDAD SEVERA | C117: 0 | D117: 0 | E117: 0
B118: DISCAPACIDAD PROFUNDA | C118: 0 | D118: 0 | E118: 0
A119: ORIGEN SENSORIAL VISUAL | B119: SIN DISCAPACIDAD | C119: 0 | D119: 0 | E119: 0
B120: DISCAPACIDAD LEVE | C120: 0 | D120: 0 | E120: 0
B121: DISCAPACIDAD MODERADA | C121: 0 | D121: 0 | E121: 0
B122: DISCAPACIDAD SEVERA | C122: 0 | D122: 0 | E122: 0
B123: DISCAPACIDAD PROFUNDA | C123: 0 | D123: 0 | E123: 0
A124: ORIGEN SENSORIAL AUDITIVO | B124: SIN DISCAPACIDAD | C124: 0 | D124: 0 | E124: 0
B125: DISCAPACIDAD LEVE | C125: 0 | D125: 0 | E125: 0
B126: DISCAPACIDAD MODERADA | C126: 0 | D126: 0 | E126: 0
B127: DISCAPACIDAD SEVERA | C127: 0 | D127: 0 | E127: 0
B128: DISCAPACIDAD PROFUNDA | C128: 0 | D128: 0 | E128: 0
A129: ORIGEN MENTAL PSÍQUICO | B129: SIN DISCAPACIDAD | C129: 0 | D129: 0 | E129: 0
B130: DISCAPACIDAD LEVE | C130: 0 | D130: 0 | E130: 0
B131: DISCAPACIDAD MODERADA | C131: 0 | D131: 0 | E131: 0
B132: DISCAPACIDAD SEVERA | C132: 0 | D132: 0 | E132: 0
B133: DISCAPACIDAD PROFUNDA | C133: 0 | D133: 0 | E133: 0
A134: ORIGEN MENTAL INTELECTUAL | B134: SIN DISCAPACIDAD | C134: 0 | D134: 0 | E134: 0
B135: DISCAPACIDAD LEVE | C135: 0 | D135: 0 | E135: 0
B136: DISCAPACIDAD MODERADA | C136: 0 | D136: 0 | E136: 0
B137: DISCAPACIDAD SEVERA | C137: 0 | D137: 0 | E137: 0
B138: DISCAPACIDAD PROFUNDA | C138: 0 | D138: 0 | E138: 0
A139: ORIGEN MÚLTIPLE | B139: SIN DISCAPACIDAD | C139: 0 | D139: 0 | E139: 0
B140: DISCAPACIDAD LEVE | C140: 0 | D140: 0 | E140: 0
B141: DISCAPACIDAD MODERADA | C141: 0 | D141: 0 | E141: 0
B142: DISCAPACIDAD SEVERA | C142: 0 | D142: 0 | E142: 0
B143: DISCAPACIDAD PROFUNDA | C143: 0 | D143: 0 | E143: 0
A144: TOTAL DE EVALUACIONES | C144: =SUM(C114:C143) -> 0 | D144: =SUM(D114:D143) -> 0 | E144: =SUM(E114:E143) -> 0 | F144: =SUM(F114:F143) -> 0 | G144: =SUM(G114:G143) -> 0 | H144: 0 | I144: 0 | J144: 0 | K144: 0 | L144: 0 | M144: 0 | N144: 0 | O144: 0 | P144: 0 | Q144: 0 | R144: 0 | S144: 0 | T144: 0 | U144: 0 | V144: 0 | W144: 0 | X144: 0 | Y144: 0 | Z144: 0 | AA144: 0
A145: EVALUACIÓN INGRESO | B145: SIN DISCAPACIDAD | C145: =SUM(D145+E145) -> 0 | D145: =SUM(F145+H145+J145+L145+N145+P145+R145+T145+V145+X145+Z145) -> 0 | E145: =SUM(G145+I145+K145+M145+O145+Q145+S145+U145+W145+Y145+AA145) -> 0
B146: DISCAPACIDAD LEVE | C146: =SUM(D146+E146) -> 0 | D146: =SUM(F146+H146+J146+L146+N146+P146+R146+T146+V146+X146+Z146) -> 0 | E146: 0
B147: DISCAPACIDAD MODERADA | C147: 0 | D147: 0 | E147: 0
B148: DISCAPACIDAD SEVERA | C148: 0 | D148: 0 | E148: 0
B149: DISCAPACIDAD PROFUNDA | C149: 0 | D149: 0 | E149: 0
A150: EVALUACIÓN EGRESO | B150: SIN DISCAPACIDAD | C150: 0 | D150: 0 | E150: 0
B151: DISCAPACIDAD LEVE | C151: 0 | D151: 0 | E151: 0
B152: DISCAPACIDAD MODERADA | C152: 0 | D152: 0 | E152: 0
B153: DISCAPACIDAD SEVERA | C153: 0 | D153: 0 | E153: 0
B154: DISCAPACIDAD PROFUNDA | C154: 0 | D154: 0 | E154: 0
A155: TOTAL DE EVALUACIONES | C155: =SUM(C145:C154) -> 0 | D155: =SUM(D145:D154) -> 0 | E155: =SUM(E145:E154) -> 0 | F155: =SUM(F145:F154) -> 0 | G155: =SUM(G145:G154) -> 0 | H155: 0 | I155: 0 | J155: 0 | K155: 0 | L155: 0 | M155: 0 | N155: 0 | O155: 0 | P155: 0 | Q155: 0 | R155: 0 | S155: 0 | T155: 0 | U155: 0 | V155: 0 | W155: 0 | X155: 0 | Y155: 0 | Z155: 0 | AA155: 0
A156: SECCION D.3: APLICACIÓN Y RESULTADO DE PAUTA DE EVALUACIÓN Y SALUD MENTAL
A157: RESULTADOS | C157: TOTAL | F157: POR EDAD
F158: 0 a 4 años | H158: 5 a 9 años | J158: 10 a 14 años | L158: 15 a 19 años | N158: 20 a 24 años | P158: 25 a 29 años | R158: 30 a 34 años | T158: 35 a 39 años | V158: 40 a 44 años | X158: 45 a 49 años | Z158: 50 a 54 años | AB158: 55 a 59 años | AD158: 60 a 64 años | AF158: 65 a 69 años | AH158: 70 a 74 años | AJ158: 75 a 79 años | AL158: 80 y más años
C159: Ambos Sexos | D159: Hombres | E159: Mujeres | F159: Hombres | G159: Mujeres | H159: Hombres | I159: Mujeres | J159: Hombres | K159: Mujeres | L159: Hombres | M159: Mujeres | N159: Hombres | O159: Mujeres | P159: Hombres | Q159: Mujeres | R159: Hombres | S159: Mujeres | T159: Hombres | U159: Mujeres | V159: Hombres | W159: Mujeres | X159: Hombres | Y159: Mujeres | Z159: Hombres | AA159: Mujeres | AB159: Hombres | AC159: Mujeres | AD159: Hombres | AE159: Mujeres | AF159: Hombres | AG159: Mujeres | AH159: Hombres | AI159: Mujeres | AJ159: Hombres | AK159: Mujeres | AL159: Hombres | AM159: Mujeres
A160: EVALUACION AL INGRESO | B160: BAJO | C160: =SUM(D160+E160) -> 9 | D160: =SUM(F160+H160+J160+L160+N160+P160+R160+T160+V160+X160+Z160+AB160+AD160+AF160+AH160+AJ160+AL160) -> 5 | E160: =SUM(G160+I160+K160+M160+O160+Q160+S160+U160+W160+Y160+AA160+AC160+AE160+AG160+AI160+AK160+AM160) -> 4 | F160: 0 | G160: 0 | H160: 0 | I160: 0 | J160: 1 | K160: 2 | L160: 0 | M160: 1 | N160: 1 | O160: 0 | P160: 0 | Q160: 0 | R160: 0 | S160: 0 | T160: 1 | U160: 0 | V160: 0 | W160: 0 | X160: 0 | Y160: 0 | Z160: 1 | AA160: 1 | AB160: 1 | AC160: 0 | AD160: 0 | AE160: 0 | AF160: 0 | AG160: 0 | AH160: 0 | AI160: 0 | AJ160: 0 | AK160: 0 | AL160: 0 | AM160: 0
B161: MEDIO | C161: 6 | D161: 3 | E161: 3 | F161: 0 | G161: 0 | H161: 0 | I161: 0 | J161: 0 | K161: 0 | L161: 0 | M161: 0 | N161: 0 | O161: 0 | P161: 0 | Q161: 0 | R161: 1 | S161: 1 | T161: 0 | U161: 0 | V161: 0 | W161: 0 | X161: 0 | Y161: 2 | Z161: 0 | AA161: 0 | AB161: 0 | AC161: 0 | AD161: 0 | AE161: 0 | AF161: 1 | AG161: 0 | AH161: 0 | AI161: 0 | AJ161: 1 | AK161: 0 | AL161: 0 | AM161: 0
B162: ALTO | C162: 13 | D162: 1 | E162: 12 | F162: 0 | G162: 0 | H162: 0 | I162: 0 | J162: 0 | K162: 1 | L162: 0 | M162: 2 | N162: 0 | O162: 1 | P162: 0 | Q162: 1 | R162: 0 | S162: 1 | T162: 0 | U162: 0 | V162: 0 | W162: 0 | X162: 1 | Y162: 3 | Z162: 0 | AA162: 0 | AB162: 0 | AC162: 2 | AD162: 0 | AE162: 0 | AF162: 0 | AG162: 1 | AH162: 0 | AI162: 0 | AJ162: 0 | AK162: 0 | AL162: 0 | AM162: 0
A163: EVALUACION AL EGRESO | B163: BAJO | C163: 1 | D163: 0 | E163: 1 | F163: 0 | G163: 0 | H163: 0 | I163: 0 | J163: 0 | K163: 0 | L163: 0 | M163: 0 | N163: 0 | O163: 0 | P163: 0 | Q163: 0 | R163: 0 | S163: 0 | T163: 0 | U163: 0 | V163: 0 | W163: 0 | X163: 0 | Y163: 1 | Z163: 0 | AA163: 0 | AB163: 0 | AC163: 0 | AD163: 0 | AE163: 0 | AF163: 0 | AG163: 0 | AH163: 0 | AI163: 0 | AJ163: 0 | AK163: 0 | AL163: 0 | AM163: 0
B164: MEDIO | C164: 0 | D164: 0 | E164: 0 | F164: 0 | G164: 0 | H164: 0 | I164: 0 | J164: 0 | K164: 0 | L164: 0 | M164: 0 | N164: 0 | O164: 0 | P164: 0 | Q164: 0 | R164: 0 | S164: 0 | T164: 0 | U164: 0 | V164: 0 | W164: 0 | X164: 0 | Y164: 0 | Z164: 0 | AA164: 0 | AB164: 0 | AC164: 0 | AD164: 0 | AE164: 0 | AF164: 0 | AG164: 0 | AH164: 0 | AI164: 0 | AJ164: 0 | AK164: 0 | AL164: 0 | AM164: 0
B165: ALTO | C165: 0 | D165: =SUM(F165+H165+J165+L165+N165+P165+R165+T165+V165+X165+Z165+AB165+AD165+AF165+AH165+AJ165+AL165) -> 0 | E165: =SUM(G165+I165+K165+M165+O165+Q165+S165+U165+W165+Y165+AA165+AC165+AE165+AG165+AI165+AK165+AM165) -> 0 | F165: 0 | G165: 0 | H165: 0 | I165: 0 | J165: 0 | K165: 0 | L165: 0 | M165: 0 | N165: 0 | O165: 0 | P165: 0 | Q165: 0 | R165: 0 | S165: 0 | T165: 0 | U165: 0 | V165: 0 | W165: 0 | X165: 0 | Y165: 0 | Z165: 0 | AA165: 0 | AB165: 0 | AC165: 0 | AD165: 0 | AE165: 0 | AF165: 0 | AG165: 0 | AH165: 0 | AI165: 0 | AJ165: 0 | AK165: 0 | AL165: 0 | AM165: 0
A166: SECCIÓN D.4: RESULTADO DE APLICACIÓN DE CONDICIÓN DE FUNCIONALIDAD AL EGRESO PROGRAMA "MÁS ADULTOS MAYORES AUTOVALENTES"
A167: ACTIVIDAD | B167: RESULTADO | C167: TOTAL | F167: POR EDAD
F168: 60 a 64 años | H168: 65 a 69 años | J168: 70 a 74 años | L168: 75 a 79 años | N168: 80 y más años
C169: Ambos Sexos | D169: Hombres | E169: Mujeres | F169: Hombres | G169: Mujeres | H169: Hombres | I169: Mujeres | J169: Hombres | K169: Mujeres | L169: Hombres | M169: Mujeres | N169: Hombres | O169: Mujeres
A170: TIMED UP AND GO | B170: MEJORA | C170: =SUM(D170+E170) -> 15 | D170: =SUM(F170+H170+J170+L170+N170) -> 5 | E170: =SUM(G170+I170+K170+M170+O170) -> 10 | F170: 2 | G170: 3 | H170: 1 | I170: 0 | J170: 0 | K170: 1 | L170: 0 | M170: 3 | N170: 2 | O170: 3 | CG170: 0 | CH170: 0
B171: MANTIENE | C171: 73 | D171: 16 | E171: 57 | F171: 1 | G171: 15 | H171: 4 | I171: 13 | J171: 6 | K171: 14 | L171: 2 | M171: 10 | N171: 3 | O171: 5 | CG171: 0 | CH171: 0
B172: DISMINUYE | C172: 0 | D172: 0 | E172: 0 | F172: 0 | G172: 0 | H172: 0 | I172: 0 | J172: 0 | K172: 0 | L172: 0 | M172: 0 | N172: 0 | O172: 0 | CG172: 0 | CH172: 0
A173: CUESTIONARIO | B173: MEJORA | C173: 18 | D173: 6 | E173: 12 | F173: 0 | G173: 4 | H173: 1 | I173: 2 | J173: 3 | K173: 5 | L173: 1 | M173: 0 | N173: 1 | O173: 1 | CG173: 0 | CH173: 0
B174: MANTIENE | C174: 70 | D174: 15 | E174: 55 | F174: 3 | G174: 14 | H174: 4 | I174: 11 | J174: 3 | K174: 10 | L174: 1 | M174: 13 | N174: 4 | O174: 7 | CG174: 0 | CH174: 0
B175: DISMINUYE | C175: 0 | D175: 0 | E175: =SUM(G175+I175+K175+M175+O175) -> 0 | F175: 0 | G175: 0 | H175: 0 | I175: 0 | J175: 0 | K175: 0 | L175: 0 | M175: 0 | N175: 0 | O175: 0
A176: SECCIÓN D.5: VARIACIÓN DE RESULTADO DE APLICACIÓN DEL ÍNDICE DE BARTHEL ENTRE EL INGRESO Y EGRESO HOSPITALARIO
A177: ÍNDICE DE BARTHEL | C177: TOTAL | F177: POR EDAD
F178: 65 a 69 años | H178: 70 a 74 años | J178: 75 a 79 años | L178: 80 a 84 años | N178: 85 a 89 años | P178: 90 y mas años
C179: Ambos Sexos | D179: Hombres | E179: Mujeres | F179: Hombres | G179: Mujeres | H179: Hombres | I179: Mujeres | J179: Hombres | K179: Mujeres | L179: Hombres | M179: Mujeres | N179: Hombres | O179: Mujeres | P179: Hombres | Q179: Mujeres
A180: MEJORA PUNTUACIÓN ÍNDICE DE BARTHEL | C180: =SUM(D180+E180) -> 0 | D180: =SUM(F180+H180+J180+L180+N180+P180) -> 0 | E180: 0
A181: MANTIENE PUNTUACIÓN ÍNDICE DE BARTHEL | C181: =SUM(D181+E181) -> 0 | D181: 0 | E181: 0
A182: DISMINUYE PUNTUACIÓN ÍNDICE DE BARTHEL | C182: =SUM(D182+E182) -> 0 | D182: 0 | E182: 0
A183: PUNTUACIÓN ÍNDICE DE BARTHEL BASAL
A184: TOTAL | C184: =SUM(C180:C182) -> 0 | D184: =SUM(D180:D182) -> 0 | E184: =SUM(E180:E182) -> 0 | F184: =SUM(F180:F182) -> 0 | G184: =SUM(G180:G182) -> 0 | H184: 0 | I184: 0 | J184: 0 | K184: 0 | L184: 0 | M184: 0 | N184: 0 | O184: 0 | P184: 0 | Q184: 0
A185: ** * El resultado que se consigna es la comparacion del indice de Barthel aplicado al Egreso de la Hospitalización
A186: SECCIÓN D.6: APLICACIÓN DE ESCALA ZARIT ABREVIADO EN CUIDADORES DE PERSONAS CON DEPENDENCIA SEVERA
A187: ESCALA DE SOBRECARGA DEL CUIDADOR "ZARIT ABREVIADO" | C187: TOTAL | F187: POR EDAD
F188: 10-14 años | H188: 15-19 años | J188: 20-24 años | L188: 25-44 años | N188: 45-64 años | P188: 65 o más
C189: Ambos Sexos | D189: Hombres | E189: Mujeres | F189: Hombres | G189: Mujeres | H189: Hombres | I189: Mujeres | J189: Hombres | K189: Mujeres | L189: Hombres | M189: Mujeres | N189: Hombres | O189: Mujeres | P189: Hombres | Q189: Mujeres
A190: CUIDADORA (O) CON SOBRECARGA INTENSA | C190: =SUM(D190+E190) -> 0 | D190: =SUM(F190+H190+J190+L190+N190+P190) -> 0 | E190: =SUM(G190+I190+K190+M190+O190+Q190) -> 0 | F190: 0 | G190: 0 | H190: 0 | I190: 0 | J190: 0 | K190: 0 | L190: 0 | M190: 0 | N190: 0 | O190: 0 | P190: 0 | Q190: 0
A191: CUIDADORA (O) SIN SOBRECARGA INTENSA | C191: =SUM(D191+E191) -> 1 | D191: =SUM(F191+H191+J191+L191+N191+P191) -> 0 | E191: 1 | F191: 0 | G191: 0 | H191: 0 | I191: 0 | J191: 0 | K191: 0 | L191: 0 | M191: 0 | N191: 0 | O191: 1 | P191: 0 | Q191: 0
A192: TOTAL CUIDADORES EVALUADOS | C192: =SUM(D192+E192) -> 1 | D192: =SUM(F192+H192+J192+L192+N192+P192) -> 0 | E192: =SUM(G192+I192+K192+M192+O192+Q192) -> 1 | F192: =SUM(F190:F191) -> 0 | G192: 0 | H192: 0 | I192: 0 | J192: 0 | K192: 0 | L192: 0 | M192: 0 | N192: 0 | O192: 1 | P192: 0 | Q192: 0
A193: SECCIÓN D.7: APLICACIÓN Y RESULTADOS DE PAUTA DE EVALUACIÓN CON ENFOQUE DE RIESGO ODONTOLÓGICO (CERO)
A194: PAUTA CERO | C194: TOTAL | F194: POR EDAD | AD194: NIÑOS, NIÑAS Y ADOLESCENTES RED SENAME
F195: <1 año | H195: 1 año | J195: 2 años | L195: 3 años | N195: 4 años | P195: 5 años | R195: 6 años | T195: 7 años | V195: 8 años | X195: 9 años | Z195: 10-14 años | AB195: 15-19 años
C196: Ambos sexos | D196: Hombres | E196: Mujeres | F196: Hombres | G196: Mujeres | H196: Hombres | I196: Mujeres | J196: Hombres | K196: Mujeres | L196: Hombres | M196: Mujeres | N196: Hombres | O196: Mujeres | P196: Hombres | Q196: Mujeres | R196: Hombres | S196: Mujeres | T196: Hombres | U196: Mujeres | V196: Hombres | W196: Mujeres | X196: Hombres | Y196: Mujeres | Z196: Hombres | AA196: Mujeres | AB196: Hombres | AC196: Mujeres | AD196: Hombres | AE196: Mujeres
A197: EVALUACIÓN DE RIESGO | B197: BAJO RIESGO | C197: =SUM(D197+E197) -> 7 | D197: =SUM(F197+H197+J197+L197+N197+P197+R197+T197+V197+X197+Z197+AB197) -> 4 | E197: =SUM(G197+I197+K197+M197+O197+Q197+S197+U197+W197+Y197+AA197+AC197) -> 3 | F197: 0 | G197: 2 | H197: 0 | I197: 0 | J197: 0 | K197: 1 | L197: 1 | M197: 0 | N197: 1 | O197: 0 | R197: 1 | S197: 0 | T197: 0 | U197: 0 | V197: 1 | W197: 0 | X197: 0 | Y197: 0 | Z197: 0 | AA197: 0 | AB197: 0 | AC197: 0 | AD197: 0 | AE197: 0 | CG197: 0 | CH197: 0 | CI197: 0 | CJ197: 0
B198: ALTO RIESGO | C198: =SUM(D198+E198) -> 4 | D198: =SUM(F198+H198+J198+L198+N198+P198+R198+T198+V198+X198+Z198+AB198) -> 2 | E198: =SUM(G198+I198+K198+M198+O198+Q198+S198+U198+W198+Y198+AA198+AC198) -> 2 | F198: 1 | G198: 0 | H198: 0 | I198: 1 | J198: 0 | K198: 0 | L198: 0 | M198: 0 | N198: 0 | O198: 0 | Q198: 1 | R198: 1 | S198: 0 | T198: 0 | U198: 0 | V198: 0 | W198: 0 | X198: 0 | Y198: 0 | Z198: 0 | AA198: 0 | AB198: 0 | AC198: 0 | AD198: 0 | AE198: 0 | CG198: 0 | CH198: 0 | CI198: 0 | CJ198: 0
A199: TOTAL | C199: =SUM(D199+E199) -> 11 | D199: =SUM(D197+D198) -> 6 | E199: =SUM(E197+E198) -> 5 | F199: =SUM(F197+F198) -> 1 | G199: =SUM(G197+G198) -> 2 | H199: 0 | I199: 1 | J199: 0 | K199: 1 | L199: 1 | M199: 0 | N199: 1 | O199: 0 | P199: 0 | Q199: 1 | R199: 2 | S199: 0 | T199: 0 | U199: 0 | V199: 1 | W199: 0 | X199: 0 | Y199: 0 | Z199: 0 | AA199: 0 | AB199: 0 | AC199: 0 | AD199: =SUM(AD197+AD198) -> 0 | AE199: =SUM(AE197+AE198) -> 0
A200: SECCION E: APLICACIÓN DE PAUTA DETECCIÓN DE FACTORES DE RIESGO PSICOSOCIAL INFANTIL
A201: EVALUACIÓN | C201: TOTAL | F201: POR EDAD | P201: Pueblo originarios | R201: Migrantes | T201: DERIVACIÓN
... 20 more rows

Sheet A04
A1: SERVICIO DE SALUD
A2: =CONCATENATE("COMUNA: ",NOMBRE!B2," - ","( ",NOMBRE!C2,NOMBRE!D2,NOMBRE!E2,NOMBRE!F2,NOMBRE!G2," )") -> COMUNA: CALLE LARGA - ( 05302 )
A3: =CONCATENATE("ESTABLECIMIENTO/ESTRATEGIA: ",NOMBRE!B3," - ","( ",NOMBRE!C3,NOMBRE!D3,NOMBRE!E3,NOMBRE!F3,NOMBRE!G3,NOMBRE!H3," )") -> ESTABLECIMIENTO/ESTRATEGIA: DR. JOSE JOAQUIN AGUIRRE CAMPOS - ( 108308 )
A4: =CONCATENATE("MES: ",NOMBRE!B6," - ","( ",NOMBRE!C6,NOMBRE!D6," )") -> MES: DICIEMBRE - ( 12 )
A5: =CONCATENATE("AÑO: ",NOMBRE!B7) -> AÑO: 2022
A6: REM-A04. CONSULTAS Y OTRAS ATENCIONES EN LA RED
A8: SECCIÓN A: CONSULTAS MÉDICAS
A9: TIPO DE CONSULTA | B9: TOTAL | E9: POR DE EDAD (en años) | AO9: Beneficiarios | AP9: Pueblos Originarios | AQ9: Migrantes | AR9: Niños, Niñas, Adolescentes y Jóvenes Población SENAME | AS9: Por Campaña de Invierno
E10: Menor de 1 | G10: 1 a 4 | I10: 5 a 9 | K10: 10 a 14 | M10: 15 a 19 | O10: 20 a 24 | Q10: 25 - 29 | S10: 30 - 34 | U10: 35 - 39 | W10: 40 - 44 | Y10: 45 - 49 | AA10: 50 - 54 | AC10: 55 - 59 | AE10: 60 - 64 | AG10: 65 - 69 | AI10: 70 - 74 | AK10: 75 - 79 | AM10: 80 y mas
B11: Ambos Sexos | C11: Hombres | D11: Mujeres | E11: Hombres | F11: Mujeres | G11: Hombres | H11: Mujeres | I11: Hombres | J11: Mujeres | K11: Hombres | L11: Mujeres | M11: Hombres | N11: Mujeres | O11: Hombres | P11: Mujeres | Q11: Hombres | R11: Mujeres | S11: Hombres | T11: Mujeres | U11: Hombres | V11: Mujeres | W11: Hombres | X11: Mujeres | Y11: Hombres | Z11: Mujeres | AA11: Hombres | AB11: Mujeres | AC11: Hombres | AD11: Mujeres | AE11: Hombres | AF11: Mujeres | AG11: Hombres | AH11: Mujeres | AI11: Hombres | AJ11: Mujeres | AK11: Hombres | AL11: Mujeres | AM11: Hombres | AN11: Mujeres
A12: TOTAL | B12: =SUM(B13:B26) -> 1195 | C12: =SUM(C13:C26) -> 480 | D12: =SUM(D13:D26) -> 715 | E12: =SUM(E13:E26) -> 25 | F12: =SUM(F13:F26) -> 18 | G12: =SUM(G13:G26) -> 46 | H12: 49 | I12: 34 | J12: 40 | K12: 27 | L12: 24 | M12: 25 | N12: 28 | O12: 17 | P12: 27 | Q12: 17 | R12: 50 | S12: 21 | T12: 47 | U12: =SUM(U13:U26) -> 16 | V12: =SUM(V13:V26) -> 40 | W12: 22 | X12: 64 | Y12: 9 | Z12: 41 | AA12: 24 | AB12: 55 | AC12: 38 | AD12: 54 | AE12: 38 | AF12: 57 | AG12: 36 | AH12: 46 | AI12: 29 | AJ12: 23 | AK12: 20 | AL12: 24 | AM12: 36 | AN12: 28 | AO12: 1170 | AP12: =SUM(AP13:AP26) -> 48 | AQ12: =SUM(AQ13:AQ26) -> 17 | AR12: =SUM(AR13:AR26) -> 7 | AS12: =SUM(AS13:AS26) -> 0
A13: IRA ALTA | B13: =SUM(C13:D13) -> 0 | C13: =SUM(E13+G13+I13+K13+M13+O13+Q13+S13+U13+W13+Y13+AA13+AC13+AE13+AG13+AI13+AK13+AM13) -> 0 | D13: =SUM(F13+H13+J13+L13+N13+P13+R13+T13+V13+X13+Z13+AB13+AD13+AF13+AH13+AJ13+AL13+AN13) -> 0 | AO13: 0 | AP13: 0 | AQ13: 0 | AR13: 0 | AS13: 0 | CG13: 0 | CI13: 0 | CJ13: 0
A14: SÍNDROME BRONQUIAL OBSTRUCTIVO | B14: =SUM(C14:D14) -> 0 | C14: =SUM(E14+G14+I14) -> 0 | D14: =SUM(F14+H14+J14) -> 0 | AO14: 0 | AP14: 0 | AQ14: 0 | AR14: 0 | AS14: 0 | CG14: 0 | CI14: 0 | CJ14: 0
A15: NEUMONÍA | B15: 2 | C15: =SUM(E15+G15+I15+K15+M15+O15+Q15+S15+U15+W15+Y15+AA15+AC15+AE15+AG15+AI15+AK15+AM15) -> 1 | D15: =SUM(F15+H15+J15+L15+N15+P15+R15+T15+V15+X15+Z15+AB15+AD15+AF15+AH15+AJ15+AL15+AN15) -> 1 | E15: 0 | F15: 0 | G15: 0 | H15: 0 | I15: 0 | J15: 0 | K15: 0 | L15: 0 | M15: 0 | N15: 0 | O15: 0 | P15: 0 | Q15: 0 | R15: 0 | S15: 0 | T15: 0 | U15: 0 | V15: 0 | W15: 0 | X15: 0 | Y15: 0 | Z15: 0 | AA15: 0 | AB15: 0 | AC15: 0 | AD15: 0 | AE15: 0 | AF15: 0 | AG15: 1 | AH15: 0 | AI15: 0 | AJ15: 0 | AK15: 0 | AL15: 1 | AM15: 0 | AN15: 0 | AO15: 2 | AP15: 0 | AQ15: 0 | AR15: 0 | AS15: 0 | CG15: 0 | CI15: 0 | CJ15: 0
A16: ASMA | B16: 0 | C16: =SUM(I16+K16+M16+O16+Q16+S16+U16+W16+Y16+AA16+AC16+AE16+AG16+AI16+AK16+AM16) -> 0 | D16: =SUM(J16+L16+N16+P16+R16+T16+V16+X16+Z16+AB16+AD16+AF16+AH16+AJ16+AL16+AN16) -> 0 | AO16: 0 | AP16: 0 | AQ16: 0 | AR16: 0 | AS16: 0 | CG16: 0 | CI16: 0 | CJ16: 0
A17: ENFERMEDAD PULMONAR OBSTRUCTIVA CRÓNICA | B17: 0 | C17: =SUM(U17+W17+Y17+AA17+AC17+AE17+AG17+AI17+AK17+AM17) -> 0 | D17: =SUM(V17+X17+Z17+AB17+AD17+AF17+AH17+AJ17+AL17+AN17) -> 0 | AO17: 0 | AP17: 0 | AQ17: 0 | AR17: 0 | AS17: 0 | CG17: 0 | CI17: 0 | CJ17: 0
A18: OTRAS RESPIRATORIAS | B18: 64 | C18: =SUM(E18+G18+I18+K18+M18+O18+Q18+S18+U18+W18+Y18+AA18+AC18+AE18+AG18+AI18+AK18+AM18) -> 34 | D18: =SUM(F18+H18+J18+L18+N18+P18+R18+T18+V18+X18+Z18+AB18+AD18+AF18+AH18+AJ18+AL18+AN18) -> 30 | E18: 5 | F18: 5 | G18: 9 | H18: 5 | I18: 7 | J18: 5 | K18: 2 | L18: 1 | M18: 1 | N18: 2 | O18: 3 | P18: 2 | Q18: 1 | R18: 5 | S18: 0 | T18: 0 | U18: 0 | V18: 1 | W18: 0 | X18: 1 | Y18: 0 | Z18: 1 | AA18: 1 | AB18: 0 | AC18: 2 | AD18: 0 | AE18: 1 | AF18: 1 | AG18: 0 | AH18: 1 | AI18: 1 | AJ18: 0 | AK18: 0 | AL18: 0 | AM18: 1 | AN18: 0 | AO18: 63 | AP18: 4 | AQ18: 5 | AR18: 1 | AS18: 0 | CG18: 0 | CI18: 0 | CJ18: 0
A19: OBSTÉTRICA | B19: =SUM(C19:D19) -> 2 | D19: =SUM(L19+N19+P19+R19+T19+V19+X19+Z19+AB19+AD19+AF19) -> 2 | R19: 2 | AO19: 1 | AP19: 0 | AQ19: 0 | AR19: 0 | AS19: 0 | CG19: 0 | CI19: 0 | CJ19: 0
A20: GINECOLÓGICA | B20: =SUM(C20:D20) -> 5 | D20: =SUM(F20+H20+J20+L20+N20+P20+R20+T20+V20+X20+Z20+AB20+AD20+AF20+AH20+AJ20+AL20+AN20) -> 5 | P20: 3 | R20: 2 | AO20: 5 | AP20: 0 | AQ20: 0 | AR20: 0 | AS20: 0 | CG20: 0 | CI20: 0 | CJ20: 0
A21: GINECOLÓGICA POR INFERTILIDAD | B21: 0 | C21: =SUM(O21+Q21+S21+U21+W21+Y21+AA21) -> 0 | D21: =SUM(P21+R21+T21+V21+X21+Z21+AB21) -> 0 | AO21: 0 | AP21: 0 | AQ21: 0 | AR21: 0 | AS21: 0 | CG21: 0 | CI21: 0 | CJ21: 0
A22: INFECCIÓN TRANSMISIÓN SEXUAL | B22: 0 | C22: =SUM(E22+G22+I22+K22+M22+O22+Q22+S22+U22+W22+Y22+AA22+AC22+AE22+AG22+AI22+AK22+AM22) -> 0 | D22: =SUM(F22+H22+J22+L22+N22+P22+R22+T22+V22+X22+Z22+AB22+AD22+AF22+AH22+AJ22+AL22+AN22) -> 0 | AO22: 0 | AP22: 0 | AQ22: 0 | AR22: 0 | AS22: 0 | CG22: 0 | CI22: 0 | CJ22: 0
A23: VIH-SIDA | B23: 0 | C23: =SUM(E23+G23+I23+K23+M23+O23+Q23+S23+U23+W23+Y23+AA23+AC23+AE23+AG23+AI23+AK23+AM23) -> 0 | D23: =SUM(F23+H23+J23+L23+N23+P23+R23+T23+V23+X23+Z23+AB23+AD23+AF23+AH23+AJ23+AL23+AN23) -> 0 | AO23: 0 | AP23: 0 | AQ23: 0 | AR23: 0 | AS23: 0 | CG23: 0 | CI23: 0 | CJ23: 0
A24: SALUD MENTAL | B24: 13 | C24: =SUM(G24+I24+K24+M24+O24+Q24+S24+U24+W24+Y24+AA24+AC24+AE24+AG24+AI24+AK24+AM24) -> 4 | D24: =SUM(H24+J24+L24+N24+P24+R24+T24+V24+X24+Z24+AB24+AD24+AF24+AH24+AJ24+AL24+AN24) -> 9 | G24: 0 | H24: 0 | I24: 0 | J24: 0 | K24: 0 | L24: 0 | M24: 0 | N24: 4 | O24: 0 | P24: 0 | Q24: 0 | R24: 0 | S24: 2 | T24: 0 | U24: 0 | V24: 0 | W24: 0 | X24: 2 | Y24: 0 | Z24: 0 | AA24: 0 | AB24: 0 | AC24: 1 | AD24: 2 | AE24: 1 | AF24: 0 | AG24: 0 | AH24: 0 | AI24: 0 | AJ24: 0 | AK24: 0 | AL24: 1 | AM24: 0 | AN24: 0 | AO24: 13 | AP24: 0 | AQ24: 0 | AR24: 0 | AS24: 0 | CG24: 0 | CI24: 0 | CJ24: 0
A25: CARDIOVASCULAR | B25: 62 | C25: =SUM(M25+O25+Q25+S25+U25+W25+Y25+AA25+AC25+AE25+AG25+AI25+AK25+AM25) -> 21 | D25: =SUM(N25+P25+R25+T25+V25+X25+Z25+AB25+AD25+AF25+AH25+AJ25+AL25+AN25) -> 41 | M25: 0 | N25: 0 | O25: 0 | P25: 0 | Q25: 0 | R25: 3 | S25: 0 | T25: 0 | U25: 0 | V25: 4 | W25: 2 | X25: 3 | Y25: 1 | Z25: 3 | AA25: 1 | AB25: 12 | AC25: 3 | AD25: 2 | AE25: 6 | AF25: 4 | AG25: 3 | AH25: 3 | AI25: 0 | AJ25: 1 | AK25: 0 | AL25: 4 | AM25: 5 | AN25: 2 | AO25: 60 | AP25: 2 | AQ25: 1 | AR25: 0 | AS25: 0 | CG25: 0 | CI25: 0 | CJ25: 0
A26: OTRAS MORBILIDADES | B26: 1047 | C26: =SUM(E26+G26+I26+K26+M26+O26+Q26+S26+U26+W26+Y26+AA26+AC26+AE26+AG26+AI26+AK26+AM26) -> 420 | D26: =SUM(F26+H26+J26+L26+N26+P26+R26+T26+V26+X26+Z26+AB26+AD26+AF26+AH26+AJ26+AL26+AN26) -> 627 | E26: 20 | F26: 13 | G26: 37 | H26: 44 | I26: 27 | J26: 35 | K26: 25 | L26: 23 | M26: 24 | N26: 22 | O26: 14 | P26: 22 | Q26: 16 | R26: 38 | S26: 19 | T26: 47 | U26: 16 | V26: 35 | W26: 20 | X26: 58 | Y26: 8 | Z26: 37 | AA26: 22 | AB26: 43 | AC26: 32 | AD26: 50 | AE26: 30 | AF26: 52 | AG26: 32 | AH26: 42 | AI26: 28 | AJ26: 22 | AK26: 20 | AL26: 18 | AM26: 30 | AN26: 26 | AO26: 1026 | AP26: 42 | AQ26: 11 | AR26: 6 | AS26: 0 | CG26: 0 | CI26: 0 | CJ26: 0
A27: SECCIÓN B: CONSULTAS DE PROFESIONALES NO MÉDICOS
A28: PROFESIONAL | B28: TOTAL | E28: POR DE EDAD (en años) | AO28: Beneficiarios | AP28: Pueblos Originarios | AQ28: Migrantes | AR28: Espacios Amigables | AS28: Niños, Niñas, Adolescentes y Jóvenes Población SENAME
E29: Menor de 1 | G29: 1 a 4 | I29: 5 a 9 | K29: 10 a 14 | M29: 15 a 19 | O29: 20 a 24 | Q29: 25 - 29 | S29: 30 - 34 | U29: 35 - 39 | W29: 40 - 44 | Y29: 45 - 49 | AA29: 50 - 54 | AC29: 55 - 59 | AE29: 60 - 64 | AG29: 65 - 69 | AI29: 70 - 74 | AK29: 75 - 79 | AM29: 80 y mas
B30: Ambos Sexos | C30: Hombres | D30: Mujeres | E30: Hombres | F30: Mujeres | G30: Hombres | H30: Mujeres | I30: Hombres | J30: Mujeres | K30: Hombres | L30: Mujeres | M30: Hombres | N30: Mujeres | O30: Hombres | P30: Mujeres | Q30: Hombres | R30: Mujeres | S30: Hombres | T30: Mujeres | U30: Hombres | V30: Mujeres | W30: Hombres | X30: Mujeres | Y30: Hombres | Z30: Mujeres | AA30: Hombres | AB30: Mujeres | AC30: Hombres | AD30: Mujeres | AE30: Hombres | AF30: Mujeres | AG30: Hombres | AH30: Mujeres | AI30: Hombres | AJ30: Mujeres | AK30: Hombres | AL30: Mujeres | AM30: Hombres | AN30: Mujeres
A31: ENFERMERA /O | B31: =SUM(C31:D31) -> 38 | C31: =SUM(E31+G31+I31+K31+M31+O31+Q31+S31+U31+W31+Y31+AA31+AC31+AE31+AG31+AI31+AK31+AM31) -> 20 | D31: =SUM(F31+H31+J31+L31+N31+P31+R31+T31+V31+X31+Z31+AB31+AD31+AF31+AH31+AJ31+AL31+AN31) -> 18 | E31: 1 | F31: 0 | G31: 4 | H31: 0 | I31: 4 | J31: 0 | K31: 0 | L31: 0 | M31: 0 | N31: 0 | O31: 0 | P31: 0 | Q31: 0 | R31: 1 | S31: 0 | T31: 1 | U31: 1 | V31: 0 | W31: 0 | X31: 1 | Y31: 1 | Z31: 2 | AA31: 0 | AB31: 3 | AC31: 1 | AD31: 2 | AE31: 1 | AF31: 3 | AG31: 2 | AH31: 0 | AI31: 0 | AJ31: 1 | AK31: 2 | AL31: 1 | AM31: 3 | AN31: 3 | AO31: 38 | AP31: 0 | AQ31: 0 | AR31: 0 | AS31: 0 | CG31: 0 | CH31: 0
A32: MATRONA /ÓN (MORB.GINECOLÓGICA) | B32: 15 | C32: =SUM(E32+G32+I32+K32+M32+O32+Q32+S32+U32+W32+Y32+AA32+AC32+AE32+AG32+AI32+AK32+AM32) -> 0 | D32: 15 | E32: 0 | F32: 0 | G32: 0 | H32: 0 | I32: 0 | J32: 0 | K32: 0 | L32: 0 | M32: 0 | N32: 1 | O32: 0 | P32: 0 | Q32: 0 | R32: 1 | S32: 0 | T32: 1 | U32: 0 | V32: 1 | W32: 0 | X32: 2 | Y32: 0 | Z32: 4 | AA32: 0 | AB32: 2 | AC32: 0 | AD32: 0 | AE32: 0 | AF32: 2 | AG32: 0 | AH32: 0 | AI32: 0 | AJ32: 1 | AK32: 0 | AL32: 0 | AM32: 0 | AN32: 0 | AO32: 15 | AP32: 0 | AQ32: 0 | AR32: 0 | AS32: 0 | CG32: 0 | CH32: 0
A33: MATRONA /ÓN (ITS) | B33: 0 | C33: 0 | D33: 0 | E33: 0 | F33: 0 | G33: 0 | H33: 0 | I33: 0 | J33: 0 | K33: 0 | L33: 0 | M33: 0 | N33: 0 | O33: 0 | P33: 0 | Q33: 0 | R33: 0 | S33: 0 | T33: 0 | U33: 0 | V33: 0 | W33: 0 | X33: 0 | Y33: 0 | Z33: 0 | AA33: 0 | AB33: 0 | AC33: 0 | AD33: 0 | AE33: 0 | AF33: 0 | AG33: 0 | AH33: 0 | AI33: 0 | AJ33: 0 | AK33: 0 | AL33: 0 | AM33: 0 | AN33: 0 | AO33: 0 | AP33: 0 | AQ33: 0 | AR33: 0 | AS33: 0 | CG33: 0 | CH33: 0
A34: MATRONA /ÓN (INFERTILIDAD) | B34: 1 | C34: =SUM(O34+Q34+S34+U34+W34+Y34+AA34) -> 0 | D34: =SUM(P34+R34+T34+V34+X34+Z34+AB34) -> 1 | O34: 0 | P34: 0 | Q34: 0 | R34: 0 | S34: 0 | T34: 0 | U34: 0 | V34: 1 | W34: 0 | X34: 0 | AO34: 1 | AP34: 0 | AQ34: 0 | AR34: 0 | AS34: 0 | CG34: 0 | CH34: 0
A35: MATRONA /ÓN (OTRAS CONSULTAS) | B35: =SUM(C35:D35) -> 4 | C35: =SUM(E35+G35+I35+K35+M35+O35+Q35+S35+U35+W35+Y35+AA35+AC35+AE35+AG35+AI35+AK35+AM35) -> 0 | D35: =SUM(F35+H35+J35+L35+N35+P35+R35+T35+V35+X35+Z35+AB35+AD35+AF35+AH35+AJ35+AL35+AN35) -> 4 | E35: 0 | F35: 0 | G35: 0 | H35: 0 | I35: 0 | J35: 0 | K35: 0 | L35: 0 | M35: 0 | N35: 0 | O35: 0 | P35: 0 | Q35: 0 | R35: 0 | S35: 0 | T35: 2 | U35: 0 | V35: 1 | W35: 0 | X35: 1 | Y35: 0 | Z35: 0 | AA35: 0 | AB35: 0 | AC35: 0 | AD35: 0 | AE35: 0 | AF35: 0 | AG35: 0 | AH35: 0 | AI35: 0 | AJ35: 0 | AK35: 0 | AL35: 0 | AM35: 0 | AN35: 0 | AO35: 4 | AP35: 0 | AQ35: 0 | AR35: 0 | AS35: 0 | CG35: 0 | CH35: 0
A36: MATRONA /ÓN (SALUD SEXUAL) | B36: =SUM(C36:D36) -> 71 | C36: =SUM(K36+M36+O36+Q36+S36+U36+W36+Y36+AA36+AC36+AE36+AG36+AI36+AK36+AM36) -> 1 | D36: =SUM(L36+N36+P36+R36+T36+V36+X36+Z36+AB36+AD36+AF36+AH36+AJ36+AL36+AN36) -> 70 | K36: 0 | L36: 0 | M36: 1 | N36: 1 | O36: 0 | P36: 0 | Q36: 0 | R36: 4 | S36: 0 | T36: 3 | U36: 0 | V36: 8 | W36: 0 | X36: 6 | Y36: 0 | Z36: 3 | AA36: 0 | AB36: 8 | AC36: 0 | AD36: 18 | AE36: 0 | AF36: 11 | AG36: 0 | AH36: 7 | AI36: 0 | AJ36: 1 | AK36: 0 | AL36: 0 | AM36: 0 | AN36: 0 | AO36: 71 | AP36: 3 | AQ36: 1 | AR36: 0 | AS36: 0 | CG36: 0 | CH36: 0
A37: NUTRICIONISTA (OTRAS CONSULTAS) | B37: 10 | C37: 2 | D37: 8 | E37: 1 | F37: 4 | G37: 0 | H37: 2 | I37: 0 | J37: 0 | K37: 0 | L37: 0 | M37: 0 | N37: 0 | O37: 0 | P37: 1 | Q37: 0 | R37: 0 | S37: 0 | T37: 0 | U37: 0 | V37: 0 | W37: 0 | X37: 0 | Y37: 0 | Z37: 1 | AA37: 0 | AB37: 0 | AC37: 0 | AD37: 0 | AE37: 0 | AF37: 0 | AG37: 0 | AH37: 0 | AI37: 1 | AJ37: 0 | AK37: 0 | AL37: 0 | AM37: 0 | AN37: 0 | AO37: 10 | AP37: 1 | AQ37: 1 | AR37: 0 | AS37: 0 | CG37: 0 | CH37: 0
A38: NUTRICIONISTA MAULNUTRICIÓN POR EXCESO | B38: =SUM(C38:D38) -> 100 | C38: =SUM(E38+G38+I38+K38+M38+O38+Q38+S38+U38+W38+Y38+AA38+AC38+AE38+AG38+AI38+AK38+AM38) -> 17 | D38: =SUM(F38+H38+J38+L38+N38+P38+R38+T38+V38+X38+Z38+AB38+AD38+AF38+AH38+AJ38+AL38+AN38) -> 83 | E38: 0 | F38: 1 | G38: 1 | H38: 3 | I38: 1 | J38: 0 | K38: 1 | L38: 1 | M38: 0 | N38: 0 | O38: 0 | P38: 6 | Q38: 1 | R38: 5 | S38: 2 | T38: 12 | U38: 0 | V38: 4 | W38: 1 | X38: 2 | Y38: 0 | Z38: 9 | AA38: 1 | AB38: 5 | AC38: 1 | AD38: 13 | AE38: 5 | AF38: 12 | AG38: 1 | AH38: 3 | AI38: 2 | AJ38: 4 | AK38: 0 | AL38: 2 | AM38: 0 | AN38: 1 | AO38: 98 | AP38: 4 | AQ38: 0 | AR38: 13 | AS38: 0
A39: NUTRICIONISTA MALNUTRICIÓN POR DÉFICIT | B39: =SUM(C39:D39) -> 14 | C39: =SUM(E39+G39+I39+K39+M39+O39+Q39+S39+U39+W39+Y39+AA39+AC39+AE39+AG39+AI39+AK39+AM39) -> 5 | D39: =SUM(F39+H39+J39+L39+N39+P39+R39+T39+V39+X39+Z39+AB39+AD39+AF39+AH39+AJ39+AL39+AN39) -> 9 | E39: 1 | F39: 3 | G39: 3 | H39: 5 | I39: 0 | J39: 0 | K39: 0 | L39: 0 | M39: 0 | N39: 0 | O39: 0 | P39: 0 | Q39: 0 | R39: 0 | S39: 0 | T39: 0 | U39: 0 | V39: 0 | W39: 0 | X39: 1 | Y39: 0 | Z39: 0 | AA39: 0 | AB39: 0 | AC39: 0 | AD39: 0 | AE39: 0 | AF39: 0 | AG39: 0 | AH39: 0 | AI39: 1 | AJ39: 0 | AK39: 0 | AL39: 0 | AM39: 0 | AN39: 0 | AO39: 14 | AP39: 0 | AQ39: 0 | AR39: 5 | AS39: 0
A40: PSICÓLOGO/A | B40: 0 | C40: 0 | D40: 0 | E40: 0 | F40: 0 | G40: 0 | H40: 0 | I40: 0 | J40: 0 | K40: 0 | L40: 0 | M40: 0 | N40: 0 | O40: 0 | P40: 0 | Q40: 0 | R40: 0 | S40: 0 | T40: 0 | U40: 0 | V40: 0 | W40: 0 | X40: 0 | Y40: 0 | Z40: 0 | AA40: 0 | AB40: 0 | AC40: 0 | AD40: 0 | AE40: 0 | AF40: 0 | AG40: 0 | AH40: 0 | AI40: 0 | AJ40: 0 | AK40: 0 | AL40: 0 | AM40: 0 | AN40: 0 | AO40: 0 | AP40: 0 | AQ40: 0 | AR40: 0 | AS40: 0
A41: FONOAUDIÓLOGO | B41: 7 | C41: 6 | D41: 1 | E41: 0 | F41: 0 | G41: 3 | H41: 0 | I41: 0 | J41: 0 | K41: 0 | L41: 0 | M41: 0 | N41: 0 | O41: 0 | P41: 0 | Q41: 0 | R41: 0 | S41: 0 | T41: 0 | U41: 0 | V41: 0 | W41: 0 | X41: 0 | Y41: 0 | Z41: 0 | AA41: 0 | AB41: 0 | AC41: 0 | AD41: 0 | AE41: 0 | AF41: 0 | AG41: 0 | AH41: 0 | AI41: 2 | AJ41: 0 | AK41: 1 | AL41: 0 | AM41: 0 | AN41: 1 | AO41: 7 | AP41: 1 | AQ41: 0 | AR41: 0 | AS41: 0
A42: TERAPEUTA OCUPACIONAL | B42: 0 | C42: 0 | D42: 0 | E42: 0 | F42: 0 | G42: 0 | H42: 0 | I42: 0 | J42: 0 | K42: 0 | L42: 0 | M42: 0 | N42: 0 | O42: 0 | P42: 0 | Q42: 0 | R42: 0 | S42: 0 | T42: 0 | U42: 0 | V42: 0 | W42: 0 | X42: 0 | Y42: 0 | Z42: 0 | AA42: 0 | AB42: 0 | AC42: 0 | AD42: 0 | AE42: 0 | AF42: 0 | AG42: 0 | AH42: 0 | AI42: 0 | AJ42: 0 | AK42: 0 | AL42: 0 | AM42: 0 | AN42: 0 | AO42: 0 | AP42: 0 | AQ42: 0 | AR42: 0 | AS42: 0
A43: TECNÓLOGO MÉDICO (EXCLUYE UAPO) | B43: 0 | C43: 0 | D43: 0 | E43: 0 | F43: 0 | G43: 0 | H43: 0 | I43: 0 | J43: 0 | K43: 0 | L43: 0 | M43: 0 | N43: 0 | O43: 0 | P43: 0 | Q43: 0 | R43: 0 | S43: 0 | T43: 0 | U43: 0 | V43: 0 | W43: 0 | X43: 0 | Y43: 0 | Z43: 0 | AA43: 0 | AB43: 0 | AC43: 0 | AD43: 0 | AE43: 0 | AF43: 0 | AG43: 0 | AH43: 0 | AI43: 0 | AJ43: 0 | AK43: 0 | AL43: 0 | AM43: 0 | AN43: 0 | AO43: 0 | AP43: 0 | AQ43: 0 | AR43: 0 | AS43: 0
A44: ASISTENTE SOCIAL | B44: 74 | C44: 29 | D44: 45 | E44: 1 | F44: 0 | G44: 2 | H44: 4 | I44: 1 | J44: 2 | K44: 4 | L44: 4 | M44: 2 | N44: 1 | O44: 1 | P44: 5 | Q44: 0 | R44: 9 | S44: 0 | T44: 1 | U44: 1 | V44: 3 | W44: 2 | X44: 1 | Y44: 3 | Z44: 1 | AA44: 3 | AB44: 1 | AC44: 0 | AD44: 3 | AE44: 0 | AF44: 6 | AG44: 1 | AH44: 0 | AI44: 1 | AJ44: 0 | AK44: 1 | AL44: 1 | AM44: 6 | AN44: 3 | AO44: 58 | AP44: 1 | AQ44: 0 | AR44: 0 | AS44: 5
A45: SECCIÓN C: CONSULTAS ANTICONCEPCIÓN DE EMERGENCIA (Incluidas en Sección A y B, respectivamente.)
A46: PROFESIONAL | B46: TOTAL | C46: CON ENTREGA ANTICONCEPCIÓN EMERGENCIA | G46: SIN ENTREGA ANTICONCEPCIÓN EMERGENCIA
C47: 10 a 14 años | D47: 15 a 19 años | E47: 20 a 24 años | F47: 25 y más años | G47: 10 a 14 años | H47: 15 a 19 años | I47: 20 a 24 años | J47: 25 y más años
A48: MÉDICO | B48: =SUM(C48:J48) -> 0 | C48: 0 | D48: 0 | E48: 0 | F48: 0 | G48: 0 | H48: 0 | I48: 0 | J48: 0
A49: MATRONA /ÓN | B49: =SUM(C49:J49) -> 2 | C49: 0 | D49: 0 | E49: 0 | F49: 2 | G49: 0 | H49: 0 | I49: 0 | J49: 0
A50: SECCIÓN D: CONSULTAS EN HORARIO CONTINUADO (Incluidas en las consultas de morbilidad de sección A y B)
A51: TIPO JORNADA | B51: TOTAL | E51: POR DE EDAD (en años) | W51: Beneficiarios
E52: Menor de 1 | F52: 1 a 4 | G52: 5 a 9 | H52: 10 a 14 | I52: 15 a 19 | J52: 20 a 24 | K52: 25 - 29 | L52: 30 - 34 | M52: 35 - 39 | N52: 40 - 44 | O52: 45 - 49 | P52: 50 - 54 | Q52: 55 - 59 | R52: 60 - 64 | S52: 65 - 69 | T52: 70 - 74 | U52: 75 - 79 | V52: 80 y mas
B53: Ambos Sexos | C53: Hombres | D53: Mujeres
A54: HORARIO CONTINUADO | B54: =SUM(B55:B56) -> 105 | C54: =SUM(C55:C56) -> 30 | D54: =SUM(D55:D56) -> 75 | E54: 4 | F54: 14 | G54: 10 | H54: 7 | I54: 3 | J54: 5 | K54: 9 | L54: 6 | M54: 6 | N54: 4 | O54: 4 | P54: 4 | Q54: 14 | R54: 6 | S54: 5 | T54: 3 | U54: 1 | V54: 0 | W54: 101 | CG54: 0 | CH54: 0 | CI54: 0
A55: MÉDICO | B55: =SUM(E55:V55) -> 74 | C55: 30 | D55: 44 | E55: 4 | F55: 14 | G55: 10 | H55: 7 | I55: 2 | J55: 5 | K55: 8 | L55: 5 | M55: 3 | N55: 4 | O55: 2 | P55: 1 | Q55: 1 | R55: 2 | S55: 2 | T55: 3 | U55: 1 | V55: 0 | W55: 70 | CG55: 0 | CH55: 0 | CI55: 0
A56: OTROS PROFESIONALES | B56: =SUM(E56:V56) -> 31 | C56: 0 | D56: 31 | E56: 0 | F56: 0 | G56: 0 | H56: 0 | I56: 1 | J56: 0 | K56: 1 | L56: 1 | M56: 3 | N56: 0 | O56: 2 | P56: 3 | Q56: 13 | R56: 4 | S56: 3 | T56: 0 | U56: 0 | V56: 0 | W56: 31 | CG56: 0 | CH56: 0 | CI56: 0
A57: SÁBADO, DOMINGO o FESTIVO | B57: =SUM(B58:B59) -> 73 | C57: =SUM(C58:C59) -> 25 | D57: 48 | E57: 1 | F57: 5 | G57: 3 | H57: 3 | I57: 4 | J57: 1 | K57: 8 | L57: 3 | M57: 0 | N57: 7 | O57: 5 | P57: 2 | Q57: 8 | R57: 10 | S57: 2 | T57: 0 | U57: 4 | V57: 7 | W57: 70 | CG57: 0 | CH57: 0 | CI57: 0
A58: MÉDICO | B58: =SUM(E58:V58) -> 68 | C58: 24 | D58: 44 | E58: 1 | F58: 5 | G58: 3 | H58: 3 | I58: 4 | J58: 1 | K58: 7 | L58: 3 | M58: 0 | N58: 7 | O58: 5 | P58: 2 | Q58: 7 | R58: 8 | S58: 2 | T58: 0 | U58: 4 | V58: 6 | W58: 65 | CG58: 0 | CH58: 0 | CI58: 0
A59: OTROS PROFESIONALES | B59: =SUM(E59:V59) -> 5 | C59: 1 | D59: 4 | E59: 0 | F59: 0 | G59: 0 | H59: 0 | I59: 0 | J59: 0 | K59: 1 | L59: 0 | M59: 0 | N59: 0 | O59: 0 | P59: 0 | Q59: 1 | R59: 2 | S59: 0 | T59: 0 | U59: 0 | V59: 1 | W59: 5 | CG59: 0 | CH59: 0 | CI59: 0
A60: SECCIÓN E: CONSULTAS DE MORBILIDAD SOLICITADAS Y RECHAZADAS DENTRO DE LAS 48 HORAS DE SOLICITADA LA ATENCIÓN
A61: TIPO JORNADA | B61: MENOR 5 AÑOS | D61: 65 Y MÁS AÑOS | F61: EMBARAZADAS
B62: TOTAL ATENCIÓN SOLICITADA | C62: RECHAZOS | D62: TOTAL ATENCIÓN SOLICITADA | E62: RECHAZOS | F62: TOTAL ATENCIÓN SOLICITADA | G62: RECHAZOS
A63: HORARIO NORMAL | B63: 157 | C63: 0 | D63: 424 | E63: 0 | F63: 7 | G63: 0 | CG63: =IF(B63<C63,1,0) -> 0 | CH63: =IF(D63<E63,1,0) -> 0 | CI63: =IF(F63<G63,1,0) -> 0
A64: HORARIO CONTINUADO (Vespertina, Sábado, Domingo o Festivos) | B64: 27 | C64: 0 | D64: 22 | E64: 0 | F64: 2 | G64: 0 | CG64: =IF(B64<C64,1,0) -> 0 | CH64: =IF(D64<E64,1,0) -> 0 | CI64: =IF(F64<G64,1,0) -> 0
A65: SECCIÓN E1: INGRESO A REGULACIÓN DE FERTILIDAD SOLICITADOS Y RECHAZADOS DENTRO DE LAS 48 HORAS DE SOLICITADA LA ATENCIÓN
A66: TIPO JORNADA | B66: < 19 años | D66: 20 y más
B67: TOTAL ATENCIÓN SOLICITADA | C67: RECHAZOS | D67: TOTAL ATENCIÓN SOLICITADA | E67: RECHAZOS
A68: HORARIO NORMAL
A69: HORARIO CONTINUADO (Vespertina, sábado)
A70: SECCIÓN F: CONSULTA ABREVIADA
A71: PROFESIONAL | B71: TOTAL
A72: MÉDICO | B72: 271
A73: MATRONA | B73: 93
A74: SECCIÓN G: ATENCIONES DE MEDICINA INDÍGENA ASOCIADA AL PROGRAMA ESPECIAL DE SALUD Y PUEBLOS ORIGINARIOS
A75: COMPONENTE | B75: TOTAL | C75: PUEBLOS ORIGINARIOS | D75: PUEBLOS NO ORIGINARIOS
A77: ATENCIONES POR AGENTE MEDICINA INDÍGENA | B77: =SUM(C77:D77) -> 44 | C77: 12 | D77: 32
A78: SECCIÓN H: INTERVENCIÓN INDIVIDUAL DEL USUARIO EN PROGRAMA ELIGE VIDA SANA
A79: PROFESIONAL | B79: PRESTACIÓN | C79: TOTAL | F79: POR DE EDAD (en años) | AJ79: Gestantes | AK79: Post Parto
F80: Menor de 2 años | H80: 2 a 4 | J80: 5 a 9 | L80: 10 a 14 | N80: 15 a 18 | P80: 19 | R80: 20 a 24 | T80: 25 - 29 | V80: 30 - 34 | X80: 35 - 39 | Z80: 40 - 44 | AB80: 45 - 49 | AD80: 50 - 54 | AF80: 55 - 59 | AH80: 60 - 64
C81: Ambos Sexos | D81: Hombres | E81: Mujeres | F81: Hombres | G81: Mujeres | H81: Hombres | I81: Mujeres | J81: Hombres | K81: Mujeres | L81: Hombres | M81: Mujeres | N81: Hombres | O81: Mujeres | P81: Hombres | Q81: Mujeres | R81: Hombres | S81: Mujeres | T81: Hombres | U81: Mujeres | V81: Hombres | W81: Mujeres | X81: Hombres | Y81: Mujeres | Z81: Hombres | AA81: Mujeres | AB81: Hombres | AC81: Mujeres | AD81: Hombres | AE81: Mujeres | AF81: Hombres | AG81: Mujeres | AH81: Hombres | AI81: Mujeres
A82: PROFESIONAL DE LA ACTIVIDAD FÍSICA | B82: EVALUACIÓN | C82: =SUM(D82:E82) -> 20 | D82: =SUM(F82,H82,J82,L82,N82,P82,R82,T82,V82,X82,Z82,AB82,AD82,AF82,AH82) -> 6 | E82: =SUM(G82,I82,K82,M82,O82,Q82,S82,U82,W82,Y82,AA82,AC82,AE82,AG82,AI82) -> 14 | F82: 0 | G82: 0 | H82: 3 | I82: 5 | J82: 0 | K82: 1 | L82: 3 | M82: 3 | N82: 0 | O82: 1 | P82: 0 | Q82: 0 | R82: 0 | S82: 1 | T82: 0 | U82: 0 | V82: 0 | W82: 2 | X82: 0 | Y82: 1 | Z82: 0 | AA82: 0 | AB82: 0 | AC82: 0 | AD82: 0 | AE82: 0 | AF82: 0 | AG82: 0 | AH82: 0 | AI82: 0 | AJ82: 0 | AK82: 0 | CG82: 0 | CH82: 0
A83: NUTRICIONISTA | B83: CONSULTA NUTRICIONAL | C83: =SUM(D83:E83) -> 0 | D83: =SUM(F83,H83,J83,L83,N83,P83,R83,T83,V83,X83,Z83,AB83,AD83,AF83,AH83) -> 0 | E83: 0 | F83: 0 | G83: 0 | H83: 0 | I83: 0 | J83: 0 | K83: 0 | L83: 0 | M83: 0 | N83: 0 | O83: 0 | P83: 0 | Q83: 0 | R83: 0 | S83: 0 | T83: 0 | U83: 0 | V83: 0 | W83: 0 | X83: 0 | Y83: 0 | Z83: 0 | AA83: 0 | AB83: 0 | AC83: 0 | AD83: 0 | AE83: 0 | AF83: 0 | AG83: 0 | AH83: 0 | AI83: 0 | AJ83: 0 | AK83: 0 | CG83: 0 | CH83: 0
B84: CONSULTA NUTRICIONAL DE SEGUIMIENTO | C84: =SUM(D84:E84) -> 34 | D84: 13 | E84: 21 | F84: 1 | G84: 0 | H84: 6 | I84: 5 | J84: 2 | K84: 2 | L84: 4 | M84: 2 | N84: 0 | O84: 2 | P84: 0 | Q84: 0 | R84: 0 | S84: 1 | T84: 0 | U84: 0 | V84: 0 | W84: 2 | X84: 0 | Y84: 0 | Z84: 0 | AA84: 2 | AB84: 0 | AC84: 1 | AD84: 0 | AE84: 2 | AF84: 0 | AG84: 1 | AH84: 0 | AI84: 1 | AJ84: 0 | AK84: 0
A85: PSICÓLOGO/A | B85: CONSULTA | C85: =SUM(D85:E85) -> 23 | D85: 10 | E85: 13 | F85: 1 | G85: 0 | H85: 5 | I85: 2 | J85: 1 | K85: 2 | L85: 3 | M85: 2 | N85: 0 | O85: 2 | P85: 0 | Q85: 0 | R85: 0 | S85: 1 | T85: 0 | U85: 0 | V85: 0 | W85: 1 | X85: 0 | Y85: 0 | Z85: 0 | AA85: 0 | AB85: 0 | AC85: 1 | AD85: 0 | AE85: 2 | AF85: 0 | AG85: 0 | AH85: 0 | AI85: 0 | AJ85: 0 | AK85: 0
A86: SECCIÓN I: SERVICIOS FARMACÉUTICOS
A87: COMPONENTE | B87: TOTAL | C87: ATENCIÓN ABIERTA | D87: ATENCIÓN CERRADA | E87: SERVICIOS FARMACÉUTICOS REALIZADOS EN ESTABLECIMIENTOS DE SALUD | F87: SERVICIOS FARMACÉUTICOS REALIZADOS EN DOMICILIO
A89: ATENCIÓN FARMACÉUTICA
A90: REVISIÓN DE LA MEDICACIÓN SIN ENTREVISTA | B90: =SUM(C90:D90) -> 0 | C90: 0 | D90: 0 | E90: 0 | F90: 0
A91: REVISIÓN DE LA MEDICACIÓN CON ENTREVISTA | B91: =SUM(C91:D91) -> 0 | C91: 0 | D91: 0 | E91: 0 | F91: 0
A92: CONCILIACIÓN FARMACÉUTICA | B92: =SUM(C92:D92) -> 0 | C92: 0 | D92: 0 | E92: 0 | F92: 0
A93: EDUCACIÓN FARMACÉUTICA | B93: =SUM(C93:D93) -> 5 | C93: 5 | D93: 0 | E93: 5 | F93: 0
A94: SEGUIMIENTO FARMACOTERAPÉUTICO | B94: =SUM(C94:D94) -> 15 | C94: 15 | D94: 0 | E94: 15 | F94: 0
A95: FARMACOVIGILANCIA
A96: REPORTE REACCIÓN ADVERSA A MEDICAMENTOS | B96: =SUM(C96:D96) -> 0
A97: REPORTE FALLA DE CALIDAD | B97: =SUM(C97:D97) -> 0
A98: REPORTE DE EVENTOS ADVERSOS ASOCIADOS A MEDICAMENTOS | B98: =SUM(C98:D98) -> 0
A99: SECCIÓN J: DESPACHO DE RECETAS DE PACIENTES AMBULATORIOS
A100: TIPO DE RECETA | B100: RECETAS DESPACHADAS | F100: PRESCRIPCIONES | J100: RECETAS DESPACHADAS CON OPORTUNIDAD (Entregado el mismo día) | K100: RECETAS DESPACHADAS A PACIENTES DEL PROGRAMA DE SALUD CARDIOVASCULAR | M100: PRESCRIPCIONES A PACIENTES DEL PROGRAMA DE SALUD CARDIOVASCULAR
B102: DESPACHO TOTAL | C102: DESPACHO PARCIAL | D102: EN CENTRO DE SALUD | E102: EN DOMICILIO | F102: EMITIDAS | G102: RECHAZADAS | H102: EN CENTRO DE SALUD | I102: EN DOMICILIO | K102: DESPACHO TOTAL | L102: DESPACHO PARCIAL | M102: EMITIDAS | N102: RECHA- ZADAS
A103: CRÓNICA | B103: 4602 | C103: 11 | D103: 4045 | E103: 568 | F103: 8500 | G103: 6 | H103: 7311 | I103: 1183 | J103: 4602 | K103: 1170 | L103: 0 | M103: 2223 | N103: 0 | O103: =CA103&CB103&CC103&CD103 ->  | CA103: =IF(CG103=1,"* Las recetas totales despachadas a pacientes del PSC, deben ser menores o iguales al total de Recetas con Despacho Total. ","") ->  | CB103: =IF(CH103=1,"* Las recetas parciales despachadas a pacientes del PSC, deben ser menores o iguales al total de Recetas con Despacho Parcial. ","") ->  | CC103: =IF(CI103=1,"* Las prescripciones emitidas a pacientes del PSC, deben ser menores o iguales a las Prescripciones totales emitidas. ","") ->  | CD103: =IF(CJ103=1,"* Las prescripciones rechazadas a pacientes del PSC, deben ser menores o iguales a las Prescripciones totales rechazadas. ","") ->  | CG103: =IF(B103<K103,1,0) -> 0 | CH103: =IF(C103<L103,1,0) -> 0 | CI103: =IF(F103<M103,1,0) -> 0 | CJ103: =IF(G103<N103,1,0) -> 0
A104: MORBILIDAD | B104: 870 | C104: 15 | D104: 885 | E104: 0 | F104: 1980 | G104: 0 | H104: 1980 | I104: 0 | J104: 870 | CA104: =IF(CG104=1,"* Las recetas totales despachadas a pacientes del PSC, deben ser menores o iguales al total de Recetas con Despacho Total. ","") ->  | CB104: =IF(CH104=1,"* Las recetas parciales despachadas a pacientes del PSC, deben ser menores o iguales al total de Recetas con Despacho Parcial. ","") ->  | CC104: =IF(CI104=1,"* Las prescripciones emitidas a pacientes del PSC, deben ser menores o iguales a las Prescripciones totales emitidas. ","") ->  | CD104: =IF(CJ104=1,"* Las prescripciones rechazadas a pacientes del PSC, deben ser menores o iguales a las Prescripciones totales rechazadas. ","") ->  | CG104: =IF(B104<K104,1,0) -> 0 | CH104: =IF(C104<L104,1,0) -> 0 | CI104: =IF(F104<M104,1,0) -> 0 | CJ104: =IF(G104<N104,1,0) -> 0
A105: BAJO CONTROL LEGAL | B105: 58 | C105: 0 | D105: 56 | E105: 2 | F105: 67 | G105: 0 | H105: 65 | I105: 2 | J105: 58 | CA105: =IF(CG105=1,"* Las recetas totales despachadas a pacientes del PSC, deben ser menores o iguales al total de Recetas con Despacho Total. ","") ->  | CB105: =IF(CH105=1,"* Las recetas parciales despachadas a pacientes del PSC, deben ser menores o iguales al total de Recetas con Despacho Parcial. ","") ->  | CC105: =IF(CI105=1,"* Las prescripciones emitidas a pacientes del PSC, deben ser menores o iguales a las Prescripciones totales emitidas. ","") ->  | CD105: =IF(CJ105=1,"* Las prescripciones rechazadas a pacientes del PSC, deben ser menores o iguales a las Prescripciones totales rechazadas. ","") ->  | CG105: 0 | CH105: 0 | CI105: 0 | CJ105: 0
A106: TOTAL | B106: =SUM(B103:B105) -> 5530 | C106: =SUM(C103:C105) -> 26 | D106: =SUM(D103:D105) -> 4986 | E106: 570 | F106: =SUM(F103:F105) -> 10547 | G106: =SUM(G103:G105) -> 6 | H106: =SUM(H103:H105) -> 9356 | I106: 1185 | J106: =SUM(J103:J105) -> 5530 | K106: =+K103 -> 1170 | L106: =+L103 -> 0 | M106: =+M103 -> 2223 | N106: =+N103 -> 0
A107: SECCIÓN K: RONDAS POR TIPO Y PROFESIONAL
A108: TIPO DE RONDA | B108: Nº Rondas | C108: TOTAL DE PROFESIONALES QUE PARTICIPARON EN RONDAS, SEGÚN TIPO DE PROFESIONAL | M108: Compra de Servicio - Nº Traslados profesionales en Ronda
C109: Médico | D109: Dentista | E109: Enfermera | F109: Matrona | G109: Nutricionista | H109: Tecnico Paramedico | I109: Asistente Social | J109: Psicólogo | K109: Químico Farmacéutico | L109: Otros
A110: TERRESTRE
A111: AÉREA
A112: MARÍTIMA
A113: SECCIÓN L: CLASIFICACIÓN DE CONSULTA NUTRICIONAL POR GRUPO DE EDAD (Incluidas en sección B)
A114: CLASIFICACIÓN | B114: TOTAL | E114: POR DE EDAD (en años) | AO114: Beneficiarios | AP114: Embarazadas
E115: Menor de 1 | G115: 1 a 4 | I115: 5 a 9 | K115: 10 a 14 | M115: 15 a 19 | O115: 20 a 24 | Q115: 25 - 29 | S115: 30 - 34 | U115: 35 - 39 | W115: 40 - 44 | Y115: 45 - 49 | AA115: 50 - 54 | AC115: 55 - 59 | AE115: 60 - 64 | AG115: 65 - 69 | AI115: 70 - 74 | AK115: 75 - 79 | AM115: 80 y mas
B116: Ambos Sexos | C116: Hombres | D116: Mujeres | E116: Hombres | F116: Mujeres | G116: Hombres | H116: Mujeres | I116: Hombres | J116: Mujeres | K116: Hombres | L116: Mujeres | M116: Hombres | N116: Mujeres | O116: Hombres | P116: Mujeres | Q116: Hombres | R116: Mujeres | S116: Hombres | T116: Mujeres | U116: Hombres | V116: Mujeres | W116: Hombres | X116: Mujeres | Y116: Hombres | Z116: Mujeres | AA116: Hombres | AB116: Mujeres | AC116: Hombres | AD116: Mujeres | AE116: Hombres | AF116: Mujeres | AG116: Hombres | AH116: Mujeres | AI116: Hombres | AJ116: Mujeres | AK116: Hombres | AL116: Mujeres | AM116: Hombres | AN116: Mujeres
A117: MAL NUTRICIÓN POR DÉFICIT | B117: =SUM(C117:D117) -> 0 | C117: =SUM(E117+G117+I117+K117+M117+O117+Q117+S117+U117+W117+Y117+AA117+AC117+AE117+AG117+AI117+AK117+AM117) -> 0 | D117: =SUM(F117+H117+J117+L117+N117+P117+R117+T117+V117+X117+Z117+AB117+AD117+AF117+AH117+AJ117+AL117+AN117) -> 0 | E117: 0 | F117: 0 | G117: 0 | H117: 0 | I117: 0 | J117: 0 | K117: 0 | L117: 0 | M117: 0 | N117: 0 | O117: 0 | P117: 0 | Q117: 0 | R117: 0 | S117: 0 | T117: 0 | U117: 0 | V117: 0 | W117: 0 | X117: 0 | Y117: 0 | Z117: 0 | AA117: 0 | AB117: 0 | AC117: 0 | AD117: 0 | AE117: 0 | AF117: 0 | AG117: 0 | AH117: 0 | AI117: 0 | AJ117: 0 | AK117: 0 | AL117: 0 | AM117: 0 | AN117: 0 | AO117: 0 | AP117: 0 | CG117: 0 | CH117: 0 | CI117: 0
A118: MAL NUTRICIÓN POR EXCESO | B118: =SUM(C118:D118) -> 0 | C118: =SUM(E118+G118+I118+K118+M118+O118+Q118+S118+U118+W118+Y118+AA118+AC118+AE118+AG118+AI118+AK118+AM118) -> 0 | D118: 0 | E118: 0 | F118: 0 | G118: 0 | H118: 0 | I118: 0 | J118: 0 | K118: 0 | L118: 0 | M118: 0 | N118: 0 | O118: 0 | P118: 0 | Q118: 0 | R118: 0 | S118: 0 | T118: 0 | U118: 0 | V118: 0 | W118: 0 | X118: 0 | Y118: 0 | Z118: 0 | AA118: 0 | AB118: 0 | AC118: 0 | AD118: 0 | AE118: 0 | AF118: 0 | AG118: 0 | AH118: 0 | AI118: 0 | AJ118: 0 | AK118: 0 | AL118: 0 | AM118: 0 | AN118: 0 | AO118: 0 | AP118: 0 | CG118: 0 | CH118: 0 | CI118: 0
A119: ESTADO NUTRICIONAL NORMAL | B119: =SUM(C119:D119) -> 15 | C119: 4 | D119: 11 | E119: 0 | F119: 1 | G119: 3 | H119: 1 | I119: 0 | J119: 1 | K119: 0 | L119: 0 | M119: 0 | N119: 0 | O119: 0 | P119: 0 | Q119: 0 | R119: 0 | S119: 0 | T119: 0 | U119: 0 | V119: 0 | W119: 0 | X119: 0 | Y119: 0 | Z119: 4 | AA119: 0 | AB119: 2 | AC119: 0 | AD119: 0 | AE119: 0 | AF119: 0 | AG119: 0 | AH119: 1 | AI119: 1 | AJ119: 0 | AK119: 0 | AL119: 0 | AM119: 0 | AN119: 1 | AO119: 15 | AP119: 1 | CG119: 0 | CH119: 0 | CI119: 0
A120: SECCIÓN M: CONSULTA DE LACTANCIA MATERNA EN MENORES CONTROLADOS
A121: TIPOS DE CONSULTA | C121: TOTAL | F121: POR EDAD | P121: Pueblos Originarios | Q121: Migrantes
F122: De 0 a 29 días | H122: De 1 mes a 2 meses 29 días | J122: De 3 meses a 5 meses 29 días | L122: De 6 meses a 11 meses 29 días | N122: De 1 a 2 años
C123: Ambos Sexos | D123: Hombres | E123: Mujeres | F123: Hombres | G123: Mujeres | H123: Hombres | I123: Mujeres | J123: Hombres | K123: Mujeres | L123: Hombres | M123: Mujeres | N123: Hombres | O123: Mujeres
A124: CONSULTA DE LACTANCIA | B124: CONSULTA DE ALERTA | C124: =SUM(D124:E124) -> 2 | D124: =SUM(F124+H124+J124+L124+N124) -> 0 | E124: =SUM(G124+I124+K124+M124+O124) -> 2 | F124: 0 | G124: 2 | H124: 0 | I124: 0 | J124: 0 | K124: 0 | L124: 0 | M124: 0 | N124: 0 | O124: 0 | P124: 1 | Q124: 0 | CG124: 0 | CH124: 0 | CI124: 0 | CJ124: 0
B125: CONTROL DE SEGUIMIENTO | C125: =SUM(D125:E125) -> 5 | D125: =SUM(F125+H125+J125+L125+N125) -> 1 | E125: 4 | F125: 1 | G125: 4 | H125: 0 | I125: 0 | J125: 0 | K125: 0 | L125: 0 | M125: 0 | N125: 0 | O125: 0 | P125: 0 | Q125: 0
B126: CONSEJERÍA EN LACTANCIA MATERNA | C126: 0 | D126: =SUM(F126+H126+J126+L126+N126) -> 0 | E126: 0 | F126: 0 | G126: 0 | H126: 0 | I126: 0 | J126: 0 | K126: 0 | L126: 0 | M126: 0 | N126: 0 | O126: 0 | P126: 0 | Q126: 0
A127: CONSULTA DE LACTANCIA POR PROFESIONAL | B127: MÉDICO | C127: 0 | D127: 0 | E127: 0 | F127: 0 | G127: 0 | H127: 0 | I127: 0 | J127: 0 | K127: 0 | L127: 0 | M127: 0 | N127: 0 | O127: 0 | P127: 0 | Q127: 0
B128: MATRÓN/A | C128: 0 | D128: 0 | E128: 0 | F128: 0 | G128: 0 | H128: 0 | I128: 0 | J128: 0 | K128: 0 | L128: 0 | M128: 0 | N128: 0 | O128: 0 | P128: 0 | Q128: 0
B129: ENFERMERA | C129: 0 | D129: 0 | E129: 0 | F129: 0 | G129: 0 | H129: 0 | I129: 0 | J129: 0 | K129: 0 | L129: 0 | M129: 0 | N129: 0 | O129: 0 | P129: 0 | Q129: 0
B130: NUTRICIONISTA | C130: 7 | D130: 1 | E130: 6 | F130: 1 | G130: 6 | H130: 0 | I130: 0 | J130: 0 | K130: 0 | L130: 0 | M130: 0 | N130: 0 | O130: 0 | P130: 1 | Q130: 0
A131: SECCION N: ATENCIONES AMBULATORIAS POR EL PROGRAMA TUBERCULOSIS
A132: PROFESIONAL | B132: TIPOS DE ATENCION | C132: Ambos Sexos | D132: Hombres | E132: Mujeres | F132: GRUPO DE EDAD (En años) | AN132: Pueblos Originarios | AO132: Migrantes
F133: 0 a 4 | H133: 5 - 9 | J133: 10 - 14 | L133: 15 - 19 | N133: 20 - 24 | P133: 25 a 29 | R133: 30 a 34 | T133: 35 a 39 | V133: 40 a 44 | X133: 45 a 49 | Z133: 50 a 54 | AB133: 55 a 59 | AD133: 60 a 64 | AF133: 65 a 69 | AH133: 70 a 74 | AJ133: 75 a 79 | AL133: 80 y más
F134: Hombres | G134: Mujeres | H134: Hombres | I134: Mujeres | J134: Hombres | K134: Mujeres | L134: Hombres | M134: Mujeres | N134: Hombres | O134: Mujeres | P134: Hombres | Q134: Mujeres | R134: Hombres | S134: Mujeres | T134: Hombres | U134: Mujeres | V134: Hombres | W134: Mujeres | X134: Hombres | Y134: Mujeres | Z134: Hombres | AA134: Mujeres | AB134: Hombres | AC134: Mujeres | AD134: Hombres | AE134: Mujeres | AF134: Hombres | AG134: Mujeres | AH134: Hombres | AI134: Mujeres | AJ134: Hombres | AK134: Mujeres | AL134: Hombres | AM134: Mujeres
A135: MÉDICO | B135: Ingreso tratamiento | C135: =SUM(D135:E135) -> 0 | D135: =+F135+H135+J135+L135+N135+P135+R135+T135+V135+X135+Z135+AB135+AD135+AF135+AH135+AJ135+AL135 -> 0 | E135: =+G135+I135+K135+M135+O135+Q135+S135+U135+W135+Y135+AA135+AC135+AE135+AG135+AI135+AK135+AM135 -> 0 | F135: 0 | G135: 0 | H135: 0 | I135: 0 | J135: 0 | K135: 0 | L135: 0 | M135: 0 | N135: 0 | O135: 0 | P135: 0 | Q135: 0 | R135: 0 | S135: 0 | T135: 0 | U135: 0 | V135: 0 | W135: 0 | X135: 0 | Y135: 0 | Z135: 0 | AA135: 0 | AB135: 0 | AC135: 0 | AD135: 0 | AE135: 0 | AF135: 0 | AG135: 0 | AH135: 0 | AI135: 0 | AJ135: 0 | AK135: 0 | AL135: 0 | AM135: 0 | AN135: 0 | AO135: 0 | CG135: 0 | CH135: 0 | CI135: 0 | CJ135: 0
B136: Ingreso quimioprófilaxis | C136: =SUM(D136:E136) -> 0 | D136: =+F136+H136+J136+L136+N136+P136+R136+T136+V136+X136+Z136+AB136+AD136+AF136+AH136+AJ136+AL136 -> 0 | E136: =+G136+I136+K136+M136+O136+Q136+S136+U136+W136+Y136+AA136+AC136+AE136+AG136+AI136+AK136+AM136 -> 0 | F136: 0 | G136: 0 | H136: 0 | I136: 0 | J136: 0 | K136: 0 | L136: 0 | M136: 0 | N136: 0 | O136: 0 | P136: 0 | Q136: 0 | R136: 0 | S136: 0 | T136: 0 | U136: 0 | V136: 0 | W136: 0 | X136: 0 | Y136: 0 | Z136: 0 | AA136: 0 | AB136: 0 | AC136: 0 | AD136: 0 | AE136: 0 | AF136: 0 | AG136: 0 | AH136: 0 | AI136: 0 | AJ136: 0 | AK136: 0 | AL136: 0 | AM136: 0 | AN136: 0 | AO136: 0
B137: Control mensual | C137: =SUM(D137:E137) -> 1 | D137: 0 | E137: 1 | F137: 0 | G137: 0 | H137: 0 | I137: 0 | J137: 0 | K137: 0 | L137: 0 | M137: 0 | N137: 0 | O137: 0 | P137: 0 | Q137: 0 | R137: 0 | S137: 0 | T137: 0 | U137: 0 | V137: 0 | W137: 0 | X137: 0 | Y137: 0 | Z137: 0 | AA137: 1 | AB137: 0 | AC137: 0 | AD137: 0 | AE137: 0 | AF137: 0 | AG137: 0 | AH137: 0 | AI137: 0 | AJ137: 0 | AK137: 0 | AL137: 0 | AM137: 0 | AN137: 0 | AO137: 0
B138: Control de seguimiento | C138: 0 | D138: 0 | E138: 0 | F138: 0 | G138: 0 | H138: 0 | I138: 0 | J138: 0 | K138: 0 | L138: 0 | M138: 0 | N138: 0 | O138: 0 | P138: 0 | Q138: 0 | R138: 0 | S138: 0 | T138: 0 | U138: 0 | V138: 0 | W138: 0 | X138: 0 | Y138: 0 | Z138: 0 | AA138: 0 | AB138: 0 | AC138: 0 | AD138: 0 | AE138: 0 | AF138: 0 | AG138: 0 | AH138: 0 | AI138: 0 | AJ138: 0 | AK138: 0 | AL138: 0 | AM138: 0 | AN138: 0 | AO138: 0
B139: Consultas espontáneas | C139: 0 | D139: 0 | E139: 0 | F139: 0 | G139: 0 | H139: 0 | I139: 0 | J139: 0 | K139: 0 | L139: 0 | M139: 0 | N139: 0 | O139: 0 | P139: 0 | Q139: 0 | R139: 0 | S139: 0 | T139: 0 | U139: 0 | V139: 0 | W139: 0 | X139: 0 | Y139: 0 | Z139: 0 | AA139: 0 | AB139: 0 | AC139: 0 | AD139: 0 | AE139: 0 | AF139: 0 | AG139: 0 | AH139: 0 | AI139: 0 | AJ139: 0 | AK139: 0 | AL139: 0 | AM139: 0 | AN139: 0 | AO139: 0
B140: Rescate | C140: 0 | D140: 0 | E140: 0 | F140: 0 | G140: 0 | H140: 0 | I140: 0 | J140: 0 | K140: 0 | L140: 0 | M140: 0 | N140: 0 | O140: 0 | P140: 0 | Q140: 0 | R140: 0 | S140: 0 | T140: 0 | U140: 0 | V140: 0 | W140: 0 | X140: 0 | Y140: 0 | Z140: 0 | AA140: 0 | AB140: 0 | AC140: 0 | AD140: 0 | AE140: 0 | AF140: 0 | AG140: 0 | AH140: 0 | AI140: 0 | AJ140: 0 | AK140: 0 | AL140: 0 | AM140: 0 | AN140: 0 | AO140: 0
B141: Control de los contactos | C141: 0 | D141: 0 | E141: 0 | F141: 0 | G141: 0 | H141: 0 | I141: 0 | J141: 0 | K141: 0 | L141: 0 | M141: 0 | N141: 0 | O141: 0 | P141: 0 | Q141: 0 | R141: 0 | S141: 0 | T141: 0 | U141: 0 | V141: 0 | W141: 0 | X141: 0 | Y141: 0 | Z141: 0 | AA141: 0 | AB141: 0 | AC141: 0 | AD141: 0 | AE141: 0 | AF141: 0 | AG141: 0 | AH141: 0 | AI141: 0 | AJ141: 0 | AK141: 0 | AL141: 0 | AM141: 0 | AN141: 0 | AO141: 0
B142: Atención domiciliaria | C142: 0 | D142: 0 | E142: 0 | F142: 0 | G142: 0 | H142: 0 | I142: 0 | J142: 0 | K142: 0 | L142: 0 | M142: 0 | N142: 0 | O142: 0 | P142: 0 | Q142: 0 | R142: 0 | S142: 0 | T142: 0 | U142: 0 | V142: 0 | W142: 0 | X142: 0 | Y142: 0 | Z142: 0 | AA142: 0 | AB142: 0 | AC142: 0 | AD142: 0 | AE142: 0 | AF142: 0 | AG142: 0 | AH142: 0 | AI142: 0 | AJ142: 0 | AK142: 0 | AL142: 0 | AM142: 0 | AN142: 0 | AO142: 0
A143: ENFERMERA | B143: Ingreso de tratamiento | C143: 0 | D143: =+F143+H143+J143+L143+N143+P143+R143+T143+V143+X143+Z143+AB143+AD143+AF143+AH143+AJ143+AL143 -> 0 | E143: 0 | F143: 0 | G143: 0 | H143: 0 | I143: 0 | J143: 0 | K143: 0 | L143: 0 | M143: 0 | N143: 0 | O143: 0 | P143: 0 | Q143: 0 | R143: 0 | S143: 0 | T143: 0 | U143: 0 | V143: 0 | W143: 0 | X143: 0 | Y143: 0 | Z143: 0 | AA143: 0 | AB143: 0 | AC143: 0 | AD143: 0 | AE143: 0 | AF143: 0 | AG143: 0 | AH143: 0 | AI143: 0 | AJ143: 0 | AK143: 0 | AL143: 0 | AM143: 0 | AN143: 0 | AO143: 0
B144: Control mensual | C144: 0 | D144: 0 | E144: =+G144+I144+K144+M144+O144+Q144+S144+U144+W144+Y144+AA144+AC144+AE144+AG144+AI144+AK144+AM144 -> 0 | F144: 0 | G144: 0 | H144: 0 | I144: 0 | J144: 0 | K144: 0 | L144: 0 | M144: 0 | N144: 0 | O144: 0 | P144: 0 | Q144: 0 | R144: 0 | S144: 0 | T144: 0 | U144: 0 | V144: 0 | W144: 0 | X144: 0 | Y144: 0 | Z144: 0 | AA144: 0 | AB144: 0 | AC144: 0 | AD144: 0 | AE144: 0 | AF144: 0 | AG144: 0 | AH144: 0 | AI144: 0 | AJ144: 0 | AK144: 0 | AL144: 0 | AM144: 0 | AN144: 0 | AO144: 0
B145: Control de seguimiento | C145: =SUM(D145:E145) -> 0 | D145: 0 | E145: 0 | F145: 0 | G145: 0 | H145: 0 | I145: 0 | J145: 0 | K145: 0 | L145: 0 | M145: 0 | N145: 0 | O145: 0 | P145: 0 | Q145: 0 | R145: 0 | S145: 0 | T145: 0 | U145: 0 | V145: 0 | W145: 0 | X145: 0 | Y145: 0 | Z145: 0 | AA145: 0 | AB145: 0 | AC145: 0 | AD145: 0 | AE145: 0 | AF145: 0 | AG145: 0 | AH145: 0 | AI145: 0 | AJ145: 0 | AK145: 0 | AL145: 0 | AM145: 0 | AN145: 0 | AO145: 0
B146: Consultas espontáneas | C146: 0 | D146: =+F146+H146+J146+L146+N146+P146+R146+T146+V146+X146+Z146+AB146+AD146+AF146+AH146+AJ146+AL146 -> 0 | E146: 0 | F146: 0 | G146: 0 | H146: 0 | I146: 0 | J146: 0 | K146: 0 | L146: 0 | M146: 0 | N146: 0 | O146: 0 | P146: 0 | Q146: 0 | R146: 0 | S146: 0 | T146: 0 | U146: 0 | V146: 0 | W146: 0 | X146: 0 | Y146: 0 | Z146: 0 | AA146: 0 | AB146: 0 | AC146: 0 | AD146: 0 | AE146: 0 | AF146: 0 | AG146: 0 | AH146: 0 | AI146: 0 | AJ146: 0 | AK146: 0 | AL146: 0 | AM146: 0 | AN146: 0 | AO146: 0
B147: Rescate | C147: 0 | D147: 0 | E147: 0 | F147: 0 | G147: 0 | H147: 0 | I147: 0 | J147: 0 | K147: 0 | L147: 0 | M147: 0 | N147: 0 | O147: 0 | P147: 0 | Q147: 0 | R147: 0 | S147: 0 | T147: 0 | U147: 0 | V147: 0 | W147: 0 | X147: 0 | Y147: 0 | Z147: 0 | AA147: 0 | AB147: 0 | AC147: 0 | AD147: 0 | AE147: 0 | AF147: 0 | AG147: 0 | AH147: 0 | AI147: 0 | AJ147: 0 | AK147: 0 | AL147: 0 | AM147: 0 | AN147: 0 | AO147: 0
B148: Atención domiciliaria | C148: 0 | D148: 0 | E148: 0 | F148: 0 | G148: 0 | H148: 0 | I148: 0 | J148: 0 | K148: 0 | L148: 0 | M148: 0 | N148: 0 | O148: 0 | P148: 0 | Q148: 0 | R148: 0 | S148: 0 | T148: 0 | U148: 0 | V148: 0 | W148: 0 | X148: 0 | Y148: 0 | Z148: 0 | AA148: 0 | AB148: 0 | AC148: 0 | AD148: 0 | AE148: 0 | AF148: 0 | AG148: 0 | AH148: 0 | AI148: 0 | AJ148: 0 | AK148: 0 | AL148: 0 | AM148: 0 | AN148: 0 | AO148: 0
A149: SECCION O: EXÁMENES BACTERIOLOGICOS PROCESADOS
A150: TIPO DE MUESTRA | B150: TOTAL | C150: GRUPO DE EDAD (En años) | T150: Pueblos Originarios | U150: Migrantes
C151: 0 a 4 años | D151: 5 a 9 años | E151: 10-14 años | F151: 15 a 19 años | G151: 20-24 años | H151: 25 a 29 años | I151: 30-34 años | J151: 35 a 39 años | K151: 40-44 años | L151: 45 a 49 años | M151: 50-54 años | N151: 55 a 59 años | O151: 60 a 64 años | P151: 65 a 69 años | Q151: 70 a 74 años | R151: 75 a 79 años | S151: 80 y más
A152: Muestras procesadas para diagnóstico de tuberculosis pulmonar mediante bacteriología. | B152: =SUM(C152:S152) -> 0 | CG152: 0 | CH152: 0 | CI152: 0 | CJ152: 0
A206: =SUM(B12:D12,B31:B44,B48:B49,B54,B57,C82:E82,B96:B98,B106:F106,B110:B112,B117:B119,C124:C130,C83:C85,B77,B72:B73,B63:G64) -> 25736 | B206: =SUM(CG13:CJ134) -> 0

Sheet A05
A1: SERVICIO DE SALUD
A2: =CONCATENATE("COMUNA: ",NOMBRE!B2," - ","( ",NOMBRE!C2,NOMBRE!D2,NOMBRE!E2,NOMBRE!F2,NOMBRE!G2," )") -> COMUNA: CALLE LARGA - ( 05302 )
A3: =CONCATENATE("ESTABLECIMIENTO/ESTRATEGIA: ",NOMBRE!B3," - ","( ",NOMBRE!C3,NOMBRE!D3,NOMBRE!E3,NOMBRE!F3,NOMBRE!G3,NOMBRE!H3," )") -> ESTABLECIMIENTO/ESTRATEGIA: DR. JOSE JOAQUIN AGUIRRE CAMPOS - ( 108308 )
A4: =CONCATENATE("MES: ",NOMBRE!B6," - ","( ",NOMBRE!C6,NOMBRE!D6," )") -> MES: DICIEMBRE - ( 12 )
A5: =CONCATENATE("AÑO: ",NOMBRE!B7) -> AÑO: 2022
A6: REM-A05. INGRESOS Y EGRESOS POR CONDICIÓN Y PROBLEMAS DE SALUD
A8: SECCIÓN A: INGRESOS DE GESTANTES A PROGRAMA PRENATAL
A9: CONDICIÓN | C9: TOTAL | D9: POR DE EDAD (en años) | N9: Victima de violencia de genero | O9: Pueblos Originarios | P9: Migrantes | Q9: Ingresos por Traslado
D10: Menor de 15 | E10: 15 - 19 | F10: 20 - 24 | G10: 25 - 29 | H10: 30 - 34 | I10: 35 - 39 | J10: 40 - 44 | K10: 45 - 49 | L10: 50 - 54 | M10: 55 y más
A11: GESTANTES INGRESADAS | C11: =SUM(D11:M11) -> 10 | D11: 0 | E11: 0 | F11: 2 | G11: 5 | H11: 1 | I11: 2 | J11: 0 | K11: 0 | L11: 0 | M11: 0 | N11: 1 | O11: 0 | P11: 0 | Q11: 0 | CA11: =IF(CH11=1,"* El número de víctima de Violencia de Género NO DEBE ser diferente al Total. ","") ->  | CB11: =IF(AND(C11<>0,OR(O11="",P11="")),"* No olvide digitar los campos Pueblo Originario y/o Migrantes (Digite CEROS si no tiene). ","") ->  | CC11: =IF(CJ11=1,"* Pueblo Originario y/o Migrantes NO DEBEN ser Mayor al Total. ","") ->  | CD11: =IF(CK11=1,"* Total Gestantes Ingresadas a control prenatal debe ser Mayor o Igual que el Total de Evaluaciones a Gestantes de REM A03 Sección B2. ","") ->  | CE11: =IF(CL11=1,"* Total de Ingresos por Traslado no puede superar el Total de Ingresos. ","") ->  | CH11: =IF(C11<N11,1,0) -> 0 | CJ11: =IF(OR(C11<O11,C11<P11),1,0) -> 0 | CK11: =IF(C11<'A03'!C79,1,0) -> 0 | CL11: =IF(Q11>C11,1,0) -> 0
A12: PRIMIGESTAS INGRESADAS | C12: =SUM(D12:M12) -> 1 | D12: 0 | E12: 0 | F12: 1 | G12: 0 | H12: 0 | I12: 0 | J12: 0 | K12: 0 | L12: 0 | M12: 0 | N12: 0 | O12: 0 | P12: 0 | Q12: 0 | CA12: =IF(CH12=1,"* El número de víctima de Violencia de Género NO DEBE ser diferente al Total. ","") ->  | CB12: =IF(AND(C12<>0,OR(O12="",P12="")),"* No olvide digitar los campos Pueblo Originario y/o Migrantes (Digite CEROS si no tiene). ","") ->  | CC12: =IF(CJ12=1,"* Pueblo Originario y/o Migrantes NO DEBEN ser Mayor al Total. ","") ->  | CD12: =IF(CK12=1,"* Total Gestantes debe ser Mayor o Igual a "&A12&".","") ->  | CE12: =IF(CL12=1,"* Total de Ingresos por Traslado no puede superar el Total de Ingresos. ","") ->  | CH12: =IF(C12<N12,1,0) -> 0 | CJ12: =IF(OR(C12<O12,C12<P12),1,0) -> 0 | CK12: =IF($C$11<C12,1,0) -> 0 | CL12: =IF(Q12>C12,1,0) -> 0
A13: GESTANTES INGRESADAS ANTES DE LAS 14 SEMANAS | C13: =SUM(D13:M13) -> 9 | D13: 0 | E13: 0 | F13: 1 | G13: 5 | H13: 1 | I13: 2 | J13: 0 | K13: 0 | L13: 0 | M13: 0 | N13: 1 | O13: 0 | P13: 0 | Q13: 0 | CA13: =IF(CH13=1,"* El número de víctima de Violencia de Género NO DEBE ser diferente al Total. ","") ->  | CB13: =IF(AND(C13<>0,OR(O13="",P13="")),"* No olvide digitar los campos Pueblo Originario y/o Migrantes (Digite CEROS si no tiene). ","") ->  | CC13: =IF(CJ13=1,"* Pueblo Originario y/o Migrantes NO DEBEN ser Mayor al Total. ","") ->  | CD13: =IF(CK13=1,"* Total Gestantes debe ser Mayor o Igual a "&A13&".","") ->  | CH13: =IF(C13<N13,1,0) -> 0 | CJ13: =IF(OR(C13<O13,C13<P13),1,0) -> 0 | CK13: =IF($C$11<C13,1,0) -> 0 | CL13: 0
A14: GESTANTES CON EMBARAZO NO PLANIFICADO | C14: =SUM(D14:M14) -> 5 | D14: 0 | E14: 0 | F14: 1 | G14: 4 | H14: 0 | I14: 0 | J14: 0 | K14: 0 | L14: 0 | M14: 0 | N14: 1 | O14: 0 | P14: 0 | Q14: 0 | CA14: =IF(CH14=1,"* El número de víctima de Violencia de Género NO DEBE ser diferente al Total. ","") ->  | CB14: =IF(AND(C14<>0,OR(O14="",P14="")),"* No olvide digitar los campos Pueblo Originario y/o Migrantes (Digite CEROS si no tiene). ","") ->  | CC14: =IF(CJ14=1,"* Pueblo Originario y/o Migrantes NO DEBEN ser Mayor al Total. ","") ->  | CD14: =IF(CK14=1,"* Total Gestantes debe ser Mayor o Igual a "&A14&".","") ->  | CH14: =IF(C14<N14,1,0) -> 0 | CJ14: =IF(OR(C14<O14,C14<P14),1,0) -> 0 | CK14: =IF($C$11<C14,1,0) -> 0 | CL14: 0
A15: SECCIÓN B: INGRESO DE GESTANTES CON PATOLOGÍA DE ALTO RIESGO OBSTÉTRICO A LA UNIDAD DE ARO (Nivel Secundario)
A16: PATOLOGÍA | C16: Nº de Ingreso a ARO | D16: Victima de violencia de género | E16: Pueblos Originarios | F16: Migrantes
A18: Nº DE GESTANTES INGRESADAS | G18: =CA18&CB18&CC18&CD18 ->  | CD18: =IF(AND(SUM(C19:C31)<>0,C18=0),"* No olvide registrar número de gestantes ingresadas. ","") ->  | CG18: 0 | CI18: 0
A19: PREECLAMPSIA (PE) | CG19: 0 | CI19: 0
A20: SÍNDROME HIPERTENSIVO DEL EMBARAZO (SHE) | CG20: 0 | CI20: 0
A21: FACTORES DE RIESGO Y CONDICIONANTES DE PARTO PREMATURO | CG21: 0 | CI21: 0
A22: RETARDO CRECIMIENTO INTRAUTERINO (RCIU) | CG22: 0 | CI22: 0
A23: SÍFILIS | CG23: 0 | CI23: 0
A24: VIH | CG24: 0 | CI24: 0
A25: DIABETES | CG25: 0 | CI25: 0
A26: CESÁREA ANTERIOR | CG26: 0 | CI26: 0
A27: MALFORMACIÓN CONGÉNITA | CG27: 0 | CI27: 0
A28: HIPOTIROIDISMO | CG28: 0 | CI28: 0
A29: DIABETES GESTACIONAL | CG29: 0 | CI29: 0
A30: HIPERTENSIÓN CRONICA | CG30: 0 | CI30: 0
A31: OTRAS PATOLOGÍAS DEL EMBARAZO | CG31: 0 | CI31: 0
A32: SECCIÓN C: INGRESOS A PROGRAMA DE REGULACIÓN DE FERTILIDAD Y SALUD SEXUAL.
A33: MÉTODOS | C33: TOTAL | D33: POR DE EDAD (en años)
D34: Menor de 15 | E34: 15 - 19 | F34: 20 - 24 | G34: 25 - 29 | H34: 30 - 34 | I34: 35 - 39 | J34: 40 - 44 | K34: 45 - 49 | L34: 50 - 54 | M34: 55 -59 | N34: 60 - 64 | O34: 65 - 69 | P34: 70 y más | Q34: Espacios Amigables | R34: Ingreso por cambio de Método Anticonceptivo
A35: TOTAL REGULACIÓN DE FERTILIDAD | C35: =SUM(D35:P35) -> 22 | D35: =SUM(D36:D47,D50:D51,D54) -> 0 | E35: =SUM(E36:E47,E50:E51,E54) -> 7 | F35: 4 | G35: 2 | H35: 2 | I35: 5 | J35: 0 | K35: 2 | L35: 0 | M35: 0 | N35: =SUM(N36:N47,N50:N51,N54) -> 0 | O35: 0 | P35: 0 | Q35: =SUM(Q36:Q47,Q50:Q51,Q54) -> 2 | R35: =SUM(R36:R47,R50:R51,R54) -> 8 | S35: =CA35&CB35&CC35 -> 
A36: D . I . U T con Cobre | C36: =SUM(D36:M36) -> 1 | D36: 0 | E36: 0 | F36: 1 | G36: 0 | H36: 0 | I36: 0 | J36: 0 | K36: 0 | L36: 0 | M36: 0 | Q36: 0 | R36: 0 | S36: =CA36&CB36&CC36 ->  | CA36: =IF(CG36=1,"* No olvide digitar la columna Espacios Amigables (Digite Cero si no tiene). ","") ->  | CB36: =IF(CH36=1,"* No olvide digitar la columna Ingreso por cambio de Método Anticonceptivo (Digite Cero si no tiene). ","") ->  | CC36: =IF(CI36=1,"* El Total de Ingresos por cambio de método Anticonceptivo no puede superar el Total de Ingresos. ","") ->  | CG36: =IF(AND(C36<>0,Q36=""),1,0) -> 0 | CH36: =IF(AND(C36<>0,R36=""),1,0) -> 0 | CI36: =IF(C36<R36,1,0) -> 0
A37: D . I . U con Levonorgestrel | C37: =SUM(D37:M37) -> 1 | D37: 0 | E37: 0 | F37: 0 | G37: 0 | H37: 0 | I37: 1 | J37: 0 | K37: 0 | L37: 0 | M37: 0 | Q37: 0 | R37: 0 | CB37: =IF(CH37=1,"* No olvide digitar la columna Ingreso por cambio de Método Anticonceptivo (Digite Cero si no tiene). ","") ->  | CC37: =IF(CI37=1,"* El Total de Ingresos por cambio de método Anticonceptivo no puede superar el Total de Ingresos. ","") ->  | CG37: 0 | CH37: =IF(AND(C37<>0,R37=""),1,0) -> 0 | CI37: =IF(C37<R37,1,0) -> 0
A38: HORMONAL | B38: Oral Combinado | C38: 5 | D38: 0 | E38: 1 | F38: 1 | G38: 1 | H38: 1 | I38: 1 | J38: 0 | K38: 0 | L38: 0 | M38: 0 | Q38: 1 | R38: 4 | CG38: 0 | CH38: 0 | CI38: 0
B39: Oral Progestágeno | C39: 0 | D39: 0 | E39: 0 | F39: 0 | G39: 0 | H39: 0 | I39: 0 | J39: 0 | K39: 0 | L39: 0 | M39: 0 | Q39: 0 | CG39: 0 | CH39: 0 | CI39: 0
B40: Inyectable Combinado | C40: 5 | D40: 0 | E40: 3 | F40: 0 | G40: 0 | H40: 1 | I40: 1 | J40: 0 | K40: 0 | L40: 0 | M40: 0 | Q40: 1 | R40: 0 | CG40: 0 | CH40: 0 | CI40: 0
B41: Inyectable Progestágeno | C41: 5 | D41: 0 | E41: 1 | F41: 0 | G41: 1 | H41: 0 | I41: 1 | J41: 0 | K41: 2 | L41: 0 | M41: 0 | Q41: 0 | R41: 4 | CG41: 0 | CH41: 0 | CI41: 0
B42: Implante Etonogestrel (3 años) | C42: 5 | D42: 0 | E42: 2 | F42: 2 | G42: 0 | H42: 0 | I42: 1 | J42: 0 | K42: 0 | L42: 0 | M42: 0 | Q42: 0 | R42: 0 | CG42: 0 | CH42: 0 | CI42: 0
B43: Implante Levonorgestrel (5 años) | C43: 0 | D43: 0 | E43: 0 | F43: 0 | G43: 0 | H43: 0 | I43: 0 | J43: 0 | K43: 0 | L43: 0 | M43: 0 | Q43: 0 | R43: 0 | CG43: 0 | CH43: 0 | CI43: 0
A44: SÓLO PRESERVATIVO MAC | B44: Mujer | C44: 0 | D44: 0 | E44: 0 | F44: 0 | G44: 0 | H44: 0 | I44: 0 | J44: 0 | K44: 0 | L44: 0 | M44: 0 | Q44: 0 | R44: 0 | CG44: 0 | CH44: 0 | CI44: 0
B45: Hombres | C45: 0 | D45: 0 | E45: 0 | F45: 0 | G45: 0 | H45: 0 | I45: 0 | J45: 0 | K45: 0 | L45: 0 | M45: 0 | Q45: 0 | R45: 0 | CG45: 0 | CH45: 0 | CI45: 0
A46: ESTERILIZACIÓN QUIRÚRGICA | B46: Mujer | C46: 0 | D46: 0 | E46: 0 | F46: 0 | G46: 0 | H46: 0 | I46: 0 | J46: 0 | K46: 0 | L46: 0 | M46: 0 | Q46: 0 | R46: 0 | CG46: 0 | CH46: 0 | CI46: 0
B47: Hombres | C47: 0 | D47: 0 | E47: 0 | F47: 0 | G47: 0 | H47: 0 | I47: 0 | J47: 0 | K47: 0 | L47: 0 | M47: 0 | Q47: 0 | R47: 0 | CG47: 0 | CH47: 0 | CI47: 0
A48: Método de Regulación de Fertilidad más Preservativos | C48: 0 | D48: 0 | E48: 0 | F48: 0 | G48: 0 | H48: 0 | I48: 0 | J48: 0 | K48: 0 | L48: 0 | M48: 0 | Q48: 0 | R48: 0 | CG48: 0 | CH48: 0 | CI48: 0
A49: Gestantes que reciben preservativo | C49: 0 | D49: 0 | E49: 0 | F49: 0 | G49: 0 | H49: 0 | I49: 0 | J49: 0 | K49: 0 | L49: 0 | M49: 0 | Q49: 0 | R49: 0 | CG49: 0 | CH49: 0 | CI49: 0
A50: PRESERVATIVO/PRACTICA SEXUAL SEGURA | B50: Mujer | C50: =SUM(D50:P50) -> 0 | D50: 0 | E50: 0 | F50: 0 | G50: 0 | H50: 0 | I50: 0 | J50: 0 | K50: 0 | L50: 0 | M50: 0 | Q50: 0 | R50: 0 | CG50: 0 | CH50: 0 | CI50: 0
B51: Hombres | C51: =SUM(D51:P51) -> 0 | D51: 0 | E51: 0 | F51: 0 | G51: 0 | H51: 0 | I51: 0 | J51: 0 | K51: 0 | L51: 0 | M51: 0 | Q51: 0 | R51: 0 | CG51: 0 | CH51: 0 | CI51: 0
A52: LUBRICANTES | B52: Mujer | C52: 0 | D52: 0 | E52: 0 | F52: 0 | G52: 0 | H52: 0 | I52: 0 | J52: 0 | K52: 0 | L52: 0 | M52: 0 | Q52: 0 | R52: 0 | CG52: 0 | CH52: 0 | CI52: 0
B53: Hombres | C53: 0 | D53: 0 | E53: 0 | F53: 0 | G53: 0 | H53: 0 | I53: 0 | J53: 0 | K53: 0 | L53: 0 | M53: 0 | Q53: 0 | R53: 0 | CG53: 0 | CH53: 0 | CI53: 0
A54: CONDÓN FEMENINO | C54: 0 | D54: 0 | E54: 0 | F54: 0 | G54: 0 | H54: 0 | I54: 0 | J54: 0 | K54: 0 | L54: 0 | M54: 0 | Q54: 0 | R54: 0 | CG54: 0 | CH54: 0 | CI54: 0
CD55: 0 | CE55: 0
A56: SECCIÓN C1: EGRESOS DE PROGRAMA DE REGULACIÓN DE FERTILIDAD Y SALUD SEXUAL. | CD56: 0 | CE56: 0
A57: MÉTODOS | C57: TOTAL | D57: POR DE EDAD (en años) | CF57: 0 | CG57: 0
D58: Menor de 15 | E58: 15 - 19 | F58: 20 - 24 | G58: 25 - 29 | H58: 30 - 34 | I58: 35 - 39 | J58: 40 - 44 | K58: 45 - 49 | L58: 50 - 54 | M58: 55 -59 | N58: 60 - 64 | O58: 65 - 69 | P58: 70 y más
A59: TOTAL REGULACIÓN DE FERTILIDAD | C59: =SUM(D59:P59) -> 1 | D59: =SUM(D60:D71,D74:D75,D78) -> 0 | E59: =SUM(E60:E71,E74:E75,E78) -> 0 | F59: 0 | G59: 0 | H59: 0 | I59: 0 | J59: 0 | K59: 1 | L59: 0 | M59: 0 | N59: 0 | O59: 0 | P59: 0
A60: D . I . U T con Cobre | C60: =SUM(D60:M60) -> 0 | D60: 0 | E60: 0 | F60: 0 | G60: 0 | H60: 0 | I60: 0 | J60: 0 | K60: 0 | L60: 0 | M60: 0
A61: D . I . U con Levonorgestrel | C61: =SUM(D61:M61) -> 0 | D61: 0 | E61: 0 | F61: 0 | G61: 0 | H61: 0 | I61: 0 | J61: 0 | K61: 0 | L61: 0 | M61: 0
A62: HORMONAL | B62: Oral Combinado | C62: =SUM(D62:M62) -> 0 | D62: 0 | E62: 0 | F62: 0 | G62: 0 | H62: 0 | I62: 0 | J62: 0 | K62: 0 | L62: 0 | M62: 0
B63: Oral Progestágeno | C63: 1 | D63: 0 | E63: 0 | F63: 0 | G63: 0 | H63: 0 | I63: 0 | J63: 0 | K63: 1 | L63: 0 | M63: 0
B64: Inyectable Combinado | C64: 0 | D64: 0 | E64: 0 | F64: 0 | G64: 0 | H64: 0 | I64: 0 | J64: 0 | K64: 0 | L64: 0 | M64: 0
B65: Inyectable Progestágeno | C65: 0 | D65: 0 | E65: 0 | F65: 0 | G65: 0 | H65: 0 | I65: 0 | J65: 0 | K65: 0 | L65: 0 | M65: 0
B66: Implante Etonogestrel (3 años) | C66: 0 | D66: 0 | E66: 0 | F66: 0 | G66: 0 | H66: 0 | I66: 0 | J66: 0 | K66: 0 | L66: 0 | M66: 0
B67: Implante Levonorgestrel (5 años) | C67: 0 | D67: 0 | E67: 0 | F67: 0 | G67: 0 | H67: 0 | I67: 0 | J67: 0 | K67: 0 | L67: 0 | M67: 0
A68: SÓLO PRESERVATIVO MAC | B68: Mujer | C68: 0 | D68: 0 | E68: 0 | F68: 0 | G68: 0 | H68: 0 | I68: 0 | J68: 0 | K68: 0 | L68: 0 | M68: 0
B69: Hombres | C69: 0 | D69: 0 | E69: 0 | F69: 0 | G69: 0 | H69: 0 | I69: 0 | J69: 0 | K69: 0 | L69: 0 | M69: 0
A70: ESTERILIZACIÓN QUIRÚRGICA | B70: Mujer | C70: 0 | D70: 0 | E70: 0 | F70: 0 | G70: 0 | H70: 0 | I70: 0 | J70: 0 | K70: 0 | L70: 0 | M70: 0 | CD70: 0 | CE70: 0
B71: Hombres | C71: 0 | D71: 0 | E71: 0 | F71: 0 | G71: 0 | H71: 0 | I71: 0 | J71: 0 | K71: 0 | L71: 0 | M71: 0
A72: Método de Regulación de Fertilidad más Preservativos | C72: 0 | D72: 0 | E72: 0 | F72: 0 | G72: 0 | H72: 0 | I72: 0 | J72: 0 | K72: 0 | L72: 0 | M72: 0
A73: Gestantes que reciben preservativo | C73: 0 | D73: 0 | E73: 0 | F73: 0 | G73: 0 | H73: 0 | I73: 0 | J73: 0 | K73: 0 | L73: 0 | M73: 0
A74: PRESERVATIVO/PRACTICA SEXUAL SEGURA | B74: Mujer | C74: =SUM(D74:P74) -> 0 | D74: 0 | E74: 0 | F74: 0 | G74: 0 | H74: 0 | I74: 0 | J74: 0 | K74: 0 | L74: 0 | M74: 0
B75: Hombres | C75: =SUM(D75:P75) -> 0 | D75: 0 | E75: 0 | F75: 0 | G75: 0 | H75: 0 | I75: 0 | J75: 0 | K75: 0 | L75: 0 | M75: 0
A76: LUBRICANTES | B76: Mujer | C76: 0 | D76: 0 | E76: 0 | F76: 0 | G76: 0 | H76: 0 | I76: 0 | J76: 0 | K76: 0 | L76: 0 | M76: 0
B77: Hombres | C77: =SUM(D77:P77) -> 0 | D77: 0 | E77: 0 | F77: 0 | G77: 0 | H77: 0 | I77: 0 | J77: 0 | K77: 0 | L77: 0 | M77: 0
A78: CONDÓN FEMENINO | C78: =SUM(D78:P78) -> 0 | D78: 0 | E78: 0 | F78: 0 | G78: 0 | H78: 0 | I78: 0 | J78: 0 | K78: 0 | L78: 0 | M78: 0
A79: SECCIÓN D: INGRESOS A PROGRAMA CONTROL DE CLIMATERIO | CG79: 0
A80: CONCEPTO | B80: TOTAL | CG80: 0 | CH80: 0
A81: INGRESOS | CG81: 0 | CH81: 0
A82: SECCIÓN E: INGRESOS A CONTROL DE SALUD DE RECIÉN NACIDOS | CG82: 0 | CH82: 0
A83: EDAD | C83: TOTAL | D83: NIÑOS | E83: NIÑAS | CG83: 0 | CH83: 0
A84: MENORES DE 28 DÍAS | C84: =SUM(D84:E84) -> 11 | D84: 4 | E84: 7 | CA84: =IF(AND(('A01'!$C20+'A01'!$C21+'A01'!$C22+'A01'!$C23+'A01'!$F37+'A01'!$F38+'A01'!$F39)<>0,D84=0,E84=""),"* Observacion : En A01 existen controles no ingresados, Revisar. ","") ->  | CG84: 0 | CH84: 0
A85: SECCIÓN F: INGRESOS Y EGRESOS A SALA DE ESTIMULACIÓN SERVICIO ITINERANTE Y ATENCIÓN DOMICILIARIA | CA85: =IF(AND(('A01'!$C20+'A01'!$C21+'A01'!$C22+'A01'!$C23+'A01'!$F37+'A01'!$F38+'A01'!$F39)<>0,D85=0,E85=""),"* Observacion : En A01 existen controles no ingresados, Revisar. ","") -> * Observacion : En A01 existen controles no ingresados, Revisar.
A86: NIÑO / A (CON) | C86: TOTAL | F86: INGRESOS SALA DE ESTIMULACIÓN | R86: SERVICIO ITINERANTE EN CENTRO DE SALUD | T86: ATENCIÓN DOMICILIARIA | V86: EGRESOS | X86: Inasistente | Y86: RESULTADOS DE LA REEVALUACIÓN POST EGRESO
F87: Menor 7 meses | H87: 7 - 11 meses | J87: 12 - 17 meses | L87: 18 - 23 meses | N87: 24 - 47 meses | P87: 48 - 59 meses | R87: 7 a 59 meses | T87: 7 a 59 meses | V87: MOTIVO EGRESO
C88: Ambos Sexos | D88: Hombres | E88: Mujeres | F88: Hombres | G88: Mujeres | H88: Hombres | I88: Mujeres | J88: Hombres | K88: Mujeres | L88: Hombres | M88: Mujeres | N88: Hombres | O88: Mujeres | P88: Hombres | Q88: Mujeres | R88: Hombres | S88: Mujeres | T88: Hombres | U88: Mujeres | V88: Cumplimiento de tratamiento | W88: Otros | Y88: Recuperado | Z88: No Recuperado
A89: NORMAL CON REZAGO | C89: =SUM(D89:E89) -> 0 | D89: =SUM(F89+H89+J89+L89+N89+P89) -> 0 | E89: =SUM(G89+I89+K89+M89+O89+Q89) -> 0 | CG89: 0 | CH89: 0
A90: RIESGO | C90: =SUM(D90:E90) -> 0 | D90: =SUM(F90+H90+J90+L90+N90+P90) -> 0 | E90: 0 | CG90: 0 | CH90: 0
A91: RETRASO | C91: =SUM(D91:E91) -> 1 | D91: 0 | E91: 1 | O91: 1 | CG91: 0 | CH91: 0
A92: OTRA VULNERABILIDAD | C92: =SUM(D92:E92) -> 0 | D92: 0 | E92: 0 | CG92: 0 | CH92: 0
A93: SECCIÓN F.1: REINGRESOS Y EGRESOS POR SEGUNDA VEZ A MODALIDAD DE ESTIMULACIÓN EN EL CENTRO DE SALUD
A94: NIÑO / A (CON) | C94: TOTAL | F94: REINGRESOS A MODALIDAD DE ESTIMULACIÓN EN CENTRO DE SALUD | R94: EGRESOS POR SEGUNDA VEZ Y RESULTADOS DE LA REEVALUACIÓN POST EGRESO
F95: Menor 7 meses | H95: 7 - 11 meses | J95: 12 - 17 meses | L95: 18 - 23 meses | N95: 24 - 47 meses | P95: 48 - 59 meses | R95: MOTIVO EGRESO | T95: Inasistente | U95: RESULTADO DE REEVALUACIÓN | CG95: 0
C96: Ambos Sexos | D96: Hombres | E96: Mujeres | F96: Hombres | G96: Mujeres | H96: Hombres | I96: Mujeres | J96: Hombres | K96: Mujeres | L96: Hombres | M96: Mujeres | N96: Hombres | O96: Mujeres | P96: Hombres | Q96: Mujeres | R96: Cumplimiento de tratamiento | S96: Otros | U96: Recuperado | V96: No Recuperado
A97: NORMAL CON REZAGO | C97: =SUM(D97:E97) -> 0 | D97: =SUM(F97+H97+J97+L97+N97+P97) -> 0 | E97: =SUM(G97+I97+K97+M97+O97+Q97) -> 0 | CG97: 0
A98: RIESGO | C98: =SUM(D98:E98) -> 0 | D98: =SUM(F98+H98+J98+L98+N98+P98) -> 0 | E98: 0
A99: RETRASO | C99: =SUM(D99:E99) -> 0 | D99: =SUM(F99+H99+J99+L99+N99+P99) -> 0 | E99: 0
A100: OTRA VULNERABILIDAD | C100: =SUM(D100:E100) -> 0 | D100: 0 | E100: 0
A101: SECCIÓN G: INGRESOS DE NIÑOS Y NIÑAS CON NECESIDADES ESPECIALES DE BAJA COMPLEJIDAD A CONTROL DE SALUD INFANTIL EN APS
A102: NANEAS | C102: TOTAL | F102: POR EDAD
F103: 0 - 4 | H103: 5 - 9 | J103: 10 - 14 | L103: 15 a 19 | N103: 20 - 24
C104: Ambos Sexos | D104: Hombres | E104: Mujeres | F104: Hombres | G104: Mujeres | H104: Hombres | I104: Mujeres | J104: Hombres | K104: Mujeres | L104: Hombres | M104: Mujeres | N104: Hombres | O104: Mujeres
A105: INGRESOS | C105: =SUM(D105:E105) -> 0 | D105: =SUM(F105+H105+J105+L105+N105) -> 0 | E105: =SUM(G105+I105+K105+M105+O105) -> 0
A106: SECCIÓN H: INGRESOS AL PSCV
A107: CONCEPTO | C107: TOTAL | F107: INGRESOS
F108: 15 - 19 | H108: 20-24 | J108: 25 a 29 | L108: 30 a 34 | N108: 35 a 39 | P108: 40 a 44 | R108: 45 a 49 | T108: 50 a 54 | V108: 55 a 59 | X108: 60 a 64 | Z108: 65 a 69 | AB108: 70 a 74 | AD108: 75 a 79 | AF108: 80 y más | CA108: =IF(C108>C106+C107,"* Los Ingresos de pacientes dependientes severos con escaras DEBEN estar incluidos en los Ingresos de pacientes dependientes severos Oncológicos o No Oncológicos. ","") -> 
C109: Ambos Sexos | D109: Hombres | E109: Mujeres | F109: Hombres | G109: Mujeres | H109: Hombres | I109: Mujeres | J109: Hombres | K109: Mujeres | L109: Hombres | M109: Mujeres | N109: Hombres | O109: Mujeres | P109: Hombres | Q109: Mujeres | R109: Hombres | S109: Mujeres | T109: Hombres | U109: Mujeres | V109: Hombres | W109: Mujeres | X109: Hombres | Y109: Mujeres | Z109: Hombres | AA109: Mujeres | AB109: Hombres | AC109: Mujeres | AD109: Hombres | AE109: Mujeres | AF109: Hombres | AG109: Mujeres
A110: INGRESOS AL PSCV | C110: =SUM(D110:E110) -> 4 | D110: =SUM(F110+H110+J110+L110+N110+P110+R110+T110+V110+X110+Z110+AB110+AD110+AF110) -> 2 | E110: =SUM(G110+I110+K110+M110+O110+Q110+S110+U110+W110+Y110+AA110+AC110+AE110+AG110) -> 2 | F110: 0 | G110: 0 | H110: 0 | I110: 0 | J110: 0 | K110: 0 | L110: 0 | M110: 0 | N110: 0 | O110: 0 | P110: 0 | Q110: 0 | R110: 0 | S110: 0 | T110: 0 | U110: 0 | V110: 2 | W110: 1 | X110: 0 | Y110: 0 | Z110: 0 | AA110: 1 | AB110: 0 | AC110: 0 | AD110: 0 | AE110: 0 | AF110: 0 | AG110: 0
A111: PROGRAMA DE SALUD CARDIOVASCULAR | B111: HIPERTENSIÓN ARTERIAL | C111: =SUM(D111:E111) -> 3 | D111: 1 | E111: =SUM(G111+I111+K111+M111+O111+Q111+S111+U111+W111+Y111+AA111+AC111+AE111+AG111) -> 2 | F111: 0 | G111: 0 | H111: 0 | I111: 0 | J111: 0 | K111: 0 | L111: 0 | M111: 0 | N111: 0 | O111: 0 | P111: 0 | Q111: 0 | R111: 0 | S111: 0 | T111: 0 | U111: 0 | V111: 1 | W111: 1 | X111: 0 | Y111: 0 | Z111: 0 | AA111: 1 | AB111: 0 | AC111: 0 | AD111: 0 | AE111: 0 | AF111: 0 | AG111: 0 | CG111: 0
B112: DIABETES MELLITUS | C112: 0 | D112: 0 | E112: 0 | F112: 0 | G112: 0 | H112: 0 | I112: 0 | J112: 0 | K112: 0 | L112: 0 | M112: 0 | N112: 0 | O112: 0 | P112: 0 | Q112: 0 | R112: 0 | S112: 0 | T112: 0 | U112: 0 | V112: 0 | W112: 0 | X112: 0 | Y112: 0 | Z112: 0 | AA112: 0 | AB112: 0 | AC112: 0 | AD112: 0 | AE112: 0 | AF112: 0 | AG112: 0 | CG112: 0
B113: DISLIPIDEMIA | C113: 3 | D113: 2 | E113: 1 | F113: 0 | G113: 0 | H113: 0 | I113: 0 | J113: 0 | K113: 0 | L113: 0 | M113: 0 | N113: 0 | O113: 0 | P113: 0 | Q113: 0 | R113: 0 | S113: 0 | T113: 0 | U113: 0 | V113: 1 | W113: 0 | X113: 1 | Y113: 0 | Z113: 0 | AA113: 1 | AB113: 0 | AC113: 0 | AD113: 0 | AE113: 0 | AF113: 0 | AG113: 0 | CG113: 0
B114: ANTECEDENTES ENF. CARDIOVASCULAR ATEROSCLERÓTICA | C114: 0 | D114: 0 | E114: 0 | F114: 0 | G114: 0 | H114: 0 | I114: 0 | J114: 0 | K114: 0 | L114: 0 | M114: 0 | N114: 0 | O114: 0 | P114: 0 | Q114: 0 | R114: 0 | S114: 0 | T114: 0 | U114: 0 | V114: 0 | W114: 0 | X114: 0 | Y114: 0 | Z114: 0 | AA114: 0 | AB114: 0 | AC114: 0 | AD114: 0 | AE114: 0 | AF114: 0 | AG114: 0 | CG114: 0
B115: TABAQUISMO | C115: 0 | D115: 0 | E115: 0 | F115: 0 | G115: 0 | H115: 0 | I115: 0 | J115: 0 | K115: 0 | L115: 0 | M115: 0 | N115: 0 | O115: 0 | P115: 0 | Q115: 0 | R115: 0 | S115: 0 | T115: 0 | U115: 0 | V115: 0 | W115: 0 | X115: 0 | Y115: 0 | Z115: 0 | AA115: 0 | AB115: 0 | AC115: 0 | AD115: 0 | AE115: 0 | AF115: 0 | AG115: 0 | CG115: 0
A116: SECCIÓN I: EGRESOS DEL PSCV | CG116: 0
A117: CONCEPTO | C117: TOTAL | F117: EGRESOS | AH117: CAUSAL DE EGRESO | CG117: 0
F118: 15 - 19 | H118: 20-24 | J118: 25 a 29 | L118: 30 a 34 | N118: 35 a 39 | P118: 40 a 44 | R118: 45 a 49 | T118: 50 a 54 | V118: 55 a 59 | X118: 60 a 64 | Z118: 65 a 69 | AB118: 70 a 74 | AD118: 75 a 79 | AF118: 80 y más | AH118: Abandono | AI118: Traslado | AJ118: Fallecimiento | AK118: No cumple criterio | CG118: 0
C119: Ambos Sexos | D119: Hombres | E119: Mujeres | F119: Hombres | G119: Mujeres | H119: Hombres | I119: Mujeres | J119: Hombres | K119: Mujeres | L119: Hombres | M119: Mujeres | N119: Hombres | O119: Mujeres | P119: Hombres | Q119: Mujeres | R119: Hombres | S119: Mujeres | T119: Hombres | U119: Mujeres | V119: Hombres | W119: Mujeres | X119: Hombres | Y119: Mujeres | Z119: Hombres | AA119: Mujeres | AB119: Hombres | AC119: Mujeres | AD119: Hombres | AE119: Mujeres | AF119: Hombres | AG119: Mujeres | CG119: 0
A120: EGRESOS DEL PSCV | C120: =SUM(D120:E120) -> 2 | D120: =SUM(F120+H120+J120+L120+N120+P120+R120+T120+V120+X120+Z120+AB120+AD120+AF120) -> 1 | E120: =SUM(G120+I120+K120+M120+O120+Q120+S120+U120+W120+Y120+AA120+AC120+AE120+AG120) -> 1 | F120: 0 | G120: 0 | H120: 0 | I120: 0 | J120: 0 | K120: 0 | L120: 0 | M120: 0 | N120: 0 | O120: 0 | P120: 0 | Q120: 0 | R120: 0 | S120: 0 | T120: 0 | U120: 0 | V120: 0 | W120: 0 | X120: 0 | Y120: 1 | Z120: 0 | AA120: 0 | AB120: 0 | AC120: 0 | AD120: 1 | AE120: 0 | AF120: 0 | AG120: 0 | AH120: 0 | AI120: 0 | AJ120: 0 | AK120: 2 | CG120: 0
A121: PROGRAMA DE SALUD CARDIOVASCULAR | B121: HIPERTENSIÓN ARTERIAL | C121: =SUM(D121:E121) -> 0 | D121: 0 | E121: 0 | F121: 0 | G121: 0 | H121: 0 | I121: 0 | J121: 0 | K121: 0 | L121: 0 | M121: 0 | N121: 0 | O121: 0 | P121: 0 | Q121: 0 | R121: 0 | S121: 0 | T121: 0 | U121: 0 | V121: 0 | W121: 0 | X121: 0 | Y121: 0 | Z121: 0 | AA121: 0 | AB121: 0 | AC121: 0 | AD121: 0 | AE121: 0 | AF121: 0 | AG121: 0 | AH121: 0 | AI121: 0 | AJ121: 0 | AK121: 0 | CG121: 0
B122: DIABETES MELLITUS | C122: 0 | D122: 0 | E122: 0 | F122: 0 | G122: 0 | H122: 0 | I122: 0 | J122: 0 | K122: 0 | L122: 0 | M122: 0 | N122: 0 | O122: 0 | P122: 0 | Q122: 0 | R122: 0 | S122: 0 | T122: 0 | U122: 0 | V122: 0 | W122: 0 | X122: 0 | Y122: 0 | Z122: 0 | AA122: 0 | AB122: 0 | AC122: 0 | AD122: 0 | AE122: 0 | AF122: 0 | AG122: 0 | AH122: 0 | AI122: 0 | AJ122: 0 | AK122: 0 | CG122: 0
B123: DISLIPIDEMIA | C123: 2 | D123: 1 | E123: 1 | F123: 0 | G123: 0 | H123: 0 | I123: 0 | J123: 0 | K123: 0 | L123: 0 | M123: 0 | N123: 0 | O123: 0 | P123: 0 | Q123: 0 | R123: 0 | S123: 0 | T123: 0 | U123: 0 | V123: 0 | W123: 0 | X123: 0 | Y123: 1 | Z123: 0 | AA123: 0 | AB123: 0 | AC123: 0 | AD123: 1 | AE123: 0 | AF123: 0 | AG123: 0 | AH123: 0 | AI123: 0 | AJ123: 0 | AK123: 2
B124: ANTECEDENTES ENF. CARDIOVASCULAR ATEROSCLERÓTICA | C124: 0 | D124: 0 | E124: 0 | F124: 0 | G124: 0 | H124: 0 | I124: 0 | J124: 0 | K124: 0 | L124: 0 | M124: 0 | N124: 0 | O124: 0 | P124: 0 | Q124: 0 | R124: 0 | S124: 0 | T124: 0 | U124: 0 | V124: 0 | W124: 0 | X124: 0 | Y124: 0 | Z124: 0 | AA124: 0 | AB124: 0 | AC124: 0 | AD124: 0 | AE124: 0 | AF124: 0 | AG124: 0 | AH124: 0 | AI124: 0 | AJ124: 0 | AK124: 0
B125: TABAQUISMO | C125: 0 | D125: 0 | E125: 0 | F125: 0 | G125: 0 | H125: 0 | I125: 0 | J125: 0 | K125: 0 | L125: 0 | M125: 0 | N125: 0 | O125: 0 | P125: 0 | Q125: 0 | R125: 0 | S125: 0 | T125: 0 | U125: 0 | V125: 0 | W125: 0 | X125: 0 | Y125: 0 | Z125: 0 | AA125: 0 | AB125: 0 | AC125: 0 | AD125: 0 | AE125: 0 | AF125: 0 | AG125: 0 | AH125: 0 | AI125: 0 | AJ125: 0 | AK125: 0 | CA125: =IF(C125>C124+C123,"* Los Ingresos de pacientes dependientes severos con escaras DEBEN estar incluidos en los Ingresos de pacientes dependientes severos Oncológicos o No Oncológicos. ","") -> 
A126: SECCIÓN J: INGRESOS Y EGRESOS AL PROGRAMA DE PACIENTES CON DEPENDENCIA LEVE, MODERADA Y SEVERA
A127: CONCEPTO | C127: TOTAL | F127: INGRESOS | AH127: CAUSAL DE EGRESO | CG127: 0
F128: < 20 años | H128: 20-24 | J128: 25 a 29 | L128: 30 a 34 | N128: 35 a 39 | P128: 40 a 44 | R128: 45 a 49 | T128: 50 a 54 | V128: 55 a 59 | X128: 60 a 64 | Z128: 65 a 69 | AB128: 70 a 74 | AD128: 75 a 79 | AF128: 80 y más | AH128: Altas | AI128: Abandono/ Traslado | AJ128: Fallecimiento
C129: Ambos Sexos | D129: Hombres | E129: Mujeres | F129: Hombres | G129: Mujeres | H129: Hombres | I129: Mujeres | J129: Hombres | K129: Mujeres | L129: Hombres | M129: Mujeres | N129: Hombres | O129: Mujeres | P129: Hombres | Q129: Mujeres | R129: Hombres | S129: Mujeres | T129: Hombres | U129: Mujeres | V129: Hombres | W129: Mujeres | X129: Hombres | Y129: Mujeres | Z129: Hombres | AA129: Mujeres | AB129: Hombres | AC129: Mujeres | AD129: Hombres | AE129: Mujeres | AF129: Hombres | AG129: Mujeres
A130: DEPENDENCIA LEVE | C130: =SUM(D130:E130) -> 0 | D130: =SUM(F130+H130+J130+L130+N130+P130+R130+T130+V130+X130+Z130+AB130+AD130+AF130) -> 0 | E130: =SUM(G130+I130+K130+M130+O130+Q130+S130+U130+W130+Y130+AA130+AC130+AE130+AG130) -> 0
A131: DEPENDENCIA MODERADA | C131: =SUM(D131:E131) -> 0 | D131: =SUM(F131+H131+J131+L131+N131+P131+R131+T131+V131+X131+Z131+AB131+AD131+AF131) -> 0 | E131: 0
A132: DEPENDENCIA GRAVE Y TOTAL | B132: ONCOLÓGICO | C132: =SUM(D132:E132) -> 0 | D132: 0 | E132: 0 | CG132: 0
B133: NO ONCOLÓGICO | C133: =SUM(D133:E133) -> 0 | D133: 0 | E133: 0 | CG133: 0
A134: DEPENDENCIA SEVERA CON ESCARAS | C134: =SUM(D134:E134) -> 0 | D134: 0 | E134: 0 | AK134: =CA134 ->  | CA134: =IF(C134>C133+C132,"* Los Ingresos de pacientes dependientes severos con escaras DEBEN estar incluidos en los Ingresos de pacientes dependientes severos Oncológicos o No Oncológicos. ","") -> 
A135: SECCIÓN K: INGRESOS AL PROGRAMA DEL ADULTO MAYOR SEGÚN CONDICIÓN DE FUNCIONALIDAD Y DEPENDENCIA
A136: CONDICIÓN | C136: TOTAL | F136: 65 a 69 | H136: 70 a 74 | J136: 75 a 79 | L136: 80 y más
C137: Ambos Sexos | D137: Hombres | E137: Mujeres | F137: Hombres | G137: Mujeres | H137: Hombres | I137: Mujeres | J137: Hombres | K137: Mujeres | L137: Hombres | M137: Mujeres
A138: EFAM | B138: AUTOVALENTE SIN RIESGO | C138: =SUM(D138:E138) -> 10 | D138: =SUM(F138+H138+J138+L138) -> 4 | E138: 6 | F138: 3 | G138: 2 | H138: 1 | I138: 2 | J138: 0 | K138: 1 | L138: 0 | M138: 1
B139: AUTOVALENTE CON RIESGO | C139: =SUM(D139:E139) -> 7 | D139: 3 | E139: 4 | F139: 1 | G139: 0 | H139: 1 | I139: 2 | J139: 0 | K139: 2 | L139: 1 | M139: 0
B140: RIESGO DE DEPENDENCIA | C140: =SUM(D140:E140) -> 11 | D140: 3 | E140: 8 | F140: 1 | G140: 1 | H140: 0 | I140: 1 | J140: 0 | K140: 2 | L140: 2 | M140: 4
A141: SUBTOTAL | C141: =SUM(C138:C140) -> 28 | D141: =SUM(D138:D140) -> 10 | E141: =SUM(E138:E140) -> 18 | F141: =SUM(F138:F140) -> 5 | G141: 3 | H141: 2 | I141: 5 | J141: 0 | K141: 5 | L141: 3 | M141: 5
A142: BARTHEL | B142: DEPENDIENTE LEVE | C142: =SUM(D142:E142) -> 4 | D142: =SUM(F142+H142+J142+L142) -> 1 | E142: 3 | F142: 0 | G142: 1 | H142: 0 | I142: 0 | J142: 0 | K142: 0 | L142: 1 | M142: 2
B143: DEPENDIENTE MODERADO | C143: =SUM(D143:E143) -> 1 | D143: 1 | E143: 0 | F143: 0 | G143: 0 | H143: 0 | I143: 0 | J143: 0 | K143: 0 | L143: 1 | M143: 0
B144: DEPENDIENTE GRAVE | C144: =SUM(D144:E144) -> 0 | D144: 0 | E144: 0 | F144: 0 | G144: 0 | H144: 0 | I144: 0 | J144: 0 | K144: 0 | L144: 0 | M144: 0
B145: DEPENDIENTE TOTAL | C145: =SUM(D145:E145) -> 0 | D145: 0 | E145: 0 | F145: 0 | G145: 0 | H145: 0 | I145: 0 | J145: 0 | K145: 0 | L145: 0 | M145: 0 | CG145: 0
A146: SUBTOTAL | C146: =SUM(C142:C145) -> 5 | D146: =SUM(D142:D145) -> 2 | E146: =SUM(E142:E145) -> 3 | F146: =SUM(F142:F145) -> 0 | G146: =SUM(G142:G145) -> 1 | H146: 0 | I146: 0 | J146: 0 | K146: 0 | L146: 2 | M146: 2
A147: TOTAL | C147: =SUM(C141+C146) -> 33 | D147: =SUM(D141+D146) -> 12 | E147: =SUM(E141+E146) -> 21 | F147: =SUM(F141+F146) -> 5 | G147: =SUM(G141+G146) -> 4 | H147: =SUM(H141+H146) -> 2 | I147: 5 | J147: 0 | K147: 5 | L147: 5 | M147: 7
A148: SECCIÓN L: EGRESOS DEL PROGRAMA DEL ADULTO MAYOR SEGÚN CONDICIÓN DE FUNCIONALIDAD Y DEPENDENCIA
A149: CONDICIÓN | C149: TOTAL | F149: 65 a 69 | H149: 70 a 74 | J149: 75 a 79 | L149: 80 y más | N149: CAUSAL DE EGRESO
C150: Ambos Sexos | D150: Hombres | E150: Mujeres | F150: Hombres | G150: Mujeres | H150: Hombres | I150: Mujeres | J150: Hombres | K150: Mujeres | L150: Hombres | M150: Mujeres | N150: Abandono | O150: Traslado | P150: Fallecimiento | CG150: 0
A151: EFAM | B151: AUTOVALENTE SIN RIESGO | C151: =SUM(D151:E151) -> 0 | D151: =SUM(F151+H151+J151+L151) -> 0 | E151: =SUM(G151+I151+K151+M151) -> 0 | CG151: 0
B152: AUTOVALENTE CON RIESGO | C152: =SUM(D152:E152) -> 0 | D152: =SUM(F152+H152+J152+L152) -> 0 | E152: 0
B153: RIESGO DE DEPENDENCIA | C153: =SUM(D153:E153) -> 0 | D153: 0 | E153: 0
A154: SUBTOTAL | C154: =SUM(C151:C153) -> 0 | D154: =SUM(D151:D153) -> 0 | E154: =SUM(E151:E153) -> 0 | F154: =SUM(F151:F153) -> 0 | G154: =SUM(G151:G153) -> 0 | H154: 0 | I154: 0 | J154: 0 | K154: 0 | L154: 0 | M154: 0 | N154: 0 | O154: 0 | P154: 0 | CG154: 0
A155: BARTHEL | B155: DEPENDIENTE LEVE | C155: =SUM(D155:E155) -> 0 | D155: =SUM(F155+H155+J155+L155) -> 0 | E155: =SUM(G155+I155+K155+M155) -> 0
B156: DEPENDIENTE MODERADO | C156: =SUM(D156:E156) -> 0 | D156: =SUM(F156+H156+J156+L156) -> 0 | E156: 0 | CG156: 0
B157: DEPENDIENTE GRAVE | C157: =SUM(D157:E157) -> 0 | D157: 0 | E157: 0
B158: DEPENDIENTE TOTAL | C158: =SUM(D158:E158) -> 0 | D158: 0 | E158: 0
A159: SUBTOTAL | C159: =SUM(C155:C158) -> 0 | D159: =SUM(D155:D158) -> 0 | E159: =SUM(E155:E158) -> 0 | F159: =SUM(F155:F158) -> 0 | G159: =SUM(G155:G158) -> 0 | H159: 0 | I159: 0 | J159: 0 | K159: 0 | L159: 0 | M159: 0 | N159: 0 | O159: 0 | P159: 0 | CG159: 0
A160: TOTAL | C160: =SUM(C154+C159) -> 0 | D160: =SUM(D154+D159) -> 0 | E160: 0 | F160: 0 | G160: 0 | H160: 0 | I160: 0 | J160: 0 | K160: 0 | L160: 0 | M160: 0 | N160: 0 | O160: 0 | P160: 0
A161: SECCIÓN M: INGRESOS Y EGRESOS DEL PROGRAMA MÁS ADULTOS MAYORES AUTOVALENTES | CG161: 0
A162: CONDICIÓN | C162: TOTAL | F162: 60 a 64 | H162: 65 a 69 | J162: 70 a 74 | L162: 75 a 79 | N162: 80 y más
C163: Ambos Sexos | D163: Hombres | E163: Mujeres | F163: Hombres | G163: Mujeres | H163: Hombres | I163: Mujeres | J163: Hombres | K163: Mujeres | L163: Hombres | M163: Mujeres | N163: Hombres | O163: Mujeres
A164: INGRESO | B164: AUTOVALENTE SIN RIESGO | C164: =SUM(D164+E164) -> 4 | D164: =SUM(F164+H164+J164+L164+N164) -> 2 | E164: =SUM(G164+I164+K164+M164+O164) -> 2 | F164: 2 | G164: 1 | H164: 0 | I164: 0 | J164: 0 | K164: 0 | L164: 0 | M164: 0 | N164: 0 | O164: 1
B165: AUTOVALENTE CON RIESGO | C165: =SUM(D165+E165) -> 2 | D165: =SUM(H165+J165+L165+N165) -> 2 | E165: =SUM(I165+K165+M165+O165) -> 0 | H165: 0 | I165: 0 | J165: 0 | K165: 0 | L165: 0 | M165: 0 | N165: 2 | O165: 0
B166: RIESGO DE DEPENDENCIA | C166: =SUM(D166+E166) -> 1 | D166: =SUM(H166+J166+L166+N166) -> 0 | E166: =SUM(I166+K166+M166+O166) -> 1 | H166: 0 | I166: 0 | J166: 0 | K166: 0 | L166: 0 | M166: 0 | N166: 0 | O166: 1
B167: TOTAL INGRESOS | C167: =SUM(C164:C166) -> 7 | D167: =SUM(D164:D166) -> 4 | E167: =SUM(E164:E166) -> 3 | F167: =SUM(F164:F166) -> 2 | G167: =SUM(G164:G166) -> 1 | H167: 0 | I167: 0 | J167: 0 | K167: 0 | L167: 0 | M167: 0 | N167: 2 | O167: 2
A168: EGRESO | B168: COMPLETA CICLO | C168: =SUM(D168+E168) -> 86 | D168: =SUM(F168+H168+J168+L168+N168) -> 20 | E168: =SUM(G168+I168+K168+M168+O168) -> 66 | F168: 3 | G168: 17 | H168: 4 | I168: 13 | J168: 6 | K168: 15 | L168: 2 | M168: 13 | N168: 5 | O168: 8
B169: ABANDONO | C169: =SUM(D169+E169) -> 1 | D169: =SUM(F169+H169+J169+L169+N169) -> 0 | E169: 1 | F169: 0 | G169: 0 | H169: 0 | I169: 0 | J169: 0 | K169: 1 | L169: 0 | M169: 0 | N169: 0 | O169: 0
B170: TRASLADO | C170: =SUM(D170+E170) -> 0 | D170: 0 | E170: 0 | F170: 0 | G170: 0 | H170: 0 | I170: 0 | J170: 0 | K170: 0 | L170: 0 | M170: 0 | N170: 0 | O170: 0
B171: FALLECIMIENTO | C171: =SUM(D171+E171) -> 0 | D171: 0 | E171: 0 | F171: 0 | G171: 0 | H171: 0 | I171: 0 | J171: 0 | K171: 0 | L171: 0 | M171: 0 | N171: 0 | O171: 0
A172: * Los pacientes de 60 a 64 años, no debe desagregarse por condición de funcionalidad, por ello sólo se registran en la primera fila (Autovalente sin riesgo).
A173: ** Para la desagregación por funcionalidad se contabiliza desde 65 y mas años.Sólo para el cálculo del total de los ingresos se contabiliza el rango de 60 - 64 años.
A174: SECCIÓN N: INGRESOS AL PROGRAMA DE SALUD MENTAL EN APS /ESPECIALIDAD
A175: MOTIVO DE INGRESO | C175: TOTAL | F175: 0 - 4 | H175: 5 - 9 | J175: 10 - 14 | L175: 15 - 19 | N175: 20 - 24 | P175: 25 a 29 | R175: 30 a 34 | T175: 35 a 39 | V175: 40 a 44 | X175: 45 a 49 | Z175: 50 a 54 | AB175: 55 a 59 | AD175: 60 a 64 | AF175: 65 a 69 | AH175: 70 a 74 | AJ175: 75 a 79 | AL175: 80 y más | AN175: GESTANTES | AO175: MADRE DE HIJO MENOR DE 5 AÑOS | AP175: PUEBLOS ORIGINARIOS | AR175: Niños, Niñas, Adolescentes y Jóvenes Población SENAME | AS175: MIGRANTES
C176: Ambos Sexos | D176: Hombres | E176: Mujeres | F176: Hombres | G176: Mujeres | H176: Hombres | I176: Mujeres | J176: Hombres | K176: Mujeres | L176: Hombres | M176: Mujeres | N176: Hombres | O176: Mujeres | P176: Hombres | Q176: Mujeres | R176: Hombres | S176: Mujeres | T176: Hombres | U176: Mujeres | V176: Hombres | W176: Mujeres | X176: Hombres | Y176: Mujeres | Z176: Hombres | AA176: Mujeres | AB176: Hombres | AC176: Mujeres | AD176: Hombres | AE176: Mujeres | AF176: Hombres | AG176: Mujeres | AH176: Hombres | AI176: Mujeres | AJ176: Hombres | AK176: Mujeres | AL176: Hombres | AM176: Mujeres | AP176: Hombres | AQ176: Mujeres
A177: INGRESOS AL PROGRAMA | C177: =SUM(D177+E177) -> 35 | D177: =SUM(F177+H177+J177+L177+N177+P177+R177+T177+V177+X177+Z177+AB177+AD177+AF177+AH177+AJ177+AL177) -> 10 | E177: =SUM(G177+I177+K177+M177+O177+Q177+S177+U177+W177+Y177+AA177+AC177+AE177+AG177+AI177+AK177+AM177) -> 25 | F177: 0 | G177: 0 | H177: 2 | I177: 1 | J177: 2 | K177: 3 | L177: 0 | M177: 1 | N177: 1 | O177: 3 | P177: 0 | Q177: 2 | R177: 0 | S177: 3 | T177: 1 | U177: 1 | V177: 0 | W177: 0 | X177: 0 | Y177: 5 | Z177: 0 | AA177: 1 | AB177: 1 | AC177: 3 | AD177: 0 | AE177: 0 | AF177: 3 | AG177: 2 | AH177: 0 | AI177: 0 | AJ177: 0 | AK177: 0 | AL177: 0 | AM177: 0 | AN177: 0 | AO177: 3 | AP177: 0 | AQ177: 1 | AR177: 1 | AS177: 0 | AT177: =CA177&CB177&CC177&CD177&CE177&CF177&CN177 ->  | CA177: =IF(CG177=0,"","* Las gestantes ingresadas al Programa NO debe ser mayor al Total de Mujeres ingresadas. ") ->  | CB177: =IF(CH177=0,"","* Las madres de hijos menor de 5 años NO DEBE ser mayor al Total de Mujeres ingresadas al Programa. ") ->  | CC177: =IF(CI177=0,"","* Los ingresos de Pueblos Originarios NO DEBE ser mayor al Total de ingresos del Programa.") ->  | CD177: =IF(CJ177=0,"","* Los Niños, Niñas, Adolescentes y Jóvenes de Programas SENAME NO DEBE ser mayor al Total de ingresos del Programa. ") ->  | CE177: =IF(CK177=0,"","* Los Migrantes NO DEBEN ser mayor al Total de ingresos del Programa. ") ->  | CF177: =IF(CL177=0,"","* No olvide escribir los campos Gestante y/o Madre de Hijo menor de 5 años y/o Pueblos Originarios y/o Niños, Niñas, Adolescentes y Jóvenes de Programas SENAME y/o Migrante (Digite CERO si no tiene). ") ->  | CG177: =IF(E177<AN177,1,0) -> 0 | CH177: =IF(C177<AO177,1,0) -> 0 | CI177: =IF(C177<SUM(AP177,AQ177),1,0) -> 0 | CJ177: =IF(C177<AR177,1,0) -> 0 | CK177: =IF(C177<AS177,1,0) -> 0 | CL177: =IF(AND(C177<>0,OR(AN177="",AO177="",AP177="",AQ177="",AR177="",AS177="")),1,0) -> 0 | CM177: =IF(AND(C177=0,OR(C179>0,C180>0,C181>0,C182>0,C183>0)),1,0) -> 0 | CN177: =IF(AND(C177=0,OR(C179>0,C180>0,C181>0,C182>0,C183>0)),"* No olvide registrar al menos un ingreso y una persona con diagnóstico. ","") -> 
A178: FACTORES DE RIESGO Y CONDICIONANTES DE LA SALUD MENTAL
A179: VIOLENCIA | B179: VICTIMA | C179: =SUM(D179+E179) -> 0 | D179: =SUM(F179+H179+J179+L179+N179+P179+R179+T179+V179+X179+Z179+AB179+AD179+AF179+AH179+AJ179+AL179) -> 0 | E179: =SUM(G179+I179+K179+M179+O179+Q179+S179+U179+W179+Y179+AA179+AC179+AE179+AG179+AI179+AK179+AM179) -> 0 | AT179: =CA179&CB179&CC179&CD179&CE179&CF179&CN179 ->  | CA179: =IF(CG179=0,"","* Las gestantes ingresadas al Programa NO debe ser mayor al Total de Mujeres ingresadas. ") ->  | CB179: =IF(CH179=0,"","* Las madres de hijos menor de 5 años NO DEBE ser mayor al Total de Mujeres ingresadas al Programa. ") ->  | CC179: =IF(CI179=0,"","* Los ingresos de Pueblos Originarios NO DEBE ser mayor al Total de ingresos del Programa.") ->  | CD179: =IF(CJ179=0,"","* Los Niños, Niñas, Adolescentes y Jóvenes de Programas SENAME NO DEBE ser mayor al Total de ingresos del Programa. ") ->  | CE179: =IF(CK179=0,"","* Los Migrantes NO DEBEN ser mayor al Total de ingresos del Programa. ") ->  | CF179: =IF(CL179=0,"","* No olvide escribir los campos Gestante y/o Madre de Hijo menor de 5 años y/o Pueblos Originarios y/o Niños, Niñas, Adolescentes y Jóvenes de Programas SENAME y/o Migrante (Digite CERO si no tiene). ") ->  | CG179: =IF(E179<AN179,1,0) -> 0 | CH179: =IF(C179<AO179,1,0) -> 0 | CI179: =IF(C179<SUM(AP179,AQ179),1,0) -> 0 | CJ179: =IF(C179<AR179,1,0) -> 0 | CK179: =IF(C179<AS179,1,0) -> 0 | CL179: =IF(AND(C179<>0,OR(AN179="",AO179="",AP179="",AQ179="",AR179="",AS179="")),1,0) -> 0
B180: AGRESOR / A | C180: =SUM(D180+E180) -> 0 | D180: 0 | E180: 0 | CG180: 0 | CH180: 0 | CI180: 0 | CJ180: 0 | CK180: 0 | CL180: 0
A181: ABUSO SEXUAL | C181: =SUM(D181+E181) -> 0 | D181: 0 | E181: 0 | CG181: 0 | CH181: 0 | CI181: 0 | CJ181: 0 | CK181: 0 | CL181: 0 | CM181: 0
A182: SUICIDIO | B182: IDEACIÓN | C182: 0 | D182: 0 | E182: 0 | CG182: 0 | CH182: 0 | CI182: 0 | CJ182: 0 | CK182: 0 | CL182: 0
B183: INTENTO | C183: 0 | D183: 0 | E183: 0 | CG183: 0 | CH183: 0 | CI183: 0 | CJ183: 0 | CK183: 0 | CL183: 0
A184: PERSONAS CON DIAGNÓSTICOS DE TRASTORNOS MENTALES | C184: 40 | D184: 12 | E184: 28 | F184: 0 | G184: 0 | H184: 2 | I184: 1 | J184: 3 | K184: 3 | L184: 0 | M184: 2 | N184: 1 | O184: 3 | P184: 0 | Q184: 2 | R184: 0 | S184: 3 | T184: 1 | U184: 1 | V184: 0 | W184: 0 | X184: 0 | Y184: 7 | Z184: 0 | AA184: 1 | AB184: 1 | AC184: 3 | AD184: 0 | AE184: 0 | AF184: 3 | AG184: 2 | AH184: 0 | AI184: 0 | AJ184: 1 | AK184: 0 | AL184: 0 | AM184: 0 | AN184: 0 | AO184: 3 | AP184: 0 | AQ184: 1 | AR184: 1 | AS184: 0 | CG184: 0 | CH184: 0 | CI184: 0 | CJ184: 0 | CK184: 0 | CL184: 0 | CM184: 0
A185: TRASTORNOS DEL HUMOR (AFECTIVOS) | B185: DEPRESIÓN LEVE | C185: 2 | D185: 0 | E185: 2 | F185: 0 | G185: 0 | H185: 0 | I185: 0 | J185: 0 | K185: 1 | L185: 0 | M185: 0 | N185: 0 | O185: 0 | P185: 0 | Q185: 0 | R185: 0 | S185: 0 | T185: 0 | U185: 0 | V185: 0 | W185: 0 | X185: 0 | Y185: 0 | Z185: 0 | AA185: 0 | AB185: 0 | AC185: 0 | AD185: 0 | AE185: 0 | AF185: 0 | AG185: 1 | AH185: 0 | AI185: 0 | AJ185: 0 | AK185: 0 | AL185: 0 | AM185: 0 | AN185: 0 | AO185: 0 | AP185: 0 | AQ185: 0 | AR185: 0 | AS185: 0 | CG185: 0 | CH185: 0 | CI185: 0 | CJ185: 0 | CK185: 0 | CL185: 0
B186: DEPRESIÓN MODERADA | C186: 7 | D186: 2 | E186: 5 | F186: 0 | G186: 0 | H186: 0 | I186: 0 | J186: 0 | K186: 1 | L186: 0 | M186: 0 | N186: 0 | O186: 1 | P186: 0 | Q186: 0 | R186: 0 | S186: 0 | T186: 0 | U186: 1 | V186: 0 | W186: 0 | X186: 0 | Y186: 2 | Z186: 0 | AA186: 0 | AB186: 0 | AC186: 0 | AD186: 0 | AE186: 0 | AF186: 1 | AG186: 0 | AH186: 0 | AI186: 0 | AJ186: 1 | AK186: 0 | AL186: 0 | AM186: 0 | AN186: 0 | AO186: 1 | AP186: 0 | AQ186: 0 | AR186: 0 | AS186: 0 | CG186: 0 | CH186: 0 | CI186: 0 | CJ186: 0 | CK186: 0 | CL186: 0
B187: DEPRESIÓN GRAVE | C187: 1 | D187: 1 | E187: 0 | F187: 0 | G187: 0 | H187: 0 | I187: 0 | J187: 1 | K187: 0 | L187: 0 | M187: 0 | N187: 0 | O187: 0 | P187: 0 | Q187: 0 | R187: 0 | S187: 0 | T187: 0 | U187: 0 | V187: 0 | W187: 0 | X187: 0 | Y187: 0 | Z187: 0 | AA187: 0 | AB187: 0 | AC187: 0 | AD187: 0 | AE187: 0 | AF187: 0 | AG187: 0 | AH187: 0 | AI187: 0 | AJ187: 0 | AK187: 0 | AL187: 0 | AM187: 0 | AN187: 0 | AO187: 0 | AP187: 0 | AQ187: 0 | AR187: 0 | AS187: 0 | CG187: 0 | CH187: 0 | CI187: 0 | CJ187: 0 | CK187: 0 | CL187: 0
B188: DEPRESIÓN POST PARTO | C188: 0 | E188: =SUM(K188+M188+O188+Q188+S188+U188+W188+Y188+AA188+AC188+AE188+AG188+AI188+AK188+AM188) -> 0 | CG188: 0 | CH188: 0 | CI188: 0 | CJ188: 0 | CK188: 0 | CL188: =IF(AND(C188<>0,OR(AN188="",AO188="",AQ188="",AR188="",AS188="")),1,0) -> 0
B189: TRASTORNO BIPOLAR | C189: 0 | D189: =SUM(F189+H189+J189+L189+N189+P189+R189+T189+V189+X189+Z189+AB189+AD189+AF189+AH189+AJ189+AL189) -> 0 | E189: 0 | CG189: 0 | CH189: 0 | CI189: 0 | CJ189: 0 | CK189: 0 | CL189: 0
B190: DEPRESIÓN REFRACTARIA | C190: 0 | D190: 0 | E190: 0 | CG190: 0 | CH190: 0 | CI190: 0 | CJ190: 0 | CK190: 0 | CL190: 0
B191: DEPRESIÓN GRAVE CON PSICOSIS | C191: 1 | D191: 1 | E191: 0 | F191: 0 | G191: 0 | H191: 0 | I191: 0 | J191: 1 | K191: 0 | L191: 0 | M191: 0 | N191: 0 | O191: 0 | P191: 0 | Q191: 0 | R191: 0 | S191: 0 | T191: 0 | U191: 0 | V191: 0 | W191: 0 | X191: 0 | Y191: 0 | Z191: 0 | AA191: 0 | AB191: 0 | AC191: 0 | AD191: 0 | AE191: 0 | AF191: 0 | AG191: 0 | AH191: 0 | AI191: 0 | AJ191: 0 | AK191: 0 | AL191: 0 | AM191: 0 | AN191: 0 | AO191: 0 | AP191: 0 | AQ191: 0 | AR191: 0 | AS191: 0 | CG191: 0 | CH191: 0 | CI191: 0 | CJ191: 0 | CK191: 0 | CL191: 0
B192: DEPRESIÓN CON ALTO RIESGO SUICIDA | C192: 0 | D192: 0 | E192: 0 | CG192: 0 | CH192: 0 | CI192: 0 | CJ192: 0 | CK192: 0 | CL192: 0
A193: TRASTORNOS MENTALES Y DEL COMPORTAMIENTO DEBIDO A CONSUMO SUSTANCIAS PSICOTRÓPICAS | B193: CONSUMO PERJUDICIAL O DEPENDENCIA DE ALCOHOL | C193: 0 | D193: 0 | E193: 0 | CG193: 0 | CH193: 0 | CI193: 0 | CJ193: 0 | CK193: 0 | CL193: 0
B194: CONSUMO PERJUDICIAL O DEPENDENCIA COMO DROGA PRINCIPAL | C194: 0 | D194: 0 | E194: 0 | CG194: 0 | CH194: 0 | CI194: 0 | CJ194: 0 | CK194: 0 | CL194: 0
B195: POLICONSUMO | C195: 0 | D195: 0 | E195: 0 | CG195: 0 | CH195: 0 | CI195: 0 | CJ195: 0 | CK195: 0 | CL195: 0
A196: TRASTORNOS DEL COMPORTAMIENTO Y DE LAS EMOCIONES DE COMIENZO HABITUAL EN LA INFANCIA Y ADOLESCENCIA | B196: TRASTORNO HIPERCINÉTICOS | C196: 2 | D196: =SUM(F196+H196+J196+L196+N196) -> 2 | E196: =SUM(G196+I196+K196+M196+O196) -> 0 | F196: 0 | G196: 0 | H196: 2 | I196: 0 | AN196: 0 | AP196: 0 | AQ196: 0 | AR196: 0 | AS196: 0 | CG196: 0 | CI196: 0 | CJ196: 0 | CK196: 0 | CL196: =IF(AND(C196<>0,OR(AN196="",AP196="",AQ196="",AR196="",AS196="")),1,0) -> 0
B197: TRASTORNO DISOCIAL DESAFIANTE Y OPOSICIONISTA | C197: 0 | D197: 0 | E197: 0 | CG197: 0 | CI197: 0 | CJ197: 0 | CK197: 0 | CL197: =IF(AND(C197<>0,OR(AN197="",AP197="",AQ197="",AR197="",AS197="")),1,0) -> 0
B198: TRASTORNO DE ANSIEDAD DE SEPARACIÓN EN LA INFANCIA | C198: 0 | D198: 0 | E198: 0 | CG198: 0 | CI198: 0 | CJ198: 0 | CK198: 0 | CL198: =IF(AND(C198<>0,OR(AN198="",AP198="",AQ198="",AR198="",AS198="")),1,0) -> 0
B199: OTROS TRASTORNOS DEL COMPORTAMIENTO Y DE LAS EMOCIONES DE COMIENZO HABITUAL EN LA INFANCIA Y ADOLESCENCIA | C199: 0 | D199: 0 | E199: 0 | CG199: 0 | CI199: 0 | CJ199: 0 | CK199: 0 | CL199: =IF(AND(C199<>0,OR(AN199="",AP199="",AQ199="",AR199="",AS199="")),1,0) -> 0
A200: TRASTORNOS DE ANSIEDAD | B200: TRASTORNO DE ESTRÉS POST TRAUMATICO | C200: 0 | D200: =SUM(F200+H200+J200+L200+N200+P200+R200+T200+V200+X200+Z200+AB200+AD200+AF200+AH200+AJ200+AL200) -> 0 | E200: =SUM(G200+I200+K200+M200+O200+Q200+S200+U200+W200+Y200+AA200+AC200+AE200+AG200+AI200+AK200+AM200) -> 0 | F200: 0 | G200: 0 | H200: 0 | I200: 0 | J200: 0 | K200: 0 | L200: 0 | M200: 0 | N200: 0 | O200: 0 | P200: 0 | Q200: 0 | R200: 0 | S200: 0 | T200: 0 | U200: 0 | V200: 0 | W200: 0 | X200: 0 | Y200: 0 | Z200: 0 | AA200: 0 | AB200: 0 | AC200: 0 | AD200: 0 | AE200: 0 | AF200: 0 | AG200: 0 | AH200: 0 | AI200: 0 | AJ200: 0 | AK200: 0 | AL200: 0 | AM200: 0 | AN200: 0 | AO200: 0 | AP200: 0 | AQ200: 0 | AR200: 0 | AS200: 0 | CB200: =IF(CH200=0,"","* Las madres de hijos menor de 5 años NO DEBE ser mayor al Total de Mujeres ingresadas al Programa. ") ->  | CG200: 0 | CH200: =IF(C200<AO200,1,0) -> 0 | CI200: 0 | CJ200: 0 | CK200: 0 | CL200: 0
B201: TRASTORNO DE PÁNICO CON AGOROFOBIA | C201: 0 | D201: 0 | E201: 0 | F201: 0 | G201: 0 | H201: 0 | I201: 0 | J201: 0 | K201: 0 | L201: 0 | M201: 0 | N201: 0 | O201: 0 | P201: 0 | Q201: 0 | R201: 0 | S201: 0 | T201: 0 | U201: 0 | V201: 0 | W201: 0 | X201: 0 | Y201: 0 | Z201: 0 | AA201: 0 | AB201: 0 | AC201: 0 | AD201: 0 | AE201: 0 | AF201: 0 | AG201: 0 | AH201: 0 | AI201: 0 | AJ201: 0 | AK201: 0 | AL201: 0 | AM201: 0 | AN201: 0 | AO201: 0 | AP201: 0 | AQ201: 0 | AR201: 0 | AS201: 0 | CG201: 0 | CH201: 0 | CI201: 0 | CJ201: 0 | CK201: 0 | CL201: 0
B202: TRASTORNO DE PÁNICO SIN AGOROFOBIA | C202: 3 | D202: 1 | E202: 2 | F202: 0 | G202: 0 | H202: 0 | I202: 0 | J202: 1 | K202: 1 | L202: 0 | M202: 1 | N202: 0 | O202: 0 | P202: 0 | Q202: 0 | R202: 0 | S202: 0 | T202: 0 | U202: 0 | V202: 0 | W202: 0 | X202: 0 | Y202: 0 | Z202: 0 | AA202: 0 | AB202: 0 | AC202: 0 | AD202: 0 | AE202: 0 | AF202: 0 | AG202: 0 | AH202: 0 | AI202: 0 | AJ202: 0 | AK202: 0 | AL202: 0 | AM202: 0 | AN202: 0 | AO202: 0 | AP202: 0 | AQ202: 0 | AR202: 0 | AS202: 0 | CG202: 0 | CH202: 0 | CI202: 0 | CJ202: 0 | CK202: 0 | CL202: 0
... 140 more rows

Sheet A06
A1: SERVICIO DE SALUD
A2: =CONCATENATE("COMUNA: ",NOMBRE!B2," - ","( ",NOMBRE!C2,NOMBRE!D2,NOMBRE!E2,NOMBRE!F2,NOMBRE!G2," )") -> COMUNA: CALLE LARGA - ( 05302 )
A3: =CONCATENATE("ESTABLECIMIENTO/ESTRATEGIA: ",NOMBRE!B3," - ","( ",NOMBRE!C3,NOMBRE!D3,NOMBRE!E3,NOMBRE!F3,NOMBRE!G3,NOMBRE!H3," )") -> ESTABLECIMIENTO/ESTRATEGIA: DR. JOSE JOAQUIN AGUIRRE CAMPOS - ( 108308 )
A4: =CONCATENATE("MES: ",NOMBRE!B6," - ","( ",NOMBRE!C6,NOMBRE!D6," )") -> MES: DICIEMBRE - ( 12 )
A5: =CONCATENATE("AÑO: ",NOMBRE!B7) -> AÑO: 2022
A6: REM-06. PROGRAMA DE SALUD MENTAL ATENCIÓN PRIMARIA Y ESPECIALIDADES
A9: SECCIÓN A.1: CONTROLES DE ATENCIÓN PRIMARIA / ESPECIALIDADES
A10: ACTIVIDAD | B10: PROFESIONAL | C10: TOTAL | F10: GRUPOS DE EDAD (en años) | AN10: Beneficiarios | AO10: Niños, Niñas, Adolescentes y Jóvenes Población SENAME | AP10: Pueblos Originarios | AQ10: Migrantes | AR10: Demencia
F11: 0 - 4 | H11: 5 - 9 | J11: 10 - 14 | L11: 15 - 19 | N11: 20 - 24 | P11: 25 - 29 | R11: 30 - 34 | T11: 35 - 39 | V11: 40 - 44 | X11: 45 - 49 | Z11: 50 - 54 | AB11: 55 - 59 | AD11: 60 - 64 | AF11: 65 - 69 | AH11: 70 - 74 | AJ11: 75 - 79 | AL11: 80 y mas
C12: Ambos Sexos | D12: Hombres | E12: Mujeres | F12: Hombres | G12: Mujeres | H12: Hombres | I12: Mujeres | J12: Hombres | K12: Mujeres | L12: Hombres | M12: Mujeres | N12: Hombres | O12: Mujeres | P12: Hombres | Q12: Mujeres | R12: Hombres | S12: Mujeres | T12: Hombres | U12: Mujeres | V12: Hombres | W12: Mujeres | X12: Hombres | Y12: Mujeres | Z12: Hombres | AA12: Mujeres | AB12: Hombres | AC12: Mujeres | AD12: Hombres | AE12: Mujeres | AF12: Hombres | AG12: Mujeres | AH12: Hombres | AI12: Mujeres | AJ12: Hombres | AK12: Mujeres | AL12: Hombres | AM12: Mujeres
A13: CONTROLES SALUD MENTAL | B13: MÉDICO | C13: =SUM(D13+E13) -> 123 | D13: =SUM(F13+H13+J13+L13+N13+P13+R13+T13+V13+X13+Z13+AB13+AD13+AF13+AH13+AJ13+AL13) -> 30 | E13: =SUM(G13+I13+K13+M13+O13+Q13+S13+U13+W13+Y13+AA13+AC13+AE13+AG13+AI13+AK13+AM13) -> 93 | F13: 0 | G13: 0 | H13: 3 | I13: 2 | J13: 5 | K13: 6 | L13: 0 | M13: 5 | N13: 1 | O13: 7 | P13: 1 | Q13: 5 | R13: 1 | S13: 6 | T13: 1 | U13: 6 | V13: 0 | W13: 3 | X13: 2 | Y13: 14 | Z13: 1 | AA13: 5 | AB13: 3 | AC13: 6 | AD13: 2 | AE13: 10 | AF13: 4 | AG13: 12 | AH13: 3 | AI13: 3 | AJ13: 3 | AK13: 0 | AL13: 0 | AM13: 3 | AN13: 122 | AO13: 1 | AP13: 2 | AQ13: 0 | AR13: 1 | AS13: =CONCATENATE(CA13,CB13,CC13,CD13,CE13,CF13) ->  | CA13: =IF(CG13=1,"* El número de Beneficiarios NO DEBE ser mayor que el Total. ","") ->  | CB13: =IF(CH13=1,"* Los Niños, Niñas, Adolescentes y Jóvenes de Programa SENAME NO DEBE ser mayor que el Total. ","") ->  | CC13: =IF(CI13=1,"* El número de personas pertenecientes a Pueblos Originarios NO DEBE ser mayor que el Total. ","") ->  | CD13: =IF(CJ13=1,"* El número de personas Migrantes NO DEBE ser mayor que el Total. ","") ->  | CE13: =IF(CK13=1,"* El número de personas con Demencia NO DEBE ser mayor que el Total. ","") ->  | CF13: =IF(CL13=1,"* No olvide digitar la columna Beneficiarios y/o Niños, Niñas, Adolescentes y Jóvenes de Programa SENAME y/o Pueblos Originarios y/o Migrantes y/o Demencia (Digite CEROS si no tiene). ","") ->  | CG13: =IF($C13<AN13,1,0) -> 0 | CH13: =IF($C13<AO13,1,0) -> 0 | CI13: =IF($C13<AP13,1,0) -> 0 | CJ13: =IF($C13<AQ13,1,0) -> 0 | CK13: =IF($C13<AR13,1,0) -> 0 | CL13: =IF(AND(C13<>0,OR(AN13="",AO13="",AP13="",AQ13="",AR13="")),1,0) -> 0
B14: PSICÓLOGO/A | C14: 241 | D14: 72 | E14: 169 | F14: 0 | G14: 1 | H14: 7 | I14: 3 | J14: 16 | K14: 22 | L14: 6 | M14: 18 | N14: 1 | O14: 12 | P14: 3 | Q14: 13 | R14: 5 | S14: 10 | T14: 6 | U14: 7 | V14: 3 | W14: 8 | X14: 3 | Y14: 12 | Z14: 7 | AA14: 11 | AB14: 3 | AC14: 18 | AD14: 3 | AE14: 15 | AF14: 4 | AG14: 8 | AH14: 3 | AI14: 5 | AJ14: 1 | AK14: 2 | AL14: 1 | AM14: 4 | AN14: 238 | AO14: 2 | AP14: 2 | AQ14: 0 | AR14: 0 | CC14: =IF(CI14=1,"* El total de personas pertenecientes a Pueblos Originarios NO DEBE ser mayor que el Total. ","") ->  | CG14: 0 | CH14: 0 | CI14: 0 | CJ14: 0 | CK14: 0 | CL14: 0
B15: ENFERMERA /O | C15: 0 | D15: 0 | E15: 0 | F15: 0 | G15: 0 | H15: 0 | I15: 0 | J15: 0 | K15: 0 | L15: 0 | M15: 0 | N15: 0 | O15: 0 | P15: 0 | Q15: 0 | R15: 0 | S15: 0 | T15: 0 | U15: 0 | V15: 0 | W15: 0 | X15: 0 | Y15: 0 | Z15: 0 | AA15: 0 | AB15: 0 | AC15: 0 | AD15: 0 | AE15: 0 | AF15: 0 | AG15: 0 | AH15: 0 | AI15: 0 | AJ15: 0 | AK15: 0 | AL15: 0 | AM15: 0 | AN15: 0 | AO15: 0 | AP15: 0 | AQ15: 0 | AR15: 0 | CG15: 0 | CH15: 0 | CI15: 0 | CJ15: 0 | CK15: 0 | CL15: 0
B16: MATRONA /ÓN | C16: 0 | D16: 0 | E16: 0 | F16: 0 | G16: 0 | H16: 0 | I16: 0 | J16: 0 | K16: 0 | L16: 0 | M16: 0 | N16: 0 | O16: 0 | P16: 0 | Q16: 0 | R16: 0 | S16: 0 | T16: 0 | U16: 0 | V16: 0 | W16: 0 | X16: 0 | Y16: 0 | Z16: 0 | AA16: 0 | AB16: 0 | AC16: 0 | AD16: 0 | AE16: 0 | AF16: 0 | AG16: 0 | AH16: 0 | AI16: 0 | AJ16: 0 | AK16: 0 | AL16: 0 | AM16: 0 | AN16: 0 | AO16: 0 | AP16: 0 | AQ16: 0 | AR16: 0 | CG16: 0 | CH16: 0 | CI16: 0 | CJ16: 0 | CK16: 0 | CL16: 0
B17: ASISTENTE SOCIAL | C17: 0 | D17: 0 | E17: 0 | F17: 0 | G17: 0 | H17: 0 | I17: 0 | J17: 0 | K17: 0 | L17: 0 | M17: 0 | N17: 0 | O17: 0 | P17: 0 | Q17: 0 | R17: 0 | S17: 0 | T17: 0 | U17: 0 | V17: 0 | W17: 0 | X17: 0 | Y17: 0 | Z17: 0 | AA17: 0 | AB17: 0 | AC17: 0 | AD17: 0 | AE17: 0 | AF17: 0 | AG17: 0 | AH17: 0 | AI17: 0 | AJ17: 0 | AK17: 0 | AL17: 0 | AM17: 0 | AN17: 0 | AO17: 0 | AP17: 0 | AQ17: 0 | AR17: 0 | CG17: 0 | CH17: 0 | CI17: 0 | CJ17: 0 | CK17: 0 | CL17: 0
B18: OTROS PROFESIONALES | C18: 0 | D18: 0 | E18: 0 | F18: 0 | G18: 0 | H18: 0 | I18: 0 | J18: 0 | K18: 0 | L18: 0 | M18: 0 | N18: 0 | O18: 0 | P18: 0 | Q18: 0 | R18: 0 | S18: 0 | T18: 0 | U18: 0 | V18: 0 | W18: 0 | X18: 0 | Y18: 0 | Z18: 0 | AA18: 0 | AB18: 0 | AC18: 0 | AD18: 0 | AE18: 0 | AF18: 0 | AG18: 0 | AH18: 0 | AI18: 0 | AJ18: 0 | AK18: 0 | AL18: 0 | AM18: 0 | AN18: 0 | AO18: 0 | AP18: 0 | AQ18: 0 | AR18: 0 | CG18: 0 | CH18: 0 | CI18: 0 | CJ18: 0 | CK18: 0 | CL18: 0
B19: TERAPEUTA OCUPACIONAL | C19: 0 | D19: 0 | E19: 0 | CG19: 0 | CH19: 0 | CI19: 0 | CJ19: 0 | CK19: 0 | CL19: 0
B20: TÉCNICO PARAMÉDICO y EN SALUD MENTAL | C20: 0 | D20: 0 | E20: 0 | CG20: 0 | CH20: 0 | CI20: 0 | CJ20: 0 | CK20: 0 | CL20: 0
B21: GESTOR COMUNITARIO | C21: 0 | D21: 0 | E21: 0 | CG21: 0 | CH21: 0 | CI21: 0 | CJ21: 0 | CK21: 0 | CL21: 0
B22: TÉCNICO REHABILITACIÓN ALCOHOL Y DROGAS | C22: 0 | D22: 0 | E22: 0 | CG22: 0 | CH22: 0 | CI22: 0 | CJ22: 0 | CK22: 0 | CL22: 0
B23: TOTAL | C23: 364 | D23: 102 | E23: 262 | F23: =SUM(F13:F22) -> 0 | G23: =SUM(G13:G22) -> 1 | H23: 10 | I23: 5 | J23: 21 | K23: 28 | L23: 6 | M23: 23 | N23: 2 | O23: 19 | P23: 4 | Q23: 18 | R23: 6 | S23: 16 | T23: 7 | U23: 13 | V23: 3 | W23: 11 | X23: 5 | Y23: 26 | Z23: 8 | AA23: 16 | AB23: 6 | AC23: 24 | AD23: 5 | AE23: 25 | AF23: 8 | AG23: 20 | AH23: 6 | AI23: 8 | AJ23: 4 | AK23: 2 | AL23: 1 | AM23: 7 | AN23: 360 | AO23: 3 | AP23: 4 | AQ23: 0 | AR23: 1 | CG23: 0 | CH23: 0 | CI23: 0 | CJ23: 0 | CK23: 0 | CL23: 0
A24: INTERVENCIÓN PSICOSOCIAL GRUPAL | C24: 0 | D24: 0 | E24: 0 | AS24: =CONCATENATE(CA24,CB24,CC24,CD24,CE24,CF24) ->  | CA24: =IF(CG24=1,"* El número de Beneficiarios NO DEBE ser mayor que el Total. ","") ->  | CB24: =IF(CH24=1,"* Los Niños, Niñas, Adolescentes y Jóvenes de Programa SENAME NO DEBE ser mayor que el Total. ","") ->  | CG24: 0 | CH24: 0 | CI24: 0 | CJ24: 0 | CK24: 0 | CL24: 0
A25: PSICODIAGNOSTICO | B25: PSICÓLOGO/A | C25: 0 | D25: 0 | E25: 0 | AS25: =CONCATENATE(CA25,CB25,CC25,CD25,CE25,CF25) ->  | CA25: =IF(CG25=1,"* El número de Beneficiarios NO DEBE ser mayor que el Total. ","") ->  | CB25: =IF(CH25=1,"* Los Niños, Niñas, Adolescentes y Jóvenes de Programa SENAME NO DEBE ser mayor que el Total. ","") ->  | CG25: 0 | CH25: 0 | CI25: 0 | CJ25: 0 | CK25: 0 | CL25: 0
A26: PSICOTERAPIA INDIVIDUAL | B26: PSICÓLOGO/A | C26: 0 | D26: 0 | E26: 0 | AS26: =CONCATENATE(CA26,CB26,CC26,CD26,CE26,CF26) ->  | CA26: =IF(CG26=1,"* El número de Beneficiarios NO DEBE ser mayor que el Total. ","") ->  | CB26: =IF(CH26=1,"* Los Niños, Niñas, Adolescentes y Jóvenes de Programa SENAME NO DEBE ser mayor que el Total. ","") ->  | CG26: 0 | CH26: 0 | CI26: 0 | CJ26: 0 | CK26: 0 | CL26: 0
B27: MÉDICO PSIQUIATRA | C27: 0 | D27: 0 | E27: 0 | AS27: =CONCATENATE(CA27,CB27,CC27,CD27,CE27,CF27) ->  | CA27: =IF(CG27=1,"* El número de Beneficiarios NO DEBE ser mayor que el Total. ","") ->  | CB27: =IF(CH27=1,"* Los Niños, Niñas, Adolescentes y Jóvenes de Programa SENAME NO DEBE ser mayor que el Total. ","") ->  | CG27: 0 | CH27: 0 | CI27: 0 | CJ27: 0 | CK27: 0 | CL27: 0
A28: SECCIÓN A.2: CONSULTORÍAS DE SALUD MENTAL EN APS
A29: ACTIVIDAD | B29: TOTAL CONSULTORÍAS Y TELECONSULTORÍAS RECIBIDAS | C29: CONSULTORÍAS Y TELECONSULTORÍAS RECIBIDAS | E29: TOTAL Nº DE CASOS REVISADOS | H29: 0 - 4 | J29: 5 - 9 | L29: 10 - 14 | N29: 15 - 19 | P29: 20 - 24 | R29: 25 - 29 | T29: 30 - 34 | V29: 35 - 39 | X29: 40 - 44 | Z29: 45 - 49 | AB29: 50 - 54 | AD29: 55 - 59 | AF29: 60 - 64 | AH29: 65 - 69 | AJ29: 70 - 74 | AL29: 75 - 79 | AN29: 80 y mas
C30: CONSULTORÍAS Y TELECONSULTORÍAS DE SALUD MENTAL INFANTO ADOLESCENTE | D30: CONSULTORÍAS Y TELECONSULTORÍAS DE SALUD MENTAL ADULTO | E30: Ambos Sexos | F30: Hombres | G30: Mujeres | H30: Hombres | I30: Mujeres | J30: Hombres | K30: Mujeres | L30: Hombres | M30: Mujeres | N30: Hombres | O30: Mujeres | P30: Hombres | Q30: Mujeres | R30: Hombres | S30: Mujeres | T30: Hombres | U30: Mujeres | V30: Hombres | W30: Mujeres | X30: Hombres | Y30: Mujeres | Z30: Hombres | AA30: Mujeres | AB30: Hombres | AC30: Mujeres | AD30: Hombres | AE30: Mujeres | AF30: Hombres | AG30: Mujeres | AH30: Hombres | AI30: Mujeres | AJ30: Hombres | AK30: Mujeres | AL30: Hombres | AM30: Mujeres | AN30: Hombres | AO30: Mujeres
A31: CONSULTORÍAS DE SALUD MENTAL | B31: =SUM(C31:D31) -> 0 | E31: =SUM(F31+G31) -> 0 | F31: =SUM(H31+J31+L31+N31+P31+R31+T31+V31+X31+Z31+AB31+AD31+AF31+AH31+AJ31+AL31+AN31) -> 0 | G31: =SUM(I31+K31+M31+O31+Q31+S31+U31+W31+Y31+AA31+AC31+AE31+AG31+AI31+AK31+AM31+AO31) -> 0
A32: TELECONSULTORÍAS DE SALUD MENTAL | B32: =SUM(C32:D32) -> 0 | E32: =SUM(F32+G32) -> 0 | F32: =SUM(H32+J32+L32+N32+P32+R32+T32+V32+X32+Z32+AB32+AD32+AF32+AH32+AJ32+AL32+AN32) -> 0 | G32: =SUM(I32+K32+M32+O32+Q32+S32+U32+W32+Y32+AA32+AC32+AE32+AG32+AI32+AK32+AM32+AO32) -> 0
A33: TOTAL | B33: =SUM(B31:B32) -> 0 | C33: 0 | D33: 0 | E33: 0 | F33: 0 | G33: 0 | H33: 0 | I33: =SUM(I31:I32) -> 0 | J33: 0 | K33: 0 | L33: 0 | M33: 0 | N33: 0 | O33: 0 | P33: 0 | Q33: 0 | R33: 0 | S33: 0 | T33: 0 | U33: 0 | V33: 0 | W33: 0 | X33: 0 | Y33: 0 | Z33: 0 | AA33: 0 | AB33: 0 | AC33: 0 | AD33: 0 | AE33: 0 | AF33: 0 | AG33: 0 | AH33: 0 | AI33: 0 | AJ33: 0 | AK33: 0 | AL33: 0 | AM33: 0 | AN33: 0 | AO33: 0
A34: SECCIÓN A.3: CONSULTORÍAS DE SALUD MENTAL OTORGADA POR EL NIVEL DE ESPECIALIDAD
A35: ACTIVIDAD | B35: TOTAL CONSULTORÍAS Y TELECONSULTORÍAS OTORGADAS | C35: CONSULTORÍAS Y TELECONSULTORÍAS OTORGADAS | E35: TOTAL Nº DE CASOS REVISADOS | H35: Participantes
C36: CONSULTORÍAS Y TELECONSULTORÍAS DE SALUD MENTAL INFANTO ADOLESCENTE | D36: CONSULTORÍAS Y TELECONSULTORÍAS DE SALUD MENTAL ADULTO | E36: Ambos Sexos | F36: Hombres | G36: Mujeres | H36: Médico psiquiatra | I36: Médico Psiquiatría más un profesional | J36: Médico Psiquiatría más dos Profesionales | K36: Médico Psiquiatría con más de dos Profesionales | L36: Dos profesionales | M36: Más de dos profesionales
A37: CONSULTORÍAS DE SALUD MENTAL | B37: =SUM(C37:D37) -> 0 | E37: =SUM(F37:G37) -> 0
A38: TELECONSULTORÍAS DE SALUD MENTAL | B38: =SUM(C38:D38) -> 0 | E38: =SUM(F38:G38) -> 0
A39: TOTAL | B39: =SUM(B37:B38) -> 0 | C39: 0 | D39: 0 | E39: 0 | F39: 0 | G39: 0 | H39: 0 | I39: =SUM(I37:I38) -> 0 | J39: 0 | K39: 0 | L39: 0 | M39: 0
A40: SECCIÓN B.1: ACTIVIDADES GRUPALES (NÚMERO DE SESIONES)
A41: ACTIVIDAD | B41: PROFESIONAL | C41: TOTAL
A43: PSICOTERAPIA GRUPAL | B43: MÉDICO PSIQUIATRA
B44: PSICÓLOGO
A45: PSICOTERAPIA FAMILIAR | B45: MÉDICO PSIQUIATRA
B46: PSICÓLOGO
A47: SECCIÓN B.2: PROGRAMA DE REHABILITACIÓN (PERSONAS CON TRASTORNOS PSIQUIÁTRICOS)
A48: TIPO | C48: TOTAL | F48: GRUPOS DE EDAD (en años) | AN48: Beneficiarios
F49: 0 - 4 | H49: 5 - 9 | J49: 10 - 14 | L49: 15 - 19 | N49: 20 - 24 | P49: 25 - 29 | R49: 30 - 34 | T49: 35 - 39 | V49: 40 - 44 | X49: 45 - 49 | Z49: 50 - 54 | AB49: 55 - 59 | AD49: 60 - 64 | AF49: 65 - 69 | AH49: 70 - 74 | AJ49: 75 - 79 | AL49: 80 y mas
C50: Ambos Sexos | D50: Hombres | E50: Mujeres | F50: Hombres | G50: Mujeres | H50: Hombres | I50: Mujeres | J50: Hombres | K50: Mujeres | L50: Hombres | M50: Mujeres | N50: Hombres | O50: Mujeres | P50: Hombres | Q50: Mujeres | R50: Hombres | S50: Mujeres | T50: Hombres | U50: Mujeres | V50: Hombres | W50: Mujeres | X50: Hombres | Y50: Mujeres | Z50: Hombres | AA50: Mujeres | AB50: Hombres | AC50: Mujeres | AD50: Hombres | AE50: Mujeres | AF50: Hombres | AG50: Mujeres | AH50: Hombres | AI50: Mujeres | AJ50: Hombres | AK50: Mujeres | AL50: Hombres | AM50: Mujeres
A51: PROGRAMA DE REHABILITACIÓN TIPO I | B51: DÍAS PERSONA | C51: =SUM(D51+E51) -> 0 | D51: =SUM(F51+H51+J51+L51+N51+P51+R51+T51+V51+X51+Z51+AB51+AD51+AF51+AH51+AJ51+AL51) -> 0 | E51: =SUM(G51+I51+K51+M51+O51+Q51+S51+U51+W51+Y51+AA51+AC51+AE51+AG51+AI51+AK51+AM51) -> 0 | AO51: =CA51&CB51 ->  | CA51: =IF(CG51=1,"* El número de Beneficiarios NO DEBE ser mayor que el total. ","") ->  | CB51: =IF(CH51=1,"* No olvide digitar la columna Beneficiarios. ","") ->  | CG51: =IF(C51<AN51,1,0) -> 0 | CH51: =IF(AND(C51<>0,AN51=""),1,0) -> 0
A52: PROGRAMA DE REHABILITACIÓN TIPO II | B52: DÍAS PERSONA | C52: =SUM(D52+E52) -> 0 | D52: =SUM(F52+H52+J52+L52+N52+P52+R52+T52+V52+X52+Z52+AB52+AD52+AF52+AH52+AJ52+AL52) -> 0 | E52: =SUM(G52+I52+K52+M52+O52+Q52+S52+U52+W52+Y52+AA52+AC52+AE52+AG52+AI52+AK52+AM52) -> 0 | AO52: =CA52&CB52 ->  | CA52: =IF(CG52=1,"* El número de Beneficiarios NO DEBE ser mayor que el total. ","") ->  | CB52: =IF(CH52=1,"* No olvide digitar la columna Beneficiarios. ","") ->  | CG52: =IF(C52<AN52,1,0) -> 0 | CH52: =IF(AND(C52<>0,AN52=""),1,0) -> 0
A53: SECCIÓN B.3: ACTIVIDADES DE PSIQUIATRÍA FORENSE PARA PERSONAS EN CONFLICTO CON LA JUSTICIA (En lo Penal, Civil, Familiar, etc.)
A54: ACTIVIDAD | C54: TOTAL | F54: GRUPOS DE EDAD (en años) | AN54: Beneficiarios
F55: 0 - 4 | H55: 5 - 9 | J55: 10 - 14 | L55: 15 - 19 | N55: 20 - 24 | P55: 25 - 29 | R55: 30 - 34 | T55: 35 - 39 | V55: 40 - 44 | X55: 45 - 49 | Z55: 50 - 54 | AB55: 55 - 59 | AD55: 60 - 64 | AF55: 65 - 69 | AH55: 70 - 74 | AJ55: 75 - 79 | AL55: 80 y mas
C56: Ambos Sexos | D56: Hombres | E56: Mujeres | F56: Hombres | G56: Mujeres | H56: Hombres | I56: Mujeres | J56: Hombres | K56: Mujeres | L56: Hombres | M56: Mujeres | N56: Hombres | O56: Mujeres | P56: Hombres | Q56: Mujeres | R56: Hombres | S56: Mujeres | T56: Hombres | U56: Mujeres | V56: Hombres | W56: Mujeres | X56: Hombres | Y56: Mujeres | Z56: Hombres | AA56: Mujeres | AB56: Hombres | AC56: Mujeres | AD56: Hombres | AE56: Mujeres | AF56: Hombres | AG56: Mujeres | AH56: Hombres | AI56: Mujeres | AJ56: Hombres | AK56: Mujeres | AL56: Hombres | AM56: Mujeres
A57: PERITAJE PSIQUIÁTRICO JUDICIAL | B57: MÉDICO | C57: =SUM(D57+E57) -> 0 | D57: =SUM(H57+J57+L57+N57+P57+R57+T57+V57+X57+Z57+AB57+AD57+AF57+AH57+AJ57+AL57) -> 0 | E57: 0 | AO57: =CA57&CB57 ->  | CA57: =IF(CG57=1,"* El número de Beneficiarios NO DEBE ser mayor que el total. ","") ->  | CB57: =IF(CH57=1,"* No olvide digitar la columna Beneficiarios. ","") ->  | CG57: =IF(C57<AN57,1,0) -> 0 | CH57: =IF(AND(C57<>0,AN57=""),1,0) -> 0
B58: MÉDICO PSIQUIATRA | C58: 0 | D58: 0 | E58: 0 | CG58: 0 | CH58: 0
B59: PSICÓLOGO/A | C59: 0 | D59: 0 | E59: 0 | CG59: 0 | CH59: 0
B60: ENFERMERO/A | C60: 0 | D60: 0 | E60: 0 | CG60: 0 | CH60: 0
B61: ASISTENTE SOCIAL | C61: 0 | D61: 0 | E61: 0 | CG61: 0 | CH61: 0
B62: OTROS PROFESIONALES | C62: 0 | D62: 0 | E62: 0 | CG62: 0 | CH62: 0
A63: EXAMEN PRELIMINAR EN DROGAS PARA ADOLESCENTES IMPUTADOS / CONDENADOS | B63: PSICÓLOGO/A | C63: 0 | D63: =SUM(J63+L63+N63) -> 0 | E63: 0 | CG63: 0 | CH63: 0
B64: ASISTENTE SOCIAL | C64: 0 | D64: 0 | E64: 0 | CG64: 0 | CH64: 0
A65: EVALUACIÓN CLÍNICA PARA ADOLESCENTES IMPUTADOS CON CONSUMO DE DROGAS | B65: MÉDICO | C65: 0 | D65: 0 | E65: 0 | CG65: 0 | CH65: 0
B66: MÉDICO PSIQUIATRA | C66: 0 | D66: 0 | E66: 0 | CG66: 0 | CH66: 0
B67: PSICÓLOGO/A | C67: 0 | D67: 0 | E67: 0 | CG67: 0 | CH67: 0
B68: ASISTENTE SOCIAL | C68: 0 | D68: 0 | E68: 0 | CG68: 0 | CH68: 0
A69: EXAMEN MENTAL PRELIMINAR A PERSONAS IMPUTADAS | B69: MÉDICO | C69: 0 | D69: =SUM(J69+L69+N69+P69+R69+T69+V69+X69+Z69+AB69+AD69+AF69+AH69+AJ69+AL69) -> 0 | E69: =SUM(K69+M69+O69+Q69+S69+U69+W69+Y69+AA69+AC69+AE69+AG69+AI69+AK69+AM69) -> 0 | CG69: 0 | CH69: 0
B70: MÉDICO PSIQUIATRA | C70: 0 | D70: 0 | E70: 0 | CG70: 0 | CH70: 0
A71: PERITAJE DROGAS | B71: MÉDICO | C71: 0 | D71: 0 | E71: 0 | CG71: 0 | CH71: 0
B72: MÉDICO PSIQUIATRA | C72: 0 | D72: 0 | E72: 0 | CG72: 0 | CH72: 0
A73: ATENCIÓN A AGRESORES DERIVADOS DE TRIBUNALES (LEY DE VIOLENCIA INTRAFAMILIAR | B73: MÉDICO | C73: 0 | D73: 0 | E73: 0 | CG73: 0 | CH73: 0
B74: MÉDICO PSIQUIATRA | C74: 0 | D74: 0 | E74: 0 | CG74: 0 | CH74: 0
B75: PSICÓLOGO/A | C75: 0 | D75: 0 | E75: 0 | CG75: 0 | CH75: 0
B76: ENFERMERO/A | C76: 0 | D76: 0 | E76: 0 | CG76: 0 | CH76: 0
B77: ASISTENTE SOCIAL | C77: 0 | D77: 0 | E77: 0 | CG77: 0 | CH77: 0
B78: OTROS PROFESIONALES | C78: 0 | D78: 0 | E78: 0 | CG78: 0 | CH78: 0
A79: SECCIÓN B.4: DISPOSITIVOS DE SALUD MENTAL
A80: TIPO DE DISPOSITIVO | C80: Nº DE PERSONAS ATENDIDAS | E80: DÍAS DE ESTADA DE PERSONAS ATENDIDAS EN EL MES | G80: Nº DE EGRESOS | I80: Nº DE PERSONAS EN LISTA DE ESPERA
C81: Menos de 20 años | D81: 20 y más años | E81: Menos de 20 años | F81: 20 y más años | G81: Menos de 20 años | H81: 20 y más años | I81: Menos de 20 años | J81: 20 y más años
A82: HOGAR PROTEGIDO
A83: RESIDENCIA PROTEGIDA
A84: HOSPITAL PSIQUIÁTRICO DIURNO
A85: CENTRO PRIVATIVO DE LIBERTAD (SENAME)
A86: SECCIÓN C.1: ACTIVIDADES DE COORDINACION SECTORIAL, INTERSECTORIAL Y COMUNITARIA
A87: ACTIVIDADES | B87: TOTAL DE PARTICIPANTES | C87: Nº REUNIONES / SESIONES | D87: Nº INSTITUCIONES, ORGANIZACIONES PARTICIPANTES
A89: TRABAJO INTERSECTORIAL
A90: TRABAJO CON ORGANIZACIONES COMUNITARIAS DE BASE
A91: TRABAJO CON ORGANIZACIONES DE USUARIOS Y FAMILIARES
A92: COLABORACIÓN CON GRUPO DE AUTOAYUDA
A93: REUNIONES CON INSTITUCIONES DEL SECTOR SALUD PROGRAMA ACOMPAÑAMIENTO PSICOSOCIAL
A94: REUNIONES CON INSTITUCIONES DEL INTERSECTOR ACOMPAÑAMIENTO PSICOSOCIAL
A95: REUNIONES CON ORGANIZACIONES COMUNITARIAS ACOMPAÑAMIENTO PSICOSOCIAL
A96: SECCIÓN C.2: INFORMES A TRIBUNALES
A97: TRIBUNALES | B97: Nº INFORMES | C97: ASISTENCIA A TRIBUNALES
C98: Nº de profesionales | D98: Nº de veces
A99: DE FAMILIA
A100: PENALES
A101: CIVILES
A102: POLICÍA LOCAL
A103: LABORALES
A104: TOTAL | B104: =SUM(B99:B103) -> 0 | C104: =SUM(C99:C103) -> 0 | D104: =SUM(D99:D103) -> 0
A105: SECCIÓN D: PLANES Y EVALUACIONES PROGRAMA DE ACOMPAÑAMIENTO PSICOSOCIAL EN ATENCIÓN PRIMARIA
A106: ACTIVIDAD | B106: TOTAL | E106: GRUPOS DE EDAD (en años)
E107: 0 - 4 | G107: 5 - 9 | I107: 10 - 14 | K107: 15 - 19 | M107: 20 - 24
B108: Ambos Sexos | C108: Hombres | D108: Mujeres | E108: Hombres | F108: Mujeres | G108: Hombres | H108: Mujeres | I108: Hombres | J108: Mujeres | K108: Hombres | L108: Mujeres | M108: Hombres | N108: Mujeres
A109: PLAN DE ACOMPAÑAMIENTO ELABORADOS | B109: =SUM(C109:D109) -> 0 | C109: =SUM(E109+G109+I109+K109+M109) -> 0 | D109: =SUM(F109+H109+J109+L109+N109) -> 0
A110: EVALUACIONES PARTICIPATIVAS REALIZADAS AL EGRESO DEL PROGRAMA | B110: =SUM(C110:D110) -> 0 | C110: =SUM(E110+G110+I110+K110+M110) -> 0 | D110: =SUM(F110+H110+J110+L110+N110) -> 0
A111: SECCIÓN E: PLANES DE CUIDADO INTEGRAL (PCI)
A112: ACTIVIDAD | B112: TOTAL | E112: GRUPOS DE EDAD (en años) | AM112: Niños, Niñas, Adolescentes y Jóvenes Población SENAME
E113: 0 - 4 | G113: 5 - 9 | I113: 10 - 14 | K113: 15 - 19 | M113: 20 - 24 | O113: 25 - 29 | Q113: 30 - 34 | S113: 35 - 39 | U113: 40 - 44 | W113: 45 - 49 | Y113: 50 - 54 | AA113: 55 - 59 | AC113: 60 - 64 | AE113: 65 - 69 | AG113: 70 - 74 | AI113: 75 - 79 | AK113: 80 y mas
B114: Ambos Sexos | C114: Hombres | D114: Mujeres | E114: Hombres | F114: Mujeres | G114: Hombres | H114: Mujeres | I114: Hombres | J114: Mujeres | K114: Hombres | L114: Mujeres | M114: Hombres | N114: Mujeres | O114: Hombres | P114: Mujeres | Q114: Hombres | R114: Mujeres | S114: Hombres | T114: Mujeres | U114: Hombres | V114: Mujeres | W114: Hombres | X114: Mujeres | Y114: Hombres | Z114: Mujeres | AA114: Hombres | AB114: Mujeres | AC114: Hombres | AD114: Mujeres | AE114: Hombres | AF114: Mujeres | AG114: Hombres | AH114: Mujeres | AI114: Hombres | AJ114: Mujeres | AK114: Hombres | AL114: Mujeres
A115: PLAN DE CUIDADO INTEGRAL (PCI) ELABORADOS | B115: =SUM(C115:D115) -> 0 | C115: =+E115+G115+I115+K115+M115+O115+Q115+S115+U115+W115+Y115+AA115+AC115+AE115+AG115+AI115+AK115 -> 0 | D115: =+F115+H115+J115+L115+N115+P115+R115+T115+V115+X115+Z115+AB115+AD115+AF115+AH115+AJ115+AL115 -> 0 | AN115: =CA115&CB115 ->  | CA115: =IF(CG115=1,"* No olvide ingresar la Población SENAME (Digite CERO si no tiene). ","") ->  | CB115: =IF(CH115=1,"* La Población SENAME ingresada NO PUEDE superar la suma de ambos sexos. ","") ->  | CG115: =IF(AND(B115<>0,AM115=""),1,0) -> 0 | CH115: =IF(AM115>B115,1,0) -> 0
A116: SECCIÓN F: PERSONAS CON EVALUACIÓN Y CONFIRMACIÓN DIAGNOSTICA EN APS
A117: N° DE EVALUACIONES DIAGNÓSTICAS | B117: REALIZADA POR | E117: N° CONFIRMACIONES DIAGNÓSTICAS
B118: 1 PROFESIONAL | C118: 2 PROFESIONALES | D118: 3 PROFESIONALES
A119: TOTAL | B119: 463 | C119: 0 | D119: 0 | E119: 463
A120: SECCIÓN G: EVALUACIONES PROGRAMA PLAN NACIONAL DE DEMENCIA
A121: ACTIVIDAD | B121: TOTAL
E122: AUMENTO | G122: MANTENCIÓN | I122: DISMINUCIÓN
B123: Ambos Sexos | C123: Hombres | D123: Mujeres | E123: Hombres | F123: Mujeres | G123: Hombres | H123: Mujeres | I123: Hombres | J123: Mujeres
A124: PERSONAS CON DEMENCIA CON REEVALUACIÓN DETERIORO GLOGAL GDS REISBERG | B124: =SUM(C124:D124) -> 0 | C124: =+E124+G124+I124 -> 0 | D124: 0
A125: CUIDADORES PERSONAS CON DEMENCIA CON REEVALUACIÓN SOBRECARGA DEL CUIDADO | B125: =SUM(C125:D125) -> 0 | C125: 0 | D125: 0
A126: CUIDADORES DE PERSONAS CON DEMENCIA CON EVALUACIÓN DE SATISFACCIÓN USARIA DEL PROCESO DE INTERVENCIÓN | B126: =SUM(C126:D126) -> 0 | C126: 0 | D126: 0
A127: SECCIÓN H: EVALUACIÓN PROGRAMA DE APOYO A LA SALUD MENTAL INFANTIL (PASMI)
A128: ACTIVIDAD | B128: TOTAL | C128: GRUPOS DE EDAD 5 A 9 AÑOS | E128: Evaluadores | G128: Cumplimiento de criterios diagnósticos según Evaluación Diagnóstica Integral (EDI)
C129: Hombres | D129: Mujeres | E129: Equipo biopsicosocial | F129: Equipo psicosocial | G129: Requiere tratamiento en APS | H129: Requiere tratamiento en nivel secundario | I129: No Requiere tratamiento
A130: Evaluación Diagnostica Integral (EDI) | B130: =SUM(C130:D130) -> 0
A131: SECCIÓN I : SALUD MENTAL EN SITUACIONES DE EMERGENCIA O DESASTRE
A132: ACTIVIDAD | B132: PROFESIONAL | C132: TOTAL | F132: GRUPOS DE EDAD (en años) | AN132: Beneficiarios | AO132: Niños, Niñas, Adolescentes y Jóvenes Población SENAME | AP132: Pueblos Originarios | AQ132: Migrantes | AR132: Acciones no presenciales o remotas | AS132: Atenciones a funcionarios de la salud
F133: 0 - 4 | H133: 5 - 9 | J133: 10 - 14 | L133: 15 - 19 | N133: 20 - 24 | P133: 25 - 29 | R133: 30 - 34 | T133: 35 - 39 | V133: 40 - 44 | X133: 45 - 49 | Z133: 50 - 54 | AB133: 55 - 59 | AD133: 60 - 64 | AF133: 65 - 69 | AH133: 70 - 74 | AJ133: 75 - 79 | AL133: 80 y mas
C134: Ambos Sexos | D134: Hombres | E134: Mujeres | F134: Hombres | G134: Mujeres | H134: Hombres | I134: Mujeres | J134: Hombres | K134: Mujeres | L134: Hombres | M134: Mujeres | N134: Hombres | O134: Mujeres | P134: Hombres | Q134: Mujeres | R134: Hombres | S134: Mujeres | T134: Hombres | U134: Mujeres | V134: Hombres | W134: Mujeres | X134: Hombres | Y134: Mujeres | Z134: Hombres | AA134: Mujeres | AB134: Hombres | AC134: Mujeres | AD134: Hombres | AE134: Mujeres | AF134: Hombres | AG134: Mujeres | AH134: Hombres | AI134: Mujeres | AJ134: Hombres | AK134: Mujeres | AL134: Hombres | AM134: Mujeres
A135: CONSULTA DE SALUD MENTAL ASOCIADA A EMERGENCIA O DESASTRE | B135: MÉDICO | C135: =SUM(D135+E135) -> 0 | D135: =SUM(F135+H135+J135+L135+N135+P135+R135+T135+V135+X135+Z135+AB135+AD135+AF135+AH135+AJ135+AL135) -> 0 | E135: =SUM(G135+I135+K135+M135+O135+Q135+S135+U135+W135+Y135+AA135+AC135+AE135+AG135+AI135+AK135+AM135) -> 0 | AT135: =CA135&CB135&CC135&CD135&CE135&CF135 ->  | CA135: =IF(CG135=1,"* El número de Beneficiarios NO DEBE ser mayor que el Total. ","") ->  | CB135: =IF(CH135=1,"* Los Niños, Niñas, Adolescentes y Jóvenes de Programa SENAME NO DEBE ser mayor que el Total. ","") ->  | CC135: =IF(CI135=1,"* El número de personas pertenecientes a Pueblos Originarios NO DEBE ser mayor que el Total. ","") ->  | CD135: =IF(CJ135=1,"* El número de personas Migrantes NO DEBE ser mayor que el Total. ","") ->  | CF135: =IF(CL135=1,"* No olvide digitar la columna Beneficiarios y/o Niños, Niñas, Adolescentes y Jóvenes de Programa SENAME y/o Pueblos Originarios y/o Migrantes y/o Demencia (Digite CEROS si no tiene). ","") ->  | CG135: =IF($C135<AN135,1,0) -> 0 | CH135: =IF($C135<AO135,1,0) -> 0 | CI135: =IF($C135<AP135,1,0) -> 0 | CJ135: =IF($C135<AQ135,1,0) -> 0 | CL135: =IF(AND(C135<>0,OR(AN135="",AO135="",AP135="",AQ135="")),1,0) -> 0
B136: PSICÓLOGO/A | C136: 0 | D136: 0 | E136: 0 | AT136: =CA136&CB136&CC136&CD136&CE136&CF136 ->  | CF136: =IF(CL136=1,"* No olvide digitar la columna Beneficiarios y/o Niños, Niñas, Adolescentes y Jóvenes de Programa SENAME y/o Pueblos Originarios y/o Migrantes y/o Demencia (Digite CEROS si no tiene). ","") ->  | CG136: 0 | CH136: 0 | CI136: 0 | CJ136: 0 | CL136: 0
B137: ENFERMERA /O | C137: 0 | D137: 0 | E137: 0 | CG137: 0 | CH137: 0 | CI137: 0 | CJ137: 0 | CL137: 0
B138: MATRONA /ÓN | C138: 0 | D138: 0 | E138: 0 | CG138: 0 | CH138: 0 | CI138: 0 | CJ138: 0 | CL138: 0
B139: ASISTENTE SOCIAL | C139: 0 | D139: 0 | E139: 0 | CG139: 0 | CH139: 0 | CI139: 0 | CJ139: 0 | CL139: 0
B140: OTROS PROFESIONALES | C140: 0 | D140: 0 | E140: 0 | CG140: 0 | CH140: 0 | CI140: 0 | CJ140: 0 | CL140: 0
B141: TERAPEUTA OCUPACIONAL | C141: 0 | D141: 0 | E141: 0 | CG141: 0 | CH141: 0 | CI141: 0 | CJ141: 0 | CL141: 0
B142: TÉCNICO PARAMÉDICO y EN SALUD MENTAL | C142: 0 | D142: 0 | E142: 0 | CG142: 0 | CH142: 0 | CI142: 0 | CJ142: 0 | CL142: 0
B143: GESTOR COMUNITARIO | C143: 0 | D143: 0 | E143: 0 | CG143: 0 | CH143: 0 | CI143: 0 | CJ143: 0 | CL143: 0
B144: TÉCNICO REHABILITACIÓN ALCOHOL Y DROGAS | C144: 0 | D144: 0 | E144: 0 | CG144: 0 | CH144: 0 | CI144: 0 | CJ144: 0 | CL144: 0
B145: TOTAL | C145: 0 | D145: 0 | E145: 0 | F145: =SUM(F135:F144) -> 0 | G145: =SUM(G135:G144) -> 0 | H145: 0 | I145: 0 | J145: 0 | K145: 0 | L145: 0 | M145: 0 | N145: 0 | O145: 0 | P145: 0 | Q145: 0 | R145: 0 | S145: 0 | T145: 0 | U145: 0 | V145: 0 | W145: 0 | X145: 0 | Y145: 0 | Z145: 0 | AA145: 0 | AB145: 0 | AC145: 0 | AD145: 0 | AE145: 0 | AF145: 0 | AG145: 0 | AH145: 0 | AI145: 0 | AJ145: 0 | AK145: 0 | AL145: 0 | AM145: 0 | AN145: 0 | AO145: 0 | AP145: 0 | AQ145: 0 | AR145: =SUM(AR135:AR144) -> 0 | AS145: 0 | CG145: 0 | CH145: 0 | CI145: 0 | CJ145: 0 | CL145: 0
A146: INTERVENCIÓN PSICOSOCIAL GRUPAL | C146: 0 | D146: 0 | E146: 0 | CG146: 0 | CH146: 0 | CI146: 0 | CJ146: 0 | CL146: 0
A147: PRIMERA AYUDA PSICOLÓGICA | C147: 0 | D147: 0 | E147: 0 | CG147: 0 | CH147: 0 | CI147: 0 | CJ147: 0 | CL147: 0
A148: SECCIÓN J: CONSULTA DE SALUD MENTAL POR EL NIVEL DE ESPECIALIDAD
A149: ACTIVIDAD | B149: PROFESIONAL | C149: TOTAL | F149: GRUPOS DE EDAD (en años) | AN149: Beneficiarios | AO149: Niños, Niñas, Adolescentes y Jóvenes Población SENAME | AP149: Pueblos Originarios | AQ149: Migrantes
F150: 0 - 4 | H150: 5 - 9 | J150: 10 - 14 | L150: 15 - 19 | N150: 20 - 24 | P150: 25 - 29 | R150: 30 - 34 | T150: 35 - 39 | V150: 40 - 44 | X150: 45 - 49 | Z150: 50 - 54 | AB150: 55 - 59 | AD150: 60 - 64 | AF150: 65 - 69 | AH150: 70 - 74 | AJ150: 75 - 79 | AL150: 80 y mas
C151: Ambos Sexos | D151: Hombres | E151: Mujeres | F151: Hombres | G151: Mujeres | H151: Hombres | I151: Mujeres | J151: Hombres | K151: Mujeres | L151: Hombres | M151: Mujeres | N151: Hombres | O151: Mujeres | P151: Hombres | Q151: Mujeres | R151: Hombres | S151: Mujeres | T151: Hombres | U151: Mujeres | V151: Hombres | W151: Mujeres | X151: Hombres | Y151: Mujeres | Z151: Hombres | AA151: Mujeres | AB151: Hombres | AC151: Mujeres | AD151: Hombres | AE151: Mujeres | AF151: Hombres | AG151: Mujeres | AH151: Hombres | AI151: Mujeres | AJ151: Hombres | AK151: Mujeres | AL151: Hombres | AM151: Mujeres
A152: CONSULTA NUEVA SALUD MENTAL (INGRESO) | B152: UNIPROFESIONAL | C152: =SUM(D152+E152) -> 0 | D152: =SUM(F152+H152+J152+L152+N152+P152+R152+T152+V152+X152+Z152+AB152+AD152+AF152+AH152+AJ152+AL152) -> 0 | E152: 0 | AR152: =CONCATENATE(CF152,CA152,CB152,CC152,CD152,CE152) ->  | CA152: =IF(CG152=1,"* El número de Beneficiarios NO DEBE ser mayor que el Total. ","") ->  | CB152: =IF(CH152=1,"* Los Niños, Niñas, Adolescentes y Jóvenes de Programa SENAME NO DEBE ser mayor que el Total. ","") ->  | CC152: =IF(CI152=1,"* El número de personas pertenecientes a Pueblos Originarios NO DEBE ser mayor que el Total. ","") ->  | CD152: =IF(CJ152=1,"* El número de personas Migrantes NO DEBE ser mayor que el Total. ","") ->  | CF152: =IF(CL152=1,"* No olvide digitar la columna Beneficiarios y/o Niños, Niñas, Adolescentes y Jóvenes de Programa SENAME y/o Pueblos Originarios y/o Migrantes y/o Demencia (Digite CEROS si no tiene). ","") ->  | CG152: =IF($C152<AN152,1,0) -> 0 | CH152: 0 | CI152: 0 | CJ152: 0 | CL152: =IF(AND(C152<>0,OR(AN152="",AO152="",AP152="",AQ152="")),1,0) -> 0
B153: DOS PROFESIONALES | C153: =SUM(D153+E153) -> 0 | D153: 0 | E153: 0 | AR153: =CONCATENATE(CF153,CA153,CB153,CC153,CD153,CE153) ->  | CA153: =IF(CG153=1,"* El número de Beneficiarios NO DEBE ser mayor que el Total. ","") ->  | CB153: =IF(CH153=1,"* Los Niños, Niñas, Adolescentes y Jóvenes de Programa SENAME NO DEBE ser mayor que el Total. ","") ->  | CC153: =IF(CI153=1,"* El número de personas pertenecientes a Pueblos Originarios NO DEBE ser mayor que el Total. ","") ->  | CD153: =IF(CJ153=1,"* El número de personas Migrantes NO DEBE ser mayor que el Total. ","") ->  | CF153: =IF(CL153=1,"* No olvide digitar la columna Beneficiarios y/o Niños, Niñas, Adolescentes y Jóvenes de Programa SENAME y/o Pueblos Originarios y/o Migrantes y/o Demencia (Digite CEROS si no tiene). ","") ->  | CG153: 0 | CH153: 0 | CI153: 0 | CJ153: 0 | CL153: =IF(AND(C153<>0,OR(AN153="",AO153="",AP153="",AQ153="")),1,0) -> 0
B154: MULTIPROFESIONAL | C154: =SUM(D154+E154) -> 0 | D154: 0 | E154: 0 | AR154: =CONCATENATE(CF154,CA154,CB154,CC154,CD154,CE154) ->  | CA154: =IF(CG154=1,"* El número de Beneficiarios NO DEBE ser mayor que el Total. ","") ->  | CB154: =IF(CH154=1,"* Los Niños, Niñas, Adolescentes y Jóvenes de Programa SENAME NO DEBE ser mayor que el Total. ","") ->  | CC154: =IF(CI154=1,"* El número de personas pertenecientes a Pueblos Originarios NO DEBE ser mayor que el Total. ","") ->  | CD154: =IF(CJ154=1,"* El número de personas Migrantes NO DEBE ser mayor que el Total. ","") ->  | CF154: =IF(CL154=1,"* No olvide digitar la columna Beneficiarios y/o Niños, Niñas, Adolescentes y Jóvenes de Programa SENAME y/o Pueblos Originarios y/o Migrantes y/o Demencia (Digite CEROS si no tiene). ","") ->  | CG154: 0 | CH154: 0 | CI154: 0 | CJ154: 0 | CL154: =IF(AND(C154<>0,OR(AN154="",AO154="",AP154="",AQ154="")),1,0) -> 0
B155: TOTAL | C155: =SUM(D155+E155) -> 0 | D155: 0 | E155: 0 | F155: =SUM(F152:F154) -> 0 | G155: 0 | H155: 0 | I155: 0 | J155: 0 | K155: 0 | L155: 0 | M155: 0 | N155: 0 | O155: 0 | P155: 0 | Q155: 0 | R155: 0 | S155: 0 | T155: 0 | U155: 0 | V155: 0 | W155: 0 | X155: 0 | Y155: 0 | Z155: 0 | AA155: 0 | AB155: 0 | AC155: 0 | AD155: 0 | AE155: 0 | AF155: 0 | AG155: 0 | AH155: 0 | AI155: 0 | AJ155: 0 | AK155: 0 | AL155: 0 | AM155: 0 | AN155: 0 | AO155: 0 | AP155: 0 | AQ155: 0
A176: =SUM(C23,C25:C27,C51:C52,C57:C78,B109:B110,B89:D95,B104,C43:C46,C82:J85,B115,B119:E119,B124:B126,B130,C135:C147,C152:C155,B39,B33) -> 1290 | B176: =SUM(CG8:CL155) -> 0

Sheet A07
A1: SERVICIO DE SALUD
A2: =CONCATENATE("COMUNA: ",NOMBRE!B2," - ","( ",NOMBRE!C2,NOMBRE!D2,NOMBRE!E2,NOMBRE!F2,NOMBRE!G2," )") -> COMUNA: CALLE LARGA - ( 05302 )
A3: =CONCATENATE("ESTABLECIMIENTO/ESTRATEGIA: ",NOMBRE!B3," - ","( ",NOMBRE!C3,NOMBRE!D3,NOMBRE!E3,NOMBRE!F3,NOMBRE!G3,NOMBRE!H3," )") -> ESTABLECIMIENTO/ESTRATEGIA: DR. JOSE JOAQUIN AGUIRRE CAMPOS - ( 108308 )
A4: =CONCATENATE("MES: ",NOMBRE!B6," - ","( ",NOMBRE!C6,NOMBRE!D6," )") -> MES: DICIEMBRE - ( 12 )
A5: =CONCATENATE("AÑO: ",NOMBRE!B7) -> AÑO: 2022
A6: REM-07. ATENCIÓN DE ESPECIALIDADES
A7: SECCIÓN A : CONSULTAS MÉDICAS
A8: ESPECIALIDADES Y SUB-ESPECIALIDADES | B8: CONSULTAS MÉDICAS | W8: CONSULTAS NUEVAS SEGÚN ORIGEN(*) | AE8: CONSULTAS PERTINENTES (Nuevas originadas en APS) | AG8: INASISTENTE A CONSULTA MÉDICA (NSP) | AI8: CONSULTA ABREVIADA (Confección de recetas o lectura de exámenes) | AJ8: INTERCONSULTAS A HOSPITALIZADOS (EN SALA) | AL8: ALTA DE CONSULTA DE ESPECIALIDAD AMBULATORIA | AN8: CONSULTAS REALIZADAS EN APS E INFORMADAS EN GRUPO DE EDAD | AP8: COMPRA DE SERVICIO | AQ8: CONSULTAS MÉDICAS POR OPERATIVOS (no incluidas en produccion) | AR8: TOTAL INTERCONSULTAS GENERADAS EN APS PARA DERIVACION ESPECIALIDAD | AT8: CONSULTORÍAS DE MEDICOS ESPECIALISTAS OTORGADAS | AW8: CONSULTA DE ESPECIALIDAD RESUELTA POR MÉDICO GENERAL
B9: TOTAL | C9: GRUPOS DE EDAD (en años) | T9: A BENEFICIARIOS | U9: POR SEXO | W9: Menos 15 años | AA9: De 15 y más años
C10: 0 - 4 | D10: 5 - 9 | E10: 10 - 14 | F10: 15 - 19 | G10: 20 - 24 | H10: 25 - 29 | I10: 30 - 34 | J10: 35 - 39 | K10: 40 - 44 | L10: 45 - 49 | M10: 50 - 54 | N10: 55 - 59 | O10: 60 - 64 | P10: 65 - 69 | Q10: 70 - 74 | R10: 75 - 79 | S10: 80 y mas | U10: Hombres | V10: Mujeres | W10: TOTAL | X10: APS | Y10: CAE/CDT/CRS/HOSPITALIZACIÓN | Z10: URGENCIA | AA10: TOTAL | AB10: APS | AC10: CAE/CDT/CRS/HOSPITALIZACIÓN | AD10: URGENCIA | AE10: Según protocolo de referencia | AF10: Según tiempo establecido | AG10: NUEVAS | AH10: CONTROLES | AJ10: Menos 15 años | AK10: 15 y más años | AL10: Menos 15 años | AM10: 15 y más años | AN10: CONTRATADOS POR EL ESTABLECIMIENTO O DIRECCIÓN DEL SERVICIO | AO10: ESPECIALISTAS DE HOSPITALES | AR10: Menos 15 años | AS10: 15 y más años | AT10: Nº Consultorías | AU10: Nº de casos revisados por el equipo | AV10: Nº de casos atendidos | AW10: Menos 15 años | AX10: 15 y más años
A11: PEDIATRÍA | B11: =SUM(C11:S11) -> 0 | W11: =SUM(X11+Y11+Z11) -> 0 | AA11: =SUM(AB11+AC11+AD11) -> 0 | AR11: 4 | AS11: 0 | AY11: =CA11&CB11&CC11&CD11&CE11 ->  | CA11: =IF(CG11=1,"* El número de consultas según sexo NO DEBE ser diferente al Total. ","") ->  | CB11: =IF(CH11=1,"* No olvide digitar la columna Beneficiarios (Digite CEROS si no tiene). ","") ->  | CC11: =IF(CI11=1,"* El número de Beneficiarios NO DEBE ser mayor que el Total. ","") ->  | CD11: =IF(CJ11=1,"* El total de Consultas Nuevas NO DEBE ser MAYOR que el total de las Consultas Médicas. ","") ->  | CE11: =IF(CK11=1,"* No olvide registrar datos en Pertinencia (Digite CEROS si no tiene). ","") ->  | CG11: =IF(B11<>(U11+V11),1,0) -> 0 | CH11: =IF(AND(B11<>0,T11=""),1,0) -> 0 | CI11: =IF(B11<(T11),1,0) -> 0 | CJ11: =IF(B11<(W11+AA11),1,0) -> 0 | CK11: =IF(AND((X11+AB11)<>0,OR(AE11="",AF11="")),1,0) -> 0
A12: MEDICINA INTERNA | B12: =SUM(C12:S12) -> 0 | W12: 0 | AA12: 0 | AR12: 0 | AS12: 27 | AY12: =CA12&CB12&CC12&CD12&CE12 ->  | CA12: =IF(CG12=1,"* El número de consultas según sexo NO DEBE ser diferente al Total. ","") ->  | CB12: =IF(CH12=1,"* No olvide digitar la columna Beneficiarios (Digite CEROS si no tiene). ","") ->  | CC12: =IF(CI12=1,"* El número de Beneficiarios NO DEBE ser mayor que el Total. ","") ->  | CD12: =IF(CJ12=1,"* El total de Consultas Nuevas NO DEBE ser MAYOR que el total de las Consultas Médicas. ","") ->  | CE12: =IF(CK12=1,"* No olvide registrar datos en Pertinencia (Digite CEROS si no tiene). ","") ->  | CG12: =IF(B12<>(U12+V12),1,0) -> 0 | CH12: =IF(AND(B12<>0,T12=""),1,0) -> 0 | CI12: 0 | CJ12: 0 | CK12: 0
A13: NEONATOLOGÍA | B13: =SUM(C13) -> 0 | W13: 0 | AA13: 0 | AR13: 0 | AS13: 0 | CA13: =IF(CG13=1,"* El número de consultas según sexo NO DEBE ser diferente al Total. ","") ->  | CB13: =IF(CH13=1,"* No olvide digitar la columna Beneficiarios (Digite CEROS si no tiene). ","") ->  | CC13: =IF(CI13=1,"* El número de Beneficiarios NO DEBE ser mayor que el Total. ","") ->  | CD13: =IF(CJ13=1,"* El total de Consultas Nuevas NO DEBE ser MAYOR que el total de las Consultas Médicas. ","") ->  | CE13: =IF(CK13=1,"* No olvide registrar datos en Pertinencia (Digite CEROS si no tiene). ","") ->  | CG13: 0 | CH13: 0 | CI13: 0 | CJ13: 0 | CK13: 0
A14: ENFERMEDAD RESPIRATORIA PEDIÁTRICA (BRONCOPULMONAR INFANTIL) | B14: =SUM(C14:S14) -> 0 | W14: 0 | AA14: 0 | AR14: 0 | AS14: 0 | CA14: =IF(CG14=1,"* El número de consultas según sexo NO DEBE ser diferente al Total. ","") ->  | CB14: =IF(CH14=1,"* No olvide digitar la columna Beneficiarios (Digite CEROS si no tiene). ","") ->  | CC14: =IF(CI14=1,"* El número de Beneficiarios NO DEBE ser mayor que el Total. ","") ->  | CD14: =IF(CJ14=1,"* El total de Consultas Nuevas NO DEBE ser MAYOR que el total de las Consultas Médicas. ","") ->  | CE14: =IF(CK14=1,"* No olvide registrar datos en Pertinencia (Digite CEROS si no tiene). ","") ->  | CG14: 0 | CH14: 0 | CI14: 0 | CJ14: 0 | CK14: 0
A15: ENFERMEDAD RESPIRATORIA DE ADULTO (BRONCOPULMONAR) | B15: 0 | W15: 0 | AA15: 0 | AR15: 0 | AS15: 0 | CG15: 0 | CH15: 0 | CI15: 0 | CJ15: 0 | CK15: 0
A16: CARDIOLOGÍA PEDIÁTRICA | B16: 0 | W16: 0 | AA16: 0 | AR16: 0 | AS16: 0 | CG16: 0 | CH16: 0 | CI16: 0 | CJ16: 0 | CK16: 0
A17: CARDIOLOGÍA ADULTO | B17: 0 | W17: 0 | AA17: 0 | AR17: 0 | AS17: 0 | CG17: 0 | CH17: 0 | CI17: 0 | CJ17: 0 | CK17: 0
A18: ENDOCRINOLOGÍA PEDIÁTRICA | B18: 0 | W18: 0 | AA18: 0 | AR18: 0 | AS18: 0 | CG18: 0 | CH18: 0 | CI18: 0 | CJ18: 0 | CK18: 0
A19: ENDOCRINOLOGÍA ADULTO | B19: 0 | W19: 0 | AA19: 0 | AR19: 0 | AS19: 0 | CG19: 0 | CH19: 0 | CI19: 0 | CJ19: 0 | CK19: 0
A20: GASTROENTEROLOGÍA PEDIÁTRICA | B20: 0 | W20: 0 | AA20: 0 | AR20: 0 | AS20: 0 | CG20: 0 | CH20: 0 | CI20: 0 | CJ20: 0 | CK20: 0
A21: GASTROENTEROLOGÍA ADULTO | B21: 0 | W21: 0 | AA21: 0 | AR21: 0 | AS21: 0 | CG21: 0 | CH21: 0 | CI21: 0 | CJ21: 0 | CK21: 0
A22: GENÉTICA CLÍNICA | B22: 0 | W22: 0 | AA22: 0 | AR22: 0 | AS22: 0 | CG22: 0 | CH22: 0 | CI22: 0 | CJ22: 0 | CK22: 0
A23: HEMATO-ONCOLOGÍA INFANTIL | B23: 0 | W23: 0 | AA23: 0 | AR23: 0 | AS23: 0 | CG23: 0 | CH23: 0 | CI23: 0 | CJ23: 0 | CK23: 0
A24: HEMATOLOGÍA ADULTO | B24: 0 | W24: 0 | AA24: 0 | AR24: 0 | AS24: 0 | CG24: 0 | CH24: 0 | CI24: 0 | CJ24: 0 | CK24: 0
A25: NEFROLOGÍA PEDIÁTRICA | B25: 0 | W25: 0 | AA25: 0 | AR25: 0 | AS25: 0 | CG25: 0 | CH25: 0 | CI25: 0 | CJ25: 0 | CK25: 0
A26: NEFROLOGÍA ADULTO | B26: 0 | W26: 0 | AA26: 0 | AR26: 0 | AS26: 0 | CG26: 0 | CH26: 0 | CI26: 0 | CJ26: 0 | CK26: 0
A27: NUTRIÓLOGO PEDIÁTRICO | B27: 0 | W27: 0 | AA27: 0 | AR27: 0 | AS27: 0 | CG27: 0 | CH27: 0 | CI27: 0 | CJ27: 0 | CK27: 0
A28: NUTRIÓLOGO ADULTO | B28: 0 | W28: 0 | AA28: 0 | AR28: 0 | AS28: 0 | CG28: 0 | CH28: 0 | CI28: 0 | CJ28: 0 | CK28: 0
A29: REUMATOLOGÍA PEDIÁTRICA | B29: 0 | W29: 0 | AA29: 0 | AR29: 0 | AS29: 0 | CG29: 0 | CH29: 0 | CI29: 0 | CJ29: 0 | CK29: 0
A30: REUMATOLOGÍA ADULTO | B30: 0 | W30: 0 | AA30: 0 | AR30: 0 | AS30: 0 | CG30: 0 | CH30: 0 | CI30: 0 | CJ30: 0 | CK30: 0
A31: DERMATOLOGÍA | B31: 0 | W31: 0 | AA31: 0 | AR31: 1 | AS31: 0 | CG31: 0 | CH31: 0 | CI31: 0 | CJ31: 0 | CK31: 0
A32: INFECTOLOGÍA PEDIÁTRICA | B32: 0 | W32: 0 | AA32: 0 | AR32: 0 | AS32: 0 | CG32: 0 | CH32: 0 | CI32: 0 | CJ32: 0 | CK32: 0
A33: INFECTOLOGÍA ADULTO | B33: 0 | W33: 0 | AA33: 0 | AR33: 0 | AS33: 2 | CG33: 0 | CH33: 0 | CI33: 0 | CJ33: 0 | CK33: 0
A34: INMUNOLOGÍA | B34: 0 | W34: 0 | AA34: 0 | AR34: 0 | AS34: 0 | CG34: 0 | CH34: 0 | CI34: 0 | CJ34: 0 | CK34: 0
A35: GERIATRÍA | B35: =SUM(O35+P35+Q35+R35+S35) -> 0 | W35: =SUM(X35+Y35+Z35) -> 0 | AA35: 0 | AR35: 0 | AS35: 0 | CG35: 0 | CH35: 0 | CI35: 0 | CJ35: 0 | CK35: 0
A36: MEDICINA FÍSICA Y REHABILITACIÓN PEDIÁTRICA (FISIATRÍA PEDIÁTRICA) | B36: =SUM(C36:S36) -> 0 | W36: 0 | AA36: 0 | AR36: 0 | AS36: 0 | CG36: 0 | CH36: 0 | CI36: 0 | CJ36: 0 | CK36: 0
A37: MEDICINA FÍSICA Y REHABILITACIÓN ADULTO (FISIATRÍA ADULTO) | B37: 0 | W37: =SUM(X37+Y37+Z37) -> 0 | AA37: 0 | AR37: 0 | AS37: 1 | CG37: 0 | CH37: 0 | CI37: 0 | CJ37: 0 | CK37: 0
A38: NEUROLOGÍA PEDIÁTRICA | B38: 0 | W38: =SUM(X38+Y38+Z38) -> 0 | AA38: =SUM(AB38+AC38+AD38) -> 0 | AR38: 4 | AS38: 0 | CG38: 0 | CH38: 0 | CI38: 0 | CJ38: 0 | CK38: 0
A39: NEUROLOGÍA ADULTO | B39: 0 | W39: =SUM(X39+Y39+Z39) -> 0 | AA39: =SUM(AB39+AC39+AD39) -> 0 | AR39: 0 | AS39: 8 | CG39: 0 | CH39: 0 | CI39: 0 | CJ39: 0 | CK39: 0
A40: ONCOLOGÍA MÉDICA | B40: 0 | W40: =SUM(X40+Y40+Z40) -> 0 | AA40: =SUM(AB40+AC40+AD40) -> 0 | AR40: 0 | AS40: 0 | CG40: 0 | CH40: 0 | CI40: 0 | CJ40: 0 | CK40: 0
A41: PSIQUIATRÍA PEDIÁTRICA Y DE LA ADOLESCENCIA | B41: 0 | W41: =SUM(X41+Y41+Z41) -> 0 | AA41: =SUM(AB41+AC41+AD41) -> 0 | AR41: 2 | AS41: 0 | CG41: 0 | CH41: 0 | CI41: 0 | CJ41: 0 | CK41: 0
A42: PSIQUIATRÍA ADULTO | B42: 0 | W42: =SUM(X42+Y42+Z42) -> 0 | AA42: =SUM(AB42+AC42+AD42) -> 0 | AR42: 0 | AS42: 3 | CG42: 0 | CH42: 0 | CI42: 0 | CJ42: 0 | CK42: 0
A43: CIRUGÍA PEDIÁTRICA | B43: 0 | W43: 0 | AA43: =SUM(AB43+AC43+AD43) -> 0 | AR43: 2 | AS43: 0 | CG43: 0 | CH43: 0 | CI43: =IF(B43<(T43),1,0) -> 0 | CJ43: =IF(B43<(W43+AA43),1,0) -> 0 | CK43: =IF(AND((X43+AB43)<>0,OR(AE43="",AF43="")),1,0) -> 0
A44: CIRUGÍA GENERAL ADULTO | B44: 0 | W44: 0 | AA44: 0 | AR44: 0 | AS44: 8 | CG44: 0 | CH44: 0 | CI44: 0 | CJ44: 0 | CK44: 0
A45: CIRUGÍA DIGESTIVA (ALTA) | B45: 0 | W45: 0 | AA45: 0 | AR45: 0 | AS45: 0 | CG45: 0 | CH45: 0 | CI45: 0 | CJ45: 0 | CK45: 0
A46: CIRUGÍA DE CABEZA, CUELLO Y MAXILOFACIAL | B46: 0 | W46: 0 | AA46: 0 | AR46: 0 | AS46: 0 | CG46: 0 | CH46: 0 | CI46: 0 | CJ46: 0 | CK46: 0
A47: CIRUGÍA PLÁSTICA Y REPARADORA PEDIÁTRICA | B47: 0 | W47: 0 | AA47: 0 | AR47: 0 | AS47: 0 | CG47: 0 | CH47: 0 | CI47: 0 | CJ47: 0 | CK47: 0
A48: CIRUGÍA PLÁSTICA Y REPARADORA ADULTO | B48: 0 | W48: 0 | AA48: 0 | AR48: 0 | AS48: 0 | CG48: 0 | CH48: 0 | CI48: 0 | CJ48: 0 | CK48: 0
A49: COLOPROCTOLOGÍA (CIRUGIA DIGESTIVA BAJA) | B49: 0 | W49: 0 | AA49: 0 | AR49: 0 | AS49: 0 | CG49: 0 | CH49: 0 | CI49: 0 | CJ49: 0 | CK49: 0
A50: CIRUGÍA TÓRAX | B50: 0 | W50: 0 | AA50: 0 | AR50: 0 | AS50: 0 | CG50: 0 | CH50: 0 | CI50: 0 | CJ50: 0 | CK50: 0
A51: CIRUGÍA VASCULAR PERIFÉRICA | B51: 0 | W51: 0 | AA51: 0 | AR51: 0 | AS51: 0 | CG51: 0 | CH51: 0 | CI51: 0 | CJ51: 0 | CK51: 0
A52: NEUROCIRUGÍA | B52: 0 | W52: 0 | AA52: 0 | AR52: 0 | AS52: 9 | CG52: 0 | CH52: 0 | CI52: 0 | CJ52: 0 | CK52: 0
A53: CIRUGÍA CARDIOVASCULAR | B53: 0 | W53: 0 | AA53: 0 | AR53: 0 | AS53: 0 | CG53: 0 | CH53: 0 | CI53: 0 | CJ53: 0 | CK53: 0
A54: ANESTESIOLOGÍA | B54: 0 | W54: 0 | AA54: 0 | AR54: 0 | AS54: 0 | CG54: 0 | CH54: 0 | CI54: 0 | CJ54: 0 | CK54: 0
A55: OBSTETRICIA | B55: 0 | W55: 0 | AA55: 0 | AR55: 0 | AS55: 13 | CG55: 0 | CH55: 0 | CI55: 0 | CJ55: 0 | CK55: 0
A56: GINECOLOGÍA PEDIÁTRICA Y DE LA ADOLESCENCIA | B56: 0 | W56: 0 | AA56: 0 | AR56: 0 | AS56: 0 | CG56: 0 | CH56: 0 | CI56: 0 | CJ56: 0 | CK56: 0
A57: GINECOLOGÍA ADULTO | B57: 0 | W57: 0 | AA57: 0 | AR57: 0 | AS57: 13 | CG57: 0 | CH57: 0 | CI57: 0 | CJ57: 0 | CK57: 0
A58: OFTALMOLOGÍA | B58: 0 | W58: 0 | AA58: 0 | AR58: 1 | AS58: 16 | CG58: 0 | CH58: 0 | CI58: 0 | CJ58: 0 | CK58: 0
A59: OTORRINOLARINGOLOGÍA | B59: 0 | W59: 0 | AA59: 0 | AR59: 4 | AS59: 12 | CG59: 0 | CH59: 0 | CI59: 0 | CJ59: 0 | CK59: 0
A60: TRAUMATOLOGÍA Y ORTOPEDIA PEDIÁTRICA | B60: 0 | W60: 0 | AA60: 0 | AR60: 4 | AS60: 0 | CG60: 0 | CH60: 0 | CI60: 0 | CJ60: 0 | CK60: 0
A61: TRAUMATOLOGÍA Y ORTOPEDIA ADULTO | B61: 0 | W61: 0 | AA61: 0 | AR61: 0 | AS61: 6 | CG61: 0 | CH61: 0 | CI61: 0 | CJ61: 0 | CK61: 0
A62: UROLOGÍA PEDIÁTRICA | B62: 0 | W62: 0 | AA62: 0 | AR62: 0 | AS62: 0 | CG62: 0 | CH62: 0 | CI62: 0 | CJ62: 0 | CK62: 0
A63: UROLOGÍA ADULTO | B63: 0 | W63: 0 | AA63: 0 | AR63: 0 | AS63: 8 | CG63: 0 | CH63: 0 | CI63: 0 | CJ63: 0 | CK63: 0
A64: MEDICINA FAMILIAR DEL NIÑO | B64: 0 | W64: 0 | AA64: 0 | AR64: 0 | AS64: 0 | CG64: 0 | CH64: 0 | CI64: 0 | CJ64: 0 | CK64: 0
A65: MEDICINA FAMILIAR | B65: 0 | W65: 0 | AA65: 0 | AR65: 0 | AS65: 0 | CG65: 0 | CH65: 0 | CI65: 0 | CJ65: 0 | CK65: 0
A66: MEDICINA FAMILIAR ADULTO | B66: =SUM(L66+M66+N66+O66+P66+Q66+R66+S66) -> 0 | W66: 0 | AA66: 0 | AR66: 0 | AS66: 0 | CG66: 0 | CH66: 0 | CI66: 0 | CJ66: 0 | CK66: 0
A67: DIABETOLOGÍA | B67: =SUM(C67:S67) -> 0 | W67: 0 | AA67: 0 | AR67: 0 | AS67: 0 | CG67: 0 | CH67: 0 | CI67: 0 | CJ67: 0 | CK67: 0
A68: MEDICINA NUCLEAR (EXCLUYE INFORMES) | B68: =SUM(C68:S68) -> 0 | W68: =SUM(X68+Y68+Z68) -> 0 | AA68: 0 | AR68: 0 | AS68: 0 | CG68: 0 | CH68: 0 | CI68: 0 | CJ68: 0 | CK68: 0
A69: IMAGENOLOGÍA | B69: =SUM(C69:S69) -> 0 | W69: =SUM(X69+Y69+Z69) -> 0 | AA69: 0 | AR69: 0 | AS69: 0 | CG69: 0 | CH69: 0 | CI69: 0 | CJ69: 0 | CK69: 0
A70: RADIOTERAPIA ONCOLÓGICA | B70: =SUM(C70:S70) -> 0 | W70: =SUM(X70+Y70+Z70) -> 0 | AA70: 0 | AR70: 0 | AS70: 0 | CG70: 0 | CH70: 0 | CI70: 0 | CJ70: 0 | CK70: 0
A71: TOTAL | B71: =SUM(B11:B70) -> 0 | C71: 0 | D71: 0 | E71: 0 | F71: 0 | G71: 0 | H71: 0 | I71: 0 | J71: 0 | K71: 0 | L71: 0 | M71: 0 | N71: 0 | O71: 0 | P71: 0 | Q71: 0 | R71: 0 | S71: 0 | T71: 0 | U71: 0 | V71: 0 | W71: 0 | X71: 0 | Y71: 0 | Z71: 0 | AA71: 0 | AB71: =SUM(AB11:AB70) -> 0 | AC71: 0 | AD71: 0 | AE71: 0 | AF71: 0 | AG71: 0 | AH71: 0 | AI71: 0 | AJ71: 0 | AK71: 0 | AL71: 0 | AM71: 0 | AN71: 0 | AO71: 0 | AP71: 0 | AQ71: 0 | AR71: =SUM(AR11:AR70) -> 22 | AS71: 126 | AT71: 0 | AU71: 0 | AV71: 0 | AW71: 0 | AX71: 0
A72: SECCIÓN B: ATENCIONES MEDICAS POR PROGRAMAS Y POLICLÍNICOS (INCLUIDAS EN SECCION A)
A73: ATENCIONES | B73: TOTAL | C73: 0 - 4 años | D73: 5 - 9 años | E73: 10 - 14 años | F73: 15 - 19 años | G73: 20 - 24 años | H73: 25 - 29 años | I73: 30 - 34 años | J73: 35 - 39 años | K73: 40 - 44 años | L73: 45 - 49 años | M73: 50 - 54 años | N73: 55 - 59 años | O73: 60 - 64 años | P73: 65 - 69 años | Q73: 70 - 74 años | R73: 75 - 79 años | S73: 80 años y mas
A74: ARRITMIAS | B74: =SUM(C74:S74) -> 0
A75: DIABETES | B75: 0
A76: CIRUGÍA DE MAMAS | B76: 0
A77: ALTO RIESGO OBSTÉTRICO | B77: 0
A78: ATENCIÓN OBSTÉTRICA POR LEY IVE | B78: 0
A79: TRATAMIENTO ANTICOAGULANTE | B79: 0
A80: CUIDADOS PALIATIVOS | B80: 0
A81: INFERTILIDAD | B81: 0
A82: PATOLOGÍA CERVICAL | B82: 0
A83: PATOLOGÍA DE MAMAS | B83: 0
A84: ADOLESCENCIA | B84: 0
A85: NANEAS | B85: 0
A86: ITS | B86: 0
A87: VIH/SIDA | B87: 0
A88: MEDICINAL OCUPACIONAL (SALUD DEL PERSONAL) | B88: 0
A89: TOTAL | B89: =SUM(B74:B88) -> 0 | C89: 0 | D89: 0 | E89: 0 | F89: 0 | G89: 0 | H89: 0 | I89: 0 | J89: 0 | K89: 0 | L89: 0 | M89: 0 | N89: 0 | O89: 0 | P89: 0 | Q89: 0 | R89: 0 | S89: 0
A90: SECCIÓN C: CONSULTAS Y CONTROLES POR OTROS PROFESIONALES EN ESPECIALIDAD (NIVEL SECUNDARIO)
A91: PROFESIONAL | C91: TOTAL | F91: POR EDAD (en años) | AN91: Beneficiarios | AO91: Total Controles (incluidos en grupo de edad) | AP91: Pueblos Originarios | AQ91: Migrantes
F92: 0 - 4 | H92: 5 - 9 | J92: 10 - 14 | L92: 15 - 19 | N92: 20 - 24 | P92: 25 - 29 | R92: 30 - 34 | T92: 35 - 39 | V92: 40 - 44 | X92: 45 - 49 | Z92: 50 - 54 | AB92: 55 - 59 | AD92: 60 - 64 | AF92: 65 - 69 | AH92: 70 - 74 | AJ92: 75 - 79 | AL92: 80 y mas
C93: Ambos Sexos | D93: Hombres | E93: Mujeres | F93: Hombres | G93: Mujeres | H93: Hombres | I93: Mujeres | J93: Hombres | K93: Mujeres | L93: Hombres | M93: Mujeres | N93: Hombres | O93: Mujeres | P93: Hombres | Q93: Mujeres | R93: Hombres | S93: Mujeres | T93: Hombres | U93: Mujeres | V93: Hombres | W93: Mujeres | X93: Hombres | Y93: Mujeres | Z93: Hombres | AA93: Mujeres | AB93: Hombres | AC93: Mujeres | AD93: Hombres | AE93: Mujeres | AF93: Hombres | AG93: Mujeres | AH93: Hombres | AI93: Mujeres | AJ93: Hombres | AK93: Mujeres | AL93: Hombres | AM93: Mujeres
A94: ENFERMERA | C94: =SUM(D94+E94) -> 0 | D94: =SUM(F94+H94+J94+L94+N94+P94+R94+T94+V94+X94+Z94+AB94+AD94+AF94+AH94+AJ94+AL94) -> 0 | E94: =SUM(G94+I94+K94+M94+O94+Q94+S94+U94+W94+Y94+AA94+AC94+AE94+AG94+AI94+AK94+AM94) -> 0 | AR94: =CA94&CB94&CC94&CD94 ->  | CA94: =IF(CG94=1,"* El número de Beneficiarios NO DEBE ser mayor que el Total. ","") ->  | CB94: =IF(CH94=1,"* No olvide digitar la columna Beneficiarios y/o Pueblos Originarios y/o Migrantes (Digite CEROS si no tiene.). ","") ->  | CC94: =IF(CI94=1,"* El número de Pueblos Originarios y/o Migrantes NO DEBE ser mayor que el Total. ","") ->  | CD94: =IF(CJ94=1,"* El número de Controles NO DEBE ser mayor que el Total. ","") ->  | CG94: =IF(C94<AN94,1,0) -> 0 | CH94: =IF(AND(C94<>0,OR(AN94="",AP94="",AQ94="")),1,0) -> 0 | CI94: =IF(OR(C94<AP94,C94<AQ94),1,0) -> 0 | CJ94: =IF(C94<AO94,1,0) -> 0
A95: MATRONA | B95: ARO | C95: =SUM(D95:E95) -> 0 | E95: =SUM(K95+M95+O95+Q95+S95+U95+W95+Y95+AA95+AC95+AE95+AG95+AI95+AK95+AM95) -> 0 | AR95: =CA95&CB95&CC95&CD95 ->  | CA95: =IF(CG95=1,"* El número de Beneficiarios NO DEBE ser mayor que el Total. ","") ->  | CB95: =IF(CH95=1,"* No olvide digitar la columna Beneficiarios y/o Pueblos Originarios y/o Migrantes (Digite CEROS si no tiene.). ","") ->  | CC95: =IF(CI95=1,"* El número de Pueblos Originarios y/o Migrantes NO DEBE ser mayor que el Total. ","") ->  | CD95: =IF(CJ95=1,"* El número de Controles NO DEBE ser mayor que el Total. ","") ->  | CG95: =IF(E95<AN95,1,0) -> 0 | CH95: =IF(AND(E95<>0,OR(AN95="",AP95="",AQ95="")),1,0) -> 0 | CI95: =IF(OR(E95<AP95,E95<AQ95),1,0) -> 0 | CJ95: =IF(E95<AO95,1,0) -> 0
B96: ARO POR LEY IVE | C96: =SUM(D96:E96) -> 0 | E96: =SUM(K96+M96+O96+Q96+S96+U96+W96+Y96+AA96+AC96+AE96+AG96+AI96+AK96+AM96) -> 0 | CA96: =IF(CG96=1,"* El número de Beneficiarios NO DEBE ser mayor que el Total. ","") ->  | CB96: =IF(CH96=1,"* No olvide digitar la columna Beneficiarios y/o Pueblos Originarios y/o Migrantes (Digite CEROS si no tiene.). ","") ->  | CC96: =IF(CI96=1,"* El número de Pueblos Originarios y/o Migrantes NO DEBE ser mayor que el Total. ","") ->  | CD96: =IF(CJ96=1,"* El número de Controles NO DEBE ser mayor que el Total. ","") ->  | CG96: =IF(E96<AN96,1,0) -> 0 | CH96: =IF(AND(E96<>0,OR(AN96="",AP96="",AQ96="")),1,0) -> 0 | CI96: =IF(OR(E96<AP96,E96<AQ96),1,0) -> 0 | CJ96: =IF(E96<AO96,1,0) -> 0
B97: GINECOLOGÍA Y OTROS | C97: =SUM(D97+E97) -> 0 | D97: =SUM(F97+H97+J97+L97+N97+P97+R97+T97+V97+X97+Z97+AB97+AD97+AF97+AH97+AJ97+AL97) -> 0 | E97: =SUM(G97+I97+K97+M97+O97+Q97+S97+U97+W97+Y97+AA97+AC97+AE97+AG97+AI97+AK97+AM97) -> 0 | CG97: =IF(C97<AN97,1,0) -> 0 | CH97: =IF(AND(C97<>0,OR(AN97="",AP97="",AQ97="")),1,0) -> 0 | CI97: =IF(OR(C97<AP97,C97<AQ97),1,0) -> 0 | CJ97: =IF(C97<AO97,1,0) -> 0
B98: INFERTILIDAD | C98: 0 | D98: =SUM(N98+P98+R98+T98+V98+X98+Z98+AB98) -> 0 | E98: =SUM(O98+Q98+S98+U98+W98+Y98+AA98+AC98) -> 0 | CG98: 0 | CH98: 0 | CI98: 0 | CJ98: 0
A99: NUTRICIONISTA | C99: 0 | D99: =SUM(F99+H99+J99+L99+N99+P99+R99+T99+V99+X99+Z99+AB99+AD99+AF99+AH99+AJ99+AL99) -> 0 | E99: 0 | CG99: 0 | CH99: 0 | CI99: 0 | CJ99: 0
A100: PSICÓLOGO (EXCLUYE SM) | C100: 0 | D100: 0 | E100: 0 | CG100: 0 | CH100: 0 | CI100: 0 | CJ100: 0
A101: FONOAUDIÓLOGO | C101: 0 | D101: 0 | E101: 0 | CG101: 0 | CH101: 0 | CI101: 0 | CJ101: 0
A102: TECNÓLOGO MÉDICO | C102: 0 | D102: 0 | E102: 0 | CG102: 0 | CH102: 0 | CI102: 0 | CJ102: 0
A103: ASISTENTE SOCIAL | C103: 0 | D103: 0 | E103: 0 | CA103: =IF(CG103=1,"* El número de Beneficiarios NO DEBE ser mayor que el Total. ","") ->  | CB103: =IF(CH103=1,"* No olvide digitar la columna Beneficiarios y/o Pueblos Originarios y/o Migrantes (Digite CEROS si no tiene.). ","") ->  | CC103: =IF(CI103=1,"* El número de Pueblos Originarios y/o Migrantes NO DEBE ser mayor que el Total. ","") ->  | CD103: =IF(CJ103=1,"* El número de Controles NO DEBE ser mayor que el Total. ","") ->  | CG103: =IF(C103<AN103,1,0) -> 0 | CH103: =IF(AND(C103<>0,OR(AN103="",AP103="",AQ103="")),1,0) -> 0 | CI103: =IF(OR(C103<AP103,C103<AQ103),1,0) -> 0 | CJ103: =IF(C103<AO103,1,0) -> 0
A104: TOTAL | C104: =SUM(C94:C103) -> 0 | D104: 0 | E104: 0 | F104: 0 | G104: 0 | H104: 0 | I104: 0 | J104: 0 | K104: 0 | L104: 0 | M104: 0 | N104: 0 | O104: 0 | P104: 0 | Q104: 0 | R104: 0 | S104: 0 | T104: 0 | U104: 0 | V104: 0 | W104: 0 | X104: 0 | Y104: 0 | Z104: 0 | AA104: 0 | AB104: 0 | AC104: 0 | AD104: 0 | AE104: 0 | AF104: 0 | AG104: 0 | AH104: 0 | AI104: 0 | AJ104: 0 | AK104: 0 | AL104: 0 | AM104: 0 | AN104: 0 | AO104: 0 | AP104: 0 | AQ104: 0
A105: SECCIÓN D: CONSULTAS INFECCIÓN TRANSMISIÓN SEXUAL (ITS) Y CONTROLES DE SALUD SEXUAL EN EL NIVEL SECUNDARIO (Incluidas en Sección C)
A106: ACTIVIDAD | B106: PROFESIONAL | C106: TOTAL | F106: POR EDAD (en años) | AN106: Beneficiarios | AO106: Trans | AQ106: Pueblos Originarios | AR106: Migrantes | AS106: Niños, Niñas, Adolescentes y Jóvenes Población SENAME
F107: 0 - 4 | H107: 5 - 9 | J107: 10 - 14 | L107: 15 - 19 | N107: 20 - 24 | P107: 25 - 29 | R107: 30 - 34 | T107: 35 - 39 | V107: 40 - 44 | X107: 45 - 49 | Z107: 50 - 54 | AB107: 55 - 59 | AD107: 60 - 64 | AF107: 65 - 69 | AH107: 70 - 74 | AJ107: 75 - 79 | AL107: 80 y mas
C108: Ambos Sexos | D108: Hombre | E108: Mujer | F108: Hombre | G108: Mujer | H108: Hombre | I108: Mujer | J108: Hombre | K108: Mujer | L108: Hombre | M108: Mujer | N108: Hombre | O108: Mujer | P108: Hombre | Q108: Mujer | R108: Hombre | S108: Mujer | T108: Hombre | U108: Mujer | V108: Hombre | W108: Mujer | X108: Hombre | Y108: Mujer | Z108: Hombre | AA108: Mujer | AB108: Hombre | AC108: Mujer | AD108: Hombre | AE108: Mujer | AF108: Hombre | AG108: Mujer | AH108: Hombre | AI108: Mujer | AJ108: Hombre | AK108: Mujer | AL108: Hombre | AM108: Mujer | AO108: Masculino | AP108: Femenino
A109: CONSULTAS INFECCIÓN TRANSMISIÓN SEXUAL (ITS) (excluir VIH/SIDA) | B109: ENFERMERA | C109: =SUM(D109+E109) -> 0 | D109: =SUM(F109+H109+J109+L109+N109+P109+R109+T109+V109+X109+Z109+AB109+AD109+AF109+AH109+AJ109+AL109) -> 0 | E109: =SUM(G109+I109+K109+M109+O109+Q109+S109+U109+W109+Y109+AA109+AC109+AE109+AG109+AI109+AK109+AM109) -> 0 | AT109: =CA109&CB109&CC109&CD109&CE109&CF109 ->  | CA109: =IF(CG109=1,"* El número de Beneficiarios NO DEBE ser mayor que el Total ","") ->  | CB109: =IF(CH109=1,"* No olvide digitar las columnas Beneficiarios y/o Trans y/o Pueblos Originarios y/o Migrantes y/o Niños, Niñas, Adolescentes y Jóvenes Población SENAME (Digite CEROS si no tiene.). ","") ->  | CC109: =IF(CI109=1,"* El número de Trans NO DEBE ser mayor que el Total. ","") ->  | CD109: =IF(CJ109=1,"* El número de Pueblos Originarios NO DEBE ser mayor que el Total. ","") ->  | CE109: =IF(CK109=1,"* El número de Migrantes NO DEBE ser mayor que el Total. ","") ->  | CF109: =IF(CL109=1,"* El número de Niños, Niñas, Adolescentes y Jóvenes Población SENAME NO DEBE ser mayor que el Total. ","") ->  | CG109: =IF(C109<AN109,1,0) -> 0 | CH109: =IF(AND(C109<>0,OR(AN109="",AO109="",AP109="",AQ109="",AR109="",AS109="")),1,0) -> 0 | CI109: =IF(C109<(AO109+AP109),1,0) -> 0 | CJ109: =IF(C109<AQ109,1,0) -> 0 | CK109: =IF(C109<AR109,1,0) -> 0 | CL109: =IF(C109<AS109,1,0) -> 0
B110: MATRONA | C110: 0 | D110: 0 | E110: 0 | AT110: =CA110&CB110&CC110&CD110&CE110&CF110 ->  | CA110: =IF(CG110=1,"* El número de Beneficiarios NO DEBE ser mayor que el Total ","") ->  | CB110: =IF(CH110=1,"* No olvide digitar las columnas Beneficiarios y/o Trans y/o Pueblos Originarios y/o Migrantes y/o Niños, Niñas, Adolescentes y Jóvenes Población SENAME (Digite CEROS si no tiene.). ","") ->  | CC110: =IF(CI110=1,"* El número de Trans NO DEBE ser mayor que el Total. ","") ->  | CD110: =IF(CJ110=1,"* El número de Pueblos Originarios NO DEBE ser mayor que el Total. ","") ->  | CE110: =IF(CK110=1,"* El número de Migrantes NO DEBE ser mayor que el Total. ","") ->  | CF110: =IF(CL110=1,"* El número de Niños, Niñas, Adolescentes y Jóvenes Población SENAME NO DEBE ser mayor que el Total. ","") ->  | CG110: =IF(C110<AN110,1,0) -> 0 | CH110: =IF(AND(C110<>0,OR(AN110="",AO110="",AP110="",AQ110="",AR110="",AS110="")),1,0) -> 0 | CI110: =IF(C110<(AO110+AP110),1,0) -> 0 | CJ110: =IF(C110<AQ110,1,0) -> 0 | CK110: =IF(C110<AR110,1,0) -> 0 | CL110: =IF(C110<AS110,1,0) -> 0
A111: CONSULTAS VIH/SIDA | B111: ENFERMERA | C111: 0 | D111: 0 | E111: =SUM(G111+I111+K111+M111+O111+Q111+S111+U111+W111+Y111+AA111+AC111+AE111+AG111+AI111+AK111+AM111) -> 0 | CG111: 0 | CH111: 0 | CI111: 0 | CJ111: 0 | CK111: 0 | CL111: 0
B112: MATRONA | C112: 0 | D112: 0 | E112: 0 | CG112: 0 | CH112: 0 | CI112: 0 | CJ112: 0 | CK112: 0 | CL112: 0
B113: PSICÓLOGO | C113: 0 | D113: 0 | E113: 0 | CG113: 0 | CH113: 0 | CI113: 0 | CJ113: 0 | CK113: 0 | CL113: 0
A114: CONTROL VIH CON TAR | B114: ENFERMERA | C114: 0 | D114: 0 | E114: 0 | CG114: 0 | CH114: 0 | CI114: 0 | CJ114: 0 | CK114: 0 | CL114: 0
B115: MATRONA | C115: 0 | D115: 0 | E115: 0 | CG115: 0 | CH115: 0 | CI115: 0 | CJ115: 0 | CK115: 0 | CL115: 0
A116: CONTROL VIH SIN TAR | B116: ENFERMERA | C116: 0 | D116: 0 | E116: 0 | CG116: 0 | CH116: 0 | CI116: 0 | CJ116: 0 | CK116: 0 | CL116: 0
B117: MATRONA | C117: 0 | D117: 0 | E117: 0 | CG117: 0 | CH117: 0 | CI117: 0 | CJ117: 0 | CK117: 0 | CL117: 0
A118: CONTROLES DE SALUD A PERSONAS QUE EJERCEN COMERCIO SEXUAL | B118: ENFERMERA | C118: 0 | D118: =SUM(L118+N118+P118+R118+T118+V118+X118+Z118+AB118+AD118+AF118+AH118+AJ118+AL118) -> 0 | E118: =SUM(M118+O118+Q118+S118+U118+W118+Y118+AA118+AC118+AE118+AG118+AI118+AK118+AM118) -> 0 | CG118: =IF(C118<AN118,1,0) -> 0 | CH118: 0 | CI118: 0 | CJ118: 0 | CK118: 0 | CL118: 0
B119: MATRONA | C119: 0 | D119: =SUM(L119+N119+P119+R119+T119+V119+X119+Z119+AB119+AD119+AF119+AH119+AJ119+AL119) -> 0 | E119: =SUM(M119+O119+Q119+S119+U119+W119+Y119+AA119+AC119+AE119+AG119+AI119+AK119+AM119) -> 0 | CG119: 0 | CH119: 0 | CI119: 0 | CJ119: 0 | CK119: 0 | CL119: 0
A195: =SUM(B71,B89,C104,C109:C119,AV71,AR71:AS71,W71:AV71) -> 296 | B195: =SUM(CG7:CK121) -> 0

Sheet A08
A1: SERVICIO DE SALUD
A2: =CONCATENATE("COMUNA: ",NOMBRE!B2," - ","( ",NOMBRE!C2,NOMBRE!D2,NOMBRE!E2,NOMBRE!F2,NOMBRE!G2," )") -> COMUNA: CALLE LARGA - ( 05302 )
A3: =CONCATENATE("ESTABLECIMIENTO/ESTRATEGIA: ",NOMBRE!B3," - ","( ",NOMBRE!C3,NOMBRE!D3,NOMBRE!E3,NOMBRE!F3,NOMBRE!G3,NOMBRE!H3," )") -> ESTABLECIMIENTO/ESTRATEGIA: DR. JOSE JOAQUIN AGUIRRE CAMPOS - ( 108308 )
A4: =CONCATENATE("MES: ",NOMBRE!B6," - ","( ",NOMBRE!C6,NOMBRE!D6," )") -> MES: DICIEMBRE - ( 12 )
A5: =CONCATENATE("AÑO: ",NOMBRE!B7) -> AÑO: 2022
A6: REM-A08. ATENCIÓN DE URGENCIA
A7: SECCIÓN A: ATENCIONES REALIZADAS EN UNIDADES DE URGENCIA DE LA RED
A8: SECCIÓN A.1: ATENCIONES REALIZADAS EN UNIDADES DE EMERGENCIA HOSPITALARIA DE ALTA Y MEDIANA COMPLEJIDAD (UEH)
A9: TIPO DE ATENCIÓN | B9: TOTAL | E9: GRUPOS DE EDAD (en años) | AM9: Beneficiarios | AN9: ORIGEN DE LA PROCEDENCIA (Sólo pacientes derivados de establecimientos de la Red) | AR9: Establecimientos de otra Red | AS9: Demanda de Urgencia
E10: 0 - 4 | G10: 5 - 9 | I10: 10 - 14 | K10: 15 - 19 | M10: 20 - 24 | O10: 25 - 29 | Q10: 30 - 34 | S10: 35 - 39 | U10: 40 - 44 | W10: 45 - 49 | Y10: 50 - 54 | AA10: 55 - 59 | AC10: 60 - 64 | AE10: 65 - 69 | AG10: 70 - 74 | AI10: 75 - 79 | AK10: 80 y mas | AN10: SAPU/ SAR / SUR | AO10: Hospital Baja Complejidad | AP10: Hospital Mediana/Alta Complejidad | AQ10: Otros Establecimientos de la Red
B11: Ambos Sexos | C11: Hombres | D11: Mujeres | E11: Hombres | F11: Mujeres | G11: Hombres | H11: Mujeres | I11: Hombres | J11: Mujeres | K11: Hombres | L11: Mujeres | M11: Hombres | N11: Mujeres | O11: Hombres | P11: Mujeres | Q11: Hombres | R11: Mujeres | S11: Hombres | T11: Mujeres | U11: Hombres | V11: Mujeres | W11: Hombres | X11: Mujeres | Y11: Hombres | Z11: Mujeres | AA11: Hombres | AB11: Mujeres | AC11: Hombres | AD11: Mujeres | AE11: Hombres | AF11: Mujeres | AG11: Hombres | AH11: Mujeres | AI11: Hombres | AJ11: Mujeres | AK11: Hombres | AL11: Mujeres
A12: ATENCIÓN MÉDICA NIÑO Y ADULTO | B12: =SUM(C12+D12) -> 0 | C12: =SUM(E12+G12+I12+K12+M12+O12+Q12+S12+U12+W12+Y12+AA12+AC12+AE12+AG12+AI12+AK12) -> 0 | D12: =SUM(F12+H12+J12+L12+N12+P12+R12+T12+V12+X12+Z12+AB12+AD12+AF12+AH12+AJ12+AL12) -> 0 | CG12: 0 | CH12: 0 | CI12: 0 | CJ12: 0
A13: ATENCIÓN MÉDICA GINECO-OBSTETRA | B13: =SUM(C13+D13) -> 0 | C13: 0 | D13: 0 | AT13: * No olvide digitar la columna Beneficiarios. * Debe registrar el origen de la procedencia solicitado, digite --CEROS-- si NO tiene pacientes derivados de SAPU, Hospital Baja Complejidad u Otros Establecimientos de la Red. | CB13: * No olvide digitar la columna Beneficiarios. | CC13: * Debe registrar el origen de la procedencia solicitado, digite --CEROS-- si NO tiene pacientes derivados de SAPU, Hospital Baja Complejidad u Otros Establecimientos de la Red. | CG13: 0 | CH13: 1 | CI13: 1 | CJ13: 0
A14: ATENCIÓN POR MATRONA | B14: =SUM(C14+D14) -> 0 | C14: 0 | D14: 0 | CG14: 0 | CH14: 0
A15: ATENCIÓN POR ODONTÓLOGO | B15: =SUM(C15+D15) -> 0 | C15: =SUM(E15+G15+I15+K15+M15+O15+Q15+S15+U15+W15+Y15+AA15+AC15+AE15+AG15+AI15+AK15) -> 0 | D15: 0 | CG15: 0 | CH15: 0 | CI15: 0 | CJ15: 0
A16: SECCIÓN A.2: ATENCIONES DE URGENCIA REALIZADAS EN SAPU Y SAR
A17: PROFESIONAL | B17: TOTAL | E17: GRUPOS DE EDAD (en años) | AM17: Beneficiarios | AN17: Demanda de Urgencia
E18: 0 - 4 | G18: 5 - 9 | I18: 10 - 14 | K18: 15 - 19 | M18: 20 - 24 | O18: 25 - 29 | Q18: 30 - 34 | S18: 35 - 39 | U18: 40 - 44 | W18: 45 - 49 | Y18: 50 - 54 | AA18: 55 - 59 | AC18: 60 - 64 | AE18: 65 - 69 | AG18: 70 - 74 | AI18: 75 - 79 | AK18: 80 y mas
B19: Ambos Sexos | C19: Hombres | D19: Mujeres | E19: Hombres | F19: Mujeres | G19: Hombres | H19: Mujeres | I19: Hombres | J19: Mujeres | K19: Hombres | L19: Mujeres | M19: Hombres | N19: Mujeres | O19: Hombres | P19: Mujeres | Q19: Hombres | R19: Mujeres | S19: Hombres | T19: Mujeres | U19: Hombres | V19: Mujeres | W19: Hombres | X19: Mujeres | Y19: Hombres | Z19: Mujeres | AA19: Hombres | AB19: Mujeres | AC19: Hombres | AD19: Mujeres | AE19: Hombres | AF19: Mujeres | AG19: Hombres | AH19: Mujeres | AI19: Hombres | AJ19: Mujeres | AK19: Hombres | AL19: Mujeres
A20: MÉDICO | B20: =SUM(C20+D20) -> 0 | C20: =SUM(E20+G20+I20+K20+M20+O20+Q20+S20+U20+W20+Y20+AA20+AC20+AE20+AG20+AI20+AK20) -> 0 | D20: 0 | CG20: 0 | CH20: 0
A21: ENFERMERA /O | B21: =SUM(C21+D21) -> 0 | C21: 0 | D21: 0 | CG21: 0 | CH21: 0
A22: MATRONA /ÓN | B22: =SUM(C22+D22) -> 0 | C22: 0 | D22: 0 | CG22: 0 | CH22: 0
A23: KINESIÓLOGO/ A | B23: =SUM(C23+D23) -> 0 | C23: 0 | D23: 0 | CG23: 0 | CH23: 0
A24: SECCIÓN A.3: ATENCIONES DE URGENCIA REALIZADAS EN ESTABLECIMIENTOS DE BAJA COMPLEJIDAD
A25: PROFESIONAL | B25: TOTAL | E25: GRUPOS DE EDAD (en años) | AM25: Beneficiarios | AN25: Demanda de Urgencia
E26: 0 - 4 | G26: 5 - 9 | I26: 10 - 14 | K26: 15 - 19 | M26: 20 - 24 | O26: 25 - 29 | Q26: 30 - 34 | S26: 35 - 39 | U26: 40 - 44 | W26: 45 - 49 | Y26: 50 - 54 | AA26: 55 - 59 | AC26: 60 - 64 | AE26: 65 - 69 | AG26: 70 - 74 | AI26: 75 - 79 | AK26: 80 y mas
B27: Ambos Sexos | C27: Hombres | D27: Mujeres | E27: Hombres | F27: Mujeres | G27: Hombres | H27: Mujeres | I27: Hombres | J27: Mujeres | K27: Hombres | L27: Mujeres | M27: Hombres | N27: Mujeres | O27: Hombres | P27: Mujeres | Q27: Hombres | R27: Mujeres | S27: Hombres | T27: Mujeres | U27: Hombres | V27: Mujeres | W27: Hombres | X27: Mujeres | Y27: Hombres | Z27: Mujeres | AA27: Hombres | AB27: Mujeres | AC27: Hombres | AD27: Mujeres | AE27: Hombres | AF27: Mujeres | AG27: Hombres | AH27: Mujeres | AI27: Hombres | AJ27: Mujeres | AK27: Hombres | AL27: Mujeres
A28: MÉDICO | B28: =SUM(C28+D28) -> 0 | C28: =SUM(E28+G28+I28+K28+M28+O28+Q28+S28+U28+W28+Y28+AA28+AC28+AE28+AG28+AI28+AK28) -> 0 | D28: 0 | CG28: 0 | CH28: 0
A29: ENFERMERA /O | B29: 0 | C29: 0 | D29: 0 | CG29: 0 | CH29: 0
A30: MATRONA /ÓN | B30: 0 | C30: 0 | D30: 0 | CG30: 0 | CH30: 0
A31: KINESIÓLOGO/A | B31: 0 | C31: 0 | D31: 0 | CG31: 0 | CH31: 0
A32: TÉCNICO PARAMÉDICO | B32: 0 | C32: 0 | D32: 0 | CG32: 0 | CH32: 0
A33: OTROS PROFESIONALES | B33: 0 | C33: 0 | D33: 0 | CG33: 0 | CH33: 0
A34: SECCIÓN A.4: ATENCIONES DE URGENCIA REALIZADAS EN ESTABLECIMIENTOS ATENCIÓN PRIMARIA NO SAPU
A35: PROFESIONAL | B35: TOTAL | E35: GRUPOS DE EDAD (en años) | AM35: Beneficiarios | AN35: Demanda de Urgencia
E36: 0 - 4 | G36: 5 - 9 | I36: 10 - 14 | K36: 15 - 19 | M36: 20 - 24 | O36: 25 - 29 | Q36: 30 - 34 | S36: 35 - 39 | U36: 40 - 44 | W36: 45 - 49 | Y36: 50 - 54 | AA36: 55 - 59 | AC36: 60 - 64 | AE36: 65 - 69 | AG36: 70 - 74 | AI36: 75 - 79 | AK36: 80 y mas
B37: Ambos Sexos | C37: Hombres | D37: Mujeres | E37: Hombres | F37: Mujeres | G37: Hombres | H37: Mujeres | I37: Hombres | J37: Mujeres | K37: Hombres | L37: Mujeres | M37: Hombres | N37: Mujeres | O37: Hombres | P37: Mujeres | Q37: Hombres | R37: Mujeres | S37: Hombres | T37: Mujeres | U37: Hombres | V37: Mujeres | W37: Hombres | X37: Mujeres | Y37: Hombres | Z37: Mujeres | AA37: Hombres | AB37: Mujeres | AC37: Hombres | AD37: Mujeres | AE37: Hombres | AF37: Mujeres | AG37: Hombres | AH37: Mujeres | AI37: Hombres | AJ37: Mujeres | AK37: Hombres | AL37: Mujeres
A38: MÉDICO | B38: =SUM(C38+D38) -> 0 | C38: =SUM(E38+G38+I38+K38+M38+O38+Q38+S38+U38+W38+Y38+AA38+AC38+AE38+AG38+AI38+AK38) -> 0 | D38: 0 | CG38: 0 | CH38: 0
A39: ENFERMERA /O | B39: 0 | C39: 0 | D39: 0 | CG39: 0 | CH39: 0
A40: MATRONA /ÓN | B40: 0 | C40: 0 | D40: 0 | CG40: 0 | CH40: 0
A41: KINESIÓLOGO/A | B41: 0 | C41: 0 | D41: 0 | CG41: 0 | CH41: 0
A42: TÉCNICO PARAMÉDICO | B42: 0 | C42: 0 | D42: 0 | CG42: 0 | CH42: 0
A43: OTROS PROFESIONALES | B43: 0 | C43: 0 | D43: 0 | CG43: 0 | CH43: 0
A44: SECCIÓN A.5: CONSULTAS EN SISTEMA DE ATENCIÓN DE URGENCIA EN CENTROS DE SALUD RURAL (SUR) Y POSTAS RURALES
A45: PROFESIONAL | B45: TOTAL | E45: GRUPOS DE EDAD (en años) | AM45: Beneficiarios | AN45: Demanda de Urgencia
E46: 0 - 4 | G46: 5 - 9 | I46: 10 - 14 | K46: 15 - 19 | M46: 20 - 24 | O46: 25 - 29 | Q46: 30 - 34 | S46: 35 - 39 | U46: 40 - 44 | W46: 45 - 49 | Y46: 50 - 54 | AA46: 55 - 59 | AC46: 60 - 64 | AE46: 65 - 69 | AG46: 70 - 74 | AI46: 75 - 79 | AK46: 80 y mas
B47: Ambos Sexos | C47: Hombres | D47: Mujeres | E47: Hombres | F47: Mujeres | G47: Hombres | H47: Mujeres | I47: Hombres | J47: Mujeres | K47: Hombres | L47: Mujeres | M47: Hombres | N47: Mujeres | O47: Hombres | P47: Mujeres | Q47: Hombres | R47: Mujeres | S47: Hombres | T47: Mujeres | U47: Hombres | V47: Mujeres | W47: Hombres | X47: Mujeres | Y47: Hombres | Z47: Mujeres | AA47: Hombres | AB47: Mujeres | AC47: Hombres | AD47: Mujeres | AE47: Hombres | AF47: Mujeres | AG47: Hombres | AH47: Mujeres | AI47: Hombres | AJ47: Mujeres | AK47: Hombres | AL47: Mujeres
A48: MÉDICO | B48: =SUM(C48+D48) -> 0 | C48: =SUM(E48+G48+I48+K48+M48+O48+Q48+S48+U48+W48+Y48+AA48+AC48+AE48+AG48+AI48+AK48) -> 0 | D48: 0 | CG48: 0 | CH48: 0
A49: ENFERMERA /O | B49: 0 | C49: 0 | D49: 0 | CG49: 0 | CH49: 0
A50: MATRONA /ÓN | B50: 0 | C50: 0 | D50: 0 | CG50: 0 | CH50: 0
A51: KINESIÓLOGO/A | B51: 0 | C51: 0 | D51: 0 | CG51: 0 | CH51: 0
A52: TÉCNICO PARAMÉDICO | B52: 0 | C52: 0 | D52: 0 | CG52: 0 | CH52: 0
A53: OTROS PROFESIONALES | B53: 0 | C53: 0 | D53: 0 | CG53: 0 | CH53: 0
A54: SECCIÓN B: CATEGORIZACIÓN DE PACIENTES, PREVIA A LA ATENCIÓN MÉDICA (Establecimientos Alta, Mediana o Baja Complejidad y SAR).
A55: CATEGORÍAS | B55: TOTAL | E55: GRUPOS DE EDAD (en años) | AM55: Herramientas de Categorización
E56: 0 - 4 | G56: 5 - 9 | I56: 10 - 14 | K56: 15 - 19 | M56: 20 - 24 | O56: 25 - 29 | Q56: 30 - 34 | S56: 35 - 39 | U56: 40 - 44 | W56: 45 - 49 | Y56: 50 - 54 | AA56: 55 - 59 | AC56: 60 - 64 | AE56: 65 - 69 | AG56: 70 - 74 | AI56: 75 - 79 | AK56: 80 y mas
B57: Ambos Sexos | C57: Hombres | D57: Mujeres | E57: Hombres | F57: Mujeres | G57: Hombres | H57: Mujeres | I57: Hombres | J57: Mujeres | K57: Hombres | L57: Mujeres | M57: Hombres | N57: Mujeres | O57: Hombres | P57: Mujeres | Q57: Hombres | R57: Mujeres | S57: Hombres | T57: Mujeres | U57: Hombres | V57: Mujeres | W57: Hombres | X57: Mujeres | Y57: Hombres | Z57: Mujeres | AA57: Hombres | AB57: Mujeres | AC57: Hombres | AD57: Mujeres | AE57: Hombres | AF57: Mujeres | AG57: Hombres | AH57: Mujeres | AI57: Hombres | AJ57: Mujeres | AK57: Hombres | AL57: Mujeres | AM57: Discrecional | AN57: Estructurado (ESI)
A58: C1 | B58: =SUM(C58+D58) -> 0 | C58: =SUM(E58+G58+I58+K58+M58+O58+Q58+S58+U58+W58+Y58+AA58+AC58+AE58+AG58+AI58+AK58) -> 0 | D58: 0 | AO58: =CA58 ->  | CA58: =IF(CG58=1,"* La suma de las Herramientas de Categorización debe ser igual al total. ","") ->  | CG58: =IF(B58<>(AM58+AN58),1,0) -> 0
A59: C2 | B59: 0 | C59: 0 | D59: 0 | AO59: =CA59 ->  | CA59: =IF(CG59=1,"* La suma de las Herramientas de Categorización debe ser igual al total. ","") ->  | CG59: =IF(B59<>(AM59+AN59),1,0) -> 0
A60: C3 | B60: 0 | C60: 0 | D60: 0 | AO60: =CA60 ->  | CA60: =IF(CG60=1,"* La suma de las Herramientas de Categorización debe ser igual al total. ","") ->  | CG60: =IF(B60<>(AM60+AN60),1,0) -> 0
A61: C4 | B61: 0 | C61: 0 | D61: 0 | AO61: =CA61 ->  | CA61: =IF(CG61=1,"* La suma de las Herramientas de Categorización debe ser igual al total. ","") ->  | CG61: =IF(B61<>(AM61+AN61),1,0) -> 0
A62: C5 | B62: 0 | C62: 0 | D62: 0 | AO62: =CA62 ->  | CA62: =IF(CG62=1,"* La suma de las Herramientas de Categorización debe ser igual al total. ","") ->  | CG62: =IF(B62<>(AM62+AN62),1,0) -> 0
A63: SIN CATEGORIZACIÓN | B63: 0 | C63: 0 | D63: 0 | CG63: 0
A64: TOTAL | B64: =SUM(B58:B63) -> 0 | C64: 0 | D64: 0 | E64: 0 | F64: 0 | G64: 0 | H64: 0 | I64: 0 | J64: 0 | K64: 0 | L64: 0 | M64: 0 | N64: 0 | O64: 0 | P64: 0 | Q64: 0 | R64: 0 | S64: 0 | T64: 0 | U64: 0 | V64: 0 | W64: 0 | X64: 0 | Y64: 0 | Z64: 0 | AA64: 0 | AB64: 0 | AC64: 0 | AD64: 0 | AE64: 0 | AF64: 0 | AG64: 0 | AH64: 0 | AI64: 0 | AJ64: 0 | AK64: 0 | AL64: 0 | AM64: =SUM(AM58:AM62) -> 0 | AN64: =SUM(AN58:AN62) -> 0
A65: SECCIÓN C: ATENCIONES REALIZADAS POR MÉDICOS ESPECIALISTAS EN LAS UNIDADES DE URGENCIA HOSPITALARIA
A66: ESPECIALIDADES | B66: TOTAL | C66: DE TURNO | D66: CONSULTOR LLAMADA | E66: OTROS
A67: MEDICINA INTERNA | B67: =SUM(C67:E67) -> 0
A68: NEUROLOGÍA ADULTOS | B68: 0
A69: NEUROLOGÍA PEDIÁTRICA | B69: 0
A70: OBSTETRICIA Y GINECOLOGÍA | B70: 0
A71: OFTALMOLOGÍA | B71: 0
A72: OTORRINOLARINGOLOGÍA | B72: 0
A73: PEDIATRÍA | B73: 0
A74: TRAUMATOLOGÍA Y ORTOPEDIA | B74: 0
A75: NEUROCIRUGÍA | B75: 0
A76: PSIQUIATRÍA ADULTOS | B76: 0
A77: PSIQUIATRÍA PEDIÁTRICA Y ADOLESCENTES | B77: 0
A78: UROLOGÍA | B78: 0
A79: URGENCIÓLOGO | B79: 0
A80: CIRUGÍA VASCULAR PERIFÉRICA | B80: 0
A81: CIRUGÍA GENERAL | B81: 0
A82: CIRUGÍA PEDIÁTRICA | B82: 0
A83: CARDIOLOGÍA | B83: 0
A84: ANESTESIOLOGÍA | B84: 0
A85: CIRUGÍA DE CABEZA, CUELLO Y MAXILOFACIAL | B85: 0
A86: TOTAL | B86: =SUM(B67:B85) -> 0 | C86: =SUM(C67:C85) -> 0 | D86: =SUM(D67:D85) -> 0 | E86: =SUM(E67:E85) -> 0
A87: SECCIÓN D: PACIENTES CON INDICACIÓN DE HOSPITALIZACIÓN EN ESPERA DE CAMAS EN UEH
A88: TIPO DE PACIENTES | C88: TOTAL | F88: GRUPOS DE EDAD (en años) | AN88: Beneficiarios | AO88: Hospitalización Domiciliaria
F89: 0 - 4 | H89: 5 - 9 | J89: 10 - 14 | L89: 15 - 19 | N89: 20 - 24 | P89: 25 - 29 | R89: 30 - 34 | T89: 35 - 39 | V89: 40 - 44 | X89: 45 - 49 | Z89: 50 - 54 | AB89: 55 - 59 | AD89: 60 - 64 | AF89: 65 - 69 | AH89: 70 - 74 | AJ89: 75 - 79 | AL89: 80 y mas
C90: Ambos Sexos | D90: Hombres | E90: Mujeres | F90: Hombres | G90: Mujeres | H90: Hombres | I90: Mujeres | J90: Hombres | K90: Mujeres | L90: Hombres | M90: Mujeres | N90: Hombres | O90: Mujeres | P90: Hombres | Q90: Mujeres | R90: Hombres | S90: Mujeres | T90: Hombres | U90: Mujeres | V90: Hombres | W90: Mujeres | X90: Hombres | Y90: Mujeres | Z90: Hombres | AA90: Mujeres | AB90: Hombres | AC90: Mujeres | AD90: Hombres | AE90: Mujeres | AF90: Hombres | AG90: Mujeres | AH90: Hombres | AI90: Mujeres | AJ90: Hombres | AK90: Mujeres | AL90: Hombres | AM90: Mujeres
A91: TOTAL DE PACIENTES CON INDICACIÓN DE HOSPITALIZACIÓN | C91: =SUM(C92:C98) -> 0 | D91: =SUM(D92:D98) -> 0 | E91: =SUM(E92:E98) -> 0 | F91: 0 | G91: 0 | H91: 0 | I91: 0 | J91: 0 | K91: 0 | L91: 0 | M91: 0 | N91: 0 | O91: 0 | P91: 0 | Q91: 0 | R91: 0 | S91: 0 | T91: 0 | U91: 0 | V91: 0 | W91: 0 | X91: 0 | Y91: 0 | Z91: 0 | AA91: 0 | AB91: 0 | AC91: 0 | AD91: 0 | AE91: 0 | AF91: 0 | AG91: 0 | AH91: 0 | AI91: 0 | AJ91: 0 | AK91: 0 | AL91: 0 | AM91: 0 | AN91: 0 | AO91: =SUM(AO92:AO94) -> 0 | CG91: 0 | CH91: 0
A92: PACIENTES QUE INGRESAN A CAMA HOSPITALARIA SEGÚN TIEMPO DE DEMORA AL INGRESO | B92: MENOS DE 12 HORAS | C92: =SUM(D92+E92) -> 0 | D92: =SUM(F92+H92+J92+L92+N92+P92+R92+T92+V92+X92+Z92+AB92+AD92+AF92+AH92+AJ92+AL92) -> 0 | E92: =SUM(G92+I92+K92+M92+O92+Q92+S92+U92+W92+Y92+AA92+AC92+AE92+AG92+AI92+AK92+AM92) -> 0 | CG92: 0 | CH92: 0 | CI92: 0 | CJ92: 0
B93: 12-24 HORAS | C93: 0 | D93: =SUM(F93+H93+J93+L93+N93+P93+R93+T93+V93+X93+Z93+AB93+AD93+AF93+AH93+AJ93+AL93) -> 0 | E93: =SUM(G93+I93+K93+M93+O93+Q93+S93+U93+W93+Y93+AA93+AC93+AE93+AG93+AI93+AK93+AM93) -> 0 | CG93: 0 | CH93: 0 | CI93: 0 | CJ93: 0
B94: MAYOR A 24 HORAS | C94: 0 | D94: 0 | E94: 0 | CG94: 0 | CH94: 0 | CI94: 0 | CJ94: 0
A95: PACIENTES QUE RECHAZAN HOSPITALIZACIÓN | C95: 0 | D95: 0 | E95: 0 | CG95: 0 | CH95: 0
A96: PACIENTES DERIVADOS A OTRO ESTABLECIMIENTO | C96: 0 | D96: 0 | E96: 0 | CA96: =IF(C96=0,"",IF(AN96="",IF(C96="","","* No olvide digitar la columna Beneficiarios. "),"")) ->  | CB96: =IF(C96<AN96,"* El número de Beneficiarios NO DEBE ser mayor que el total. ","") ->  | CG96: =IF(C96<AN96,1,0) -> 0 | CH96: =IF(C96=0,"",IF(AN96="",IF(C96="","",1),0)) -> 
A97: PACIENTES QUE PERMANECEN EN UEH | C97: 0 | D97: 0 | E97: 0 | CA97: =IF(C97=0,"",IF(AN97="",IF(C97="","","* No olvide digitar la columna Beneficiarios. "),"")) ->  | CB97: =IF(C97<AN97,"* El número de Beneficiarios NO DEBE ser mayor que el total. ","") ->  | CG97: =IF(C97<AN97,1,0) -> 0 | CH97: =IF(C97=0,"",IF(AN97="",IF(C97="","",1),0)) -> 
A98: PACIENTES QUE INGRESAN DIRECTAMENTE A PROCESO QUIRÚRGICO | C98: 0 | D98: 0 | E98: 0 | CA98: =IF(C98=0,"",IF(AN98="",IF(C98="","","* No olvide digitar la columna Beneficiarios. "),"")) ->  | CB98: =IF(C98<AN98,"* El número de Beneficiarios NO DEBE ser mayor que el total. ","") ->  | CG98: =IF(C98<AN98,1,0) -> 0 | CH98: =IF(C98=0,"",IF(AN98="",IF(C98="","",1),0)) -> 
A99: SECCIÓN E: PACIENTES CON INDICACIÓN DE OBSERVACIÓN EN SAR
A100: PACIENTES CON INDICACIÓN DE OBSERVACIÓN | D100: TOTAL
A101: PACIENTES QUE PERMANECEN EN OBSERVACIÓN | C101: MENOS DE 2 HORAS
C102: 2 A 6 HORAS
C103: MAYOR A 6 HORAS
A104: SECCIÓN F: PACIENTES FALLECIDOS EN UEH (Establecimientos Alta, Mediana o Baja Complejidad, SAR, SAPU y SUR)
A105: TIPO DE PACIENTES | C105: TOTAL | F105: GRUPOS DE EDAD (en años) | AN105: Beneficiarios
F106: 0 - 4 | H106: 5 - 9 | J106: 10 - 14 | L106: 15 - 19 | N106: 20 - 24 | P106: 25 - 29 | R106: 30 - 34 | T106: 35 - 39 | V106: 40 - 44 | X106: 45 - 49 | Z106: 50 - 54 | AB106: 55 - 59 | AD106: 60 - 64 | AF106: 65 - 69 | AH106: 70 - 74 | AJ106: 75 - 79 | AL106: 80 y mas
C107: Ambos Sexos | D107: Hombres | E107: Mujeres | F107: Hombres | G107: Mujeres | H107: Hombres | I107: Mujeres | J107: Hombres | K107: Mujeres | L107: Hombres | M107: Mujeres | N107: Hombres | O107: Mujeres | P107: Hombres | Q107: Mujeres | R107: Hombres | S107: Mujeres | T107: Hombres | U107: Mujeres | V107: Hombres | W107: Mujeres | X107: Hombres | Y107: Mujeres | Z107: Hombres | AA107: Mujeres | AB107: Hombres | AC107: Mujeres | AD107: Hombres | AE107: Mujeres | AF107: Hombres | AG107: Mujeres | AH107: Hombres | AI107: Mujeres | AJ107: Hombres | AK107: Mujeres | AL107: Hombres | AM107: Mujeres
A108: PACIENTES FALLECIDOS EN ESPERA DE ATENCIÓN MÉDICA | C108: =SUM(D108+E108) -> 0 | D108: =SUM(F108+H108+J108+L108+N108+P108+R108+T108+V108+X108+Z108+AB108+AD108+AF108+AH108+AJ108+AL108) -> 0 | E108: 0 | CG108: 0 | CH108: 0
A109: PACIENTES FALLECIDOS EN PROCESO DE ATENCIÓN | C109: =SUM(D109+E109) -> 0 | D109: 0 | E109: 0 | CA109: =IF(C109=0,"",IF(AN109="",IF(C109="","","* No olvide digitar la columna Beneficiarios. "),"")) ->  | CB109: =IF(C109<AN109,"* El número de Beneficiarios NO DEBE ser mayor que el total. ","") ->  | CG109: =IF(C109<AN109,1,0) -> 0 | CH109: =IF(C109=0,"",IF(AN109="",IF(C109="","",1),0)) -> 
A110: PACIENTES FALLECIDOS EN ESPERA DE CAMA HOSPITALARIA | C110: =SUM(D110+E110) -> 0 | D110: 0 | E110: 0 | CA110: =IF(C110=0,"",IF(AN110="",IF(C110="","","* No olvide digitar la columna Beneficiarios. "),"")) ->  | CB110: =IF(C110<AN110,"* El número de Beneficiarios NO DEBE ser mayor que el total. ","") ->  | CG110: =IF(C110<AN110,1,0) -> 0 | CH110: =IF(C110=0,"",IF(AN110="",IF(C110="","",1),0)) -> 
A111: SECCIÓN G: ATENCIONES MÉDICAS ASOCIADAS A VIOLENCIA
A112: CONCEPTO | C112: TOTAL | F112: 0 - 9 | H112: 10-17 | J112: 18 - 24 | L112: 25-34 | N112: 35-44 | P112: 45-54 | R112: 55-64 | T112: 65 -74 | V112: 75 años y más | X112: Embarazadas | Y112: AGRESOR /A | AC112: Total | AE112: LESIONES DE LA VÍCTIMA | AI112: Sin lesiones constatables
C113: Ambos Sexos | D113: Hombres | E113: Mujeres | F113: Hombres | G113: Mujeres | H113: Hombres | I113: Mujeres | J113: Hombres | K113: Mujeres | L113: Hombres | M113: Mujeres | N113: Hombres | O113: Mujeres | P113: Hombres | Q113: Mujeres | R113: Hombres | S113: Mujeres | T113: Hombres | U113: Mujeres | V113: Hombres | W113: Mujeres | Y113: Pareja/ Ex pareja | Z113: Familiar | AA113: Conocido/a | AB113: Desconocido/a | AC113: Hombre | AD113: Mujer | AE113: Trau- matológicas | AF113: Odonto- lógicas | AG113: Contusio-nales | AH113: Por Arma
A114: VIOLENCIA INTRAFAMILIAR | C114: =SUM(D114+E114) -> 0 | D114: =SUM(F114+H114+J114+L114+N114+P114+R114+T114+V114) -> 0 | E114: =SUM(G114+I114+K114+M114+O114+Q114+S114+U114+W114) -> 0 | CG114: 0 | CH114: 0 | CI114: 0
A115: OTRAS VIOLENCIAS | C115: =SUM(D115+E115) -> 0 | D115: =SUM(F115+H115+J115+L115+N115+P115+R115+T115+V115) -> 0 | E115: =SUM(G115+I115+K115+M115+O115+Q115+S115+U115+W115) -> 0 | CG115: 0 | CH115: 0 | CI115: 0
A116: SECCIÓN H: ATENCIONES POR ANTICONCEPCIÓN DE EMERGENCIA
A117: CONCEPTO | C117: TOTAL | D117: GRUPOS DE EDAD (en años) | J117: Beneficiarios
D118: 10 - 14 | E118: 15 - 19 | F118: 20 - 24 | G118: 25 - 34 | H118: 35 - 44 | I118: 45 - 54
A119: ATENCIÓN POR ANTICONCEPCIÓN DE EMERGENCIA | B119: CON ENTREGA DE ANTICONCEPTIVO | C119: =SUM(D119:I119) -> 0 | CH119: 0 | CI119: 0
B120: SIN ENTREGA DE ANTICONCEPTIVO | C120: =SUM(D120:I120) -> 0 | CH120: 0 | CI120: 0
A121: SECCIÓN I: MOTIVOS DE ATENCIÓN POR EMERGENCIA OBSTÉTRICA AL SERVICIO DE URGENCIA (Establecimientos Alta y Mediana Complejidad).
A122: PATOLOGÍA | B122: CANTIDAD
A124: PREECLAMPSIA SEVERA
A125: ECLAMPSIA
A126: SÍNDROME HIPERTENSIVO DEL EMBARAZO (SHE)
A127: RETARDO CRECIMIENTO INTRAUTERINO (RCIU)
A128: HELLP
A129: PARTO PREMATURO
A130: HEMORRAGIA I TRIMESTRE
A131: HEMORRAGIA II TRIMESTRE
A132: HEMORRAGIA III TRIMESTRE
A133: ROTURA PREMATURA DE MEMBRANA
A134: OTRAS PATOLOGÍAS
A135: TRABAJO DE PARTO SIN PATOLOGÍA
A136: TOTAL | B136: =SUM(B124:B135) -> 0
A137: SECCIÓN J: LLAMADOS DE URGENCIA A CENTRO REGULADOR
A138: TIPO DE ACCIÓN | E138: TOTAL DE LLAMADAS | F138: LLAMADAS VALIDAS
A139: CENTRO REGULADOR | B139: Nº LLAMADOS DE URGENCIA | G139: =CA139 ->  | CA139: =IF(E139<F139,"* El número de llamadas válidas NO DEBE ser mayor al total de llamadas.","") ->  | CG139: =IF(E139<F139,1,0) -> 0
A140: SECCIÓN K: INTERVENCIONES PRE HOSPITALARIAS (SAMU)
A141: TIPO DE ACCIÓN | D141: N° INTERVENCIONES | G141: Beneficiarios | H141: TIEMPO DE LLEGADA INTERVENCIONES CRITICAS | K141: TIEMPO DE LLEGADA INTERVENCIONES NO CRITICAS
D142: TOTAL | E142: Criticas | F142: No Criticas | H142: 0-20 Min | I142: 20-40 Min | J142: Mas de 40 Min | K142: 0-20 Min | L142: 20-40 Min | M142: Mas de 40 Min
A143: INTERVENCIONES CLÍNICAS PRE HOSPITALARIAS | B143: INTERVENCIÓN DE MÓVIL BÁSICO | D143: =SUM(E143+F143) -> 0 | CI143: 0
B144: INTERVENCIÓN DE MÓVIL AVANZADO | D144: =SUM(E144+F144) -> 0 | CI144: 0
A145: SECCIÓN L: TRASLADOS PRIMARIOS A UNIDADES DE URGENCIA (Desde el lugar del evento a unidad de Emergencia)
A146: TIPO | C146: TOTAL | D146: BENEFICIARIOS | E146: POR COMPRA DE SERVICIO | F146: OTROS
A147: SAMU | B147: BÁSICO | CG147: 0
B148: AVANZADO | CG148: 0
A149: ENRUTADO | B149: BÁSICO | CG149: 0
A150: NO SAMU | B150: TERRESTRE | CG150: 0
B151: MARÍTIMO | CG151: 0
B152: AÉREO | CG152: 0
A153: SECCIÓN M: TRASLADO SECUNDARIO (Desde un Establecimiento a Otro)
A154: TIPO DE ACCIÓN | D154: TOTAL DE TRASLADOS | G154: BENEFICIARIOS | H154: COMPRA DE SERVICIO | I154: OTROS
D155: Ambos | E155: SAMU | F155: NO SAMU
A156: CRÍTICO | B156: AÉREO | D156: =SUM(E156:F156) -> 0 | CG156: 0
B157: TERRESTRE | D157: 0 | CG157: 0
B158: MARÍTIMO | D158: 0 | CG158: 0
A159: NO CRÍTICO | B159: AÉREO | D159: 0 | CG159: 0
B160: TERRESTRE | D160: 0 | CG160: 0
B161: MARÍTIMO | D161: 0 | CG161: 0
A162: SECCIÓN N: CLASIFICACIÓN DE LAS INTERVENCIONES POR GRANDES GRUPOS DE DIAGNÓSTICOS (SAMU)
A163: CAUSAS DE LA INTERVENCIÓN | C163: TOTALES | F163: GRUPOS DE EDAD (en años)
F164: 0 - 4 | H164: 5 - 9 | J164: 10 - 14 | L164: 15 - 19 | N164: 20 - 24 | P164: 25 - 29 | R164: 30 - 34 | T164: 35 - 39 | V164: 40 - 44 | X164: 45 - 49 | Z164: 50 - 54 | AB164: 55 - 59 | AD164: 60 - 64 | AF164: 65 - 69 | AH164: 70 - 74 | AJ164: 75 - 79 | AL164: 80 y mas
C165: Ambos Sexos | D165: Hombres | E165: Mujeres | F165: Hombres | G165: Mujeres | H165: Hombres | I165: Mujeres | J165: Hombres | K165: Mujeres | L165: Hombres | M165: Mujeres | N165: Hombres | O165: Mujeres | P165: Hombres | Q165: Mujeres | R165: Hombres | S165: Mujeres | T165: Hombres | U165: Mujeres | V165: Hombres | W165: Mujeres | X165: Hombres | Y165: Mujeres | Z165: Hombres | AA165: Mujeres | AB165: Hombres | AC165: Mujeres | AD165: Hombres | AE165: Mujeres | AF165: Hombres | AG165: Mujeres | AH165: Hombres | AI165: Mujeres | AJ165: Hombres | AK165: Mujeres | AL165: Hombres | AM165: Mujeres
A166: SÍNDROME CORONARIO AGUDO | C166: =SUM(D166+E166) -> 0 | D166: =SUM(P166+R166+T166+V166+X166+Z166+AB166+AD166+AF166+AH166+AJ166+AL166) -> 0 | E166: =SUM(Q166+S166+U166+W166+Y166+AA166+AC166+AE166+AG166+AI166+AK166+AM166) -> 0
A167: PARO CARDIORESPIRATORIO | C167: =SUM(D167+E167) -> 0 | D167: =SUM(F167+H167+J167+L167+N167+P167+R167+T167+V167+X167+Z167+AB167+AD167+AF167+AH167+AJ167+AL167) -> 0 | E167: 0
A168: POLITRAUMATISMO | C168: =SUM(D168+E168) -> 0 | D168: 0 | E168: 0
A169: OTROS | C169: =SUM(D169+E169) -> 0 | D169: 0 | E169: 0
A170: SECCIÓN O: ATENCIONES EN URGENCIA POR VIOLENCIA SEXUAL
A171: CONCEPTO | C171: TOTAL | F171: GRUPOS DE EDAD (en años) Y CONDICIÓN | V171: Gestantes | W171: Con entrega de anticoncepción de emergencia | X171: Sin entrega de anticoncepción de emergencia | Y171: Con profilaxis VIH | Z171: Con profilaxis ITS | AA171: Con profilaxis Hepatitis B | AB171: VICTIMARIO/A | AF171: Total
F172: 0 - 4 | H172: 5 - 9 | J172: 10 - 14 | L172: 15 - 17 | N172: 18 - 24 | P172: 25 - 44 | R172: 45-64 | T172: 65 años y más | AB172: Pareja/ Ex pareja | AC172: Familiar | AD172: Conocido/a | AE172: Desconocido/a | AF172: Hombre | AG172: Mujer
C173: Ambos Sexos | D173: Hombres | E173: Mujeres | F173: Hombres | G173: Mujeres | H173: Hombres | I173: Mujeres | J173: Hombres | K173: Mujeres | L173: Hombres | M173: Mujeres | N173: Hombres | O173: Mujeres | P173: Hombres | Q173: Mujeres | R173: Hombres | S173: Mujeres | T173: Hombres | U173: Mujeres
A174: VIOLENCIA SEXUAL | B174: 72 horas o menos | C174: =SUM(D174:E174) -> 0 | D174: =SUM(F174+H174+J174+L174+N174+P174+R174+T174) -> 0 | E174: =G174+I174+K174+M174+O174+Q174+S174+U174 -> 0 | CG174: 0 | CH174: 0 | CI174: 0 | CJ174: 0
B175: después de 72 horas | C175: =SUM(D175:E175) -> 0 | D175: =SUM(F175+H175+J175+L175+N175+P175+R175+T175) -> 0 | E175: =G175+I175+K175+M175+O175+Q175+S175+U175 -> 0 | CG175: 0 | CH175: 0 | CI175: 0 | CJ175: 0
A176: SECCIÓN P: ATENCIONES MÉDICAS POR VIOLENCIA SEXUAL CON REALIZACIÓN O INDICACIÓN DE PERITAJE
A177: TIPO DE ATENCIÓN | B177: TOTAL | C177: DE TURNO | D177: DE LLAMADA
A179: ATENCIÓN POR MÉDICO PERITO | B179: =SUM(C179:D179) -> 0
A180: ATENCIÓN OTROS MÉDICOS | B180: =SUM(C180) -> 0
A181: SECCIÓN Q: ATENCIONES DE URGENCIA ASOCIADAS A LESIONES AUTOINFLIGIDAS
A182: CONCEPTO | B182: TOTAL | E182: GRUPOS DE EDAD (en años)
E183: 0 - 9 | G183: 10 - 19 | I183: 20 - 24 | K183: 25-44 | M183: 45-54 | O183: 55-64 | Q183: 65-74 | S183: 75-84 | U183: 85 y más
B184: Ambos Sexos | C184: Hombres | D184: Mujeres | E184: Hombres | F184: Mujeres | G184: Hombres | H184: Mujeres | I184: Hombres | J184: Mujeres | K184: Hombres | L184: Mujeres | M184: Hombres | N184: Mujeres | O184: Hombres | P184: Mujeres | Q184: Hombres | R184: Mujeres | S184: Hombres | T184: Mujeres | U184: Hombres | V184: Mujeres
A185: Nº DE ATENCIONES | B185: =SUM(C185+D185) -> 0 | C185: =SUM(E185+G185+I185+K185+M185+O185+Q185+S185+U185) -> 0 | D185: =SUM(F185+H185+J185+L185+N185+P185+R185+T185+V185) -> 0
A186: SECCIÓN R: ATENCIONES POR MORDEDURA EN SERVICIO DE URGENCIA DE LA RED
A187: IDENTIFICACIÓN DEL ANIMAL MORDEDOR | B187: TOTAL | E187: GRUPOS DE EDAD (en años) | M187: TIPO DE MORDEDURA | O187: INDICACIÓN DE VACUNA
E188: 0 - 4 | G188: 5 - 9 | I188: 10 - 14 | K188: Mayor 15 años
B189: Ambos Sexos | C189: Hombres | D189: Mujeres | E189: Hombres | F189: Mujeres | G189: Hombres | H189: Mujeres | I189: Hombres | J189: Mujeres | K189: Hombres | L189: Mujeres | M189: Única | N189: Múltiple
B190: =+C190+D190 -> 0 | C190: =+E190+G190+I190+K190 -> 0 | D190: 0 | E190: =SUM(E191:E195) -> 0 | F190: 0 | G190: 0 | H190: 0 | I190: 0 | J190: 0 | K190: 0 | L190: 0 | M190: 0 | N190: 0 | O190: 0
A191: PERRO | B191: 0 | C191: 0 | D191: 0 | CG191: 0 | CH191: 0
A192: GATO | B192: 0 | C192: 0 | D192: 0 | CG192: 0 | CH192: 0
A193: ANIMAL SILVESTRE | B193: 0 | C193: 0 | D193: 0 | CG193: 0 | CH193: 0
A194: EXPOSICIÓN A MURCIÉLAGO | B194: 0 | C194: 0 | D194: 0 | CG194: 0 | CH194: 0
A195: ROEDOR O ANIMAL DE ABASTO | B195: 0 | C195: 0 | D195: 0 | CG195: 0 | CH195: 0
A200: =SUM(B12:B14,B20:B23,B28:B33,B64,B86,C91,D101:D103,C108:C110,C114:C115,C119:C120,B136,D143:D144,C147:C152,D156:D161,C166:C169,B179:B180,B185,B38:B43,B48:B53,E139:F139,C92:C98,C174:C175,B190) -> 0

Sheet A09
A1: SERVICIO DE SALUD
A2: =CONCATENATE("COMUNA: ",NOMBRE!B2," - ","( ",NOMBRE!C2,NOMBRE!D2,NOMBRE!E2,NOMBRE!F2,NOMBRE!G2," )") -> COMUNA: CALLE LARGA - ( 05302 )
A3: =CONCATENATE("ESTABLECIMIENTO/ESTRATEGIA: ",NOMBRE!B3," - ","( ",NOMBRE!C3,NOMBRE!D3,NOMBRE!E3,NOMBRE!F3,NOMBRE!G3,NOMBRE!H3," )") -> ESTABLECIMIENTO/ESTRATEGIA: DR. JOSE JOAQUIN AGUIRRE CAMPOS - ( 108308 )
A4: =CONCATENATE("MES: ",NOMBRE!B6," - ","( ",NOMBRE!C6,NOMBRE!D6," )") -> MES: DICIEMBRE - ( 12 )
A5: =CONCATENATE("AÑO: ",NOMBRE!B7) -> AÑO: 2022
A6: REM-A9. ATENCIÓN DE SALUD BUCAL EN LA RED ASISTENCIAL
A8: SECCIÓN A: CONSULTAS Y CONTROLES ODONTOLÓGICOS REALIZADOS EN APS.
A9: ACTIVIDAD | D9: TOTAL | G9: SEGÚN GRUPOS DE EDAD O DE RIESGO | AQ9: 12 años (incluido en el grupo de 10-14 años) | AR9: Embarazadas | AS9: 60 años (incluido en grupos de 60-64 años) | AT9: Usuarios con Discapacidad | AU9: Niños, niñas, adolescentes y jóvenes población SENAME | AV9: Migrantes | AW9: Paciente en Control Programa Salud Cardiovascular
G10: Menos de 1 año | I10: 1 año | K10: 2 años | M10: 3 años | O10: 4 años | Q10: 5 años | S10: 6 años | U10: 7 años | W10: 8-9 años | Y10: 10-14 años | AA10: 15-19 años | AC10: 20-24 años | AE10: 25-34 años | AG10: 35-44 años | AI10: 45-59 años | AK10: 60-64 años | AM10: 65-74 años | AO10: 75 y más años
D11: Ambos Sexos | E11: Hombres | F11: Mujeres | G11: Hombres | H11: Mujeres | I11: Hombres | J11: Mujeres | K11: Hombres | L11: Mujeres | M11: Hombres | N11: Mujeres | O11: Hombres | P11: Mujeres | Q11: Hombres | R11: Mujeres | S11: Hombres | T11: Mujeres | U11: Hombres | V11: Mujeres | W11: Hombres | X11: Mujeres | Y11: Hombres | Z11: Mujeres | AA11: Hombres | AB11: Mujeres | AC11: Hombres | AD11: Mujeres | AE11: Hombres | AF11: Mujeres | AG11: Hombres | AH11: Mujeres | AI11: Hombres | AJ11: Mujeres | AK11: Hombres | AL11: Mujeres | AM11: Hombres | AN11: Mujeres | AO11: Hombres | AP11: Mujeres
A12: CONSULTA DE MORBILIDAD | D12: =SUM(E12+F12) -> 424 | E12: =SUM(G12+I12+K12+M12+O12+Q12+S12+U12+W12+Y12+AA12+AC12+AE12+AG12+AI12+AK12+AM12+AO12) -> 166 | F12: =SUM(H12+J12+L12+N12+P12+R12+T12+V12+X12+Z12+AB12+AD12+AF12+AH12+AJ12+AL12+AN12+AP12) -> 258 | G12: 1 | H12: 0 | I12: 1 | J12: 0 | K12: 1 | L12: 1 | M12: 1 | N12: 0 | O12: 0 | P12: 1 | Q12: 5 | R12: 3 | S12: 3 | T12: 4 | U12: 6 | V12: 0 | W12: 9 | X12: 6 | Y12: 17 | Z12: 6 | AA12: 13 | AB12: 8 | AC12: 8 | AD12: 21 | AE12: 7 | AF12: 40 | AG12: 17 | AH12: 22 | AI12: 19 | AJ12: 72 | AK12: 16 | AL12: 20 | AM12: 32 | AN12: 31 | AO12: 10 | AP12: 23 | AQ12: 2 | AR12: 10 | AS12: 19 | AT12: 0 | AU12: 1 | AV12: 0 | AW12: 53 | AX12: =$CA12&$CB12&$CC12&$CD12&$CE12&$CF12&$CG12 ->  | CA12: =IF(CH12=1,"* Las consultas de 60 años NO DEBEN ser mayor que el total de Consultas entre 60-64 Años. ","") ->  | CB12: =IF(CI12=1,"* Las actividades de usuarios en situación de discapacidad NO DEBEN superar el total. ","") ->  | CC12: =IF(CJ12=1,"* Las consultas de 12 años NO DEBEN ser mayor que el total de Consultas entre 10-14 Años. ","") ->  | CD12: =IF(CK12=1,"* Las consultas de Pacientes en control PSCV NO DEBEN ser mayor que el total de Consultas. ","") ->  | CE12: =IF(AND(AR12="",D12<>0),"* Recuerde que las Embarazadas deben ser incluídas en el ingreso por rango Etario (Digite CEROS si no tiene). ",IF(F12<AR12,"* Las Embarazadas NO DEBEN ser mayor al total de mujeres. ","")) ->  | CF12: =IF(AND(AU12="",D12<>0),"* No olvide digitar la población SENAME (Digite CEROS si no tiene). ",IF(D12<AU12,"* La Población SENAME NO DEBE ser mayor al Total. ","")) ->  | CG12: =IF(AND(AV12="",D12<>0),"* No olvide digitar la población Migrante (Digite CEROS si no tiene). ",IF(D12<AV12,"* La Población Migrante NO DEBE ser mayor al Total. ","")) ->  | CH12: =IF(AS12>(AK12+AL12),1,0) -> 0 | CI12: =IF(D12<AT12,1,0) -> 0 | CJ12: =IF((Y12+Z12)<AQ12,1,0) -> 0 | CK12: =IF(D12<AW12,1,0) -> 0 | CL12: =IF(AND(AR12="",D12<>0),1,IF(F12<AR12,1,0)) -> 0 | CM12: =IF(AND(AU12="",D12<>0),1,IF(D12<AU12,1,0)) -> 0 | CN12: =IF(AND(AV12="",D12<>0),1,IF(D12<AV12,1,0)) -> 0
A13: CONTROL ODONTOLÓGICO | D13: =SUM(E13+F13) -> 83 | E13: 48 | F13: =SUM(H13+J13+L13+N13+P13+R13+T13+V13+X13+Z13+AB13+AD13+AF13+AH13+AJ13+AL13+AN13+AP13) -> 35 | G13: 1 | H13: 0 | I13: 6 | J13: 2 | K13: 1 | L13: 2 | M13: 1 | N13: 0 | O13: 2 | P13: 1 | Q13: 5 | R13: 1 | S13: 2 | T13: 3 | U13: 1 | V13: 1 | W13: 4 | X13: 0 | Y13: 7 | Z13: 7 | AA13: 4 | AB13: 5 | AC13: 0 | AD13: 2 | AE13: 0 | AF13: 7 | AG13: 0 | AH13: 1 | AI13: 2 | AJ13: 1 | AK13: 6 | AL13: 2 | AM13: 1 | AN13: 0 | AO13: 5 | AP13: 0 | AQ13: 3 | AR13: 2 | AS13: 1 | AT13: 1 | AU13: 0 | AV13: 0 | AW13: 1 | AX13: =$CA13&$CB13&$CC13&$CD13&$CE13&$CF13&$CG13 ->  | CA13: =IF(CH13=1,"* Las consultas de 60 años NO DEBEN ser mayor que el total de Consultas entre 60-64 Años. ","") ->  | CC13: =IF(CJ13=1,"* Las consultas de 12 años NO DEBEN ser mayor que el total de Consultas entre 10-14 Años. ","") ->  | CD13: =IF(CK13=1,"* Las consultas de Pacientes en control PSCV NO DEBEN ser mayor que el total de Consultas. ","") ->  | CE13: =IF(AND(AR13="",D13<>0),"* Recuerde que las Embarazadas deben ser incluídas en el ingreso por rango Etario (Digite CEROS si no tiene). ",IF(F13<AR13,"* Las Embarazadas NO DEBEN ser mayor al total de mujeres. ","")) ->  | CF13: =IF(AND(AU13="",D13<>0),"* No olvide digitar la población SENAME (Digite CEROS si no tiene). ",IF(D13<AU13,"* La Población SENAME NO DEBE ser mayor al Total. ","")) ->  | CG13: =IF(AND(AV13="",D13<>0),"* No olvide digitar la población Migrante (Digite CEROS si no tiene). ",IF(D13<AV13,"* La Población Migrante NO DEBE ser mayor al Total. ","")) ->  | CH13: =IF(AS13>(AK13+AL13),1,0) -> 0 | CI13: =IF(D13<AT13,1,0) -> 0 | CJ13: =IF((Y13+Z13)<AQ13,1,0) -> 0 | CK13: =IF(D13<AW13,1,0) -> 0 | CL13: =IF(AND(AR13="",D13<>0),1,IF(F13<AR13,1,0)) -> 0 | CM13: =IF(AND(AH13="",D13<>0),1,IF(D13<AH13,1,0)) -> 0 | CN13: =IF(AND(AV13="",D13<>0),1,IF(D13<AV13,1,0)) -> 0
A14: CONSULTA DE URGENCIA (GES) | D14: =SUM(E14+F14) -> 0 | E14: 0 | F14: 0 | G14: 0 | H14: 0 | I14: 0 | J14: 0 | K14: 0 | L14: 0 | M14: 0 | N14: 0 | O14: 0 | P14: 0 | Q14: 0 | R14: 0 | S14: 0 | T14: 0 | U14: 0 | V14: 0 | W14: 0 | X14: 0 | Y14: 0 | Z14: 0 | AA14: 0 | AB14: 0 | AC14: 0 | AD14: 0 | AE14: 0 | AF14: 0 | AG14: 0 | AH14: 0 | AI14: 0 | AJ14: 0 | AK14: 0 | AL14: 0 | AM14: 0 | AN14: 0 | AO14: 0 | AP14: 0 | AQ14: 0 | AR14: 0 | AS14: 0 | AT14: 0 | AU14: 0 | AV14: 0 | AW14: 0 | CH14: 0 | CI14: 0 | CJ14: 0 | CK14: 0 | CL14: 0 | CM14: =IF(AND(AH14="",D14<>0),1,IF(D14<AH14,1,0)) -> 0 | CN14: 0
A15: INASISTENCIA A CONSULTA | D15: =SUM(E15+F15) -> 161 | E15: =SUM(G15+I15+K15+M15+O15+Q15+S15+U15+W15+Y15+AA15+AC15+AE15+AG15+AI15+AK15+AM15+AO15) -> 65 | F15: 96 | G15: 2 | H15: 2 | I15: 2 | J15: 3 | K15: 5 | L15: 3 | M15: 4 | N15: 2 | O15: 1 | P15: 1 | Q15: 8 | R15: 4 | S15: 2 | T15: 4 | U15: 0 | V15: 1 | W15: 3 | X15: 5 | Y15: 8 | Z15: 5 | AA15: 2 | AB15: 5 | AC15: 2 | AD15: 13 | AE15: 6 | AF15: 14 | AG15: 7 | AH15: 17 | AI15: 7 | AJ15: 12 | AK15: 1 | AL15: 2 | AM15: 4 | AN15: 3 | AO15: 1 | AP15: 0 | AQ15: 4 | AR15: 11 | AS15: 0 | AT15: 0 | AU15: 3 | AV15: 1 | AW15: 11 | CH15: 0 | CI15: 0 | CJ15: 0 | CK15: 0 | CL15: 0 | CM15: =IF(AND(AH15="",D15<>0),1,IF(D15<AH15,1,0)) -> 0 | CN15: 0
A16: SECCIÓN B: ACTIVIDADES DE ODONTOLOGÍA GENERAL REALIZADOS EN NIVEL PRIMARIO Y SECUNDARIO DE SALUD.
A17: TIPO DE ACTIVIDAD | D17: TOTAL | G17: Menos de 1 año | I17: 1 año | K17: 2 años | M17: 3 años | O17: 4 años | Q17: 5 años | S17: 6 años | U17: 7 años | W17: 8-9 años | Y17: 10-14 años | AA17: 15-19 años | AC17: 20-24 años | AE17: 25-34 años | AG17: 35-44 años | AI17: 45-59 años | AK17: 60-64 años | AM17: 65-74 años | AO17: 75 y más años | AQ17: 12 años (incluido en el grupo de 10-14 años) | AR17: Embarazadas | AS17: Beneficiarios | AT17: 60 años (incluido en grupos de 60-64 años) | AU17: Compra de Servicio | AV17: Usuarios con Discapacidad | AW17: Niños, niñas, adolescentes y jóvenes población SENAME | AX17: Migrantes
D18: Ambos Sexos | E18: Hombres | F18: Mujeres | G18: Hombres | H18: Mujeres | I18: Hombres | J18: Mujeres | K18: Hombres | L18: Mujeres | M18: Hombres | N18: Mujeres | O18: Hombres | P18: Mujeres | Q18: Hombres | R18: Mujeres | S18: Hombres | T18: Mujeres | U18: Hombres | V18: Mujeres | W18: Hombres | X18: Mujeres | Y18: Hombres | Z18: Mujeres | AA18: Hombres | AB18: Mujeres | AC18: Hombres | AD18: Mujeres | AE18: Hombres | AF18: Mujeres | AG18: Hombres | AH18: Mujeres | AI18: Hombres | AJ18: Mujeres | AK18: Hombres | AL18: Mujeres | AM18: Hombres | AN18: Mujeres | AO18: Hombres | AP18: Mujeres
A19: EDUCACIÓN INDIVIDUAL CON INSTRUCCIÓN DE TÉCNICA DE CEPILLADO | D19: =SUM(E19+F19) -> 113 | E19: =SUM(G19+I19+K19+M19+O19+Q19+S19+U19+W19+Y19+AA19+AC19+AE19+AG19+AI19+AK19+AM19+AO19) -> 38 | F19: =SUM(H19+J19+L19+N19+P19+R19+T19+V19+X19+Z19+AB19+AD19+AF19+AH19+AJ19+AL19+AN19+AP19) -> 75 | G19: 1 | H19: 2 | I19: 1 | J19: 2 | K19: 0 | L19: 1 | M19: 1 | N19: 0 | O19: 0 | P19: 0 | Q19: 0 | R19: 1 | S19: 2 | T19: 0 | U19: 0 | V19: 0 | W19: 1 | X19: 0 | Y19: 1 | Z19: 1 | AA19: 1 | AB19: 2 | AC19: 1 | AD19: 4 | AE19: 3 | AF19: 11 | AG19: 4 | AH19: 5 | AI19: 4 | AJ19: 21 | AK19: 6 | AL19: 6 | AM19: 7 | AN19: 7 | AO19: 5 | AP19: 12 | AQ19: 0 | AR19: 4 | AS19: 86 | AT19: 6 | AU19: 0 | AV19: 1 | AW19: 0 | AX19: 0 | AY19: =$CA19&$CB19&$CC19&$CD19&$CE19&$CF19&$CG19 ->  | CA19: =IF(CH19=1,"* Las consultas de 12 años NO DEBEN ser mayor que el total de Consultas entre 10-14 Años. ","") ->  | CB19: =IF(CI19=1,"* Las consultas de 60 años NO DEBEN ser mayor que el total de Consultas entre 60-64 Años. ","") ->  | CC19: =IF(CJ19=1,"* Las actividades de usuarios en situación de discapacidad NO DEBEN superar el total. ","") ->  | CD19: =IF(AND(AR19="",D19<>0),"* Recuerde que las Embarazadas deben ser incluídas en el ingreso por rango Etario (Digite CEROS si no tiene). ",IF(F19<AR19,"* Las Embarazadas NO DEBEN ser mayor al total de mujeres. ","")) ->  | CE19: =IF(AND(AS19="",D19<>0),"* No olvide digitar la columna Beneficiarios (Digite CEROS si no tiene). ",IF(D19<AS19,"* El número de Beneficiarios NO DEBE ser mayor que el Total. ","")) ->  | CF19: =IF(AND(AW19="",D19<>0),"* No olvide digitar la Población SENAME (Digite CEROS si no tiene). ",IF(D19<AW19,"* La Población SENAME NO DEBE ser mayor al Total. ","")) ->  | CG19: =IF(AND(AX19="",D19<>0),"* No olvide digitar la Población Migrante (Digite CEROS si no tiene). ",IF(D19<AX19,"* La Población Migrante NO DEBE superar el Total. ","")) ->  | CH19: =IF(AQ19>(Y19+Z19),1,0) -> 0 | CI19: =IF(AT19>(AK19+AL19),1,0) -> 0 | CJ19: =IF(D19<AV19,1,0) -> 0 | CK19: =IF(AND(AR19="",D19<>0),1,IF(F19<AR19,1,0)) -> 0 | CL19: =IF(AND(AS19="",D19<>0),1,IF(D19<AS19,1,0)) -> 0 | CM19: =IF(AND(AW19="",D19<>0),1,IF(D19<AW19,1,0)) -> 0 | CN19: =IF(AND(AX19="",D19<>0),1,IF(D19<AX19,1,0)) -> 0
A20: CONSEJERÍA BREVE EN TABACO | D20: =SUM(E20+F20) -> 35 | E20: =SUM(U20+W20+Y20+AA20+AC20+AE20+AG20+AI20+AK20+AM20+AO20) -> 14 | F20: =SUM(V20+X20+Z20+AB20+AD20+AF20+AH20+AJ20+AL20+AN20+AP20) -> 21 | U20: 0 | V20: 0 | W20: 0 | X20: 0 | Y20: 0 | Z20: 0 | AA20: 0 | AB20: 0 | AC20: 1 | AD20: 2 | AE20: 3 | AF20: 3 | AG20: 4 | AH20: 3 | AI20: 3 | AJ20: 7 | AK20: 1 | AL20: 2 | AM20: 0 | AN20: 2 | AO20: 2 | AP20: 2 | AQ20: 0 | AR20: 0 | AS20: 35 | AT20: 0 | AU20: 0 | AV20: 1 | AW20: 0 | AX20: 0 | AY20: =$CA20&$CB20&$CC20&$CD20&$CE20&$CF20&$CG20 ->  | CA20: =IF(CH20=1,"* Las consultas de 12 años NO DEBEN ser mayor que el total de Consultas entre 10-14 Años. ","") ->  | CB20: =IF(CI20=1,"* Las consultas de 60 años NO DEBEN ser mayor que el total de Consultas entre 60-64 Años. ","") ->  | CC20: =IF(CJ20=1,"* Las actividades de usuarios en situación de discapacidad NO DEBEN superar el total. ","") ->  | CD20: =IF(AND(AR20="",D20<>0),"* Recuerde que las Embarazadas deben ser incluídas en el ingreso por rango Etario (Digite CEROS si no tiene). ",IF(F20<AR20,"* Las Embarazadas NO DEBEN ser mayor al total de mujeres. ","")) ->  | CE20: =IF(AND(AS20="",D20<>0),"* No olvide digitar la columna Beneficiarios (Digite CEROS si no tiene). ",IF(D20<AS20,"* El número de Beneficiarios NO DEBE ser mayor que el Total. ","")) ->  | CF20: =IF(AND(AW20="",D20<>0),"* No olvide digitar la Población SENAME (Digite CEROS si no tiene). ",IF(D20<AW20,"* La Población SENAME NO DEBE ser mayor al Total. ","")) ->  | CG20: =IF(AND(AX20="",D20<>0),"* No olvide digitar la Población Migrante (Digite CEROS si no tiene). ",IF(D20<AX20,"* La Población Migrante NO DEBE superar el Total. ","")) ->  | CH20: =IF(AQ20>(Y20+Z20),1,0) -> 0 | CI20: =IF(AT20>(AK20+AL20),1,0) -> 0 | CJ20: =IF(D20<AV20,1,0) -> 0 | CK20: =IF(AND(AR20="",D20<>0),1,IF(F20<AR20,1,0)) -> 0 | CL20: =IF(AND(AS20="",D20<>0),1,IF(D20<AS20,1,0)) -> 0 | CM20: =IF(AND(AW20="",D20<>0),1,IF(D20<AW20,1,0)) -> 0 | CN20: =IF(AND(AX20="",D20<>0),1,IF(D20<AX20,1,0)) -> 0
A21: EXAMEN DE SALUD ORAL | D21: 156 | E21: =SUM(G21+I21+K21+M21+O21+Q21+S21+U21+W21+Y21+AA21+AC21+AE21+AG21+AI21+AK21+AM21+AO21) -> 55 | F21: 101 | G21: 1 | H21: 2 | I21: 1 | J21: 2 | K21: 1 | L21: 1 | M21: 1 | N21: 0 | O21: 0 | P21: 0 | Q21: 2 | R21: 1 | S21: 3 | T21: 2 | U21: 0 | V21: 0 | W21: 5 | X21: 1 | Y21: 5 | Z21: 4 | AA21: 0 | AB21: 1 | AC21: 2 | AD21: 9 | AE21: 6 | AF21: 20 | AG21: 9 | AH21: 9 | AI21: 8 | AJ21: 27 | AK21: 4 | AL21: 7 | AM21: 4 | AN21: 10 | AO21: 3 | AP21: 5 | AQ21: 2 | AR21: 7 | AS21: 135 | AT21: 2 | AU21: 0 | AV21: 1 | AW21: 0 | AX21: 0 | CH21: 0 | CI21: 0 | CJ21: 0 | CK21: 0 | CL21: 0 | CM21: 0 | CN21: 0
A22: APLICACIÓN DE SELLANTES | D22: 59 | E22: 44 | F22: 15 | G22: 0 | H22: 0 | I22: 0 | J22: 0 | K22: 0 | L22: 0 | M22: 0 | N22: 0 | O22: 0 | P22: 0 | Q22: 0 | R22: 0 | S22: 0 | T22: 0 | U22: 1 | V22: 0 | W22: 4 | X22: 0 | Y22: 32 | Z22: 15 | AA22: 7 | AB22: 0 | AC22: 0 | AD22: 0 | AE22: 0 | AF22: 0 | AG22: 0 | AH22: 0 | AI22: 0 | AJ22: 0 | AK22: 0 | AL22: 0 | AM22: 0 | AN22: 0 | AO22: 0 | AP22: 0 | AQ22: 24 | AR22: 0 | AS22: 59 | AT22: 0 | AU22: 0 | AV22: 0 | AW22: 0 | AX22: 0 | CH22: 0 | CI22: 0 | CJ22: 0 | CK22: 0 | CL22: 0 | CM22: 0 | CN22: 0
A23: FLUORURACIÓN TÓPICA BARNIZ | D23: 66 | E23: 26 | F23: 40 | G23: 0 | H23: 0 | I23: 0 | J23: 1 | K23: 1 | L23: 1 | M23: 1 | N23: 0 | O23: 2 | P23: 1 | Q23: 2 | R23: 0 | S23: 2 | T23: 0 | U23: 0 | V23: 1 | W23: 4 | X23: 1 | Y23: 5 | Z23: 2 | AA23: 2 | AB23: 2 | AC23: 0 | AD23: 3 | AE23: 1 | AF23: 5 | AG23: 0 | AH23: 6 | AI23: 1 | AJ23: 9 | AK23: 2 | AL23: 3 | AM23: 3 | AN23: 3 | AO23: 0 | AP23: 2 | AQ23: 0 | AR23: 2 | AS23: 64 | AT23: 4 | AU23: 0 | AV23: 0 | AW23: 1 | AX23: 1 | CH23: 0 | CI23: 0 | CJ23: 0 | CK23: 0 | CL23: 0 | CM23: 0 | CN23: 0
A24: ACTIVIDAD INTERCEPTIVA DE ANOMALÍAS DENTO MAXILARES (OPI) | D24: 0 | E24: =SUM(G24+I24+K24+M24+O24+Q24+S24+U24+W24+Y24+AA24+AC24+AE24+AG24+AI24+AK24+AM24+AO24) -> 0 | F24: =SUM(H24+J24+L24+N24+P24+R24+T24+V24+X24+Z24+AB24+AD24+AF24+AH24+AJ24+AL24+AN24+AP24) -> 0 | G24: 0 | H24: 0 | I24: 0 | J24: 0 | K24: 0 | L24: 0 | M24: 0 | N24: 0 | O24: 0 | P24: 0 | Q24: 0 | R24: 0 | S24: 0 | T24: 0 | U24: 0 | V24: 0 | W24: 0 | X24: 0 | Y24: 0 | Z24: 0 | AA24: 0 | AB24: 0 | AC24: 0 | AD24: 0 | AE24: 0 | AF24: 0 | AG24: 0 | AH24: 0 | AI24: 0 | AJ24: 0 | AK24: 0 | AL24: 0 | AM24: 0 | AN24: 0 | AO24: 0 | AP24: 0 | AQ24: 0 | AR24: 0 | AS24: 0 | AT24: 0 | AU24: 0 | AV24: 0 | AW24: 0 | AX24: 0 | CH24: 0 | CI24: 0 | CJ24: 0 | CK24: 0 | CL24: 0 | CM24: 0 | CN24: 0
A25: DESTARTRAJE SUPRAGINGIVAL Y PULIDO CORONARIO | D25: 231 | E25: 80 | F25: 151 | G25: 0 | H25: 0 | I25: 0 | J25: 0 | K25: 1 | L25: 0 | M25: 0 | N25: 0 | O25: 0 | P25: 0 | Q25: 1 | R25: 0 | S25: 1 | T25: 0 | U25: 1 | V25: 0 | W25: 2 | X25: 0 | Y25: 8 | Z25: 3 | AA25: 5 | AB25: 4 | AC25: 6 | AD25: 18 | AE25: 10 | AF25: 26 | AG25: 15 | AH25: 34 | AI25: 10 | AJ25: 41 | AK25: 8 | AL25: 9 | AM25: 8 | AN25: 10 | AO25: 4 | AP25: 6 | AQ25: 0 | AR25: 6 | AS25: 125 | AT25: 7 | AU25: 0 | AV25: 0 | AW25: 0 | AX25: 0 | CH25: 0 | CI25: 0 | CJ25: 0 | CK25: 0 | CL25: 0 | CM25: 0 | CN25: 0
A26: EXODONCIA | D26: 97 | E26: 47 | F26: 50 | G26: 0 | H26: 0 | I26: 0 | J26: 0 | K26: 0 | L26: 0 | M26: 0 | N26: 0 | O26: 0 | P26: 0 | Q26: 0 | R26: 0 | S26: 2 | T26: 2 | U26: 3 | V26: 0 | W26: 0 | X26: 2 | Y26: 9 | Z26: 1 | AA26: 2 | AB26: 0 | AC26: 5 | AD26: 7 | AE26: 0 | AF26: 6 | AG26: 3 | AH26: 4 | AI26: 9 | AJ26: 13 | AK26: 5 | AL26: 9 | AM26: 7 | AN26: 5 | AO26: 2 | AP26: 1 | AQ26: 1 | AR26: 1 | AS26: 96 | AT26: 3 | AU26: 0 | AV26: 1 | AW26: 0 | AX26: 0 | CH26: 0 | CI26: 0 | CJ26: 0 | CK26: 0 | CL26: 0 | CM26: 0 | CN26: 0
A27: PROCEDIMIENTO PULPAR | D27: 11 | E27: 4 | F27: 7 | G27: 0 | H27: 0 | I27: 0 | J27: 0 | K27: 0 | L27: 0 | M27: 0 | N27: 0 | O27: 0 | P27: 0 | Q27: 0 | R27: 0 | S27: 1 | T27: 0 | U27: 0 | V27: 0 | W27: 0 | X27: 0 | Y27: 0 | Z27: 0 | AA27: 0 | AB27: 0 | AC27: 1 | AD27: 0 | AE27: 0 | AF27: 5 | AG27: 1 | AH27: 0 | AI27: 0 | AJ27: 2 | AK27: 1 | AL27: 0 | AM27: 0 | AN27: 0 | AO27: 0 | AP27: 0 | AQ27: 0 | AR27: 0 | AS27: 11 | AT27: 0 | AU27: 0 | AV27: 0 | AW27: 0 | AX27: 0 | CH27: 0 | CI27: 0 | CJ27: 0 | CK27: 0 | CL27: 0 | CM27: 0 | CN27: 0
A28: ACCESO CAVITARIO | D28: =SUM(E28+F28) -> 0 | E28: 0 | F28: 0 | G28: 0 | H28: 0 | I28: 0 | J28: 0 | K28: 0 | L28: 0 | M28: 0 | N28: 0 | O28: 0 | P28: 0 | Q28: 0 | R28: 0 | S28: 0 | T28: 0 | U28: 0 | V28: 0 | W28: 0 | X28: 0 | Y28: 0 | Z28: 0 | AA28: 0 | AB28: 0 | AC28: 0 | AD28: 0 | AE28: 0 | AF28: 0 | AG28: 0 | AH28: 0 | AI28: 0 | AJ28: 0 | AK28: 0 | AL28: 0 | AM28: 0 | AN28: 0 | AO28: 0 | AP28: 0 | AQ28: 0 | AR28: 0 | AS28: 0 | AT28: 0 | AU28: 0 | AV28: 0 | AW28: 0 | AX28: 0 | CH28: 0 | CI28: 0 | CJ28: 0 | CK28: 0 | CL28: 0 | CM28: 0 | CN28: 0
A29: RESTAURACIÓN ESTÉTICA | D29: 251 | E29: 66 | F29: 185 | G29: 0 | H29: 0 | I29: 0 | J29: 0 | K29: 0 | L29: 1 | M29: 1 | N29: 0 | O29: 0 | P29: 0 | Q29: 2 | R29: 2 | S29: 1 | T29: 0 | U29: 2 | V29: 0 | W29: 6 | X29: 3 | Y29: 5 | Z29: 10 | AA29: 3 | AB29: 5 | AC29: 2 | AD29: 8 | AE29: 6 | AF29: 41 | AG29: 16 | AH29: 31 | AI29: 12 | AJ29: 44 | AK29: 3 | AL29: 12 | AM29: 5 | AN29: 26 | AO29: 2 | AP29: 2 | AQ29: 2 | AR29: 6 | AS29: 243 | AT29: 5 | AU29: 0 | AV29: 0 | AW29: 0 | AX29: 1 | CH29: 0 | CI29: 0 | CJ29: 0 | CK29: 0 | CL29: 0 | CM29: 0 | CN29: 0
A30: RESTAURACIÓN DE AMALGAMAS | D30: 0 | E30: 0 | F30: 0 | G30: 0 | H30: 0 | I30: 0 | J30: 0 | K30: 0 | L30: 0 | M30: 0 | N30: 0 | O30: 0 | P30: 0 | Q30: 0 | R30: 0 | S30: 0 | T30: 0 | U30: 0 | V30: 0 | W30: 0 | X30: 0 | Y30: 0 | Z30: 0 | AA30: 0 | AB30: 0 | AC30: 0 | AD30: 0 | AE30: 0 | AF30: 0 | AG30: 0 | AH30: 0 | AI30: 0 | AJ30: 0 | AK30: 0 | AL30: 0 | AM30: 0 | AN30: 0 | AO30: 0 | AP30: 0 | AQ30: 0 | AR30: 0 | AS30: 0 | AT30: 0 | AU30: 0 | AV30: 0 | AW30: 0 | AX30: 0 | CH30: 0 | CI30: 0 | CJ30: 0 | CK30: 0 | CL30: 0 | CM30: 0 | CN30: 0
A31: OBTURACIÓN DE VIDRIO IONÓMERO | D31: 21 | E31: 12 | F31: 9 | G31: 0 | H31: 0 | I31: 0 | J31: 0 | K31: 4 | L31: 0 | M31: 0 | N31: 0 | O31: 0 | P31: 0 | Q31: 3 | R31: 0 | S31: 1 | T31: 3 | U31: 0 | V31: 0 | W31: 1 | X31: 0 | Y31: 0 | Z31: 0 | AA31: 0 | AB31: 1 | AC31: 0 | AD31: 0 | AE31: 1 | AF31: 2 | AG31: 0 | AH31: 1 | AI31: 2 | AJ31: 2 | AK31: 0 | AL31: 0 | AM31: 0 | AN31: 0 | AO31: 0 | AP31: 0 | AQ31: 0 | AR31: 1 | AS31: 21 | AT31: 0 | AU31: 0 | AV31: 0 | AW31: 0 | AX31: 0 | CH31: 0 | CI31: 0 | CJ31: 0 | CK31: 0 | CL31: 0 | CM31: 0 | CN31: 0
A32: DESTARTRAJE SUBGINGIVAL Y PULIDO RADICULAR POR SEXTANTE | D32: 2 | E32: =SUM(U32+W32+Y32+AA32+AC32+AE32+AG32+AI32+AK32+AM32+AO32) -> 1 | F32: =SUM(V32+X32+Z32+AB32+AD32+AF32+AH32+AJ32+AL32+AN32+AP32) -> 1 | U32: 0 | V32: 0 | W32: 0 | X32: 0 | Y32: 0 | Z32: 0 | AA32: 0 | AB32: 0 | AC32: 0 | AD32: 0 | AE32: 0 | AF32: 0 | AG32: 1 | AH32: 0 | AI32: 0 | AJ32: 0 | AK32: 0 | AL32: 1 | AM32: 0 | AN32: 0 | AO32: 0 | AP32: 0 | AQ32: 0 | AR32: 0 | AS32: 2 | AT32: 1 | AU32: 0 | AV32: 0 | AW32: 0 | AX32: 0 | CH32: 0 | CI32: 0 | CJ32: 0 | CK32: 0 | CL32: 0 | CM32: 0 | CN32: 0
A33: TRATAMIENTO RESTAURADOR ATRAUMÁTICO (ART) | D33: =SUM(E33+F33) -> 0 | E33: =SUM(G33+I33+K33+M33+O33+Q33+S33+U33+W33+Y33+AA33+AC33+AE33+AG33+AI33+AK33+AM33+AO33) -> 0 | F33: 0 | AT33: 0 | AU33: 0 | AV33: 0 | AW33: 0 | AX33: 0 | CH33: 0 | CI33: 0 | CJ33: 0 | CK33: 0 | CL33: 0 | CM33: 0 | CN33: 0
A34: PROCEDIMIENTOS MÉDICO-QUIRÚRGICOS | D34: 213 | E34: 86 | F34: 127 | G34: 3 | H34: 0 | I34: 6 | J34: 0 | K34: 0 | L34: 0 | M34: 0 | N34: 0 | O34: 0 | P34: 1 | Q34: 1 | R34: 3 | S34: 0 | T34: 2 | U34: 2 | V34: 1 | W34: 4 | X34: 3 | Y34: 5 | Z34: 3 | AA34: 8 | AB34: 1 | AC34: 5 | AD34: 9 | AE34: 4 | AF34: 12 | AG34: 6 | AH34: 13 | AI34: 5 | AJ34: 32 | AK34: 13 | AL34: 11 | AM34: 19 | AN34: 14 | AO34: 5 | AP34: 22 | AQ34: 1 | AR34: 3 | AS34: 140 | AT34: 18 | AU34: 0 | AV34: 1 | AW34: 1 | AX34: 0 | CH34: 0 | CI34: 0 | CJ34: 0 | CK34: 0 | CL34: 0 | CM34: 0 | CN34: 0
A35: RADIOGRAFÍA INTRAORAL (RETROALVEOLARES, BITE WING Y OCLUSALES) | D35: 20 | E35: 3 | F35: 17 | G35: 0 | H35: 0 | I35: 0 | J35: 0 | K35: 0 | L35: 0 | M35: 0 | N35: 0 | O35: 0 | P35: 0 | Q35: 0 | R35: 0 | S35: 0 | T35: 0 | U35: 0 | V35: 0 | W35: 0 | X35: 0 | Y35: 0 | Z35: 0 | AA35: 0 | AB35: 0 | AC35: 0 | AD35: 0 | AE35: 0 | AF35: 6 | AG35: 2 | AH35: 7 | AI35: 0 | AJ35: 1 | AK35: 0 | AL35: 3 | AM35: 1 | AN35: 0 | AO35: 0 | AP35: 0 | AQ35: 0 | AR35: 0 | AS35: 9 | AT35: 3 | AU35: 0 | AV35: 0 | AW35: 0 | AX35: 0 | CH35: 0 | CI35: 0 | CJ35: 0 | CK35: 0 | CL35: 0 | CM35: 0 | CN35: 0
A36: TOTAL ACTIVIDADES | D36: =SUM(D19:D35) -> 1275 | E36: 476 | F36: 799 | G36: 5 | H36: 4 | I36: 8 | J36: 5 | K36: 7 | L36: 4 | M36: 4 | N36: 0 | O36: 2 | P36: 2 | Q36: 11 | R36: 7 | S36: 13 | T36: 9 | U36: 9 | V36: 2 | W36: 27 | X36: 10 | Y36: 70 | Z36: 39 | AA36: 28 | AB36: 16 | AC36: 23 | AD36: 60 | AE36: 34 | AF36: 137 | AG36: 61 | AH36: 113 | AI36: 54 | AJ36: 199 | AK36: 43 | AL36: 63 | AM36: 54 | AN36: 77 | AO36: 23 | AP36: 52 | AQ36: =SUM(AQ19:AQ35) -> 30 | AR36: 30 | AS36: 1026 | AT36: 49 | AU36: 0 | AV36: 5 | AW36: 2 | AX36: 2
A37: SECCIÓN C : INGRESOS Y EGRESOS EN APS
A38: TIPO DE INGRESO O EGRESO | D38: TOTAL | G38: Según grupos de edad o de riesgo | AQ38: 12 años (incluido en el grupo de 10-14 años) | AR38: Embarazadas | AS38: 60 años (incluido en grupos de 60-64 años) | AT38: Usuarios con Discapacidad | AU38: Niños, niñas, adolescentes y jóvenes población SENAME | AV38: Migrantes | AW38: Pacientes en Control Programa Salud Cardiovascular
G39: Menos de 1 año | I39: 1 año | K39: 2 años | M39: 3 años | O39: 4 años | Q39: 5 años | S39: 6 años | U39: 7 años | W39: 8-9 años | Y39: 10-14 años | AA39: 15-19 años | AC39: 20-24 años | AE39: 25-34 años | AG39: 35-44 años | AI39: 45-59 años | AK39: 60-64 años | AM39: 65-74 años | AO39: 75 y más años
D40: Ambos Sexos | E40: Hombres | F40: Mujeres | G40: Hombres | H40: Mujeres | I40: Hombres | J40: Mujeres | K40: Hombres | L40: Mujeres | M40: Hombres | N40: Mujeres | O40: Hombres | P40: Mujeres | Q40: Hombres | R40: Mujeres | S40: Hombres | T40: Mujeres | U40: Hombres | V40: Mujeres | W40: Hombres | X40: Mujeres | Y40: Hombres | Z40: Mujeres | AA40: Hombres | AB40: Mujeres | AC40: Hombres | AD40: Mujeres | AE40: Hombres | AF40: Mujeres | AG40: Hombres | AH40: Mujeres | AI40: Hombres | AJ40: Mujeres | AK40: Hombres | AL40: Mujeres | AM40: Hombres | AN40: Mujeres | AO40: Hombres | AP40: Mujeres
A41: INGRESOS A TRATAMIENTO ODONTOLOGÍA GENERAL | D41: =SUM(E41+F41) -> 12 | E41: =+S41+Y41+AA41+AC41+AE41+AG41+AI41+AK41+AM41+AO41 -> 2 | F41: =+T41+Z41+AB41+AD41+AF41+AH41+AJ41+AL41+AN41+AP41 -> 10 | Y41: 0 | Z41: 0 | AA41: 0 | AB41: 1 | AC41: 0 | AD41: 2 | AE41: 0 | AF41: 4 | AG41: 0 | AH41: 0 | AI41: 0 | AJ41: 0 | AK41: 1 | AL41: 1 | AM41: 0 | AN41: 1 | AO41: 1 | AP41: 1 | AQ41: 0 | AR41: 5 | AS41: 1 | AT41: 1 | AU41: 1 | AV41: 0 | AW41: 2 | AX41: =$CA41&$CB41&$CC41&$CD41&$CE41&$CF41&$CG41 ->  | CA41: =IF(CH41=1,"* Las consultas de 60 años NO DEBEN ser mayor que el total de Consultas entre 60-64 Años. ","") ->  | CB41: =IF(CI41=1,"* Las actividades de usuarios en situación de discapacidad NO DEBEN superar el total. ","") ->  | CC41: =IF(CJ41=1,"* Las consultas de 12 años NO DEBEN ser mayor que el total de Consultas entre 10-14 Años. ","") ->  | CD41: =IF(CK41=1,"* Las consultas de Pacientes en control PSCV NO DEBEN ser mayor que el total de Consultas. ","") ->  | CE41: =IF(AND(AR41="",D41<>0),"* Recuerde que las Embarazadas deben ser incluídas en el ingreso por rango Etario (Digite CEROS si no tiene). ",IF(F41<AR41,"* Las Embarazadas NO DEBEN ser mayor al total de mujeres. ","")) ->  | CF41: =IF(AND(AU41="",D41<>0),"* No olvide digitar la población SENAME (Digite CEROS si no tiene). ",IF(D41<AU41,"* La Población SENAME NO DEBE ser mayor al Total. ","")) ->  | CG41: =IF(AND(AV41="",D41<>0),"* No olvide digitar la población Migrante (Digite CEROS si no tiene). ",IF(D41<AV41,"* La Población Migrante NO DEBE ser mayor al Total. ","")) ->  | CH41: =IF(AS41>(AK41+AL41),1,0) -> 0 | CI41: =IF(D41<AT41,1,0) -> 0 | CJ41: =IF((Y41+Z41)<AQ41,1,0) -> 0 | CK41: =IF(D41<AW41,1,0) -> 0 | CL41: =IF(AND(AR41="",D41<>0),1,IF(F41<AR41,1,0)) -> 0 | CM41: =IF(AND(AU41="",D41<>0),1,IF(D41<AU41,1,0)) -> 0 | CN41: =IF(AND(AV41="",D41<>0),1,IF(D41<AV41,1,0)) -> 0
A42: INGRESO CONTROL CON ENFOQUE RIESGO ODONTOLÓGICO (CERO) | D42: =SUM(E42+F42) -> 2 | E42: =+G42+I42+K42+M42+O42+Q42+S42+U42+W42+Y42+AA42 -> 0 | F42: =+H42+J42+L42+N42+P42+R42+T42+V42+X42+Z42+AB42 -> 2 | G42: 0 | H42: 2 | I42: 0 | J42: 0 | K42: 0 | L42: 0 | M42: 0 | N42: 0 | O42: 0 | P42: 0 | Q42: 0 | R42: 0 | S42: 0 | T42: 0 | U42: 0 | V42: 0 | W42: 0 | X42: 0 | Y42: 0 | Z42: 0 | AA42: 0 | AB42: 0 | AT42: 0 | AU42: 0 | AV42: 0 | AW42: 0 | CB42: =IF(CI42=1,"* Las actividades de usuarios en situación de discapacidad NO DEBEN superar el total. ","") ->  | CD42: =IF(CK42=1,"* Las consultas de Pacientes en control PSCV NO DEBEN ser mayor que el total de Consultas. ","") ->  | CF42: =IF(AND(AU42="",D42<>0),"* No olvide digitar la población SENAME (Digite CEROS si no tiene). ",IF(D42<AU42,"* La Población SENAME NO DEBE ser mayor al Total. ","")) ->  | CG42: =IF(AND(AV42="",D42<>0),"* No olvide digitar la población Migrante (Digite CEROS si no tiene). ",IF(D42<AV42,"* La Población Migrante NO DEBE ser mayor al Total. ","")) ->  | CI42: =IF(D42<AT42,1,0) -> 0 | CK42: =IF(D42<AW42,1,0) -> 0 | CM42: =IF(AND(AU42="",D42<>0),1,IF(D42<AU42,1,0)) -> 0 | CN42: =IF(AND(AV42="",D42<>0),1,IF(D42<AV42,1,0)) -> 0
A43: EGRESO CONTROL CON ENFOQUE RIESGO ODONTOLÓGICO (CERO) | D43: =SUM(E43+F43) -> 0 | E43: =+G43+I43+K43+M43+O43+Q43+S43+U43+W43+Y43+AA43 -> 0 | F43: =+H43+J43+L43+N43+P43+R43+T43+V43+X43+Z43+AB43 -> 0 | G43: 0 | H43: 0 | I43: 0 | J43: 0 | K43: 0 | L43: 0 | M43: 0 | N43: 0 | O43: 0 | P43: 0 | Q43: 0 | R43: 0 | S43: 0 | T43: 0 | U43: 0 | V43: 0 | W43: 0 | X43: 0 | Y43: 0 | Z43: 0 | AA43: 0 | AB43: 0 | AT43: 0 | AU43: 0 | AV43: 0 | AW43: 0 | CI43: 0 | CK43: 0 | CM43: 0 | CN43: 0
A44: ALTAS ODONTOLÓGICAS PREVENTIVAS | D44: =SUM(E44+F44) -> 0 | E44: =+Y44+AA44+AC44+AE44+AG44+AI44+AK44+AM44+AO44 -> 0 | F44: =+Z44+AB44+AD44+AF44+AH44+AJ44+AL44+AN44+AP44 -> 0 | Y44: 0 | Z44: 0 | AA44: 0 | AB44: 0 | AC44: 0 | AD44: 0 | AE44: 0 | AF44: 0 | AG44: 0 | AH44: 0 | AI44: 0 | AJ44: 0 | AK44: 0 | AL44: 0 | AM44: 0 | AN44: 0 | AO44: 0 | AP44: 0 | AQ44: 0 | AR44: 0 | AT44: 0 | AU44: 0 | AV44: 0 | AW44: 0 | CA44: =IF(CH44=1,"* Las consultas de 60 años NO DEBEN ser mayor que el total de Consultas entre 60-64 Años. ","") ->  | CC44: =IF(CJ44=1,"* Las consultas de 12 años NO DEBEN ser mayor que el total de Consultas entre 10-14 Años. ","") ->  | CE44: =IF(AND(AR44="",D44<>0),"* Recuerde que las Embarazadas deben ser incluídas en el ingreso por rango Etario (Digite CEROS si no tiene). ",IF(F44<AR44,"* Las Embarazadas NO DEBEN ser mayor al total de mujeres. ","")) ->  | CH44: =IF(AS44>(AK44+AL44),1,0) -> 0 | CI44: 0 | CJ44: =IF((Y44+Z44)<AQ44,1,0) -> 0 | CK44: 0 | CL44: =IF(AND(AR44="",D44<>0),1,IF(F44<AR44,1,0)) -> 0 | CM44: 0 | CN44: 0
A45: ALTAS ODONTOLÓGICAS INTEGRALES (EXCLUYE SECCIÓN G) | D45: =SUM(E45+F45) -> 18 | E45: =Y45+AA45+AC45+AE45+AG45+AI45+AK45+AM45+AO45 -> 2 | F45: =+Z45+AB45+AD45+AF45+AH45+AJ45+AL45+AN45+AP45 -> 16 | Y45: 0 | Z45: 0 | AA45: 0 | AB45: 0 | AC45: 0 | AD45: 4 | AE45: 0 | AF45: 10 | AG45: 0 | AH45: 2 | AI45: 0 | AJ45: 0 | AK45: 1 | AL45: 0 | AM45: 0 | AN45: 0 | AO45: 1 | AP45: 0 | AQ45: 0 | AR45: 0 | AT45: 0 | AU45: 0 | AV45: 0 | AW45: 2 | CI45: 0 | CJ45: 0 | CK45: 0 | CL45: 0 | CM45: 0 | CN45: 0
A46: ALTAS ODONTOLÓGICAS TOTALES | D46: =SUM(E46+F46) -> 18 | E46: =Y46+AA46+AC46+AE46+AG46+AI46+AK46+AM46+AO46 -> 2 | F46: =+Z46+AB46+AD46+AF46+AH46+AJ46+AL46+AN46+AP46 -> 16 | Y46: =SUM(Y44:Y45) -> 0 | Z46: 0 | AA46: 0 | AB46: 0 | AC46: 0 | AD46: 4 | AE46: =SUM(AE44:AE45) -> 0 | AF46: =SUM(AF44:AF45) -> 10 | AG46: 0 | AH46: 2 | AI46: 0 | AJ46: 0 | AK46: 1 | AL46: 0 | AM46: 0 | AN46: 0 | AO46: =SUM(AO44:AO45) -> 1 | AP46: =SUM(AP44:AP45) -> 0 | AQ46: =SUM(AQ44:AQ45) -> 0 | AR46: =SUM(AR44:AR45) -> 0 | AS46: =SUM(AS44) -> 0 | AT46: =SUM(AT44:AT45) -> 0 | AU46: =SUM(AU44:AU45) -> 0 | AV46: =SUM(AV44:AV45) -> 0 | AW46: =SUM(AW44:AW45) -> 2
A47: EGRESOS POR ABANDONO | D47: 0 | E47: =+G47+I47+K47+M47+O47+Q47+S47+U47+W47+Y47+AA47+AC47+AE47+AG47+AI47+AK47+AM47+AO47 -> 0 | F47: =+H47+J47+L47+N47+P47+R47+T47+V47+X47+Z47+AB47+AD47+AF47+AH47+AJ47+AL47+AN47+AP47 -> 0 | CH47: 0 | CI47: 0 | CJ47: 0 | CK47: 0 | CL47: 0 | CM47: 0 | CN47: 0
A48: ÍNDICE ceod O COPD EN PACIENTES INGRESADOS (Índice ceod se usa en menores de 7 años, para resto se utiliza COPD) | C48: 0 | D48: 58 | E48: =SUM(G48+I48+K48+M48+O48+Q48+S48+U48+W48+Y48+AA48+AC48+AE48+AG48+AI48+AK48+AM48+AO48) -> 28 | F48: =SUM(H48+J48+L48+N48+P48+R48+T48+V48+X48+Z48+AB48+AD48+AF48+AH48+AJ48+AL48+AN48+AP48) -> 30 | G48: 0 | H48: 2 | I48: 1 | J48: 0 | K48: 10 | L48: 15 | M48: 12 | N48: 8 | O48: 5 | P48: 5 | Q48: 0 | R48: 0 | S48: 0 | T48: 0 | U48: 0 | V48: 0 | W48: 0 | X48: 0 | Y48: 0 | Z48: 0 | AA48: 0 | AB48: 0 | AC48: 0 | AD48: 0 | AE48: 0 | AF48: 0 | AG48: 0 | AH48: 0 | AI48: 0 | AJ48: 0 | AK48: 0 | AL48: 0 | AM48: 0 | AN48: 0 | AO48: 0 | AP48: 0 | AQ48: 0 | AR48: 0 | AS48: 0 | AT48: 0 | AU48: 0 | AV48: 0 | AW48: 0 | CH48: 0 | CI48: 0 | CJ48: 0 | CK48: 0 | CL48: 0 | CM48: 0 | CN48: 0
C49: 1 a 2 | D49: 1 | E49: =SUM(G49+I49+K49+M49+O49+Q49+S49+U49+W49+Y49+AA49+AC49+AE49+AG49+AI49+AK49+AM49+AO49) -> 1 | F49: =SUM(H49+J49+L49+N49+P49+R49+T49+V49+X49+Z49+AB49+AD49+AF49+AH49+AJ49+AL49+AN49+AP49) -> 0 | G49: 0 | H49: 0 | I49: 0 | J49: 0 | K49: 0 | L49: 0 | M49: 0 | N49: 0 | O49: 0 | P49: 0 | Q49: 0 | R49: 0 | S49: 0 | T49: 0 | U49: 0 | V49: 0 | W49: 0 | X49: 0 | Y49: 0 | Z49: 0 | AA49: 0 | AB49: 0 | AC49: 0 | AD49: 0 | AE49: 0 | AF49: 0 | AG49: 0 | AH49: 0 | AI49: 0 | AJ49: 0 | AK49: 0 | AL49: 0 | AM49: 0 | AN49: 0 | AO49: 1 | AP49: 0 | AQ49: 0 | AR49: 0 | AS49: 0 | AT49: 0 | AU49: 0 | AV49: 0 | AW49: 0 | CH49: 0 | CI49: 0 | CJ49: 0 | CK49: 0 | CL49: 0 | CM49: 0 | CN49: 0
C50: 3 a 4 | D50: 4 | E50: 1 | F50: 3 | G50: 0 | H50: 0 | I50: 0 | J50: 0 | K50: 0 | L50: 0 | M50: 0 | N50: 0 | O50: 0 | P50: 0 | Q50: 0 | R50: 1 | S50: 0 | T50: 0 | U50: 0 | V50: 0 | W50: 0 | X50: 0 | Y50: 0 | Z50: 0 | AA50: 0 | AB50: 1 | AC50: 0 | AD50: 0 | AE50: 0 | AF50: 1 | AG50: 0 | AH50: 0 | AI50: 0 | AJ50: 0 | AK50: 1 | AL50: 0 | AM50: 0 | AN50: 0 | AO50: 0 | AP50: 0 | AQ50: 0 | AR50: 1 | AS50: 0 | AT50: 0 | AU50: 1 | AV50: 0 | AW50: 1 | CH50: 0 | CI50: 0 | CJ50: 0 | CK50: 0 | CL50: 0 | CM50: 0 | CN50: 0
C51: 5 a 6 | D51: 2 | E51: 0 | F51: 2 | G51: 0 | H51: 0 | I51: 0 | J51: 0 | K51: 0 | L51: 0 | M51: 0 | N51: 0 | O51: 0 | P51: 0 | Q51: 0 | R51: 0 | S51: 0 | T51: 0 | U51: 0 | V51: 0 | W51: 0 | X51: 0 | Y51: 0 | Z51: 0 | AA51: 0 | AB51: 0 | AC51: 0 | AD51: 0 | AE51: 0 | AF51: 2 | AG51: 0 | AH51: 0 | AI51: 0 | AJ51: 0 | AK51: 0 | AL51: 0 | AM51: 0 | AN51: 0 | AO51: 0 | AP51: 0 | AQ51: 0 | AR51: 2 | AS51: 0 | AT51: 0 | AU51: 0 | AV51: 0 | AW51: 0 | CH51: 0 | CI51: 0 | CJ51: 0 | CK51: 0 | CL51: 0 | CM51: 0 | CN51: 0
C52: 7 a 8 | D52: =SUM(E52+F52) -> 2 | E52: 0 | F52: 2 | G52: 0 | H52: 0 | I52: 0 | J52: 0 | K52: 0 | L52: 0 | M52: 0 | N52: 0 | O52: 0 | P52: 0 | Q52: 0 | R52: 0 | S52: 0 | T52: 0 | U52: 0 | V52: 0 | W52: 0 | X52: 0 | Y52: 0 | Z52: 0 | AA52: 0 | AB52: 0 | AC52: 0 | AD52: 1 | AE52: 0 | AF52: 0 | AG52: 0 | AH52: 0 | AI52: 0 | AJ52: 0 | AK52: 0 | AL52: 1 | AM52: 0 | AN52: 0 | AO52: 0 | AP52: 0 | AQ52: 0 | AR52: 1 | AS52: 1 | AT52: 1 | AU52: 0 | AV52: 0 | AW52: 0 | CH52: 0 | CI52: 0 | CJ52: 0 | CK52: 0 | CL52: 0 | CM52: 0 | CN52: 0
C53: 9 o más | D53: 3 | E53: 1 | F53: 2 | G53: 0 | H53: 0 | I53: 0 | J53: 0 | K53: 0 | L53: 0 | M53: 0 | N53: 0 | O53: 0 | P53: 0 | Q53: 0 | R53: 0 | S53: 1 | T53: 0 | U53: 0 | V53: 0 | W53: 0 | X53: 0 | Y53: 0 | Z53: 0 | AA53: 0 | AB53: 0 | AC53: 0 | AD53: 0 | AE53: 0 | AF53: 1 | AG53: 0 | AH53: 0 | AI53: 0 | AJ53: 0 | AK53: 0 | AL53: 0 | AM53: 0 | AN53: 1 | AO53: 0 | AP53: 0 | AQ53: 0 | AR53: 0 | AS53: 0 | AT53: 0 | AU53: 0 | AV53: 0 | AW53: 1 | CH53: 0 | CI53: 0 | CJ53: 0 | CK53: 0 | CL53: 0 | CM53: 0 | CN53: 0
A54: TOTAL | D54: =SUM(D48:D53) -> 70 | E54: =SUM(E48:E53) -> 31 | F54: =SUM(F48:F53) -> 39 | G54: =SUM(G48:G53) -> 0 | H54: =SUM(H48:H53) -> 2 | I54: 1 | J54: 0 | K54: 10 | L54: 15 | M54: 12 | N54: 8 | O54: 5 | P54: 5 | Q54: 0 | R54: 1 | S54: 1 | T54: 0 | U54: 0 | V54: 0 | W54: 0 | X54: 0 | Y54: 0 | Z54: 0 | AA54: 0 | AB54: 1 | AC54: 0 | AD54: 1 | AE54: 0 | AF54: 4 | AG54: 0 | AH54: 0 | AI54: 0 | AJ54: 0 | AK54: 1 | AL54: 1 | AM54: 0 | AN54: 1 | AO54: 1 | AP54: 0 | AQ54: 0 | AR54: 4 | AS54: 1 | AT54: 1 | AU54: 1 | AV54: 0 | AW54: =SUM(AW48:AW53) -> 2
A55: N° de dientes (total de dientes en boca. En dentición mixta se suman los dientes primarios y permanentes) | C55: 0 | D55: 4 | E55: 1 | F55: 3 | G55: 0 | H55: 2 | I55: 0 | J55: 0 | K55: 0 | L55: 0 | M55: 0 | N55: 0 | O55: 0 | P55: 0 | Q55: 0 | R55: 0 | S55: 1 | T55: 0 | U55: 0 | V55: 0 | W55: 0 | X55: 0 | Y55: 0 | Z55: 0 | AA55: 0 | AB55: 0 | AC55: 0 | AD55: 1 | AE55: 0 | AF55: 0 | AG55: 0 | AH55: 0 | AI55: 0 | AJ55: 0 | AK55: 0 | AL55: 0 | AM55: 0 | AN55: 0 | AO55: 0 | AP55: 0 | AQ55: 0 | AR55: 1 | AS55: 0 | AT55: 0 | AU55: 0 | AV55: 0 | AW55: 0 | CH55: 0 | CI55: 0 | CJ55: 0 | CK55: 0 | CL55: 0 | CM55: 0 | CN55: 0
C56: 1 a 9 | D56: 0 | E56: 0 | F56: 0 | G56: 0 | H56: 0 | I56: 0 | J56: 0 | K56: 0 | L56: 0 | M56: 0 | N56: 0 | O56: 0 | P56: 0 | Q56: 0 | R56: 0 | S56: 0 | T56: 0 | U56: 0 | V56: 0 | W56: 0 | X56: 0 | Y56: 0 | Z56: 0 | AA56: 0 | AB56: 0 | AC56: 0 | AD56: 0 | AE56: 0 | AF56: 0 | AG56: 0 | AH56: 0 | AI56: 0 | AJ56: 0 | AK56: 0 | AL56: 0 | AM56: 0 | AN56: 0 | AO56: 0 | AP56: 0 | AQ56: 0 | AR56: 0 | AS56: 0 | AT56: 0 | AU56: 0 | AV56: 0 | AW56: 0 | CH56: 0 | CI56: 0 | CJ56: 0 | CK56: 0 | CL56: 0 | CM56: 0 | CN56: 0
C57: 10 a 19 | D57: 0 | E57: 0 | F57: 0 | G57: 0 | H57: 0 | I57: 0 | J57: 0 | K57: 0 | L57: 0 | M57: 0 | N57: 0 | O57: 0 | P57: 0 | Q57: 0 | R57: 0 | S57: 0 | T57: 0 | U57: 0 | V57: 0 | W57: 0 | X57: 0 | Y57: 0 | Z57: 0 | AA57: 0 | AB57: 0 | AC57: 0 | AD57: 0 | AE57: 0 | AF57: 0 | AG57: 0 | AH57: 0 | AI57: 0 | AJ57: 0 | AK57: 0 | AL57: 0 | AM57: 0 | AN57: 0 | AO57: 0 | AP57: 0 | AQ57: 0 | AR57: 0 | AS57: 0 | AT57: 0 | AU57: 0 | AV57: 0 | AW57: 0 | CH57: 0 | CI57: 0 | CJ57: 0 | CK57: 0 | CL57: 0 | CM57: 0 | CN57: 0
C58: 20 a 27 | D58: 0 | E58: 0 | F58: 0 | G58: 0 | H58: 0 | I58: 0 | J58: 0 | K58: 0 | L58: 0 | M58: 0 | N58: 0 | O58: 0 | P58: 0 | Q58: 0 | R58: 0 | S58: 0 | T58: 0 | U58: 0 | V58: 0 | W58: 0 | X58: 0 | Y58: 0 | Z58: 0 | AA58: 0 | AB58: 0 | AC58: 0 | AD58: 0 | AE58: 0 | AF58: 0 | AG58: 0 | AH58: 0 | AI58: 0 | AJ58: 0 | AK58: 0 | AL58: 0 | AM58: 0 | AN58: 0 | AO58: 0 | AP58: 0 | AQ58: 0 | AR58: 0 | AS58: 0 | AT58: 0 | AU58: 0 | AV58: 0 | AW58: 0 | CH58: 0 | CI58: 0 | CJ58: 0 | CK58: 0 | CL58: 0 | CM58: 0 | CN58: 0
C59: 28 y más | D59: 0 | E59: =SUM(G59+I59+K59+M59+O59+Q59+S59+U59+W59+Y59+AA59+AC59+AE59+AG59+AI59+AK59+AM59+AO59) -> 0 | F59: =SUM(H59+J59+L59+N59+P59+R59+T59+V59+X59+Z59+AB59+AD59+AF59+AH59+AJ59+AL59+AN59+AP59) -> 0 | G59: 0 | H59: 0 | I59: 0 | J59: 0 | K59: 0 | L59: 0 | M59: 0 | N59: 0 | O59: 0 | P59: 0 | Q59: 0 | R59: 0 | S59: 0 | T59: 0 | U59: 0 | V59: 0 | W59: 0 | X59: 0 | Y59: 0 | Z59: 0 | AA59: 0 | AB59: 0 | AC59: 0 | AD59: 0 | AE59: 0 | AF59: 0 | AG59: 0 | AH59: 0 | AI59: 0 | AJ59: 0 | AK59: 0 | AL59: 0 | AM59: 0 | AN59: 0 | AO59: 0 | AP59: 0 | AQ59: 0 | AR59: 0 | AS59: 0 | AT59: 0 | AU59: 0 | AV59: 0 | AW59: 0 | CH59: 0 | CI59: 0 | CJ59: 0 | CK59: 0 | CL59: 0 | CM59: 0 | CN59: 0
A60: TOTAL | D60: =SUM(D55:D59) -> 4 | E60: =SUM(E55:E59) -> 1 | F60: =SUM(F55:F59) -> 3 | G60: 0 | H60: 2 | I60: 0 | J60: 0 | K60: 0 | L60: 0 | M60: 0 | N60: 0 | O60: 0 | P60: 0 | Q60: 0 | R60: 0 | S60: 1 | T60: 0 | U60: 0 | V60: 0 | W60: 0 | X60: 0 | Y60: 0 | Z60: 0 | AA60: 0 | AB60: 0 | AC60: 0 | AD60: 1 | AE60: 0 | AF60: 0 | AG60: 0 | AH60: 0 | AI60: 0 | AJ60: 0 | AK60: 0 | AL60: 0 | AM60: 0 | AN60: 0 | AO60: 0 | AP60: 0 | AQ60: 0 | AR60: 1 | AS60: 0 | AT60: 0 | AU60: 0 | AV60: 0 | AW60: 0
A61: CÓDIGO EXAMEN PERIODONTAL BASICO (EPB) EN PACIENTES INGRESADOS | C61: 0 | D61: =SUM(E61:F61) -> 0 | E61: =SUM(AA61+AC61+AE61+AG61+AI61+AK61+AM61+AO61) -> 0 | F61: 0 | CH61: 0 | CI61: 0 | CJ61: 0 | CK61: 0 | CL61: 0 | CM61: 0 | CN61: 0
C62: 1,2,3 | D62: =SUM(E62:F62) -> 0 | E62: 0 | F62: 0 | CH62: 0 | CI62: 0 | CJ62: 0 | CK62: 0 | CL62: 0 | CM62: 0 | CN62: 0
C63: 4 y * | D63: =SUM(E63:F63) -> 0 | E63: 0 | F63: 0 | CH63: 0 | CI63: 0 | CJ63: 0 | CK63: 0 | CL63: 0 | CM63: 0 | CN63: 0
C64: TOTAL | D64: =SUM(E64:F64) -> 0 | E64: =SUM(E61:E63) -> 0 | F64: =SUM(F61:F63) -> 0 | AA64: =SUM(AA61:AA63) -> 0 | AB64: 0 | AC64: 0 | AD64: 0 | AE64: 0 | AF64: 0 | AG64: 0 | AH64: 0 | AI64: 0 | AJ64: 0 | AK64: 0 | AL64: 0 | AM64: 0 | AN64: 0 | AO64: 0 | AP64: 0 | AQ64: 0 | AR64: 0 | AS64: 0 | AT64: 0 | AU64: 0 | AV64: 0 | AW64: 0
A65: SECCIÓN D : INTERCONSULTAS GENERADAS EN ESTABLECIMIENTOS DE APS
A66: ESPECIALIDAD | D66: TOTAL | E66: Gestantes | F66: 60 años | G66: Usuarios con Discapacidad | H66: Niños. Niñas, adolescentes y jóvenes Población SENAME | I66: Migrantes
A67: ENDODONCIA | J67: =CA67&CB67&CC67&CD67&CE67 ->  | CA67: =IF(CH67=1,"* Las Interconsultas de Gestantes NO DEBEN ser mayor al Total de Interconsultas. ","") ->  | CB67: =IF(CI67=1,"* Las Interconsultas de Pacientes de 60 años NO DEBEN ser mayor al Total de Interconsultas. ","") ->  | CC67: =IF(CJ67=1,"* Las Interconsultas de Usuarios en situación de Discapacidad NO DEBEN ser mayor al Total de Interconsultas. ","") ->  | CD67: =IF(CK67=1,"* Las Interconsultas de Niños, Niñas, Adolescentes y Jóvenes Red SENAME NO DEBEN ser mayor al Total de Interconsultas. ","") ->  | CE67: =IF(CL67=1,"* Las Interconsultas de Migrantes NO DEBEN ser mayor al Total de Interconsultas. ","") ->  | CH67: =IF($D67<E67,1,0) -> 0 | CI67: =IF($D67<F67,1,0) -> 0 | CJ67: 0 | CK67: 0 | CL67: 0
A68: REHABILITACIÓN ORAL | B68: PRÓTESIS REMOVIBLES | J68: =CA68&CB68&CC68&CD68&CE68 ->  | CA68: =IF(CH68=1,"* Las Interconsultas de Gestantes NO DEBEN ser mayor al Total de Interconsultas. ","") ->  | CB68: =IF(CI68=1,"* Las Interconsultas de Pacientes de 60 años NO DEBEN ser mayor al Total de Interconsultas. ","") ->  | CC68: =IF(CJ68=1,"* Las Interconsultas de Usuarios en situación de Discapacidad NO DEBEN ser mayor al Total de Interconsultas. ","") ->  | CD68: =IF(CK68=1,"* Las Interconsultas de Niños, Niñas, Adolescentes y Jóvenes Red SENAME NO DEBEN ser mayor al Total de Interconsultas. ","") ->  | CE68: =IF(CL68=1,"* Las Interconsultas de Migrantes NO DEBEN ser mayor al Total de Interconsultas. ","") ->  | CH68: =IF($D68<E68,1,0) -> 0 | CI68: =IF($D68<F68,1,0) -> 0 | CJ68: =IF($D68<G68,1,0) -> 0 | CK68: =IF($D68<H68,1,0) -> 0 | CL68: =IF($D68<I68,1,0) -> 0
B69: PRÓTESIS FIJA | CH69: 0 | CI69: 0 | CJ69: 0 | CK69: 0 | CL69: 0
B70: PRÓTESIS IMPLANTOASISTIDA | CH70: 0 | CI70: 0 | CJ70: 0 | CK70: 0 | CL70: 0
A71: CIRUGÍA BUCAL | CH71: 0 | CI71: 0 | CJ71: 0 | CK71: 0 | CL71: 0
A72: CIRUGÍA Y TRAUMATOLOGÍA MAXILOFACIAL | CH72: 0 | CI72: 0 | CJ72: 0 | CK72: 0 | CL72: 0
A73: ODONTOPEDIATRÍA | CH73: 0 | CI73: 0 | CJ73: 0 | CK73: 0 | CL73: 0
A74: ORTODONCIA Y ORTOPEDIA DENTOMAXILOFACIAL | B74: ORTODONCIA Y ORTOPEDIA DENTOMAXILOFACIAL | CH74: 0 | CI74: 0 | CJ74: 0 | CK74: 0 | CL74: 0
B75: APARATOLOGÍA REMOVIBLE | CH75: 0 | CI75: 0 | CJ75: 0 | CK75: 0 | CL75: 0
A76: PERIODONCIA | CH76: 0 | CI76: 0 | CJ76: 0 | CK76: 0 | CL76: 0
A77: IMAGENOLOGÍA ORAL Y MAXILOFACIAL | CH77: 0 | CI77: 0 | CJ77: 0 | CK77: 0 | CL77: 0
A78: PATOLOGÍA ORAL | CH78: 0 | CI78: 0 | CJ78: 0 | CK78: 0 | CL78: 0
A79: IMPLANTOLOGÍA BUCO MAXILOFACIAL | CH79: 0 | CI79: 0 | CJ79: 0 | CK79: 0 | CL79: 0
A80: TRASTORNOS TEMPOROMANDIBULARES Y DOLOR OROFACIAL | CA80: =IF(CH80=1,"* Las Interconsultas de Gestantes NO DEBEN ser mayor al Total de Interconsultas. ","") ->  | CB80: =IF(CI80=1,"* Las Interconsultas de Pacientes de 60 años NO DEBEN ser mayor al Total de Interconsultas. ","") ->  | CC80: =IF(CJ80=1,"* Las Interconsultas de Usuarios en situación de Discapacidad NO DEBEN ser mayor al Total de Interconsultas. ","") ->  | CD80: =IF(CK80=1,"* Las Interconsultas de Niños, Niñas, Adolescentes y Jóvenes Red SENAME NO DEBEN ser mayor al Total de Interconsultas. ","") ->  | CE80: =IF(CL80=1,"* Las Interconsultas de Migrantes NO DEBEN ser mayor al Total de Interconsultas. ","") ->  | CH80: =IF($D80<E80,1,0) -> 0 | CI80: 0 | CJ80: 0 | CK80: 0 | CL80: 0
A81: SOMATOPRÓTESIS | CA81: =IF(CH81=1,"* Las Interconsultas de Gestantes NO DEBEN ser mayor al Total de Interconsultas. ","") ->  | CB81: =IF(CI81=1,"* Las Interconsultas de Pacientes de 60 años NO DEBEN ser mayor al Total de Interconsultas. ","") ->  | CC81: =IF(CJ81=1,"* Las Interconsultas de Usuarios en situación de Discapacidad NO DEBEN ser mayor al Total de Interconsultas. ","") ->  | CD81: =IF(CK81=1,"* Las Interconsultas de Niños, Niñas, Adolescentes y Jóvenes Red SENAME NO DEBEN ser mayor al Total de Interconsultas. ","") ->  | CE81: =IF(CL81=1,"* Las Interconsultas de Migrantes NO DEBEN ser mayor al Total de Interconsultas. ","") ->  | CH81: =IF($D81<E81,1,0) -> 0 | CI81: =IF($D81<F81,1,0) -> 0 | CJ81: =IF($D81<G81,1,0) -> 0 | CK81: =IF($D81<H81,1,0) -> 0 | CL81: =IF($D81<I81,1,0) -> 0
A82: SECCIÓN E: CONSULTAS ODONTOLÓGICAS EN HORARIO CONTINUADO (incluidas en Secciones A y B. Excluye extensiones horarias de Sección G )
A83: JORNADA | D83: CONSULTAS
D84: TOTAL | E84: Hombres | F84: Mujeres
A85: HORARIO CONTINUADO | B85: VESPERTINA (LUNES-VIERNES) | D85: =SUM(E85+F85) -> 146 | E85: 54 | F85: 92
B86: SÁBADO, DOMINGO o FESTIVO | D86: =SUM(E86+F86) -> 120 | E86: 39 | F86: 81
A87: SECCIÓN F: ACTIVIDADES DE ATENCIÓN EN ESPECIALIDADES ODONTOLÓGICAS.
A88: ACTIVIDADES DE ESPECIALIDADES | D88: TOTAL | G88: SEGÚN GRUPOS DE EDAD O DE RIESGO | AO88: 12 años (incluidos en grupo de 10-14 años) | AP88: Embarazadas | AQ88: Beneficiarios | AR88: 60 años incluidos en grupos de 60-64 años) | AS88: Compra de Servicios | AT88: Usuarios con Discapacidad | AU88: Niños, niñas, adolescentes y jovenes RED SENAME | AV88: Migrantes
G89: Menos de 1 año - 1 año | I89: 2 años | K89: 3 años | M89: 4 años | O89: 5 años | Q89: 6 años | S89: 7 años | U89: 8-9 años | W89: 10-14 años | Y89: 15-19 años | AA89: 20-24 años | AC89: 25-34 años | AE89: 35-44 años | AG89: 45-59 años | AI89: 60-64 años | AK89: 65-74 años | AM89: 75 y más años
D90: Ambos Sexos | E90: Hombres | F90: Mujeres | G90: Hombres | H90: Mujeres | I90: Hombres | J90: Mujeres | K90: Hombres | L90: Mujeres | M90: Hombres | N90: Mujeres | O90: Hombres | P90: Mujeres | Q90: Hombres | R90: Mujeres | S90: Hombres | T90: Mujeres | U90: Hombres | V90: Mujeres | W90: Hombres | X90: Mujeres | Y90: Hombres | Z90: Mujeres | AA90: Hombres | AB90: Mujeres | AC90: Hombres | AD90: Mujeres | AE90: Hombres | AF90: Mujeres | AG90: Hombres | AH90: Mujeres | AI90: Hombres | AJ90: Mujeres | AK90: Hombres | AL90: Mujeres | AM90: Hombres | AN90: Mujeres
A91: EXAMEN Y DIAGNÓSTICO DE ESPECIALIDAD | D91: =SUM(E91:F91) -> 0 | E91: =SUM(G91+I91+K91+M91+O91+Q91+S91+U91+W91+Y91+AA91+AC91+AE91+AG91+AI91+AK91+AM91) -> 0 | F91: =SUM(H91+J91+L91+N91+P91+R91+T91+V91+X91+Z91+AB91+AD91+AF91+AH91+AJ91+AL91+AN91) -> 0 | AW91: =$CA91&$CB91&$CC91&$CD91&$CE91&$CF91&$CG91 ->  | CA91: =IF(CH91=1,"* Las consultas de 12 años NO DEBEN ser mayor que el total de Consultas entre 10-14 Años. ","") ->  | CB91: =IF(CI91=1,"* Las consultas de 60 años NO DEBEN ser mayor que el total de Consultas entre 60-64 Años. ","") ->  | CC91: =IF(CJ91=1,"* Las actividades de usuarios en situación de discapacidad NO DEBEN superar el total. ","") ->  | CD91: =IF(AND(AP91="",D91<>0),"* Recuerde que las Embarazadas deben ser incluídas en el ingreso por rango Etario (Digite CEROS si no tiene). ",IF(F91<AP91,"* Las Embarazadas NO DEBEN ser mayor al total de mujeres. ","")) ->  | CE91: =IF(AND(AQ91="",D91<>0),"* No olvide digitar la columna Beneficiarios (Digite CEROS si no tiene). ",IF(D91<AQ91,"* El número de Beneficiarios NO DEBE ser mayor que el Total. ","")) ->  | CF91: =IF(AND(AU91="",D91<>0),"* No olvide digitar la Población SENAME (Digite CEROS si no tiene). ",IF(D91<AU91,"* La Población SENAME NO DEBE ser mayor al Total. ","")) ->  | CG91: =IF(AND(AV91="",D91<>0),"* No olvide digitar la Población Migrante (Digite CEROS si no tiene). ",IF(D91<AV91,"* La Población Migrante NO DEBE superar el Total. ","")) ->  | CH91: =IF(AO91>(W91+X91),1,0) -> 0 | CI91: =IF(AR91>(AI91+AJ91),1,0) -> 0 | CJ91: =IF(D91<AT91,1,0) -> 0 | CK91: =IF(AND(AP91="",D91<>0),1,IF(F91<AP91,1,0)) -> 0 | CL91: =IF(AND(AQ91="",D91<>0),1,IF(D91<AQ91,1,0)) -> 0 | CM91: =IF(AND(AU91="",D91<>0),1,IF(D91<AU91,1,0)) -> 0 | CN91: =IF(AND(AV91="",D91<>0),1,IF(D91<AV91,1,0)) -> 0
A92: EDUCACIÓN EN SALUD BUCAL | D92: =SUM(E92:F92) -> 0 | E92: =SUM(G92+I92+K92+M92+O92+Q92+S92+U92+W92+Y92+AA92+AC92+AE92+AG92+AI92+AK92+AM92) -> 0 | F92: =SUM(H92+J92+L92+N92+P92+R92+T92+V92+X92+Z92+AB92+AD92+AF92+AH92+AJ92+AL92+AN92) -> 0 | CA92: =IF(CH92=1,"* Las consultas de 12 años NO DEBEN ser mayor que el total de Consultas entre 10-14 Años. ","") ->  | CB92: =IF(CI92=1,"* Las consultas de 60 años NO DEBEN ser mayor que el total de Consultas entre 60-64 Años. ","") ->  | CC92: =IF(CJ92=1,"* Las actividades de usuarios en situación de discapacidad NO DEBEN superar el total. ","") ->  | CD92: =IF(AND(AP92="",D92<>0),"* Recuerde que las Embarazadas deben ser incluídas en el ingreso por rango Etario (Digite CEROS si no tiene). ",IF(F92<AP92,"* Las Embarazadas NO DEBEN ser mayor al total de mujeres. ","")) ->  | CE92: =IF(AND(AQ92="",D92<>0),"* No olvide digitar la columna Beneficiarios (Digite CEROS si no tiene). ",IF(D92<AQ92,"* El número de Beneficiarios NO DEBE ser mayor que el Total. ","")) ->  | CF92: =IF(AND(AU92="",D92<>0),"* No olvide digitar la Población SENAME (Digite CEROS si no tiene). ",IF(D92<AU92,"* La Población SENAME NO DEBE ser mayor al Total. ","")) ->  | CG92: =IF(AND(AV92="",D92<>0),"* No olvide digitar la Población Migrante (Digite CEROS si no tiene). ",IF(D92<AV92,"* La Población Migrante NO DEBE superar el Total. ","")) ->  | CH92: =IF(AO92>(W92+X92),1,0) -> 0 | CI92: =IF(AR92>(AI92+AJ92),1,0) -> 0 | CJ92: =IF(D92<AT92,1,0) -> 0 | CK92: =IF(AND(AP92="",D92<>0),1,IF(F92<AP92,1,0)) -> 0 | CL92: =IF(AND(AQ92="",D92<>0),1,IF(D92<AQ92,1,0)) -> 0 | CM92: =IF(AND(AU92="",D92<>0),1,IF(D92<AU92,1,0)) -> 0 | CN92: =IF(AND(AV92="",D92<>0),1,IF(D92<AV92,1,0)) -> 0
A93: RESPUESTA A INTERCONSULTA PERSONAS HOSPITALIZADOS | D93: 0 | E93: 0 | F93: 0 | CH93: 0 | CI93: 0 | CJ93: 0 | CK93: 0 | CL93: 0 | CM93: 0 | CN93: 0
A94: VISITA A SALA | D94: 0 | E94: 0 | F94: 0 | CH94: 0 | CI94: 0 | CJ94: 0 | CK94: 0 | CL94: 0 | CM94: 0 | CN94: 0
A95: CONTRALORÍA CLÍNICA | D95: 0 | E95: 0 | F95: 0 | CH95: 0 | CI95: 0 | CJ95: 0 | CK95: 0 | CL95: 0 | CM95: 0 | CN95: 0
A96: CIRUGÍA TERCER MOLAR | D96: 0 | E96: =SUM(Y96+AA96+AC96+AE96+AG96+AI96+AK96+AM96) -> 0 | F96: =SUM(Z96+AB96+AD96+AF96+AH96+AJ96+AL96+AN96) -> 0 | CI96: 0 | CJ96: 0 | CK96: 0 | CL96: 0 | CM96: 0 | CN96: 0
A97: CIRUGÍA MENOR AMBULATORIA | D97: 0 | E97: 0 | F97: 0 | CH97: 0 | CI97: 0 | CJ97: 0 | CK97: 0 | CL97: 0 | CM97: 0 | CN97: 0
A98: CIRUGÍA MAYOR AMBULATORIA | D98: 0 | E98: 0 | F98: 0 | CH98: 0 | CI98: 0 | CJ98: 0 | CK98: 0 | CL98: 0 | CM98: 0 | CN98: 0
A99: TRATAMIENTO TRAUMATISMO DENTOALVEOLAR | D99: 0 | E99: 0 | F99: 0 | CH99: 0 | CI99: 0 | CJ99: 0 | CK99: 0 | CL99: 0 | CM99: 0 | CN99: 0
A100: OBTURACIÓN DIRECTA | D100: 0 | E100: 0 | F100: 0 | CH100: 0 | CI100: 0 | CJ100: 0 | CK100: 0 | CL100: 0 | CM100: 0 | CN100: 0
A101: OBTURACIÓN INDIRECTA (INLAYS U ONLAYS) | D101: 0 | E101: =SUM(Y101+AA101+AC101+AE101+AG101+AI101+AK101+AM101) -> 0 | F101: =SUM(Z101+AB101+AD101+AF101+AH101+AJ101+AL101+AN101) -> 0 | CI101: 0 | CJ101: 0 | CK101: 0 | CL101: 0 | CM101: 0 | CN101: 0
A102: INSTALACIÓN APARATO REMOVIBLE ORTODÓNCICO | D102: 0 | E102: =SUM(G102+I102+K102+M102+O102+Q102+S102+U102+W102+Y102) -> 0 | F102: =SUM(H102+J102+L102+N102+P102+R102+T102+V102+X102+Z102) -> 0 | CH102: 0 | CJ102: 0 | CK102: 0 | CL102: 0 | CM102: 0 | CN102: 0
A103: INSTALACIÓN APARATO FIJO ORTODÓNCICO | D103: 0 | E103: 0 | F103: 0 | CH103: 0 | CI103: 0 | CJ103: 0 | CK103: 0 | CL103: 0 | CM103: 0 | CN103: 0
A104: INSTALACIÓN APARATO DE CONTENCIÓN ORTODÓNCICO | D104: 0 | E104: 0 | F104: 0 | CH104: 0 | CI104: 0 | CJ104: 0 | CK104: 0 | CL104: 0 | CM104: 0 | CN104: 0
A105: RETIRO APARATOLOGÍA DE ORTODONCIA | D105: 0 | E105: 0 | F105: 0 | CH105: 0 | CI105: 0 | CJ105: 0 | CK105: 0 | CL105: 0 | CM105: 0 | CN105: 0
A106: ORTOPEDIA PREQUIRÚRGICA | D106: 0 | E106: 0 | F106: 0 | CH106: 0 | CI106: 0 | CJ106: 0 | CK106: 0 | CL106: 0 | CM106: 0 | CN106: 0
A107: ORTODONCIA PREVENTIVA E INTERCEPTIVA (OPI) | D107: 0 | E107: =SUM(G107+I107+K107+M107+O107+Q107+S107+U107+W107) -> 0 | F107: =SUM(H107+J107+L107+N107+P107+R107+T107+V107+X107) -> 0 | CH107: 0 | CJ107: 0 | CK107: 0 | CL107: 0 | CM107: 0 | CN107: 0
A108: TRATAMIENTO ENDODONCIA UNIRRADICULAR | D108: 0 | E108: =SUM(Q108+S108+U108+W108+Y108+AA108+AC108+AE108+AG108+AI108+AK108+AM108) -> 0 | F108: =SUM(R108+T108+V108+X108+Z108+AB108+AD108+AF108+AH108+AJ108+AL108+AN108) -> 0 | CH108: 0 | CI108: 0 | CJ108: 0 | CK108: 0 | CL108: 0 | CM108: 0 | CN108: 0
A109: TRATAMIENTO ENDODONCIA BIRRADICULAR | D109: 0 | E109: =SUM(Q109+S109+U109+W109+Y109+AA109+AC109+AE109+AG109+AI109+AK109+AM109) -> 0 | F109: =SUM(R109+T109+V109+X109+Z109+AB109+AD109+AF109+AH109+AJ109+AL109+AN109) -> 0 | CH109: 0 | CI109: 0 | CJ109: 0 | CK109: 0 | CL109: 0 | CM109: 0 | CN109: 0
A110: TRATAMIENTO ENDODONCIA MULTIRRADICULAR | D110: 0 | E110: 0 | F110: 0 | CH110: 0 | CI110: 0 | CJ110: 0 | CK110: 0 | CL110: 0 | CM110: 0 | CN110: 0
A111: INDUCCIÓN AL CIERRE APICAL | D111: 0 | E111: =SUM(Q111+S111+U111+W111+Y111) -> 0 | F111: =SUM(R111+T111+V111+X111+Z111) -> 0 | CH111: 0 | CJ111: 0 | CL111: 0 | CM111: 0 | CN111: 0
A112: RETRATAMIENTO DE ENDODONCIA | D112: 0 | E112: =SUM(Q112+S112+U112+W112+Y112+AA112+AC112+AE112+AG112+AI112+AK112+AM112) -> 0 | F112: =SUM(R112+T112+V112+X112+Z112+AB112+AD112+AF112+AH112+AJ112+AL112+AN112) -> 0 | CH112: 0 | CI112: 0 | CJ112: 0 | CK112: 0 | CL112: 0 | CM112: 0 | CN112: 0
A113: CIRUGÍA APICAL | D113: 0 | E113: =SUM(Q113+S113+U113+W113+Y113+AA113+AC113+AE113+AG113+AI113+AK113+AM113) -> 0 | F113: =SUM(R113+T113+V113+X113+Z113+AB113+AD113+AF113+AH113+AJ113+AL113+AN113) -> 0 | CH113: 0 | CI113: 0 | CJ113: 0 | CK113: 0 | CL113: 0 | CM113: 0 | CN113: 0
A114: ADAPTACIÓN A LA ATENCIÓN ODONTOLÓGICA | D114: 0 | E114: 0 | F114: 0 | CH114: 0 | CI114: 0 | CJ114: 0 | CK114: 0 | CL114: 0 | CM114: 0 | CN114: 0
A115: PROCEDIMIENTO RESTAURADOR (ODONTOPEDIATRÍA) | D115: 0 | E115: 0 | F115: 0 | CH115: 0 | CI115: 0 | CJ115: 0 | CK115: 0 | CL115: 0 | CM115: 0 | CN115: 0
A116: PROCEDIMIENTO PULPAR (ODONTOPEDIATRÍA) | D116: 0 | E116: 0 | F116: 0 | CH116: 0 | CI116: 0 | CJ116: 0 | CK116: 0 | CL116: 0 | CM116: 0 | CN116: 0
A117: CIRUGÍA AMBULATORIA (ODONTOPEDIATRÍA) | D117: 0 | E117: 0 | F117: 0 | CH117: 0 | CI117: 0 | CJ117: 0 | CK117: 0 | CL117: 0 | CM117: 0 | CN117: 0
A118: DESTARTRAJE SUBGINGIVAL O PULIDO RADICULAR | D118: 0 | E118: =SUM(S118+U118+W118+Y118+AA118+AC118+AE118+AG118+AI118+AK118+AM118) -> 0 | F118: =SUM(T118+V118+X118+Z118+AB118+AD118+AF118+AH118+AJ118+AL118+AN118) -> 0 | CH118: 0 | CI118: 0 | CJ118: 0 | CK118: 0 | CL118: 0 | CM118: 0 | CN118: 0
A119: DESTARTRAJE SUPRAGINGIVAL O PULIDO CORONARIO | D119: 0 | E119: =SUM(S119+U119+W119+Y119+AA119+AC119+AE119+AG119+AI119+AK119+AM119) -> 0 | F119: =SUM(T119+V119+X119+Z119+AB119+AD119+AF119+AH119+AJ119+AL119+AN119) -> 0 | CH119: 0 | CI119: 0 | CJ119: 0 | CK119: 0 | CL119: 0 | CM119: 0 | CN119: 0
A120: PROCEDIMIENTO QUIRÚRGICO (PERIODONCIA) | D120: 0 | E120: =SUM(U120+W120+Y120+AA120+AC120+AE120+AG120+AI120+AK120+AM120) -> 0 | F120: =SUM(V120+X120+Z120+AB120+AD120+AF120+AH120+AJ120+AL120+AN120) -> 0 | CH120: 0 | CI120: 0 | CJ120: 0 | CK120: 0 | CL120: 0 | CM120: 0 | CN120: 0
A121: PROCEDIMIENTO QUIRÚRGICO PERIIMPLANTAR (PERIODONCIA) | D121: 0 | E121: =SUM(Y121+AA121+AC121+AE121+AG121+AI121+AK121+AM121) -> 0 | F121: =SUM(Z121+AB121+AD121+AF121+AH121+AJ121+AL121+AN121) -> 0 | CI121: 0 | CJ121: 0 | CK121: 0 | CL121: 0 | CM121: 0 | CN121: 0
A122: FERULIZACIÓN | D122: 0 | E122: 0 | F122: 0 | CH122: 0 | CI122: 0 | CJ122: 0 | CK122: 0 | CL122: 0 | CM122: 0 | CN122: 0
A123: REHABILITACIÓN MEDIANTE PRÓTESIS REMOVIBLE ACRÍLICA PARCIAL O TOTAL | D123: 0 | E123: =SUM(Y123+AA123+AC123+AE123+AG123+AI123+AK123+AM123) -> 0 | F123: =SUM(Z123+AB123+AD123+AF123+AH123+AJ123+AL123+AN123) -> 0 | CI123: 0 | CJ123: 0 | CK123: 0 | CL123: 0 | CM123: 0 | CN123: 0
A124: REHABILITACIÓN MEDIANTE PRÓTESIS REMOVIBLE METÁLICA PARCIAL | D124: 0 | E124: =SUM(Y124+AA124+AC124+AE124+AG124+AI124+AK124+AM124) -> 0 | F124: =SUM(Z124+AB124+AD124+AF124+AH124+AJ124+AL124+AN124) -> 0 | CI124: 0 | CJ124: 0 | CK124: 0 | CL124: 0 | CM124: 0 | CN124: 0
A125: REHABILITACIÓN MEDIANTE PRÓTESIS FIJA UNITARIA O PLURAL | D125: 0 | E125: 0 | F125: 0 | CI125: 0 | CJ125: 0 | CK125: 0 | CL125: 0 | CM125: 0 | CN125: 0
A126: REHABILITACIÓN MEDIANTE PRÓTESIS FIJA IMPLANTOASISTIDA | D126: 0 | E126: 0 | F126: 0 | CI126: 0 | CJ126: 0 | CK126: 0 | CL126: 0 | CM126: 0 | CN126: 0
A127: REHABILITACIÓN MEDIANTE PRÓTESIS MUCO- IMPLANTOASISTIDA | D127: 0 | E127: =SUM(Y127+AA127+AC127+AE127+AG127+AI127+AK127+AM127) -> 0 | F127: 0 | CI127: 0 | CJ127: 0 | CK127: 0 | CL127: 0 | CM127: 0 | CN127: 0
A128: REPARACIÓN DE PRÓTESIS | D128: 0 | E128: 0 | F128: 0 | CI128: 0 | CJ128: 0 | CK128: 0 | CL128: 0 | CM128: 0 | CN128: 0
A129: IMPLANTOLOGÍA QUIRÚRGICA | D129: 0 | E129: 0 | F129: 0 | CI129: 0 | CJ129: 0 | CK129: 0 | CL129: 0 | CM129: 0 | CN129: 0
A130: TOMA DE BIOPSIA | D130: 0 | E130: 0 | F130: 0 | CH130: 0 | CI130: 0 | CJ130: 0 | CK130: 0 | CL130: 0 | CM130: 0 | CN130: 0
A131: ESTUDIO HISTOPATOLÓGICO | D131: 0 | E131: 0 | F131: 0 | CH131: 0 | CI131: 0 | CJ131: 0 | CK131: 0 | CL131: 0 | CM131: 0 | CN131: 0
A132: SIALOMETRÍA | D132: 0 | E132: 0 | F132: 0 | CH132: 0 | CI132: 0 | CJ132: 0 | CK132: 0 | CL132: 0 | CM132: 0 | CN132: 0
A133: TERAPIA FARMACOLÓGICA DE LESIONES DEL TERRITORIO ORAL Y MAXILOFACIAL | D133: 0 | E133: 0 | F133: 0 | CH133: 0 | CI133: 0 | CJ133: 0 | CK133: 0 | CL133: 0 | CM133: 0 | CN133: 0
A134: TERAPIA NO FARMACOLÓGICA DE LESIONES DEL TERRITORIO ORAL Y MAXILOFACIAL | D134: 0 | E134: 0 | F134: 0 | CH134: 0 | CI134: 0 | CJ134: 0 | CK134: 0 | CL134: 0 | CM134: 0 | CN134: 0
A135: ESTUDIO CLÍNICO LESIONES DEL TERRITORIO ORAL MAXILOFACIAL | D135: 0 | E135: 0 | F135: 0 | CH135: 0 | CI135: 0 | CJ135: 0 | CK135: 0 | CL135: 0 | CM135: 0 | CN135: 0
A136: TERAPIA FÍSICA EN TRASTORNOS TEMPOROMANDIBULARES (TTM) Y DOLOR OROFACIAL (DOF) | D136: 0 | E136: 0 | F136: 0 | CH136: 0 | CI136: 0 | CJ136: 0 | CK136: 0 | CL136: 0 | CM136: 0 | CN136: 0
A137: INFILTRACIÓN EN ARTICULACIÓN TEMPORO MANDIBULAR (ATM) | D137: 0 | E137: 0 | F137: 0 | CH137: 0 | CI137: 0 | CJ137: 0 | CK137: 0 | CL137: 0 | CM137: 0 | CN137: 0
A138: BLOQUEO ANESTÉSICO Y/O MEDICAMENTOSO EN TTM Y DOF | D138: 0 | E138: 0 | F138: 0 | CH138: 0 | CI138: 0 | CJ138: 0 | CK138: 0 | CL138: 0 | CM138: 0 | CN138: 0
A139: ARTROCENTESIS EN ATM | D139: 0 | E139: 0 | F139: 0 | CH139: 0 | CI139: 0 | CJ139: 0 | CK139: 0 | CL139: 0 | CM139: 0 | CN139: 0
A140: TERAPIA BIOCONDUCTUAL | D140: 0 | E140: 0 | F140: 0 | CH140: 0 | CI140: 0 | CJ140: 0 | CK140: 0 | CL140: 0 | CM140: 0 | CN140: 0
A141: DESGASTE SELECTIVO | D141: 0 | E141: 0 | F141: 0 | CH141: 0 | CI141: 0 | CJ141: 0 | CK141: 0 | CL141: 0 | CM141: 0 | CN141: 0
A142: INSTALACIÓN DE DISPOSITIVO ORTOPÉDICO | D142: 0 | E142: 0 | F142: 0 | CH142: 0 | CI142: 0 | CJ142: 0 | CK142: 0 | CL142: 0 | CM142: 0 | CN142: 0
A143: ACTIVIDADES SOMATOPRÓTESIS | D143: 0 | E143: 0 | F143: 0 | CH143: 0 | CI143: 0 | CJ143: 0 | CK143: 0 | CL143: 0 | CM143: 0 | CN143: 0
A144: REHABILITACIÓN DE PRÓTESIS MAXILOFACIAL | D144: 0 | E144: 0 | F144: 0 | CH144: 0 | CI144: 0 | CJ144: 0 | CK144: 0 | CL144: 0 | CM144: 0 | CN144: 0
A145: TOTAL | D145: 0 | E145: 0 | F145: 0 | G145: =SUM(G91:G144) -> 0 | H145: 0 | I145: 0 | J145: 0 | K145: 0 | L145: 0 | M145: 0 | N145: 0 | O145: 0 | P145: 0 | Q145: 0 | R145: 0 | S145: 0 | T145: 0 | U145: 0 | V145: 0 | W145: 0 | X145: 0 | Y145: 0 | Z145: 0 | AA145: 0 | AB145: 0 | AC145: 0 | AD145: 0 | AE145: 0 | AF145: 0 | AG145: 0 | AH145: 0 | AI145: 0 | AJ145: 0 | AK145: 0 | AL145: 0 | AM145: 0 | AN145: 0 | AO145: =SUM(AO91:AO144) -> 0 | AP145: =SUM(AP91:AP144) -> 0 | AQ145: =SUM(AQ91:AQ144) -> 0 | AR145: =SUM(AR91:AR144) -> 0 | AS145: =SUM(AS91:AS144) -> 0 | AT145: 0 | AU145: 0 | AV145: 0
A146: SECCIÓN F.1: ACTIVIDADES DE IMAGENOLOGÍA ORAL Y MAXILOFACIAL.
A147: ACTIVIDADES DE APOYO | D147: TOTAL | G147: SEGÚN GRUPOS DE EDAD O DE RIESGO | AQ147: 12 años (incluidos en grupo de 10-14 años) | AR147: Embarazadas | AS147: Beneficiarios | AT147: 60 años (incluido en grupos de 60-64 años) | AU147: Compra de Servicio | AV147: Usuarios con Discapacidad | AW147: Niños, niñas, adolescentes y jovenes RED SENAME | AX147: Migrantes
G148: Menos de 1 año | I148: 1 año | K148: 2 años | M148: 3 años | O148: 4 años | Q148: 5 años | S148: 6 años | U148: 7 años | W148: 8-9 años | Y148: 10-14 años | AA148: 15-19 años | AC148: 20-24 años | AE148: 25-34 años | AG148: 35-44 años | AI148: 45-59 años | AK148: 60-64 años | AM148: 65-74 años | AO148: 75 y más años
D149: Total | E149: Hombres | F149: Mujeres | G149: Hombres | H149: Mujeres | I149: Hombres | J149: Mujeres | K149: Hombres | L149: Mujeres | M149: Hombres | N149: Mujeres | O149: Hombres | P149: Mujeres | Q149: Hombres | R149: Mujeres | S149: Hombres | T149: Mujeres | U149: Hombres | V149: Mujeres | W149: Hombres | X149: Mujeres | Y149: Hombres | Z149: Mujeres | AA149: Hombres | AB149: Mujeres | AC149: Hombres | AD149: Mujeres | AE149: Hombres | AF149: Mujeres | AG149: Hombres | AH149: Mujeres | AI149: Hombres | AJ149: Mujeres | AK149: Hombres | AL149: Mujeres | AM149: Hombres | AN149: Mujeres | AO149: Hombres | AP149: Mujeres
A150: RADIOGRAFÍA INTRAORAL MEDIANTE TÉCNICAS RETROALVEOLARES (POR PLACA) | D150: =SUM(G150:AP150) -> 0 | E150: =SUM(G150+I150+K150+M150+O150+Q150+S150+U150+W150+Y150+AA150+AC150+AE150+AG150+AI150+AK150+AM150+AO150) -> 0 | F150: =SUM(H150+J150+L150+N150+P150+R150+T150+V150+X150+Z150+AB150+AD150+AF150+AH150+AJ150+AL150+AN150+AP150) -> 0 | AY150: =$CA150&$CB150&$CC150&$CD150&$CE150&$CF150&$CG150 ->  | CA150: =IF(CH150=1,"* Las consultas de 12 años NO DEBEN ser mayor que el total de Consultas entre 10-14 Años. ","") ->  | CB150: =IF(CI150=1,"* Las consultas de 60 años NO DEBEN ser mayor que el total de Consultas entre 60-64 Años. ","") ->  | CC150: =IF(CJ150=1,"* Las actividades de usuarios en situación de discapacidad NO DEBEN superar el total. ","") ->  | CD150: =IF(AND(AR150="",D150<>0),"* Recuerde que las Embarazadas deben ser incluídas en el ingreso por rango Etario (Digite CEROS si no tiene). ",IF(F150<AR150,"* Las Embarazadas NO DEBEN ser mayor al total de mujeres. ","")) ->  | CE150: =IF(AND(AS150="",D150<>0),"* No olvide digitar la columna Beneficiarios (Digite CEROS si no tiene). ",IF(D150<AS150,"* El número de Beneficiarios NO DEBE ser mayor que el Total. ","")) ->  | CF150: =IF(AND(AW150="",D150<>0),"* No olvide digitar la Población SENAME (Digite CEROS si no tiene). ",IF(D150<AW150,"* La Población SENAME NO DEBE ser mayor al Total. ","")) ->  | CG150: =IF(AND(AX150="",D150<>0),"* No olvide digitar la Población Migrante (Digite CEROS si no tiene). ",IF(D150<AX150,"* La Población Migrante NO DEBE superar el Total. ","")) ->  | CH150: =IF(AQ150>(Y150+Z150),1,0) -> 0 | CI150: =IF(AT150>(AK150+AL150),1,0) -> 0 | CJ150: =IF(D150<AV150,1,0) -> 0 | CK150: =IF(AND(AR150="",D150<>0),1,IF(F150<AR150,1,0)) -> 0 | CL150: =IF(AND(AS150="",D150<>0),1,IF(D150<AS150,1,0)) -> 0 | CM150: =IF(AND(AW150="",D150<>0),1,IF(D150<AW150,1,0)) -> 0 | CN150: =IF(AND(AX150="",D150<>0),1,IF(D150<AX150,1,0)) -> 0
A151: RADIOGRAFÍA INTRAORAL MEDIANTE TÉCNICAS BITE WING (POR PLACA) | D151: =SUM(G151:AP151) -> 0 | E151: =SUM(G151+I151+K151+M151+O151+Q151+S151+U151+W151+Y151+AA151+AC151+AE151+AG151+AI151+AK151+AM151+AO151) -> 0 | F151: =SUM(H151+J151+L151+N151+P151+R151+T151+V151+X151+Z151+AB151+AD151+AF151+AH151+AJ151+AL151+AN151+AP151) -> 0 | CA151: =IF(CH151=1,"* Las consultas de 12 años NO DEBEN ser mayor que el total de Consultas entre 10-14 Años. ","") ->  | CB151: =IF(CI151=1,"* Las consultas de 60 años NO DEBEN ser mayor que el total de Consultas entre 60-64 Años. ","") ->  | CC151: =IF(CJ151=1,"* Las actividades de usuarios en situación de discapacidad NO DEBEN superar el total. ","") ->  | CD151: =IF(AND(AR151="",D151<>0),"* Recuerde que las Embarazadas deben ser incluídas en el ingreso por rango Etario (Digite CEROS si no tiene). ",IF(F151<AR151,"* Las Embarazadas NO DEBEN ser mayor al total de mujeres. ","")) ->  | CE151: =IF(AND(AS151="",D151<>0),"* No olvide digitar la columna Beneficiarios (Digite CEROS si no tiene). ",IF(D151<AS151,"* El número de Beneficiarios NO DEBE ser mayor que el Total. ","")) ->  | CF151: =IF(AND(AW151="",D151<>0),"* No olvide digitar la Población SENAME (Digite CEROS si no tiene). ",IF(D151<AW151,"* La Población SENAME NO DEBE ser mayor al Total. ","")) ->  | CG151: =IF(AND(AX151="",D151<>0),"* No olvide digitar la Población Migrante (Digite CEROS si no tiene). ",IF(D151<AX151,"* La Población Migrante NO DEBE superar el Total. ","")) ->  | CH151: =IF(AQ151>(Y151+Z151),1,0) -> 0 | CI151: =IF(AT151>(AK151+AL151),1,0) -> 0 | CJ151: =IF(D151<AV151,1,0) -> 0 | CK151: =IF(AND(AR151="",D151<>0),1,IF(F151<AR151,1,0)) -> 0 | CL151: =IF(AND(AS151="",D151<>0),1,IF(D151<AS151,1,0)) -> 0 | CM151: =IF(AND(AW151="",D151<>0),1,IF(D151<AW151,1,0)) -> 0 | CN151: =IF(AND(AX151="",D151<>0),1,IF(D151<AX151,1,0)) -> 0
A152: RADIOGRAFÍA EXTRAORAL (POR PLACA) | D152: =SUM(G152:AP152) -> 0 | E152: 0 | F152: 0 | CH152: 0 | CI152: 0 | CJ152: 0 | CK152: 0 | CL152: 0 | CM152: 0 | CN152: 0
A153: RADIOGRAFÍA OCLUSAL (POR PLACA) | D153: 0 | E153: 0 | F153: 0 | CH153: 0 | CI153: 0 | CJ153: 0 | CK153: 0 | CL153: 0 | CM153: 0 | CN153: 0
A154: TELERRADIOGRAFÍA (POR PLACA) | D154: 0 | E154: 0 | F154: 0 | CH154: 0 | CI154: 0 | CJ154: 0 | CK154: 0 | CL154: 0 | CM154: 0 | CN154: 0
A155: RADIOGRAFÍA PANORÁMICA (POR PLACA) | D155: 0 | E155: 0 | F155: 0 | CH155: 0 | CI155: 0 | CJ155: 0 | CK155: 0 | CL155: 0 | CM155: 0 | CN155: 0
A156: TOMOGRAFÍA COMPUTACIONAL MAXILO FACIAL CONE BEAM (POR ADQUISICIÓN) | D156: 0 | E156: 0 | F156: 0 | CH156: 0 | CI156: 0 | CJ156: 0 | CK156: 0 | CL156: 0 | CM156: 0 | CN156: 0
A157: SIALOGRAFÍAS (POR PROCEDIMIENTO) | D157: 0 | E157: 0 | F157: 0 | CH157: 0 | CI157: 0 | CJ157: 0 | CK157: 0 | CL157: 0 | CM157: 0 | CN157: 0
A158: PROCEDIMIENTO IMAGENOLÓGICO COMPLEJO (POR PROCEDIMIENTO) | D158: 0 | E158: =SUM(G158+I158+K158+M158+O158+Q158+S158+U158+W158+Y158+AA158+AC158+AE158+AG158+AI158+AK158+AM158+AO158) -> 0 | F158: 0 | CH158: 0 | CI158: 0 | CJ158: 0 | CK158: 0 | CL158: 0 | CM158: 0 | CN158: 0
A159: TOTAL | D159: =SUM(D150:D158) -> 0 | E159: =SUM(E150:E158) -> 0 | F159: =SUM(F150:F158) -> 0 | G159: =SUM(G150:G158) -> 0 | H159: 0 | I159: 0 | J159: 0 | K159: 0 | L159: 0 | M159: 0 | N159: 0 | O159: 0 | P159: 0 | Q159: 0 | R159: 0 | S159: 0 | T159: 0 | U159: 0 | V159: 0 | W159: 0 | X159: 0 | Y159: 0 | Z159: 0 | AA159: 0 | AB159: 0 | AC159: 0 | AD159: 0 | AE159: 0 | AF159: 0 | AG159: 0 | AH159: 0 | AI159: 0 | AJ159: 0 | AK159: 0 | AL159: 0 | AM159: 0 | AN159: 0 | AO159: 0 | AP159: 0 | AQ159: 0 | AR159: 0 | AS159: 0 | AT159: 0 | AU159: 0 | AV159: =SUM(AV150:AV158) -> 0 | AW159: =SUM(AW150:AW158) -> 0 | AX159: =SUM(AX150:AX158) -> 0
A160: SECCIÓN G: PROGRAMAS ESPECIALES Y GES (Actividades incluidas en Sección B)
A161: PROGRAMA - ACTIVIDAD | D161: TOTAL | G161: SEGÚN GRUPOS DE EDAD O DE RIESGO | AQ161: Compra de Servicio | AR161: Usuarios con Discapacidad | AS161: Niños, niñas, adolescentes y jovenes RED SENAME | AT161: Migrantes | AU161: Egreso por Abandono | AV161: Paciente Diabético en Control Programa Salud Cardiovascular
G162: Menos de 1 año | I162: 1 año | K162: 2 años | M162: 3 años | O162: 4 años | Q162: 5 años | S162: 6 años | U162: 7 años | W162: 8-9 años | Y162: 10-14 años | AA162: 15-19 años | AC162: 20-24 años | AE162: 25-34 años | AG162: 35-44 años | AI162: 45-59 años | AK162: 60-64 años | AM162: 65-74 años | AO162: 75 y más años
